Workbook

Sheet PLANTA INICIAL (hidden)
B1: CC | C1: NOMBRE | D1: N | E1: NIVEL | F1: NOMENCLATURA_ADMIN | G1: CÓDIGO | H1: GRADO | I1: DEPENDENCIA | J1: NOMBRAMIENTO
A2: 1 | C2: VACANTE DEFINITIVA | D2: 1 | E2: DIRECTIVO | F2: DIRECTOR TÉCNICO | G2: 9 | H2: 7 | I2: DIRECCIÓN CORPORATIVA
A3: 2 | C3: VACANTE DEFINITIVA | D3: 1 | E3: DIRECTIVO | F3: DIRECTOR TÉCNICO | G3: 9 | H3: 7 | I3: DIRECCIÓN DISTRITAL DE ASUNTOS DISCIPLINARIOS | J3: LIBRE NOMBRAMIENTO
A4: 3 | B4: 28915546 | C4: RODRIGUEZ QUIMBAYO LUZ ELENA | D4: 1 | E4: DIRECTIVO | F4: DIRECTOR TÉCNICO | G4: 9 | H4: 7 | I4: DIRECCIÓN DISTRITAL DE DEFENSA JUDICIAL Y PREVENCIÓN DEL DAÑO ANTIJURÍDICO | J4: LIBRE NOMBRAMIENTO
A5: 4 | C5: VACANTE DEFINITIVA | D5: 1 | E5: DIRECTIVO | F5: DIRECTOR TÉCNICO | G5: 9 | H5: 7 | I5: DIRECCIÓN DISTRITAL DE DOCTRINA JURÍDICA
A6: 5 | B6: 35521959 | C6: MARTÍNEZ SIERRA GLORIA EDITH | D6: 1 | E6: DIRECTIVO | F6: DIRECTOR TÉCNICO | G6: 9 | H6: 7 | I6: DIRECCIÓN DISTRITAL DE POLÍTICA E INFORMÁTICA JURÍDICA | J6: LIBRE NOMBRAMIENTO
A7: 6 | B7: 39742375 | C7: ROBAYO ALFONSO ANDREA | D7: 1 | E7: DIRECTIVO | F7: DIRECTOR TÉCNICO | G7: 9 | H7: 7 | I7: DIRECCIÓN DISTRITAL DE INSPECCIÓN VIGILANCIA Y CONTROL DE LAS ENTIDADES SIN ÁNIMO DE LUCRO | J7: LIBRE NOMBRAMIENTO
A8: 7 | C8: VACANTE DEFINITIVA | D8: 1 | E8: DIRECTIVO | F8: JEFE DE OFICINA | G8: 6 | H8: 6 | I8: OFICINA DE CONTROL INTERNO
A9: 8 | B9: 51740995 | C9: HERNANDEZ CORZO DALILA ASTRID | D9: 1 | E9: DIRECTIVO | F9: SECRETARIA JURIDICA | G9: 20 | H9: 9 | I9: DESPACHO | J9: LIBRE NOMBRAMIENTO
A10: 9 | B10: 79543049 | C10: BURGOS DURANGO WILLIAM ANTONIO | D10: 1 | E10: DIRECTIVO | F10: SUBSECRETARIO | G10: 45 | H10: 8 | I10: SUBSECRETARÍA JURÍDICA | J10: LIBRE NOMBRAMIENTO
A11: 10 | B11: 1085262099 | C11: BURBANO SÁNCHEZ MARÍA ANGÉLICA | D11: 2 | E11: ASESOR | F11: ASESOR | G11: 105 | H11: 5 | I11: DESPACHO | J11: LIBRE NOMBRAMIENTO
A12: 11 | B12: 80040965 | C12: CUELLAR TRUJILLO PEDRO ANDRÉS | D12: 2 | E12: ASESOR | F12: ASESOR | G12: 105 | H12: 5 | I12: DESPACHO | J12: LIBRE NOMBRAMIENTO
A13: 12 | B13: 72291125 | C13: ESPINOSA OTERO ANDRES MAURICIO | D13: 2 | E13: ASESOR | F13: ASESOR | G13: 105 | H13: 5 | I13: DESPACHO | J13: LIBRE NOMBRAMIENTO
A14: 13 | B14: 52233911 | C14: RODRÍGUEZ BARRERA NOHORA PATRICIA | D14: 2 | E14: ASESOR | F14: ASESOR | G14: 105 | H14: 5 | I14: DESPACHO | J14: LIBRE NOMBRAMIENTO
A15: 14 | B15: 52394165 | C15: TOBÓN DÍAZ ALEJANDRA | D15: 2 | E15: ASESOR | F15: ASESOR | G15: 105 | H15: 5 | I15: DESPACHO | J15: LIBRE NOMBRAMIENTO
A16: 15 | C16: VACANTE DEFINITIVA | D16: 2 | E16: ASESOR | F16: JEFE DE OFICINA | G16: 115 | H16: 6 | I16: OFICINA ASESORA DE PLANEACIÓN
A17: 16 | C17: VACANTE DEFINITIVA | D17: 2 | E17: ASESOR | F17: JEFE DE OFICINA | G17: 115 | H17: 6 | I17: OFICINA DE TECNOLOGÍA DE LA INFORMACIÓN, SISTEMAS Y COMUNICACIONES
A18: 17 | B18: 79299847 | C18: MONTOYA MALDONADO JESÚS MARÍA | D18: 3 | E18: PROFESIONAL | F18: PROFESIONAL ESPECIALIZADO | G18: 222 | H18: 27 | I18: DIRECCIÓN CORPORATIVA | J18: CARRERA ADMINISTRATIVA
A19: 18 | C19: VACANTE DEFINITIVA | D19: 3 | E19: PROFESIONAL | F19: PROFESIONAL ESPECIALIZADO | G19: 222 | H19: 27 | I19: DIRECCIÓN CORPORATIVA
A20: 19 | B20: 52236487 | C20: MORENO GUERRERO DEYSI YANIRA | D20: 3 | E20: PROFESIONAL | F20: PROFESIONAL ESPECIALIZADO | G20: 222 | H20: 27 | I20: DIRECCIÓN DISTRITAL DE ASUNTOS DISCIPLINARIOS | J20: CARRERA ADMINISTRATIVA
A21: 20 | C21: VACANTE DEFINITIVA | D21: 3 | E21: PROFESIONAL | F21: PROFESIONAL ESPECIALIZADO | G21: 222 | H21: 27 | I21: SUBSECRETARÍA JURÍDICA
A22: 21 | C22: VACANTE DEFINITIVA | D22: 3 | E22: PROFESIONAL | F22: PROFESIONAL ESPECIALIZADO | G22: 222 | H22: 27 | I22: SUBSECRETARÍA JURÍDICA
A23: 22 | C23: VACANTE DEFINITIVA | D23: 3 | E23: PROFESIONAL | F23: PROFESIONAL ESPECIALIZADO | G23: 222 | H23: 27 | I23: SUBSECRETARÍA JURÍDICA
A24: 23 | B24: 51798311 | C24: AMAYA SALAZAR MARTHA YOLANDA | D24: 3 | E24: PROFESIONAL | F24: PROFESIONAL ESPECIALIZADO | G24: 222 | H24: 27 | I24: DIRECCIÓN DISTRITAL DE DEFENSA JUDICIAL Y PREVENCIÓN DEL DAÑO ANTIJURÍDICO | J24: CARRERA ADMINISTRATIVA
A25: 24 | B25: 79153811 | C25: CADENA ROJAS ERNESTO | D25: 3 | E25: PROFESIONAL | F25: PROFESIONAL ESPECIALIZADO | G25: 222 | H25: 27 | I25: DIRECCIÓN DISTRITAL DE DEFENSA JUDICIAL Y PREVENCIÓN DEL DAÑO ANTIJURÍDICO | J25: CARRERA ADMINISTRATIVA
A26: 25 | B26: 51569861 | C26: DIAGO CASASBUENAS GLORIA MAGDALENA | D26: 3 | E26: PROFESIONAL | F26: PROFESIONAL ESPECIALIZADO | G26: 222 | H26: 27 | I26: DIRECCIÓN DISTRITAL DE DEFENSA JUDICIAL Y PREVENCIÓN DEL DAÑO ANTIJURÍDICO | J26: CARRERA ADMINISTRATIVA
A27: 26 | C27: VACANTE DEFINITIVA | D27: 3 | E27: PROFESIONAL | F27: PROFESIONAL ESPECIALIZADO | G27: 222 | H27: 27 | I27: DIRECCIÓN DISTRITAL DE DEFENSA JUDICIAL Y PREVENCIÓN DEL DAÑO ANTIJURÍDICO
A28: 27 | C28: VACANTE DEFINITIVA | D28: 3 | E28: PROFESIONAL | F28: PROFESIONAL ESPECIALIZADO | G28: 222 | H28: 27 | I28: DIRECCIÓN DISTRITAL DE DEFENSA JUDICIAL Y PREVENCIÓN DEL DAÑO ANTIJURÍDICO
A29: 28 | C29: VACANTE DEFINITIVA | D29: 3 | E29: PROFESIONAL | F29: PROFESIONAL ESPECIALIZADO | G29: 222 | H29: 27 | I29: DIRECCIÓN DISTRITAL DE DEFENSA JUDICIAL Y PREVENCIÓN DEL DAÑO ANTIJURÍDICO
A30: 29 | C30: VACANTE DEFINITIVA | D30: 3 | E30: PROFESIONAL | F30: PROFESIONAL ESPECIALIZADO | G30: 222 | H30: 27 | I30: DIRECCIÓN DISTRITAL DE DEFENSA JUDICIAL Y PREVENCIÓN DEL DAÑO ANTIJURÍDICO
A31: 30 | C31: VACANTE DEFINITIVA | D31: 3 | E31: PROFESIONAL | F31: PROFESIONAL ESPECIALIZADO | G31: 222 | H31: 27 | I31: DIRECCIÓN DISTRITAL DE DEFENSA JUDICIAL Y PREVENCIÓN DEL DAÑO ANTIJURÍDICO
A32: 31 | C32: VACANTE DEFINITIVA | D32: 3 | E32: PROFESIONAL | F32: PROFESIONAL ESPECIALIZADO | G32: 222 | H32: 27 | I32: DIRECCIÓN DISTRITAL DE DEFENSA JUDICIAL Y PREVENCIÓN DEL DAÑO ANTIJURÍDICO
A33: 32 | B33: 52363895 | C33: HERNANDEZ LIBREROS ELVIRA LILIANA | D33: 3 | E33: PROFESIONAL | F33: PROFESIONAL ESPECIALIZADO | G33: 222 | H33: 27 | I33: DIRECCIÓN DISTRITAL DE DOCTRINA JURÍDICA | J33: CARRERA ADMINISTRATIVA
A34: 33 | B34: 52009661 | C34: TIBAMOSCA VILLAMARÍN SANDRA YANETH | D34: 3 | E34: PROFESIONAL | F34: PROFESIONAL ESPECIALIZADO | G34: 222 | H34: 27 | I34: DIRECCIÓN DISTRITAL DE DOCTRINA JURÍDICA | J34: CARRERA ADMINISTRATIVA
A35: 34 | C35: VACANTE DEFINITIVA | D35: 3 | E35: PROFESIONAL | F35: PROFESIONAL ESPECIALIZADO | G35: 222 | H35: 27 | I35: DIRECCIÓN DISTRITAL DE DOCTRINA JURÍDICA
A36: 35 | B36: 24179106 | C36: ROJAS SUÁREZ ZULMA | D36: 3 | E36: PROFESIONAL | F36: PROFESIONAL ESPECIALIZADO | G36: 222 | H36: 27 | I36: DIRECCIÓN DISTRITAL DE POLÍTICA E INFORMÁTICA JURÍDICA | J36: CARRERA ADMINISTRATIVA
A37: 36 | C37: VACANTE DEFINITIVA | D37: 3 | E37: PROFESIONAL | F37: PROFESIONAL ESPECIALIZADO | G37: 222 | H37: 27 | I37: DIRECCIÓN DISTRITAL DE POLÍTICA E INFORMÁTICA JURÍDICA
A38: 37 | B38: 19347862 | C38: HERNANDEZ ALBARRACÍN JORGE ELIÉCER | D38: 3 | E38: PROFESIONAL | F38: PROFESIONAL ESPECIALIZADO | G38: 222 | H38: 27 | I38: DIRECCIÓN DISTRITAL DE INSPECCIÓN VIGILANCIA Y CONTROL DE LAS ENTIDADES SIN ÁNIMO DE LUCRO | J38: CARRERA ADMINISTRATIVA
A39: 38 | C39: VACANTE DEFINITIVA | D39: 3 | E39: PROFESIONAL | F39: PROFESIONAL ESPECIALIZADO | G39: 222 | H39: 27 | I39: DIRECCIÓN DISTRITAL DE INSPECCIÓN VIGILANCIA Y CONTROL DE LAS ENTIDADES SIN ÁNIMO DE LUCRO
A40: 39 | C40: VACANTE DEFINITIVA | D40: 3 | E40: PROFESIONAL | F40: PROFESIONAL ESPECIALIZADO | G40: 222 | H40: 27 | I40: DIRECCIÓN DISTRITAL DE INSPECCIÓN VIGILANCIA Y CONTROL DE LAS ENTIDADES SIN ÁNIMO DE LUCRO
A41: 40 | C41: VACANTE DEFINITIVA | D41: 3 | E41: PROFESIONAL | F41: PROFESIONAL ESPECIALIZADO | G41: 222 | H41: 27 | I41: DIRECCIÓN DISTRITAL DE INSPECCIÓN VIGILANCIA Y CONTROL DE LAS ENTIDADES SIN ÁNIMO DE LUCRO
A42: 41 | B42: 28891891 | C42: MESA VASQUEZ GLORIA ASTRID | D42: 3 | E42: PROFESIONAL | F42: PROFESIONAL ESPECIALIZADO | G42: 222 | H42: 26 | I42: DIRECCIÓN DISTRITAL DE DEFENSA JUDICIAL Y PREVENCIÓN DEL DAÑO ANTIJURÍDICO | J42: CARRERA ADMINISTRATIVA
A43: 42 | B43: 6761621 | C43: PARRA LEGUIZAMON JORGE ERNESTO | D43: 3 | E43: PROFESIONAL | F43: PROFESIONAL ESPECIALIZADO | G43: 222 | H43: 26 | I43: DIRECCIÓN DISTRITAL DE INSPECCIÓN VIGILANCIA Y CONTROL DE LAS ENTIDADES SIN ÁNIMO DE LUCRO | J43: CARRERA ADMINISTRATIVA
A44: 43 | C44: VACANTE DEFINITIVA | D44: 3 | E44: PROFESIONAL | F44: PROFESIONAL ESPECIALIZADO | G44: 222 | H44: 25 | I44: DIRECCIÓN DISTRITAL DE INSPECCIÓN VIGILANCIA Y CONTROL DE LAS ENTIDADES SIN ÁNIMO DE LUCRO
A45: 44 | C45: VACANTE DEFINITIVA | D45: 3 | E45: PROFESIONAL | F45: PROFESIONAL ESPECIALIZADO | G45: 222 | H45: 24 | I45: OFICINA DE TECNOLOGÍA DE LA INFORMACIÓN, SISTEMAS Y COMUNICACIONES
A46: 45 | B46: 79349710 | C46: OVALLE CUERVO EDGAR ENRIQUE | D46: 3 | E46: PROFESIONAL | F46: PROFESIONAL ESPECIALIZADO | G46: 222 | H46: 24 | I46: OFICINA DE TECNOLOGÍA DE LA INFORMACIÓN, SISTEMAS Y COMUNICACIONES | J46: CARRERA ADMINISTRATIVA
A47: 46 | B47: 28963444 | C47: SALCEDO TAMAYO GLORIA ESTHER | D47: 3 | E47: PROFESIONAL | F47: PROFESIONAL ESPECIALIZADO | G47: 222 | H47: 24 | I47: DIRECCIÓN CORPORATIVA | J47: CARRERA ADMINISTRATIVA
A48: 47 | B48: 42497241 | C48: APONTE PENSO SILVIA MODESTA | D48: 3 | E48: PROFESIONAL | F48: PROFESIONAL ESPECIALIZADO | G48: 222 | H48: 24 | I48: DIRECCIÓN DISTRITAL DE DOCTRINA JURÍDICA | J48: CARRERA ADMINISTRATIVA
A49: 48 | C49: VACANTE DEFINITIVA | D49: 3 | E49: PROFESIONAL | F49: PROFESIONAL ESPECIALIZADO | G49: 222 | H49: 24 | I49: DIRECCIÓN DISTRITAL DE DOCTRINA JURÍDICA
A50: 49 | C50: VACANTE DEFINITIVA | D50: 3 | E50: PROFESIONAL | F50: PROFESIONAL ESPECIALIZADO | G50: 222 | H50: 24 | I50: DIRECCIÓN DISTRITAL DE DOCTRINA JURÍDICA
A51: 50 | C51: VACANTE DEFINITIVA | D51: 3 | E51: PROFESIONAL | F51: PROFESIONAL ESPECIALIZADO | G51: 222 | H51: 24 | I51: DIRECCIÓN DISTRITAL DE DOCTRINA JURÍDICA
A52: 51 | C52: VACANTE DEFINITIVA | D52: 3 | E52: PROFESIONAL | F52: PROFESIONAL ESPECIALIZADO | G52: 222 | H52: 24 | I52: DIRECCIÓN DISTRITAL DE INSPECCIÓN VIGILANCIA Y CONTROL DE LAS ENTIDADES SIN ÁNIMO DE LUCRO
A53: 52 | B53: 35312719 | C53: GIRALDO MONTOYA MARTHA ALICIA | D53: 3 | E53: PROFESIONAL | F53: PROFESIONAL ESPECIALIZADO | G53: 222 | H53: 24 | I53: DIRECCIÓN DISTRITAL DE INSPECCIÓN VIGILANCIA Y CONTROL DE LAS ENTIDADES SIN ÁNIMO DE LUCRO | J53: CARRERA ADMINISTRATIVA
A54: 53 | C54: VACANTE DEFINITIVA | D54: 3 | E54: PROFESIONAL | F54: PROFESIONAL ESPECIALIZADO | G54: 222 | H54: 22 | I54: DIRECCIÓN DISTRITAL DE POLÍTICA E INFORMÁTICA JURÍDICA
A55: 54 | B55: 79569642 | C55: SALAZAR URRUTIA NELSON JULIAN | D55: 3 | E55: PROFESIONAL | F55: PROFESIONAL ESPECIALIZADO | G55: 222 | H55: 21 | I55: OFICINA ASESORA DE PLANEACIÓN | J55: CARRERA ADMINISTRATIVA
A56: 55 | B56: 51748267 | C56: CASTELLANOS RODRÍGUEZ MARTHA LIGIA | D56: 3 | E56: PROFESIONAL | F56: PROFESIONAL ESPECIALIZADO | G56: 222 | H56: 21 | I56: DIRECCIÓN CORPORATIVA | J56: PROVISIONAL
A57: 56 | B57: 51649014 | C57: GUTIERREZ HERNANDEZ DORA BELEN | D57: 3 | E57: PROFESIONAL | F57: PROFESIONAL ESPECIALIZADO | G57: 222 | H57: 21 | I57: DIRECCIÓN CORPORATIVA | J57: CARRERA ADMINISTRATIVA
A58: 57 | B58: 52352995 | C58: SALAS SANCHEZ VANESSA | D58: 3 | E58: PROFESIONAL | F58: PROFESIONAL ESPECIALIZADO | G58: 222 | H58: 21 | I58: DIRECCIÓN CORPORATIVA | J58: PROVISIONAL
A59: 58 | C59: VACANTE DEFINITIVA | D59: 3 | E59: PROFESIONAL | F59: PROFESIONAL ESPECIALIZADO | G59: 222 | H59: 21 | I59: DIRECCIÓN CORPORATIVA
A60: 59 | B60: 3085860 | C60: CASTIBLANCO URQUIJO LUIS ALFONSO | D60: 3 | E60: PROFESIONAL | F60: PROFESIONAL ESPECIALIZADO | G60: 222 | H60: 21 | I60: DIRECCIÓN DISTRITAL DE DEFENSA JUDICIAL Y PREVENCIÓN DEL DAÑO ANTIJURÍDICO | J60: CARRERA ADMINISTRATIVA
A61: 60 | C61: VACANTE DEFINITIVA | D61: 3 | E61: PROFESIONAL | F61: PROFESIONAL ESPECIALIZADO | G61: 222 | H61: 21 | I61: DIRECCIÓN DISTRITAL DE DOCTRINA JURÍDICA
A62: 61 | C62: VACANTE DEFINITIVA | D62: 3 | E62: PROFESIONAL | F62: PROFESIONAL ESPECIALIZADO | G62: 222 | H62: 21 | I62: DIRECCIÓN DISTRITAL DE INSPECCIÓN VIGILANCIA Y CONTROL DE LAS ENTIDADES SIN ÁNIMO DE LUCRO
A63: 62 | C63: VACANTE DEFINITIVA | D63: 3 | E63: PROFESIONAL | F63: PROFESIONAL ESPECIALIZADO | G63: 222 | H63: 21 | I63: DIRECCIÓN DISTRITAL DE INSPECCIÓN VIGILANCIA Y CONTROL DE LAS ENTIDADES SIN ÁNIMO DE LUCRO
A64: 63 | B64: 79450267 | C64: GONZÁLEZ MOLINA HENRY ALBERTO | D64: 3 | E64: PROFESIONAL | F64: PROFESIONAL ESPECIALIZADO | G64: 222 | H64: 20 | I64: DIRECCIÓN DISTRITAL DE DEFENSA JUDICIAL Y PREVENCIÓN DEL DAÑO ANTIJURÍDICO | J64: CARRERA ADMINISTRATIVA
A65: 64 | C65: VACANTE DEFINITIVA | D65: 3 | E65: PROFESIONAL | F65: PROFESIONAL ESPECIALIZADO | G65: 222 | H65: 20 | I65: DIRECCIÓN DISTRITAL DE DEFENSA JUDICIAL Y PREVENCIÓN DEL DAÑO ANTIJURÍDICO
A66: 65 | C66: VACANTE DEFINITIVA | D66: 3 | E66: PROFESIONAL | F66: PROFESIONAL ESPECIALIZADO | G66: 222 | H66: 19 | I66: DIRECCIÓN DISTRITAL DE ASUNTOS DISCIPLINARIOS
A67: 66 | C67: VACANTE DEFINITIVA | D67: 3 | E67: PROFESIONAL | F67: PROFESIONAL ESPECIALIZADO | G67: 222 | H67: 19 | I67: DIRECCIÓN DISTRITAL DE ASUNTOS DISCIPLINARIOS
A68: 67 | C68: VACANTE DEFINITIVA | D68: 3 | E68: PROFESIONAL | F68: PROFESIONAL ESPECIALIZADO | G68: 222 | H68: 19 | I68: DIRECCIÓN DISTRITAL DE DOCTRINA JURÍDICA
A69: 68 | B69: 51772038 | C69: CONTRERAS CASTRO DIANA ESTHER | D69: 3 | E69: PROFESIONAL | F69: PROFESIONAL ESPECIALIZADO | G69: 222 | H69: 19 | I69: DIRECCIÓN DISTRITAL DE INSPECCIÓN VIGILANCIA Y CONTROL DE LAS ENTIDADES SIN ÁNIMO DE LUCRO | J69: CARRERA ADMINISTRATIVA
A70: 69 | C70: VACANTE DEFINITIVA | D70: 3 | E70: PROFESIONAL | F70: PROFESIONAL UNIVERSITARIO | G70: 219 | H70: 18 | I70: DESPACHO
A71: 70 | C71: VACANTE DEFINITIVA | D71: 3 | E71: PROFESIONAL | F71: PROFESIONAL UNIVERSITARIO | G71: 219 | H71: 18 | I71: OFICINA ASESORA DE PLANEACIÓN
A72: 71 | B72: 80022321 | C72: HERNÁNDEZ MURCIA SAMUEL ARTURO | D72: 3 | E72: PROFESIONAL | F72: PROFESIONAL UNIVERSITARIO | G72: 219 | H72: 18 | I72: DIRECCIÓN CORPORATIVA | J72: PROVISIONAL
A73: 72 | B73: 51657823 | C73: MENDOZA HILDA CONSUELO | D73: 3 | E73: PROFESIONAL | F73: PROFESIONAL UNIVERSITARIO | G73: 219 | H73: 18 | I73: DIRECCIÓN CORPORATIVA | J73: CARRERA ADMINISTRATIVA
A74: 73 | C74: VACANTE DEFINITIVA | D74: 3 | E74: PROFESIONAL | F74: PROFESIONAL UNIVERSITARIO | G74: 219 | H74: 18 | I74: DIRECCIÓN CORPORATIVA
A75: 74 | C75: VACANTE DEFINITIVA | D75: 3 | E75: PROFESIONAL | F75: PROFESIONAL UNIVERSITARIO | G75: 219 | H75: 18 | I75: DIRECCIÓN CORPORATIVA
A76: 75 | C76: VACANTE DEFINITIVA | D76: 3 | E76: PROFESIONAL | F76: PROFESIONAL UNIVERSITARIO | G76: 219 | H76: 18 | I76: DIRECCIÓN CORPORATIVA
A77: 76 | B77: 38263037 | C77: GOMEZ CARMONA WALDINA | D77: 3 | E77: PROFESIONAL | F77: PROFESIONAL UNIVERSITARIO | G77: 219 | H77: 18 | I77: DIRECCIÓN DISTRITAL DE DEFENSA JUDICIAL Y PREVENCIÓN DEL DAÑO ANTIJURÍDICO | J77: CARRERA ADMINISTRATIVA
A78: 77 | B78: 7630834 | C78: RUIZ VEGA HÉCTOR RAFAEL | D78: 3 | E78: PROFESIONAL | F78: PROFESIONAL UNIVERSITARIO | G78: 219 | H78: 18 | I78: DIRECCIÓN DISTRITAL DE DEFENSA JUDICIAL Y PREVENCIÓN DEL DAÑO ANTIJURÍDICO | J78: PROVISIONAL
A79: 78 | C79: VACANTE DEFINITIVA | D79: 3 | E79: PROFESIONAL | F79: PROFESIONAL UNIVERSITARIO | G79: 219 | H79: 18 | I79: DIRECCIÓN DISTRITAL DE DEFENSA JUDICIAL Y PREVENCIÓN DEL DAÑO ANTIJURÍDICO
A80: 79 | C80: VACANTE DEFINITIVA | D80: 3 | E80: PROFESIONAL | F80: PROFESIONAL UNIVERSITARIO | G80: 219 | H80: 18 | I80: DIRECCIÓN DISTRITAL DE DEFENSA JUDICIAL Y PREVENCIÓN DEL DAÑO ANTIJURÍDICO
A81: 80 | C81: VACANTE DEFINITIVA | D81: 3 | E81: PROFESIONAL | F81: PROFESIONAL UNIVERSITARIO | G81: 219 | H81: 18 | I81: DIRECCIÓN DISTRITAL DE DEFENSA JUDICIAL Y PREVENCIÓN DEL DAÑO ANTIJURÍDICO
A82: 81 | C82: VACANTE DEFINITIVA | D82: 3 | E82: PROFESIONAL | F82: PROFESIONAL UNIVERSITARIO | G82: 219 | H82: 18 | I82: DIRECCIÓN DISTRITAL DE DEFENSA JUDICIAL Y PREVENCIÓN DEL DAÑO ANTIJURÍDICO
A83: 82 | B83: 79567977 | C83: PACHÓN PIÑEROS FERNANDO | D83: 3 | E83: PROFESIONAL | F83: PROFESIONAL UNIVERSITARIO | G83: 219 | H83: 18 | I83: DIRECCIÓN DISTRITAL DE DOCTRINA JURÍDICA | J83: CARRERA ADMINISTRATIVA
A84: 83 | C84: VACANTE DEFINITIVA | D84: 3 | E84: PROFESIONAL | F84: PROFESIONAL UNIVERSITARIO | G84: 219 | H84: 18 | I84: DIRECCIÓN DISTRITAL DE DOCTRINA JURÍDICA
A85: 84 | B85: 93371977 | C85: SANDOVAL RODRÍGUEZ DUVÁN | D85: 3 | E85: PROFESIONAL | F85: PROFESIONAL UNIVERSITARIO | G85: 219 | H85: 18 | I85: DIRECCIÓN DISTRITAL DE DOCTRINA JURÍDICA | J85: CARRERA ADMINISTRATIVA
A86: 85 | B86: 79802044 | C86: BERNATE NAVARRO ALVARO CAMILO | D86: 3 | E86: PROFESIONAL | F86: PROFESIONAL UNIVERSITARIO | G86: 219 | H86: 18 | I86: DIRECCIÓN DISTRITAL DE POLÍTICA E INFORMÁTICA JURÍDICA | J86: CARRERA ADMINISTRATIVA
A87: 86 | C87: VACANTE DEFINITIVA | D87: 3 | E87: PROFESIONAL | F87: PROFESIONAL UNIVERSITARIO | G87: 219 | H87: 18 | I87: DIRECCIÓN DISTRITAL DE POLÍTICA E INFORMÁTICA JURÍDICA
A88: 87 | B88: 6758776 | C88: MUÑOZ CUERVO HERNAN BENJAMIN | D88: 3 | E88: PROFESIONAL | F88: PROFESIONAL UNIVERSITARIO | G88: 219 | H88: 18 | I88: DIRECCIÓN DISTRITAL DE INSPECCIÓN VIGILANCIA Y CONTROL DE LAS ENTIDADES SIN ÁNIMO DE LUCRO | J88: CARRERA ADMINISTRATIVA
A89: 88 | B89: 52103754 | C89: ORTIZ NUBIA STELLA | D89: 3 | E89: PROFESIONAL | F89: PROFESIONAL UNIVERSITARIO | G89: 219 | H89: 18 | I89: DIRECCIÓN DISTRITAL DE INSPECCIÓN VIGILANCIA Y CONTROL DE LAS ENTIDADES SIN ÁNIMO DE LUCRO | J89: PROVISIONAL
A90: 89 | B90: 19299567 | C90: CAGUA NIAMPIRA LUIS ALBERTO | D90: 3 | E90: PROFESIONAL | F90: PROFESIONAL UNIVERSITARIO | G90: 219 | H90: 18 | I90: DIRECCIÓN DISTRITAL DE INSPECCIÓN VIGILANCIA Y CONTROL DE LAS ENTIDADES SIN ÁNIMO DE LUCRO | J90: CARRERA ADMINISTRATIVA
A91: 90 | B91: 51641343 | C91: GARZON RONCANCIO LUZ MARY | D91: 3 | E91: PROFESIONAL | F91: PROFESIONAL UNIVERSITARIO | G91: 219 | H91: 18 | I91: DIRECCIÓN DISTRITAL DE INSPECCIÓN VIGILANCIA Y CONTROL DE LAS ENTIDADES SIN ÁNIMO DE LUCRO | J91: PROVISIONAL
A92: 91 | C92: VACANTE DEFINITIVA | D92: 3 | E92: PROFESIONAL | F92: PROFESIONAL UNIVERSITARIO | G92: 219 | H92: 18 | I92: DIRECCIÓN DISTRITAL DE INSPECCIÓN VIGILANCIA Y CONTROL DE LAS ENTIDADES SIN ÁNIMO DE LUCRO
A93: 92 | C93: VACANTE DEFINITIVA | D93: 3 | E93: PROFESIONAL | F93: PROFESIONAL UNIVERSITARIO | G93: 219 | H93: 18 | I93: DIRECCIÓN DISTRITAL DE INSPECCIÓN VIGILANCIA Y CONTROL DE LAS ENTIDADES SIN ÁNIMO DE LUCRO
A94: 93 | C94: VACANTE DEFINITIVA | D94: 3 | E94: PROFESIONAL | F94: PROFESIONAL UNIVERSITARIO | G94: 219 | H94: 18 | I94: DIRECCIÓN DISTRITAL DE INSPECCIÓN VIGILANCIA Y CONTROL DE LAS ENTIDADES SIN ÁNIMO DE LUCRO
A95: 94 | C95: VACANTE DEFINITIVA | D95: 3 | E95: PROFESIONAL | F95: PROFESIONAL UNIVERSITARIO | G95: 219 | H95: 15 | I95: DIRECCIÓN DISTRITAL DE ASUNTOS DISCIPLINARIOS
A96: 95 | B96: 80060729 | C96: BELALCAZAR ERASSO EDISON ANDRES | D96: 3 | E96: PROFESIONAL | F96: PROFESIONAL UNIVERSITARIO | G96: 219 | H96: 15 | I96: DIRECCIÓN DISTRITAL DE INSPECCIÓN VIGILANCIA Y CONTROL DE LAS ENTIDADES SIN ÁNIMO DE LUCRO | J96: CARRERA ADMINISTRATIVA
A97: 96 | C97: VACANTE DEFINITIVA | D97: 3 | E97: PROFESIONAL | F97: PROFESIONAL UNIVERSITARIO | G97: 219 | H97: 15 | I97: DIRECCIÓN DISTRITAL DE INSPECCIÓN VIGILANCIA Y CONTROL DE LAS ENTIDADES SIN ÁNIMO DE LUCRO
A98: 97 | C98: VACANTE DEFINITIVA | D98: 3 | E98: PROFESIONAL | F98: PROFESIONAL UNIVERSITARIO | G98: 219 | H98: 15 | I98: DIRECCIÓN DISTRITAL DE INSPECCIÓN VIGILANCIA Y CONTROL DE LAS ENTIDADES SIN ÁNIMO DE LUCRO
A99: 98 | C99: VACANTE DEFINITIVA | D99: 3 | E99: PROFESIONAL | F99: PROFESIONAL UNIVERSITARIO | G99: 219 | H99: 15 | I99: DIRECCIÓN DISTRITAL DE INSPECCIÓN VIGILANCIA Y CONTROL DE LAS ENTIDADES SIN ÁNIMO DE LUCRO
A100: 99 | C100: VACANTE DEFINITIVA | D100: 3 | E100: PROFESIONAL | F100: PROFESIONAL UNIVERSITARIO | G100: 219 | H100: 13 | I100: OFICINA DE CONTROL INTERNO
A101: 100 | C101: VACANTE DEFINITIVA | D101: 3 | E101: PROFESIONAL | F101: PROFESIONAL UNIVERSITARIO | G101: 219 | H101: 13 | I101: DIRECCIÓN DISTRITAL DE POLÍTICA E INFORMÁTICA JURÍDICA
A102: 101 | C102: VACANTE DEFINITIVA | D102: 3 | E102: PROFESIONAL | F102: PROFESIONAL UNIVERSITARIO | G102: 219 | H102: 13 | I102: DIRECCIÓN DISTRITAL DE POLÍTICA E INFORMÁTICA JURÍDICA
A103: 102 | C103: VACANTE DEFINITIVA | D103: 3 | E103: PROFESIONAL | F103: PROFESIONAL UNIVERSITARIO | G103: 219 | H103: 10 | I103: OFICINA DE CONTROL INTERNO
A104: 103 | B104: 51560501 | C104: PORRAS SILVA EDITH MARLENE | D104: 3 | E104: PROFESIONAL | F104: PROFESIONAL UNIVERSITARIO | G104: 219 | H104: 10 | I104: DIRECCIÓN CORPORATIVA | J104: PROVISIONAL
A105: 104 | B105: 1020725639 | C105: RODRÍGUEZ NOPE MARÍA MARGARITA | D105: 3 | E105: PROFESIONAL | F105: PROFESIONAL UNIVERSITARIO | G105: 219 | H105: 10 | I105: DIRECCIÓN DISTRITAL DE INSPECCIÓN VIGILANCIA Y CONTROL DE LAS ENTIDADES SIN ÁNIMO DE LUCRO | J105: PROVISIONAL
A106: 105 | B106: 79361343 | C106: MURILLO HURTADO VICTOR HERNANDO | D106: 3 | E106: PROFESIONAL | F106: PROFESIONAL UNIVERSITARIO | G106: 219 | H106: 9 | I106: OFICINA ASESORA DE PLANEACIÓN | J106: CARRERA ADMINISTRATIVA
A107: 106 | C107: VACANTE DEFINITIVA | D107: 3 | E107: PROFESIONAL | F107: PROFESIONAL UNIVERSITARIO | G107: 219 | H107: 8 | I107: OFICINA DE TECNOLOGÍA DE LA INFORMACIÓN, SISTEMAS Y COMUNICACIONES
A108: 107 | B108: 51937185 | C108: BARRERA DIAZ MARTHA LILIANA | D108: 3 | E108: PROFESIONAL | F108: PROFESIONAL UNIVERSITARIO | G108: 219 | H108: 8 | I108: DIRECCIÓN CORPORATIVA | J108: CARRERA ADMINISTRATIVA
A109: 108 | C109: VACANTE DEFINITIVA | D109: 3 | E109: PROFESIONAL | F109: PROFESIONAL UNIVERSITARIO | G109: 219 | H109: 3 | I109: DIRECCIÓN DISTRITAL DE POLÍTICA E INFORMÁTICA JURÍDICA
A110: 109 | C110: VACANTE DEFINITIVA | D110: 3 | E110: PROFESIONAL | F110: PROFESIONAL UNIVERSITARIO | G110: 219 | H110: 1 | I110: DIRECCIÓN DISTRITAL DE DEFENSA JUDICIAL Y PREVENCIÓN DEL DAÑO ANTIJURÍDICO
A111: 110 | C111: VACANTE DEFINITIVA | D111: 3 | E111: PROFESIONAL | F111: PROFESIONAL UNIVERSITARIO | G111: 219 | H111: 1 | I111: DIRECCIÓN DISTRITAL DE POLÍTICA E INFORMÁTICA JURÍDICA
A112: 111 | C112: VACANTE DEFINITIVA | D112: 3 | E112: PROFESIONAL | F112: PROFESIONAL UNIVERSITARIO | G112: 219 | H112: 1 | I112: DIRECCIÓN DISTRITAL DE POLÍTICA E INFORMÁTICA JURÍDICA
A113: 112 | C113: VACANTE DEFINITIVA | D113: 3 | E113: PROFESIONAL | F113: PROFESIONAL UNIVERSITARIO | G113: 219 | H113: 1 | I113: DIRECCIÓN DISTRITAL DE INSPECCIÓN VIGILANCIA Y CONTROL DE LAS ENTIDADES SIN ÁNIMO DE LUCRO
A114: 113 | C114: VACANTE DEFINITIVA | D114: 3 | E114: PROFESIONAL | F114: PROFESIONAL UNIVERSITARIO | G114: 219 | H114: 1 | I114: DIRECCIÓN DISTRITAL DE INSPECCIÓN VIGILANCIA Y CONTROL DE LAS ENTIDADES SIN ÁNIMO DE LUCRO
A115: 114 | C115: VACANTE DEFINITIVA | D115: 3 | E115: PROFESIONAL | F115: PROFESIONAL UNIVERSITARIO | G115: 219 | H115: 1 | I115: DIRECCIÓN DISTRITAL DE INSPECCIÓN VIGILANCIA Y CONTROL DE LAS ENTIDADES SIN ÁNIMO DE LUCRO
A116: 115 | C116: VACANTE DEFINITIVA | D116: 3 | E116: PROFESIONAL | F116: PROFESIONAL UNIVERSITARIO | G116: 219 | H116: 1 | I116: DIRECCIÓN DISTRITAL DE INSPECCIÓN VIGILANCIA Y CONTROL DE LAS ENTIDADES SIN ÁNIMO DE LUCRO
A117: 116 | C117: VACANTE DEFINITIVA | D117: 4 | E117: TÉCNICO OPERATIVO | F117: TÉCNICO OPERATIVO | G117: 314 | H117: 21 | I117: DESPACHO
A118: 117 | C118: VACANTE DEFINITIVA | D118: 4 | E118: TÉCNICO OPERATIVO | F118: TÉCNICO OPERATIVO | G118: 314 | H118: 20 | I118: DIRECCIÓN CORPORATIVA
A119: 118 | C119: VACANTE DEFINITIVA | D119: 4 | E119: TÉCNICO OPERATIVO | F119: TÉCNICO OPERATIVO | G119: 314 | H119: 20 | I119: DIRECCIÓN CORPORATIVA
A120: 119 | C120: VACANTE DEFINITIVA | D120: 4 | E120: TÉCNICO OPERATIVO | F120: TÉCNICO OPERATIVO | G120: 314 | H120: 20 | I120: DIRECCIÓN CORPORATIVA
A121: 120 | C121: VACANTE DEFINITIVA | D121: 4 | E121: TÉCNICO OPERATIVO | F121: TÉCNICO OPERATIVO | G121: 314 | H121: 20 | I121: DIRECCIÓN CORPORATIVA
A122: 121 | C122: VACANTE DEFINITIVA | D122: 4 | E122: TÉCNICO OPERATIVO | F122: TÉCNICO OPERATIVO | G122: 314 | H122: 20 | I122: DIRECCIÓN DISTRITAL DE INSPECCIÓN VIGILANCIA Y CONTROL DE LAS ENTIDADES SIN ÁNIMO DE LUCRO
A123: 122 | C123: VACANTE DEFINITIVA | D123: 4 | E123: TÉCNICO OPERATIVO | F123: TÉCNICO OPERATIVO | G123: 314 | H123: 20 | I123: DIRECCIÓN DISTRITAL DE INSPECCIÓN VIGILANCIA Y CONTROL DE LAS ENTIDADES SIN ÁNIMO DE LUCRO
A124: 123 | C124: VACANTE DEFINITIVA | D124: 4 | E124: TÉCNICO OPERATIVO | F124: TÉCNICO OPERATIVO | G124: 314 | H124: 20 | I124: DIRECCIÓN DISTRITAL DE INSPECCIÓN VIGILANCIA Y CONTROL DE LAS ENTIDADES SIN ÁNIMO DE LUCRO
A125: 124 | C125: VACANTE DEFINITIVA | D125: 4 | E125: TÉCNICO OPERATIVO | F125: TÉCNICO OPERATIVO | G125: 314 | H125: 20 | I125: DIRECCIÓN DISTRITAL DE INSPECCIÓN VIGILANCIA Y CONTROL DE LAS ENTIDADES SIN ÁNIMO DE LUCRO
A126: 125 | C126: VACANTE DEFINITIVA | D126: 4 | E126: TÉCNICO OPERATIVO | F126: TÉCNICO OPERATIVO | G126: 314 | H126: 20 | I126: DIRECCIÓN DISTRITAL DE INSPECCIÓN VIGILANCIA Y CONTROL DE LAS ENTIDADES SIN ÁNIMO DE LUCRO
A127: 126 | C127: VACANTE DEFINITIVA | D127: 4 | E127: TÉCNICO OPERATIVO | F127: TÉCNICO OPERATIVO | G127: 314 | H127: 15 | I127: SUBSECRETARÍA JURÍDICA
A128: 127 | C128: VACANTE DEFINITIVA | D128: 4 | E128: TÉCNICO OPERATIVO | F128: TÉCNICO OPERATIVO | G128: 314 | H128: 15 | I128: DIRECCIÓN DISTRITAL DE DEFENSA JUDICIAL Y PREVENCIÓN DEL DAÑO ANTIJURÍDICO
A129: 128 | C129: VACANTE DEFINITIVA | D129: 4 | E129: TÉCNICO OPERATIVO | F129: TÉCNICO OPERATIVO | G129: 314 | H129: 15 | I129: DIRECCIÓN DISTRITAL DE DEFENSA JUDICIAL Y PREVENCIÓN DEL DAÑO ANTIJURÍDICO
A130: 129 | C130: VACANTE DEFINITIVA | D130: 4 | E130: TÉCNICO OPERATIVO | F130: TÉCNICO OPERATIVO | G130: 314 | H130: 15 | I130: DIRECCIÓN DISTRITAL DE DEFENSA JUDICIAL Y PREVENCIÓN DEL DAÑO ANTIJURÍDICO
A131: 130 | C131: VACANTE DEFINITIVA | D131: 4 | E131: TÉCNICO OPERATIVO | F131: TÉCNICO OPERATIVO | G131: 314 | H131: 15 | I131: DIRECCIÓN DISTRITAL DE DEFENSA JUDICIAL Y PREVENCIÓN DEL DAÑO ANTIJURÍDICO
A132: 131 | C132: VACANTE DEFINITIVA | D132: 4 | E132: TÉCNICO OPERATIVO | F132: TÉCNICO OPERATIVO | G132: 314 | H132: 15 | I132: DIRECCIÓN DISTRITAL DE DOCTRINA JURÍDICA
A133: 132 | C133: VACANTE DEFINITIVA | D133: 4 | E133: TÉCNICO OPERATIVO | F133: TÉCNICO OPERATIVO | G133: 314 | H133: 15 | I133: DIRECCIÓN DISTRITAL DE POLÍTICA E INFORMÁTICA JURÍDICA
A134: 133 | C134: VACANTE DEFINITIVA | D134: 4 | E134: TÉCNICO OPERATIVO | F134: TÉCNICO OPERATIVO | G134: 314 | H134: 15 | I134: DIRECCIÓN DISTRITAL DE POLÍTICA E INFORMÁTICA JURÍDICA
A135: 134 | C135: VACANTE DEFINITIVA | D135: 4 | E135: TÉCNICO OPERATIVO | F135: TÉCNICO OPERATIVO | G135: 314 | H135: 9 | I135: DIRECCIÓN DISTRITAL DE DEFENSA JUDICIAL Y PREVENCIÓN DEL DAÑO ANTIJURÍDICO
A136: 135 | B136: 41667895 | C136: RODRIGUEZ RODRIGUEZ LIGIA JANETH | D136: 4 | E136: TÉCNICO OPERATIVO | F136: TÉCNICO OPERATIVO | G136: 314 | H136: 9 | I136: DIRECCIÓN DISTRITAL DE DOCTRINA JURÍDICA | J136: CARRERA ADMINISTRATIVA
A137: 136 | B137: 19209798 | C137: JIMENEZ RIVERA GUSTAVO ADOLFO | D137: 5 | E137: ASISTENCIAL | F137: AUXILIAR ADMINISTRATIVO | G137: 407 | H137: 27 | I137: DIRECCIÓN CORPORATIVA | J137: CARRERA ADMINISTRATIVA
A138: 137 | C138: VACANTE DEFINITIVA | D138: 5 | E138: ASISTENCIAL | F138: AUXILIAR ADMINISTRATIVO | G138: 407 | H138: 26 | I138: DIRECCIÓN DISTRITAL DE INSPECCIÓN VIGILANCIA Y CONTROL DE LAS ENTIDADES SIN ÁNIMO DE LUCRO
A139: 138 | C139: VACANTE DEFINITIVA | D139: 5 | E139: ASISTENCIAL | F139: AUXILIAR ADMINISTRATIVO | G139: 407 | H139: 24 | I139: DIRECCIÓN CORPORATIVA
A140: 139 | B140: 79431243 | C140: OSPINA ZAPATA WALTER | D140: 5 | E140: ASISTENCIAL | F140: AUXILIAR ADMINISTRATIVO | G140: 407 | H140: 20 | I140: DIRECCIÓN CORPORATIVA | J140: CARRERA ADMINISTRATIVA
A141: 140 | B141: 51628413 | C141: SALAMANCA CUEVAS LUZ MAVEL | D141: 5 | E141: ASISTENCIAL | F141: AUXILIAR ADMINISTRATIVO | G141: 407 | H141: 20 | I141: SUBSECRETARÍA JURÍDICA | J141: CARRERA ADMINISTRATIVA
A142: 141 | B142: 79138328 | C142: CORTES SALGADO ALEX | D142: 5 | E142: ASISTENCIAL | F142: AUXILIAR ADMINISTRATIVO | G142: 407 | H142: 20 | I142: DIRECCIÓN DISTRITAL DE DEFENSA JUDICIAL Y PREVENCIÓN DEL DAÑO ANTIJURÍDICO | J142: CARRERA ADMINISTRATIVA
A143: 142 | B143: 35337860 | C143: NAVA SERRANO MERY ANEIDA | D143: 5 | E143: ASISTENCIAL | F143: AUXILIAR ADMINISTRATIVO | G143: 407 | H143: 17 | I143: DIRECCIÓN CORPORATIVA | J143: PROVISIONAL
A144: 143 | B144: 80775238 | C144: TORRES GRANADOS LUIS GABRIEL | D144: 5 | E144: ASISTENCIAL | F144: AUXILIAR ADMINISTRATIVO | G144: 407 | H144: 16 | I144: DIRECCIÓN CORPORATIVA | J144: PROVISIONAL
A145: 144 | C145: VACANTE DEFINITIVA | D145: 5 | E145: ASISTENCIAL | F145: AUXILIAR ADMINISTRATIVO | G145: 407 | H145: 16 | I145: DESPACHO
A146: 145 | B146: 19443235 | C146: GARZON LUIS ENRIQUE | D146: 5 | E146: ASISTENCIAL | F146: AUXILIAR ADMINISTRATIVO | G146: 407 | H146: 15 | I146: DIRECCIÓN DISTRITAL DE DEFENSA JUDICIAL Y PREVENCIÓN DEL DAÑO ANTIJURÍDICO | J146: CARRERA ADMINISTRATIVA
A147: 146 | B147: 41713009 | C147: QUIROGA DE GAMBOA MARTHA LUZ | D147: 5 | E147: ASISTENCIAL | F147: AUXILIAR ADMINISTRATIVO | G147: 407 | H147: 15 | I147: DIRECCIÓN DISTRITAL DE DEFENSA JUDICIAL Y PREVENCIÓN DEL DAÑO ANTIJURÍDICO | J147: CARRERA ADMINISTRATIVA
A148: 147 | B148: 41774744 | C148: ORTIZ RODRIGUEZ JUDITH | D148: 5 | E148: ASISTENCIAL | F148: AUXILIAR ADMINISTRATIVO | G148: 407 | H148: 15 | I148: DIRECCIÓN DISTRITAL DE DEFENSA JUDICIAL Y PREVENCIÓN DEL DAÑO ANTIJURÍDICO | J148: CARRERA ADMINISTRATIVA
A149: 148 | B149: 52235989 | C149: ARDILA VERGARA MILDRED PAOLA | D149: 5 | E149: ASISTENCIAL | F149: AUXILIAR ADMINISTRATIVO | G149: 407 | H149: 15 | I149: DIRECCIÓN DISTRITAL DE INSPECCIÓN VIGILANCIA Y CONTROL DE LAS ENTIDADES SIN ÁNIMO DE LUCRO | J149: CARRERA ADMINISTRATIVA
A150: 149 | B150: 51732443 | C150: TORRES ROJAS ACENETH | D150: 5 | E150: ASISTENCIAL | F150: AUXILIAR ADMINISTRATIVO | G150: 407 | H150: 15 | I150: DIRECCIÓN DISTRITAL DE INSPECCIÓN VIGILANCIA Y CONTROL DE LAS ENTIDADES SIN ÁNIMO DE LUCRO | J150: CARRERA ADMINISTRATIVA
A151: 150 | B151: 79262614 | C151: LÓPEZ ACUÑA OSCAR ERNESTO | D151: 5 | E151: ASISTENCIAL | F151: AUXILIAR ADMINISTRATIVO | G151: 407 | H151: 14 | I151: DIRECCIÓN CORPORATIVA | J151: CARRERA ADMINISTRATIVA
A152: 151 | B152: 51882380 | C152: FORERO FORERO CARMEN ALICIA | D152: 5 | E152: ASISTENCIAL | F152: AUXILIAR ADMINISTRATIVO | G152: 407 | H152: 13 | I152: DIRECCIÓN CORPORATIVA | J152: CARRERA ADMINISTRATIVA
A153: 152 | B153: 79468462 | C153: GARCIA GARAVITO EDGAR ANDRES | D153: 5 | E153: ASISTENCIAL | F153: AUXILIAR ADMINISTRATIVO | G153: 407 | H153: 11 | I153: DIRECCIÓN CORPORATIVA | J153: CARRERA ADMINISTRATIVA
A154: 153 | B154: 41780136 | C154: URREGO DE GARCIA LUZ STELLA | D154: 5 | E154: ASISTENCIAL | F154: AUXILIAR ADMINISTRATIVO | G154: 407 | H154: 11 | I154: DIRECCIÓN CORPORATIVA | J154: CARRERA ADMINISTRATIVA
A155: 154 | B155: 51623332 | C155: MONTEJO GARZÓN YOLANDA | D155: 5 | E155: ASISTENCIAL | F155: AUXILIAR ADMINISTRATIVO | G155: 407 | H155: 9 | I155: DIRECCIÓN DISTRITAL DE ASUNTOS DISCIPLINARIOS | J155: CARRERA ADMINISTRATIVA
A156: 155 | B156: 79048737 | C156: PULIDO SALAMANCA PABLO DANIEL | D156: 5 | E156: ASISTENCIAL | F156: CONDUCTOR | G156: 480 | H156: 13 | I156: DIRECCIÓN CORPORATIVA | J156: CARRERA ADMINISTRATIVA
A157: 156 | C157: VACANTE DEFINITIVA | D157: 5 | E157: ASISTENCIAL | F157: CONDUCTOR | G157: 480 | H157: 13 | I157: DIRECCIÓN CORPORATIVA
A158: 157 | C158: VACANTE DEFINITIVA | D158: 5 | E158: ASISTENCIAL | F158: CONDUCTOR | G158: 480 | H158: 13 | I158: DIRECCIÓN CORPORATIVA
A159: 158 | B159: 52557124 | C159: SILVA GARCIA DORIS | D159: 5 | E159: ASISTENCIAL | F159: SECRETARIO | G159: 440 | H159: 19 | I159: DIRECCIÓN DISTRITAL DE DEFENSA JUDICIAL Y PREVENCIÓN DEL DAÑO ANTIJURÍDICO | J159: CARRERA ADMINISTRATIVA
A160: 159 | B160: 52033959 | C160: HERNÁNDEZ NAVARRO MARIBEL | D160: 5 | E160: ASISTENCIAL | F160: SECRETARIO | G160: 440 | H160: 11 | I160: DIRECCIÓN DISTRITAL DE DOCTRINA JURÍDICA | J160: PROVISIONAL
A161: 160 | B161: 39773518 | C161: VANEGAS LARGO MARIA CRISTINA | D161: 5 | E161: ASISTENCIAL | F161: SECRETARIO | G161: 440 | H161: 9 | I161: OFICINA DE CONTROL INTERNO | J161: CARRERA ADMINISTRATIVA
A162: 161 | B162: 1032434263 | C162: SIERRA LENIS LAURA STHEPANY | D162: 5 | E162: ASISTENCIAL | F162: SECRETARIO | G162: 440 | H162: 9 | I162: OFICINA ASESORA DE PLANEACIÓN | J162: PROVISIONAL
A163: 162 | B163: 80247325 | C163: AVILA GOMEZ NESTOR DANIEL | D163: 5 | E163: ASISTENCIAL | F163: SECRETARIO | G163: 440 | H163: 9 | I163: DIRECCIÓN CORPORATIVA | J163: PROVISIONAL
A164: 163 | B164: 51784842 | C164: MARTINEZ HERNANDEZ MARIA MERY | D164: 5 | E164: ASISTENCIAL | F164: SECRETARIO | G164: 440 | H164: 9 | I164: DIRECCIÓN DISTRITAL DE POLÍTICA E INFORMÁTICA JURÍDICA | J164: CARRERA ADMINISTRATIVA
A165: 164 | B165: 52146196 | C165: RODGERS QUIROGA KATHERYN YOLANDA | D165: 5 | E165: ASISTENCIAL | F165: SECRETARIO EJECUTIVO | G165: 425 | H165: 27 | I165: DIRECCIÓN DISTRITAL DE DEFENSA JUDICIAL Y PREVENCIÓN DEL DAÑO ANTIJURÍDICO | J165: CARRERA ADMINISTRATIVA
A166: 165 | C166: VACANTE DEFINITIVA | D166: 5 | E166: ASISTENCIAL | F166: SECRETARIO EJECUTIVO | G166: 425 | H166: 24 | I166: OFICINA DE TECNOLOGÍA DE LA INFORMACIÓN, SISTEMAS Y COMUNICACIONES
A167: 166 | B167: 51731780 | C167: RABIA SIERRA AYDA CONSTANZA | D167: 5 | E167: ASISTENCIAL | F167: SECRETARIO EJECUTIVO | G167: 425 | H167: 21 | I167: DIRECCIÓN DISTRITAL DE ASUNTOS DISCIPLINARIOS | J167: CARRERA ADMINISTRATIVA
A168: 167 | B168: 20737393 | C168: MONTILLA SERRANO FABIOLA | D168: 5 | E168: ASISTENCIAL | F168: SECRETARIO EJECUTIVO | G168: 425 | H168: 20 | I168: DIRECCIÓN DISTRITAL DE DEFENSA JUDICIAL Y PREVENCIÓN DEL DAÑO ANTIJURÍDICO | J168: CARRERA ADMINISTRATIVA
A169: 168 | B169: 39718778 | C169: REVELO QUINTERO SONIA DEL ROSARIO | D169: 5 | E169: ASISTENCIAL | F169: SERVICIOS GENERALES | G169: 470 | H169: 7 | I169: DIRECCIÓN CORPORATIVA | J169: CARRERA ADMINISTRATIVA
A170: 169 | B170: 41732503 | C170: VELASQUEZ CABRERA GABRIELINA | D170: 5 | E170: ASISTENCIAL | F170: SERVICIOS GENERALES | G170: 470 | H170: 7 | I170: DIRECCIÓN CORPORATIVA | J170: CARRERA ADMINISTRATIVA
A171: 170 | B171: 52124597 | C171: MONTAÑA MORA BETTY ESPERANZA | D171: 5 | E171: ASISTENCIAL | F171: SERVICIOS GENERALES | G171: 470 | H171: 3 | I171: DIRECCIÓN CORPORATIVA | J171: CARRERA ADMINISTRATIVA

Sheet ESCALERA - ENCARGOS (hidden)
A3: ID-ESCALERA | B3: N | C3: CÓDIGO | D3: GRADO | E3: TITULAR DEL CARGO | F3: ENCARGADO | G3: TIPO DE VINCULACIÓN
A4: E01 | B4: 2 | C4: 407 | D4: 11 | E4: URREGO DE GARCIA LUZ STELLA | F4: VACANTE TEMPORAL | G4: (en blanco)
A5: E01 | B5: 2 | C5: 407 | D5: 15 | E5: TORRES ROJAS ACENETH | F5: URREGO DE GARCIA LUZ STELLA | G5: CARRERA ADMINISTRATIVA
A6: E01 | B6: 2 | C6: 425 | D6: 21 | E6: VACANTE DEFINITIVA | F6: TORRES ROJAS ACENETH | G6: CARRERA ADMINISTRATIVA
A7: E02 | B7: 1 | C7: 219 | D7: 18 | E7: GOMEZ CARMONA WALDINA | F7: ESCOBAR REMICIO MARIA PILAR | G7: PROVISIONALIDAD
A8: E02 | B8: 1 | C8: 222 | D8: | | E8: VACANTE DEFINITIVA | F8: GOMEZ CARMONA WALDINA | G8: CARRERA ADMINISTRATIVA
A9: E03 | B9: 4 | C9: 219 | D9: 15 | E9: RUIZ ZAMUDIO JUAN CAMILO | F9: NIETO FABIAN | G9: PROVISIONALIDAD
A10: E03 | B10: 4 | C10: 219 | D10: 18 | E10: VARGAS MORALES DAVID HERNANDO | F10: RUIZ ZAMUDIO JUAN CAMILO | G10: CARRERA ADMINISTRATIVA
A11: E03 | B11: 4 | C11: 222 | D11: 21 | E11: CASTIBLANCO URQUIJO LUIS ALFONSO | F11: VARGAS MORALES DAVID HERNANDO | G11: CARRERA ADMINISTRATIVA
A12: E03 | B12: 4 | C12: 222 | D12: | | E12: VACANTE DEFINITIVA | F12: CASTIBLANCO URQUIJO LUIS ALFONSO | G12: CARRERA ADMINISTRATIVA
A13: E04 | B13: 2 | C13: 407 | D13: 20 | E13: VACANTE DEFINITIVA | F13: MARTINEZ HERNANDEZ MARIA MERY | G13: CARRERA ADMINISTRATIVA
A14: E04 | B14: 2 | C14: 440 | D14: 9 | E14: MARTINEZ HERNANDEZ MARIA MERY | F14: VACANTE TEMPORAL | G14: (en blanco)
A15: E05 | B15: 1 | C15: 407 | D15: | | E15: VACANTE DEFINITIVA | F15: OSPINA ZAPATA WALTER | G15: CARRERA ADMINISTRATIVA
A16: E05 | B16: 2 | C16: 407 | D16: 20 | E16: OSPINA ZAPATA WALTER | F16: GARCIA GARAVITO EDGAR ANDRES | G16: CARRERA ADMINISTRATIVA
A17: E05 | B17: 3 | C17: 407 | D17: 11 | E17: GARCIA GARAVITO EDGAR ANDRES | F17: MONTAÑA MORA BETTY ESPERANZA | G17: CARRERA ADMINISTRATIVA
A18: E05 | B18: 4 | C18: 470 | D18: 3 | E18: MONTAÑA MORA BETTY ESPERANZA | F18: SOTELO HOYOS DURLEY | G18: PROVISIONALIDAD
A19: E06 | B19: 1 | C19: 425 | D19: 20 | E19: VACANTE DEFINITIVA | F19: FORERO FORERO CARMEN ALICIA | G19: CARRERA ADMINISTRATIVA
A20: E06 | B20: 2 | C20: 407 | D20: 13 | E20: FORERO FORERO CARMEN ALICIA | F20: ALONSO BERNAL OMAIRA | G20: PROVISIONALIDAD
A21: E07 | B21: 1 | C21: 222 | D21: | | E21: VACANTE DEFINITIVA | F21: APONTE PENSO SILVIA MODESTA | G21: CARRERA ADMINISTRATIVA
A22: E07 | B22: 2 | C22: 222 | D22: 24 | E22: APONTE PENSO SILVIA MODESTA | F22: APONTE MARIN DIANA CAMILA | G22: PROVISIONALIDAD
A23: E08 | B23: 1 | C23: 222 | D23: | | E23: VACANTE DEFINITIVA | F23: CONTRERAS CASTRO DIANA ESTHER | G23: CARRERA ADMINISTRATIVA
A24: E08 | B24: 2 | C24: 222 | D24: 19 | E24: CONTRERAS CASTRO DIANA ESTHER | F24: ORGANISTA BUILES SANDRA NICOLASA | G24: CARRERA ADMINISTRATIVA
A25: E08 | B25: 3 | C25: 219 | D25: 18 | E25: ORGANISTA BUILES SANDRA NICOLASA | F25: MEDINA MURILLO CAROLINA | G25: CARRERA ADMINISTRATIVA
A26: E08 | B26: 4 | C26: 219 | D26: 15 | E26: MEDINA MURILLO CAROLINA | F26: ROJAS PEÑA JORGE ANDRES | G26: CARRERA ADMINISTRATIVA
A27: E08 | B27: 5 | C27: 219 | D27: 1 | E27: ROJAS PEÑA JORGE ANDRES | F27: MORA MONTOYA HELVER MANUEL | G27: CARRERA ADMINISTRATIVA
A28: E08 | B28: 6 | C28: 314 | D28: 15 | E28: MORA MONTOYA HELVER MANUEL | F28: VALENCIA PATIÑO HOOVER HERNAN | G28: CARRERA ADMINISTRATIVA
A29: E08 | B29: 7 | C29: 314 | D29: 9 | E29: VALENCIA PATIÑO HOOVER HERNAN | F29: VACANTE TEMPORAL | G29: (en blanco)
A30: E09 | B30: 1 | C30: 407 | D30: 26 | E30: ARDILA VERGARA MILDRED PAOLA | F30: VACANTE TEMPORAL | G30: (en blanco)
A31: E09 | B31: 2 | C31: 314 | D31: 20 | E31: VACANTE DEFINITIVA | F31: ARDILA VERGARA MILDRED PAOLA | G31: CARRERA ADMINISTRATIVA
A32: E10 | B32: 1 | C32: 222 | D32: | | E32: VACANTE DEFINITIVA | F32: SANDOVAL RODRÍGUEZ DUVÁN | G32: CARRERA ADMINISTRATIVA
A33: E10 | B33: 2 | C33: 219 | D33: 18 | E33: SANDOVAL RODRÍGUEZ DUVÁN | F33: GOMEZ LEAL JOSE OSWADO | G33: PROVISIONALIDAD
A34: E11 | B34: 1 | C34: 407 | D34: 15 | E34: VACANTE DEFINITIVA | F34: PULIDO SALAMANCA PABLO DANIEL | G34: CARRERA ADMINISTRATIVA
A35: E11 | B35: 2 | C35: 480 | D35: 13 | E35: PULIDO SALAMANCA PABLO DANIEL | F35: HURTADO TORRES WILSON RAMON | G35: PROVISIONALIDAD
A36: E12 | B36: 1 | C36: 219 | D36: 1 | E36: JIMENEZ VASQUEZ CRISTHIAM DAVID | F36: VACANTE TEMPORAL | G36: (en blanco)
A37: E12 | B37: 1 | C37: 219 | D37: 18 | E37: VACANTE DEFINITIVA | F37: JIMENEZ VASQUEZ CRISTHIAM DAVID | G37: CARRERA ADMINISTRATIVA
A38: E13 | B38: (en blanco) | C38: 6 | D38: 6 | E38: CORZO ESTEPA OLGA MILENA | F38: CORZO ESTEPA OLGA MILENA | G38: LIBRE NOMBRAMIENTO Y REMOCIÓN
A39: E13 | B39: (en blanco) | C39: 219 | D39: 18 | E39: CORZO ESTEPA OLGA MILENA | F39: VACANTE TEMPORAL | G39: (en blanco)
A40: E14 | B40: (en blanco) | C40: 9 | D40: 7 | E40: ROJAS SUÁREZ ZULMA | F40: ROJAS SUÁREZ ZULMA | G40: LIBRE NOMBRAMIENTO Y REMOCIÓN
A41: E14 | B41: (en blanco) | C41: 222 | D41: | | E41: ROJAS SUÁREZ ZULMA | F41: VACANTE TEMPORAL | G41: (en blanco)
A42: (en blanco) | B42: (en blanco) | C42: 6 | D42: 6 | E42: PULIDO FAJARDO FRANCISCO JAVIER | F42: PULIDO FAJARDO FRANCISCO JAVIER | G42: LIBRE NOMBRAMIENTO Y REMOCIÓN
A43: (en blanco) | B43: (en blanco) | C43: 9 | D43: 7 | E43: RODRIGUEZ QUIMBAYO LUZ ELENA | F43: RODRIGUEZ QUIMBAYO LUZ ELENA | G43: LIBRE NOMBRAMIENTO Y REMOCIÓN
A44: (en blanco) | B44: (en blanco) | C44: 9 | D44: 7 | E44: TORRES MARULANDA MARIA PAULA | F44: TORRES MARULANDA MARIA PAULA | G44: LIBRE NOMBRAMIENTO Y REMOCIÓN
A45: (en blanco) | B45: (en blanco) | C45: 9 | D45: 7 | E45: RUIZ QUINTANA PAULA JOHANNA | F45: RUIZ QUINTANA PAULA JOHANNA | G45: LIBRE NOMBRAMIENTO Y REMOCIÓN
A46: (en blanco) | B46: (en blanco) | C46: 9 | D46: 7 | E46: AREVALO ROJAS MAGDA MERCEDES | F46: AREVALO ROJAS MAGDA MERCEDES | G46: LIBRE NOMBRAMIENTO Y REMOCIÓN
A47: (en blanco) | B47: (en blanco) | C47: 9 | D47: 7 | E47: LEON BELTRAN JULIES KATHERINE | F47: LEON BELTRAN JULIES KATHERINE | G47: LIBRE NOMBRAMIENTO Y REMOCIÓN
A48: (en blanco) | B48: (en blanco) | C48: 20 | D48: 9 | E48: MENDIETA MONTEALEGRE WILLIAM LIBARDO | F48: MENDIETA MONTEALEGRE WILLIAM LIBARDO | G48: LIBRE NOMBRAMIENTO Y REMOCIÓN
A49: (en blanco) | B49: (en blanco) | C49: 45 | D49: 8 | E49: MARQUEZ CASTELBLANCO IVAN DAVID | F49: MARQUEZ CASTELBLANCO IVAN DAVID | G49: LIBRE NOMBRAMIENTO Y REMOCIÓN
A50: (en blanco) | B50: (en blanco) | C50: 105 | D50: 5 | E50: VACANTE DEFINITIVA | F50: VACANTE DEFINITIVA | G50: (en blanco)
A51: (en blanco) | B51: (en blanco) | C51: 105 | D51: 5 | E51: RODRÍGUEZ BARRERA NOHORA PATRICIA | F51: RODRÍGUEZ BARRERA NOHORA PATRICIA | G51: LIBRE NOMBRAMIENTO Y REMOCIÓN
A52: (en blanco) | B52: (en blanco) | C52: 105 | D52: 5 | E52: CUELLO HERMIDA ADRIANA ESPERANZA | F52: CUELLO HERMIDA ADRIANA ESPERANZA | G52: LIBRE NOMBRAMIENTO Y REMOCIÓN
A53: (en blanco) | B53: (en blanco) | C53: 105 | D53: 5 | E53: YARCE BARRAGAN CRISTHIAN FELIPE | F53: YARCE BARRAGAN CRISTHIAN FELIPE | G53: LIBRE NOMBRAMIENTO Y REMOCIÓN
A54: (en blanco) | B54: (en blanco) | C54: 105 | D54: 5 | E54: PILAR ANDREA ORTEGA TORRES | F54: PILAR ANDREA ORTEGA TORRES | G54: LIBRE NOMBRAMIENTO Y REMOCIÓN
A55: (en blanco) | B55: (en blanco) | C55: 115 | D55: 6 | E55: PEÑA CARBONELL CAMILO ANDRES | F55: PEÑA CARBONELL CAMILO ANDRES | G55: LIBRE NOMBRAMIENTO Y REMOCIÓN
A56: (en blanco) | B56: (en blanco) | C56: 219 | D56: 1 | E56: VACANTE DEFINITIVA | F56: TELLEZ CRUZ ALVARO JAVIER | G56: PROVISIONALIDAD
A57: (en blanco) | B57: (en blanco) | C57: 219 | D57: 1 | E57: ALONSO GUTIERREZ LEIDY JOHANNA | F57: ALONSO GUTIERREZ LEIDY JOHANNA | G57: CARRERA ADMINISTRATIVA
A58: (en blanco) | B58: (en blanco) | C58: 219 | D58: 1 | E58: MORA BERMUDEZ DAVID ALEJANDRO | F58: MORA BERMUDEZ DAVID ALEJANDRO | G58: CARRERA ADMINISTRATIVA
A59: (en blanco) | B59: (en blanco) | C59: 219 | D59: 1 | E59: VILLANUEVA SANCHEZ DALIDA | F59: VILLANUEVA SANCHEZ DALIDA | G59: CARRERA ADMINISTRATIVA
A60: (en blanco) | B60: (en blanco) | C60: 219 | D60: 1 | E60: AVILA MARIN ALEXANDRA | F60: AVILA MARIN ALEXANDRA | G60: CARRERA ADMINISTRATIVA
A61: (en blanco) | B61: (en blanco) | C61: 219 | D61: 3 | E61: SANMIGUEL ROJAS MONICA JULIANA | F61: SANMIGUEL ROJAS MONICA JULIANA | G61: CARRERA ADMINISTRATIVA
A62: (en blanco) | B62: (en blanco) | C62: 219 | D62: 8 | E62: BARRERA DIAZ MARTHA LILIANA | F62: BARRERA DIAZ MARTHA LILIANA | G62: CARRERA ADMINISTRATIVA
A63: (en blanco) | B63: (en blanco) | C63: 219 | D63: 8 | E63: SUESCUN MARIÑO DANIEL | F63: SUESCUN MARIÑO DANIEL | G63: CARRERA ADMINISTRATIVA
A64: (en blanco) | B64: (en blanco) | C64: 219 | D64: 9 | E64: MURILLO HURTADO VICTOR HERNANDO | F64: MURILLO HURTADO VICTOR HERNANDO | G64: CARRERA ADMINISTRATIVA
A65: (en blanco) | B65: (en blanco) | C65: 219 | D65: 10 | E65: MURCIA ANGEL OMAR LEONARDO | F65: VACANTE TEMPORAL | G65: (en blanco)
A66: (en blanco) | B66: (en blanco) | C66: 219 | D66: 10 | E66: MARTINEZ BERNAL JUAN CARLOS | F66: MARTINEZ BERNAL JUAN CARLOS | G66: CARRERA ADMINISTRATIVA
A67: (en blanco) | B67: (en blanco) | C67: 219 | D67: 10 | E67: RODRIGUEZ NARVAEZ DANIELA | F67: RODRIGUEZ NARVAEZ DANIELA | G67: CARRERA ADMINISTRATIVA
A68: (en blanco) | B68: (en blanco) | C68: 219 | D68: 13 | E68: POLANIA SALAZAR LUZ DARY | F68: POLANIA SALAZAR LUZ DARY | G68: CARRERA ADMINISTRATIVA
A69: (en blanco) | B69: (en blanco) | C69: 219 | D69: 13 | E69: CAMARGO CASTRO CLAUDIA MARCELA | F69: CAMARGO CASTRO CLAUDIA MARCELA | G69: CARRERA ADMINISTRATIVA
A70: (en blanco) | B70: (en blanco) | C70: 219 | D70: 13 | E70: OJEDA CARDENAS IAM ALEXANDER | F70: OJEDA CARDENAS IAM ALEXANDER | G70: CARRERA ADMINISTRATIVA
A71: (en blanco) | B71: (en blanco) | C71: 219 | D71: 15 | E71: MARTINEZ PALACIOS OLGA LUCIA | F71: MARTINEZ PALACIOS OLGA LUCIA | G71: CARRERA ADMINISTRATIVA
A72: (en blanco) | B72: (en blanco) | C72: 219 | D72: 15 | E72: FRANCO GALLEGO LUIS HERNANDO | F72: FRANCO GALLEGO LUIS HERNANDO | G72: CARRERA ADMINISTRATIVA
A73: (en blanco) | B73: (en blanco) | C73: 219 | D73: 15 | E73: ORTIZ MONTERO JUAN PABLO | F73: ORTIZ MONTERO JUAN PABLO | G73: CARRERA ADMINISTRATIVA
A74: (en blanco) | B74: (en blanco) | C74: 219 | D74: 18 | E74: VACANTE DEFINITIVA | F74: VACANTE DEFINITIVA | G74: (en blanco)
A75: (en blanco) | B75: (en blanco) | C75: 219 | D75: 18 | E75: VACANTE DEFINITIVA | F75: GARCIA CARDONA LUZ ESPERANZA | G75: PROVISIONALIDAD
A76: (en blanco) | B76: (en blanco) | C76: 219 | D76: 18 | E76: VACANTE DEFINITIVA | F76: LIBREROS CASTAÑEDA SENECA | G76: PROVISIONALIDAD
A77: (en blanco) | B77: (en blanco) | C77: 219 | D77: 18 | E77: MUÑOZ CUERVO HERNAN BENJAMIN | F77: MUÑOZ CUERVO HERNAN BENJAMIN | G77: CARRERA ADMINISTRATIVA
A78: (en blanco) | B78: (en blanco) | C78: 219 | D78: 18 | E78: ALVARADO ROJAS BRICEIDA | F78: ALVARADO ROJAS BRICEIDA | G78: CARRERA ADMINISTRATIVA
A79: (en blanco) | B79: (en blanco) | C79: 219 | D79: 18 | E79: CHACON TRIVIÑO VIKY MILENA | F79: CHACON TRIVIÑO VIKY MILENA | G79: CARRERA ADMINISTRATIVA
A80: (en blanco) | B80: (en blanco) | C80: 219 | D80: 18 | E80: AGUIRRE CORRALES HUGO HERNANDO | F80: AGUIRRE CORRALES HUGO HERNANDO | G80: CARRERA ADMINISTRATIVA
A81: (en blanco) | B81: (en blanco) | C81: 219 | D81: 18 | E81: NOVOA DUEÑAS SANDRA LISETTE | F81: NOVOA DUEÑAS SANDRA LISETTE | G81: CARRERA ADMINISTRATIVA
A82: (en blanco) | B82: (en blanco) | C82: 219 | D82: 18 | E82: ROA SILVA SONIA TERESA | F82: ROA SILVA SONIA TERESA | G82: CARRERA ADMINISTRATIVA
A83: (en blanco) | B83: (en blanco) | C83: 219 | D83: 18 | E83: PINTO SEGURA MIGUEL | F83: PINTO SEGURA MIGUEL | G83: CARRERA ADMINISTRATIVA
A84: (en blanco) | B84: (en blanco) | C84: 219 | D84: 18 | E84: PEREZ FORTICH FERNAN ENRIQUE | F84: PEREZ FORTICH FERNAN ENRIQUE | G84: CARRERA ADMINISTRATIVA
A85: (en blanco) | B85: (en blanco) | C85: 219 | D85: 18 | E85: RAMIREZ VALENCIA IVAN DAVID | F85: RAMIREZ VALENCIA IVAN DAVID | G85: CARRERA ADMINISTRATIVA
A86: (en blanco) | B86: (en blanco) | C86: 219 | D86: 18 | E86: ARREDONDO VELEZ HECTOR IVAN | F86: ARREDONDO VELEZ HECTOR IVAN | G86: CARRERA ADMINISTRATIVA
A87: (en blanco) | B87: (en blanco) | C87: 219 | D87: 18 | E87: ALVARADO ROJAS CHEILA ALEXANDRA | F87: ALVARADO ROJAS CHEILA ALEXANDRA | G87: CARRERA ADMINISTRATIVA
A88: (en blanco) | B88: (en blanco) | C88: 219 | D88: 18 | E88: TORRES MARTINEZ NELCY | F88: TORRES MARTINEZ NELCY | G88: CARRERA ADMINISTRATIVA
A89: (en blanco) | B89: (en blanco) | C89: 219 | D89: 18 | E89: MORENO PEREZ LUZ ESTELLA | F89: MORENO PEREZ LUZ ESTELLA | G89: CARRERA ADMINISTRATIVA
A90: (en blanco) | B90: (en blanco) | C90: 219 | D90: 18 | E90: NIÑO SOCHA CARLOS ANDRES | F90: NIÑO SOCHA CARLOS ANDRES | G90: CARRERA ADMINISTRATIVA
A91: (en blanco) | B91: (en blanco) | C91: 219 | D91: 18 | E91: MEJIA PARRA MONICA ROCIO | F91: MEJIA PARRA MONICA ROCIO | G91: CARRERA ADMINISTRATIVA
A92: (en blanco) | B92: (en blanco) | C92: 219 | D92: 18 | E92: RAMÍREZ MUÑOZ CARLOS JULIO | F92: RAMÍREZ MUÑOZ CARLOS JULIO | G92: CARRERA ADMINISTRATIVA
A93: (en blanco) | B93: (en blanco) | C93: 222 | D93: 19 | E93: VACANTE DEFINITIVA | F93: DE LOS RIOS SALAZAR ANDRES FELIPE | G93: PROVISIONALIDAD
A94: (en blanco) | B94: (en blanco) | C94: 222 | D94: 19 | E94: GOMEZ PEÑA DIANA PAOLA | F94: GOMEZ PEÑA DIANA PAOLA | G94: CARRERA ADMINISTRATIVA
A95: (en blanco) | B95: (en blanco) | C95: 222 | D95: 19 | E95: DIAZ RINCON ANGELICA | F95: DIAZ RINCON ANGELICA | G95: CARRERA ADMINISTRATIVA
A96: (en blanco) | B96: (en blanco) | C96: 222 | D96: 20 | E96: GONZÁLEZ MOLINA HENRY ALBERTO | F96: GONZÁLEZ MOLINA HENRY ALBERTO | G96: CARRERA ADMINISTRATIVA
A97: (en blanco) | B97: (en blanco) | C97: 222 | D97: 20 | E97: NADER SANCHEZ JIMENA | F97: NADER SANCHEZ JIMENA | G97: CARRERA ADMINISTRATIVA
A98: (en blanco) | B98: (en blanco) | C98: 222 | D98: 21 | E98: VACANTE DEFINITIVA | F98: VACANTE DEFINITIVA | G98: (en blanco)
A99: (en blanco) | B99: (en blanco) | C99: 222 | D99: 21 | E99: SALAZAR URRUTIA NELSON JULIAN | F99: SALAZAR URRUTIA NELSON JULIAN | G99: CARRERA ADMINISTRATIVA
A100: (en blanco) | B100: (en blanco) | C100: 222 | D100: 21 | E100: GUTIERREZ HERNANDEZ DORA BELEN | F100: GUTIERREZ HERNANDEZ DORA BELEN | G100: CARRERA ADMINISTRATIVA
A101: (en blanco) | B101: (en blanco) | C101: 222 | D101: 21 | E101: CALA CASTRO ADDILY JOHANNA | F101: CALA CASTRO ADDILY JOHANNA | G101: CARRERA ADMINISTRATIVA
A102: (en blanco) | B102: (en blanco) | C102: 222 | D102: 21 | E102: ALARCON ACERO YOMAIRA AMPARO | F102: ALARCON ACERO YOMAIRA AMPARO | G102: CARRERA ADMINISTRATIVA
A103: (en blanco) | B103: (en blanco) | C103: 222 | D103: 21 | E103: GUTIERREZ GUITIERREZ JENIFFER | F103: GUTIERREZ GUITIERREZ JENIFFER | G103: CARRERA ADMINISTRATIVA
A104: (en blanco) | B104: (en blanco) | C104: 222 | D104: 21 | E104: MERCHAN LARA LUZ DARY | F104: MERCHAN LARA LUZ DARY | G104: CARRERA ADMINISTRATIVA
A105: (en blanco) | B105: (en blanco) | C105: 222 | D105: 21 | E105: CUBIDES AMAYA MARIA XIMENA | F105: CUBIDES AMAYA MARIA XIMENA | G105: CARRERA ADMINISTRATIVA
A106: (en blanco) | B106: (en blanco) | C106: 222 | D106: 22 | E106: GAMEZ GOMEZ JOHANA PATRICIA | F106: GAMEZ GOMEZ JOHANA PATRICIA | G106: CARRERA ADMINISTRATIVA
A107: (en blanco) | B107: (en blanco) | C107: 222 | D107: 24 | E107: SALCEDO TAMAYO GLORIA ESTHER | F107: SALCEDO TAMAYO GLORIA ESTHER | G107: CARRERA ADMINISTRATIVA
A108: (en blanco) | B108: (en blanco) | C108: 222 | D108: 24 | E108: OVALLE CUERVO EDGAR ENRIQUE | F108: OVALLE CUERVO EDGAR ENRIQUE | G108: CARRERA ADMINISTRATIVA
A109: (en blanco) | B109: (en blanco) | C109: 222 | D109: 24 | E109: NIÑO CAMPOS MARIA DEL PILAR | F109: NIÑO CAMPOS MARIA DEL PILAR | G109: CARRERA ADMINISTRATIVA
A110: (en blanco) | B110: (en blanco) | C110: 222 | D110: 24 | E110: TIRANO MILLAN FERNANDO | F110: TIRANO MILLAN FERNANDO | G110: CARRERA ADMINISTRATIVA
A111: (en blanco) | B111: (en blanco) | C111: 222 | D111: 24 | E111: LOZANO ARDILA CAROLINA | F111: LOZANO ARDILA CAROLINA | G111: CARRERA ADMINISTRATIVA
A112: (en blanco) | B112: (en blanco) | C112: 222 | D112: 24 | E112: ALVARADO HERREÑO JOSE ORLANDO | F112: ALVARADO HERREÑO JOSE ORLANDO | G112: CARRERA ADMINISTRATIVA
A113: (en blanco) | B113: (en blanco) | C113: 222 | D113: 24 | E113: GRANADOS GELVES DANIEL YIDID | F113: GRANADOS GELVES DANIEL YIDID | G113: CARRERA ADMINISTRATIVA
A114: (en blanco) | B114: (en blanco) | C114: 222 | D114: 24 | E114: PACHON PIÑEROS FERNANDO | F114: PACHON PIÑEROS FERNANDO | G114: CARRERA ADMINISTRATIVA
A115: (en blanco) | B115: (en blanco) | C115: 222 | D115: 25 | E115: RODRIGUEZ RODRIGUEZ CAMILO ANDRES | F115: RODRIGUEZ RODRIGUEZ CAMILO ANDRES | G115: CARRERA ADMINISTRATIVA
A116: (en blanco) | B116: (en blanco) | C116: 222 | D116: 26 | E116: MESA VASQUEZ GLORIA ASTRID | F116: VACANTE TEMPORAL | G116: (en blanco)
A117: (en blanco) | B117: (en blanco) | C117: 222 | D117: 26 | E117: PARRA LEGUIZAMON JORGE ERNESTO | F117: PARRA LEGUIZAMON JORGE ERNESTO | G117: CARRERA ADMINISTRATIVA
A118: (en blanco) | B118: (en blanco) | C118: 222 | D118: | | E118: BERNATE NAVARRO ALVARO CAMILO | F118: BERNATE NAVARRO ALVARO CAMILO | G118: CARRERA ADMINISTRATIVA
A119: (en blanco) | B119: (en blanco) | C119: 222 | D119: | | E119: MONTOYA MALDONADO JESÚS MARÍA | F119: MONTOYA MALDONADO JESÚS MARÍA | G119: CARRERA ADMINISTRATIVA
A120: (en blanco) | B120: (en blanco) | C120: 222 | D120: | | E120: MORENO GUERRERO DEYSI YANIRA | F120: MORENO GUERRERO DEYSI YANIRA | G120: CARRERA ADMINISTRATIVA
A121: (en blanco) | B121: (en blanco) | C121: 222 | D121: | | E121: AMAYA SALAZAR MARTHA YOLANDA | F121: AMAYA SALAZAR MARTHA YOLANDA | G121: CARRERA ADMINISTRATIVA
A122: (en blanco) | B122: (en blanco) | C122: 222 | D122: | | E122: DIAGO CASASBUENAS GLORIA MAGDALENA | F122: DIAGO CASASBUENAS GLORIA MAGDALENA | G122: CARRERA ADMINISTRATIVA
A123: (en blanco) | B123: (en blanco) | C123: 222 | D123: | | E123: HERNANDEZ LIBREROS ELVIRA LILIANA | F123: HERNANDEZ LIBREROS ELVIRA LILIANA | G123: CARRERA ADMINISTRATIVA
A124: (en blanco) | B124: (en blanco) | C124: 222 | D124: | | E124: HERNANDEZ ALBARRACÍN JORGE ELIÉCER | F124: HERNANDEZ ALBARRACÍN JORGE ELIÉCER | G124: CARRERA ADMINISTRATIVA
A125: (en blanco) | B125: (en blanco) | C125: 222 | D125: | | E125: ARDILA MORA ALVARO | F125: ARDILA MORA ALVARO | G125: CARRERA ADMINISTRATIVA
A126: (en blanco) | B126: (en blanco) | C126: 222 | D126: | | E126: ORTIZ LEON MARTHA YANETH | F126: ORTIZ LEON MARTHA YANETH | G126: CARRERA ADMINISTRATIVA
A127: (en blanco) | B127: (en blanco) | C127: 222 | D127: | | E127: PINILLA SERRANO ESTHER | F127: PINILLA SERRANO ESTHER | G127: CARRERA ADMINISTRATIVA
A128: (en blanco) | B128: (en blanco) | C128: 222 | D128: | | E128: GALLEGO GONZALEZ RUBEN DARIO | F128: GALLEGO GONZALEZ RUBEN DARIO | G128: CARRERA ADMINISTRATIVA
A129: (en blanco) | B129: (en blanco) | C129: 222 | D129: | | E129: GUERRERO BONILLA MAGDA EDITH | F129: GUERRERO BONILLA MAGDA EDITH | G129: CARRERA ADMINISTRATIVA
A130: (en blanco) | B130: (en blanco) | C130: 222 | D130: | | E130: PULIDO PULIDO GERMAN ALBERTO | F130: PULIDO PULIDO GERMAN ALBERTO | G130: CARRERA ADMINISTRATIVA
A131: (en blanco) | B131: (en blanco) | C131: 222 | D131: | | E131: MEJIA SIERRA PEDRO ALFONSO | F131: MEJIA SIERRA PEDRO ALFONSO | G131: CARRERA ADMINISTRATIVA
A132: (en blanco) | B132: (en blanco) | C132: 222 | D132: | | E132: ZABALETA TABOADA DONALDO YAMITH | F132: ZABALETA TABOADA DONALDO YAMITH | G132: CARRERA ADMINISTRATIVA
A133: (en blanco) | B133: (en blanco) | C133: 222 | D133: | | E133: CORTES MALAVER DIANA MARCELA | F133: CORTES MALAVER DIANA MARCELA | G133: CARRERA ADMINISTRATIVA
A134: (en blanco) | B134: (en blanco) | C134: 222 | D134: | | E134: GUZMAN CONTRERAS ADRIANA PATRICIA | F134: GUZMAN CONTRERAS ADRIANA PATRICIA | G134: CARRERA ADMINISTRATIVA
A135: (en blanco) | B135: (en blanco) | C135: 222 | D135: | | E135: QUINTERO LARA OCTAVIO | F135: QUINTERO LARA OCTAVIO | G135: CARRERA ADMINISTRATIVA
A136: (en blanco) | B136: (en blanco) | C136: 314 | D136: 9 | E136: ANAYA SARMIENTO CAROLINA | F136: ANAYA SARMIENTO CAROLINA | G136: CARRERA ADMINISTRATIVA
A137: (en blanco) | B137: (en blanco) | C137: 314 | D137: 15 | E137: BARBOSA JASON | F137: BARBOSA JASON | G137: CARRERA ADMINISTRATIVA
A138: (en blanco) | B138: (en blanco) | C138: 314 | D138: 15 | E138: CASALLAS MARTINEZ ALEJANDRA NATALY | F138: CASALLAS MARTINEZ ALEJANDRA NATALY | G138: CARRERA ADMINISTRATIVA
A139: (en blanco) | B139: (en blanco) | C139: 314 | D139: 15 | E139: SANCHEZ ROJAS MARY DAYANA | F139: SANCHEZ ROJAS MARY DAYANA | G139: CARRERA ADMINISTRATIVA
A140: (en blanco) | B140: (en blanco) | C140: 314 | D140: 15 | E140: FLECHAS ALONSO JOAN SEBASTIAN | F140: FLECHAS ALONSO JOAN SEBASTIAN | G140: CARRERA ADMINISTRATIVA
A141: (en blanco) | B141: (en blanco) | C141: 314 | D141: 15 | E141: ARAGON CASTIBLANCO KATHERINE PAOLA | F141: ARAGON CASTIBLANCO KATHERINE PAOLA | G141: CARRERA ADMINISTRATIVA
A142: (en blanco) | B142: (en blanco) | C142: 314 | D142: 15 | E142: GOMEZ AREVALO JENNIFER LIZBETH | F142: GOMEZ AREVALO JENNIFER LIZBETH | G142: CARRERA ADMINISTRATIVA
A143: (en blanco) | B143: (en blanco) | C143: 314 | D143: 15 | E143: SIERRA LABORDE ROSA ISABEL | F143: SIERRA LABORDE ROSA ISABEL | G143: CARRERA ADMINISTRATIVA
A144: (en blanco) | B144: (en blanco) | C144: 314 | D144: 20 | E144: TORRES HERNANDEZ JOSE MISAEL | F144: TORRES HERNANDEZ JOSE MISAEL | G144: CARRERA ADMINISTRATIVA
A145: (en blanco) | B145: (en blanco) | C145: 314 | D145: 20 | E145: CRUZ PARDO MARTHA RUBIELA | F145: CRUZ PARDO MARTHA RUBIELA | G145: CARRERA ADMINISTRATIVA
A146: (en blanco) | B146: (en blanco) | C146: 314 | D146: 20 | E146: ROMERO CELEMIN ALBA YAMILE | F146: ROMERO CELEMIN ALBA YAMILE | G146: CARRERA ADMINISTRATIVA
A147: (en blanco) | B147: (en blanco) | C147: 314 | D147: 20 | E147: GAONA FARIAS LUIS CARLOS | F147: GAONA FARIAS LUIS CARLOS | G147: CARRERA ADMINISTRATIVA
A148: (en blanco) | B148: (en blanco) | C148: 314 | D148: 20 | E148: LEON CITA WENDY PAOLA | F148: LEON CITA WENDY PAOLA | G148: CARRERA ADMINISTRATIVA
A149: (en blanco) | B149: (en blanco) | C149: 314 | D149: 20 | E149: FONSECA APERADOR WILLIAM | F149: FONSECA APERADOR WILLIAM | G149: CARRERA ADMINISTRATIVA
A150: (en blanco) | B150: (en blanco) | C150: 314 | D150: 20 | E150: TORRES BECERRA MARIA VICTORIA | F150: TORRES BECERRA MARIA VICTORIA | G150: CARRERA ADMINISTRATIVA
A151: (en blanco) | B151: (en blanco) | C151: 314 | D151: 20 | E151: BOHORQUEZ MORENO YANNY ALEXANDRA | F151: BOHORQUEZ MORENO YANNY ALEXANDRA | G151: CARRERA ADMINISTRATIVA
A152: (en blanco) | B152: (en blanco) | C152: 314 | D152: 21 | E152: MARTINEZ ORTIZ GLORIA INES | F152: MARTINEZ ORTIZ GLORIA INES | G152: CARRERA ADMINISTRATIVA
A153: (en blanco) | B153: (en blanco) | C153: 407 | D153: 9 | E153: VILLARRAGA ROJAS LIZETH MAYERLY | F153: VILLARRAGA ROJAS LIZETH MAYERLY | G153: CARRERA ADMINISTRATIVA
A154: (en blanco) | B154: (en blanco) | C154: 407 | D154: 14 | E154: LÓPEZ ACUÑA OSCAR ERNESTO | F154: LÓPEZ ACUÑA OSCAR ERNESTO | G154: CARRERA ADMINISTRATIVA
A155: (en blanco) | B155: (en blanco) | C155: 407 | D155: 15 | E155: VACANTE DEFINITIVA | F155: SIERRA LENIS LAURA STHEPANY | G155: PROVISIONALIDAD
A156: (en blanco) | B156: (en blanco) | C156: 407 | D156: 15 | E156: VACANTE DEFINITIVA | F156: ROMERO TORRES HEIDY LORENA | G156: PROVISIONALIDAD
A157: (en blanco) | B157: (en blanco) | C157: 407 | D157: 15 | E157: MONTAÑEZ REY MAICOL ANDRES | F157: MONTAÑEZ REY MAICOL ANDRES | G157: CARRERA ADMINISTRATIVA
A158: (en blanco) | B158: (en blanco) | C158: 407 | D158: 16 | E158: VACANTE DEFINITIVA | F158: VACANTE DEFINITIVA | G158: (en blanco)
A159: (en blanco) | B159: (en blanco) | C159: 407 | D159: 16 | E159: RAMIREZ BAUTISTA ADRIANA PATRICIA | F159: RAMIREZ BAUTISTA ADRIANA PATRICIA | G159: CARRERA ADMINISTRATIVA
A160: (en blanco) | B160: (en blanco) | C160: 407 | D160: 17 | E160: LONDOÑO GARCIA OLGA LILIANA | F160: LONDOÑO GARCIA OLGA LILIANA | G160: CARRERA ADMINISTRATIVA
A161: (en blanco) | B161: (en blanco) | C161: 407 | D161: 20 | E161: CORTES SALGADO ALEX | F161: CORTES SALGADO ALEX | G161: CARRERA ADMINISTRATIVA
A162: (en blanco) | B162: (en blanco) | C162: 407 | D162: 24 | E162: URIBE CABALLERO AZULA | F162: URIBE CABALLERO AZULA | G162: CARRERA ADMINISTRATIVA
A163: (en blanco) | B163: (en blanco) | C163: 425 | D163: 24 | E163: GIL HERRERA ANA JULIETH | F163: GIL HERRERA ANA JULIETH | G163: CARRERA ADMINISTRATIVA
A164: (en blanco) | B164: (en blanco) | C164: 425 | D164: | | E164: RODGERS QUIROGA KATHERYN YOLANDA | F164: RODGERS QUIROGA KATHERYN YOLANDA | G164: CARRERA ADMINISTRATIVA
A165: (en blanco) | B165: (en blanco) | C165: 440 | D165: 9 | E165: VANEGAS LARGO MARIA CRISTINA | F165: VANEGAS LARGO MARIA CRISTINA | G165: CARRERA ADMINISTRATIVA
A166: (en blanco) | B166: (en blanco) | C166: 440 | D166: 9 | E166: ORTIZ PAEZ OMAR ANDRES | F166: ORTIZ PAEZ OMAR ANDRES | G166: CARRERA ADMINISTRATIVA
A167: (en blanco) | B167: (en blanco) | C167: 440 | D167: 9 | E167: BUITRAGO DIAZ DANIEL FERNANDO | F167: BUITRAGO DIAZ DANIEL FERNANDO | G167: CARRERA ADMINISTRATIVA
A168: (en blanco) | B168: (en blanco) | C168: 440 | D168: 11 | E168: SEPULVEDA ORDOÑEZ LIDA TATIANA | F168: SEPULVEDA ORDOÑEZ LIDA TATIANA | G168: CARRERA ADMINISTRATIVA
A169: (en blanco) | B169: (en blanco) | C169: 440 | D169: 19 | E169: SILVA GARCIA DORIS | F169: SILVA GARCIA DORIS | G169: CARRERA ADMINISTRATIVA
A170: (en blanco) | B170: (en blanco) | C170: 470 | D170: 7 | E170: REVELO QUINTERO SONIA DEL ROSARIO | F170: REVELO QUINTERO SONIA DEL ROSARIO | G170: CARRERA ADMINISTRATIVA
A171: (en blanco) | B171: (en blanco) | C171: 470 | D171: 7 | E171: VELASQUEZ CABRERA GABRIELINA | F171: VELASQUEZ CABRERA GABRIELINA | G171: CARRERA ADMINISTRATIVA
A172: (en blanco) | B172: (en blanco) | C172: 480 | D172: 13 | E172: MARROQUIN JAUMI MANFRED | F172: MARROQUIN JAUMI MANFRED | G172: CARRERA ADMINISTRATIVA
A173: (en blanco) | B173: (en blanco) | C173: 480 | D173: 13 | E173: URREGO BECERRA EDUARDO ALEJANDRO | F173: URREGO BECERRA EDUARDO ALEJANDRO | G173: CARRERA ADMINISTRATIVA
A504: 1 | B504: 1 | C504: 1 | D504: 1 | E504: 1 | F504: 1 | G504: 1 | H504: 1 | I504: 1

Sheet Hoja2 (hidden)
A3: Etiquetas de fila | B3: Máx. de ASIGNACIÓN
A4: 105-5 | B4: 5482433
A5: 115-6 | B5: 6113384
A6: 20-9 | B6: 8415460
A7: 219-1 | B7: 2347543
A8: 219-10 | B8: 2906200
A9: 219-13 | B9: 3219338
A10: 219-15 | B10: 3396094
A11: 219-18 | B11: 3501870
A12: 219-3 | B12: 2497557
A13: 219-8 | B13: 2825910
A14: 219-9 | B14: 2881774
A15: 222-19 | B15: 3682909
A16: 222-20 | B16: 3769420
A17: 222-21 | B17: 3863860
A18: 222-22 | B18: 3973399
A19: 222-24 | B19: 4007126
A20: 222-25 | B20: 4108410
A21: 222-26 | B21: 4293639
A22: 222-27 | B22: 4330023
A23: 314-15 | B23: 2487072
A24: 314-20 | B24: 2844881
A25: 314-21 | B25: 2844986
A26: 314-9 | B26: 2169989
A27: 407-11 | B27: 1650328
A28: 407-13 | B28: 1775414
A29: 407-14 | B29: 1832955
A30: 407-15 | B30: 1890502
A31: 407-16 | B31: 1964476
A32: 407-17 | B32: 2022024
A33: 407-20 | B33: 2235747
A34: 407-24 | B34: 2418464
A35: 407-26 | B35: 2539889
A36: 407-27 | B36: 2540043
A37: 407-9 | B37: 1574368
A38: 425-20 | B38: 2235747
A39: 425-21 | B39: 2309730
A40: 425-24 | B40: 2418464
A41: 425-27 | B41: 2540043
A42: 440-11 | B42: 1650328
A43: 440-19 | B43: 2169989
A44: 440-9 | B44: 1574368
A45: 45-8 | B45: 7504689
A46: 470-3 | B46: 1287623
A47: 470-7 | B47: 1543553
A48: 480-13 | B48: 1775414
A49: 6-6 | B49: 6113384
A50: 9-7 | B50: 6699270
A51: Total general | B51: 8415460

Sheet Hoja2 (2) (hidden)
A3: Etiquetas de fila | B3: Máx. de GTOS REP
A4: 105-5 | B4: 1765248
A5: 115-6 | B5: 2624538
A6: 20-9 | B6: 9032105
A7: 219-1 | B7: 0
A8: 219-10 | B8: 0
A9: 219-13 | B9: 0
A10: 219-15 | B10: 0
A11: 219-18 | B11: 0
A12: 219-3 | B12: 0
A13: 219-8 | B13: 0
A14: 219-9 | B14: 0
A15: 222-19 | B15: 0
A16: 222-20 | B16: 0
A17: 222-21 | B17: 0
A18: 222-22 | B18: 0
A19: 222-24 | B19: 0
A20: 222-25 | B20: 0
A21: 222-26 | B21: 933386.6
A22: 222-27 | B22: 0
A23: 314-15 | B23: 0
A24: 314-20 | B24: 0
A25: 314-21 | B25: 0
A26: 314-9 | B26: 0
A27: 407-11 | B27: 0
A28: 407-13 | B28: 0
A29: 407-14 | B29: 0
A30: 407-15 | B30: 0
A31: 407-16 | B31: 0
A32: 407-17 | B32: 0
A33: 407-20 | B33: 0
A34: 407-24 | B34: 0
A35: 407-26 | B35: 0
A36: 407-27 | B36: 0
A37: 407-9 | B37: 0
A38: 425-20 | B38: 0
A39: 425-21 | B39: 0
A40: 425-24 | B40: 0
A41: 425-27 | B41: 0
A42: 440-11 | B42: 0
A43: 440-19 | B43: 0
A44: 440-9 | B44: 0
A45: 45-8 | B45: 3155572
A46: 470-3 | B46: 0
A47: 470-7 | B47: 0
A48: 480-13 | B48: 0
A49: 6-6 | B49: 2624538
A50: 9-7 | B50: 2876064.4
A51: Total general | B51: 9032105

Sheet PLANTA SJD
A1: ID | B1: NOMBRE Y APELLIDOS | C1: TIPO DE VINCULACIÓN | D1: NOMENCLATURA_ADMIN | E1: CÓDIGO | F1: GRADO | G1: DEPENDENCIA | H1: CALIFICACION 2021-2022 | I1: CALIFICACION 2022-2023 | J1: NIVEL | K1: OBSERVACIONES
B2: FABIO ESTRADA VALENCIA | C2: LIBRE NOMBRAMIENTO Y REMOCIÓN | D2: ASESOR | E2: 105 | F2: 5 | G2: DESPACHO SECRETARÍA JURÍDICA | I2: 100 | J2: =IF(I2>=90,"SOBRESALIENTE",IF(I2>65,"SATISFACTORIO","NO SATISFACTORIO")) -> SOBRESALIENTE
B3: ANYELA VIVIETH MAMIAN RAMOS | C3: LIBRE NOMBRAMIENTO Y REMOCIÓN | D3: ASESOR | E3: 105 | F3: 5 | G3: DESPACHO SECRETARÍA JURÍDICA | I3: 100 | J3: =IF(I3>=90,"SOBRESALIENTE",IF(I3>65,"SATISFACTORIO","NO SATISFACTORIO")) -> SOBRESALIENTE
B4: PAULA ANDREA CASTRO CAMPUZANO | C4: LIBRE NOMBRAMIENTO Y REMOCIÓN | D4: ASESOR | E4: 105 | F4: 5 | G4: DESPACHO SECRETARÍA JURÍDICA | I4: 100 | J4: SOBRESALIENTE
B5: PEÑA CARBONELL CAMILO ANDRES | C5: LIBRE NOMBRAMIENTO Y REMOCIÓN | D5: JEFE DE OFICINA | E5: 115 | F5: 6 | G5: OFICINA ASESORA DE PLANEACIÓN | H5: 100 | I5: 100 | J5: SOBRESALIENTE
B6: VIVIANA CAROLINA ORTIZ GUZMÁN | C6: LIBRE NOMBRAMIENTO Y REMOCIÓN | D6: ASESOR | E6: 105 | F6: 5 | G6: DESPACHO SECRETARÍA JURÍDICA | I6: 100 | J6: SOBRESALIENTE
B7: CLARA INES MARQUEZ VÁSQUEZ | C7: LIBRE NOMBRAMIENTO Y REMOCIÓN | D7: ASESOR | E7: 105 | F7: 5 | G7: DESPACHO SECRETARÍA JURÍDICA | I7: 100 | J7: SOBRESALIENTE
B8: ALONSO GUTIERREZ LEIDY JOHANNA | C8: CARRERA ADMINISTRATIVA | D8: PROFESIONAL UNIVERSITARIO | E8: 219 | F8: 1 | G8: DIRECCIÓN DISTRITAL DE GESTION JUDICIAL | H8: 100 | I8: 100 | J8: SOBRESALIENTE
B9: AVILA MARIN ALEXANDRA | C9: CARRERA ADMINISTRATIVA | D9: PROFESIONAL UNIVERSITARIO | E9: 219 | F9: 1 | G9: DIRECCIÓN DISTRITAL DE POLÍTICA JURÍDICA | H9: 100 | I9: 100 | J9: SOBRESALIENTE
B10: MORA BERMUDEZ DAVID ALEJANDRO | C10: CARRERA ADMINISTRATIVA | D10: PROFESIONAL UNIVERSITARIO | E10: 219 | F10: 15 | G10: DIRECCIÓN DISTRITAL DE INSPECCIÓN, VIGILANCIA Y CONTROL | H10: 100 | I10: 100 | J10: SOBRESALIENTE
B11: MORA MONTOYA HELVER MANUEL | C11: CARRERA ADMINISTRATIVA | D11: TECNICO OPERATIVO | E11: 314 | F11: 15 | G11: DIRECCIÓN DISTRITAL DE GESTION JUDICIAL | H11: 100 | I11: 100 | J11: SOBRESALIENTE
B12: VILLANUEVA SANCHEZ DALIDA | C12: CARRERA ADMINISTRATIVA | D12: PROFESIONAL UNIVERSITARIO | E12: 219 | F12: 10 | G12: DIRECCIÓN DE GESTIÓN CORPORATIVA | H12: 99.5 | I12: 97.87 | J12: SOBRESALIENTE
B13: BARRERA DIAZ MARTHA LILIANA | C13: CARRERA ADMINISTRATIVA | D13: PROFESIONAL UNIVERSITARIO | E13: 219 | F13: 8 | G13: DIRECCIÓN DE GESTIÓN CORPORATIVA | H13: 94.2 | I13: 100 | J13: SOBRESALIENTE
B14: MURILLO HURTADO VICTOR HERNANDO | C14: CARRERA ADMINISTRATIVA | D14: PROFESIONAL UNIVERSITARIO | E14: 219 | F14: 9 | G14: OFICINA ASESORA DE PLANEACIÓN | H14: 100 | I14: 100 | J14: SOBRESALIENTE
B15: MARTINEZ BERNAL JUAN CARLOS | C15: CARRERA ADMINISTRATIVA | D15: PROFESIONAL UNIVERSITARIO | E15: 219 | F15: 15 | G15: DIRECCIÓN DISTRITAL DE INSPECCIÓN, VIGILANCIA Y CONTROL | H15: 99 | I15: 99.91 | J15: SOBRESALIENTE
B16: RODRIGUEZ NARVAEZ DANIELA | C16: CARRERA ADMINISTRATIVA | D16: PROFESIONAL UNIVERSITARIO | E16: 219 | F16: 10 | G16: DIRECCIÓN DE GESTIÓN CORPORATIVA | H16: 100 | I16: 100 | J16: SOBRESALIENTE
B17: POLANIA SALAZAR LUZ DARY | C17: CARRERA ADMINISTRATIVA | D17: PROFESIONAL UNIVERSITARIO | E17: 219 | F17: 13 | G17: OFICINA DE CONTROL INTERNO | H17: 97.25 | I17: 100 | J17: SOBRESALIENTE
B18: CAMARGO CASTRO CLAUDIA MARCELA | C18: CARRERA ADMINISTRATIVA | D18: PROFESIONAL UNIVERSITARIO | E18: 219 | F18: 13 | G18: DIRECCIÓN DISTRITAL DE POLÍTICA JURÍDICA | H18: 100 | I18: 100 | J18: SOBRESALIENTE
B19: OJEDA CARDENAS IAM ALEXANDER | C19: CARRERA ADMINISTRATIVA | D19: PROFESIONAL UNIVERSITARIO | E19: 219 | F19: 13 | G19: DIRECCIÓN DISTRITAL DE POLÍTICA JURÍDICA | H19: 100 | I19: 100 | J19: SOBRESALIENTE
B20: ROJAS PEÑA JORGE ANDRES | C20: CARRERA ADMINISTRATIVA | D20: PROFESIONAL UNIVERSITARIO | E20: 219 | F20: 15 | G20: DIRECCIÓN DISTRITAL DE INSPECCIÓN, VIGILANCIA Y CONTROL | H20: 100 | I20: 100 | J20: SOBRESALIENTE
B21: FRANCO GALLEGO LUIS HERNANDO | C21: CARRERA ADMINISTRATIVA | D21: PROFESIONAL UNIVERSITARIO | E21: 219 | F21: 18 | G21: OFICINA ASESORA DE PLANEACIÓN | H21: 100 | I21: 100 | J21: SOBRESALIENTE
B22: MARTINEZ PALACIOS OLGA LUCIA | C22: CARRERA ADMINISTRATIVA | D22: PROFESIONAL UNIVERSITARIO | E22: 219 | F22: 18 | G22: DIRECCIÓN DE GESTIÓN CORPORATIVA | H22: 100 | I22: 100 | J22: SOBRESALIENTE
B23: MORENO PEREZ LUZ ESTELLA | C23: CARRERA ADMINISTRATIVA | D23: PROFESIONAL UNIVERSITARIO | E23: 219 | F23: 18 | G23: DESPACHO SECRETARÍA JURÍDICA | H23: 100 | I23: 100 | J23: SOBRESALIENTE
B24: ALVARADO ROJAS BRICEIDA | C24: CARRERA ADMINISTRATIVA | D24: PROFESIONAL UNIVERSITARIO | E24: 219 | F24: 18 | G24: DIRECCIÓN DE GESTIÓN CORPORATIVA | H24: 100 | I24: 100 | J24: SOBRESALIENTE
B25: AGUIRRE CORRALES HUGO HERNANDO | C25: CARRERA ADMINISTRATIVA | D25: PROFESIONAL UNIVERSITARIO | E25: 219 | F25: 18 | G25: DIRECCIÓN DE GESTIÓN CORPORATIVA | H25: 100 | I25: 100 | J25: SOBRESALIENTE
B26: ALVARADO ROJAS CHEILA ALEXANDRA | C26: CARRERA ADMINISTRATIVA | D26: PROFESIONAL UNIVERSITARIO | E26: 219 | F26: 18 | G26: DIRECCIÓN DE GESTIÓN CORPORATIVA | H26: 98 | I26: 100 | J26: SOBRESALIENTE
B27: NIÑO SOCHA CARLOS ANDRES | C27: CARRERA ADMINISTRATIVA | D27: PROFESIONAL UNIVERSITARIO | E27: 219 | F27: 18 | G27: DIRECCIÓN DISTRITAL DE GESTION JUDICIAL | H27: 100 | I27: 97.65 | J27: SOBRESALIENTE
B28: NOVOA DUEÑAS SANDRA LISETTE | C28: CARRERA ADMINISTRATIVA | D28: PROFESIONAL UNIVERSITARIO | E28: 219 | F28: 18 | G28: DIRECCIÓN DISTRITAL DE GESTION JUDICIAL | H28: 100 | I28: 100 | J28: SOBRESALIENTE
B29: JIMENEZ VASQUEZ CRISTHIAM DAVID | C29: CARRERA ADMINISTRATIVA | D29: PROFESIONAL UNIVERSITARIO | E29: 219 | F29: 18 | G29: DIRECCIÓN DISTRITAL DE GESTION JUDICIAL | H29: 99.22 | I29: 100 | J29: SOBRESALIENTE
B30: TORRES MARTINEZ NELCY | C30: CARRERA ADMINISTRATIVA | D30: PROFESIONAL UNIVERSITARIO | E30: 219 | F30: 18 | G30: DIRECCIÓN DISTRITAL DE GESTION JUDICIAL | H30: 100 | I30: 100 | J30: SOBRESALIENTE
B31: ROA SILVA SONIA TERESA | C31: CARRERA ADMINISTRATIVA | D31: PROFESIONAL UNIVERSITARIO | E31: 219 | F31: 18 | G31: DIRECCIÓN DISTRITAL DE GESTION JUDICIAL | H31: 100 | I31: 100 | J31: SOBRESALIENTE
B32: RAMÍREZ MUÑOZ CARLOS JULIO | C32: CARRERA ADMINISTRATIVA | D32: PROFESIONAL UNIVERSITARIO | E32: 219 | F32: 18 | G32: DIRECCIÓN DISTRITAL DE DOCTRINA Y ASUNTOS NORMATIVOS | H32: 93.6 | I32: 97.5 | J32: SOBRESALIENTE
B33: MEJIA PARRA MONICA ROCIO | C33: CARRERA ADMINISTRATIVA | D33: PROFESIONAL UNIVERSITARIO | E33: 219 | F33: 18 | G33: DIRECCIÓN DISTRITAL DE POLÍTICA JURÍDICA | H33: 100 | I33: 100 | J33: SOBRESALIENTE
B34: MUÑOZ CUERVO HERNAN BENJAMIN | C34: CARRERA ADMINISTRATIVA | D34: PROFESIONAL UNIVERSITARIO | E34: 219 | F34: 18 | G34: DIRECCIÓN DISTRITAL DE INSPECCIÓN, VIGILANCIA Y CONTROL | H34: 98.5 | I34: 100 | J34: SOBRESALIENTE
B35: RUIZ ZAMUDIO JUAN CAMILO | C35: CARRERA ADMINISTRATIVA | D35: PROFESIONAL UNIVERSITARIO | E35: 219 | F35: 15 | G35: DIRECCIÓN DISTRITAL DE INSPECCIÓN, VIGILANCIA Y CONTROL | H35: 100 | I35: 100 | J35: SOBRESALIENTE
B36: PINTO SEGURA MIGUEL | C36: CARRERA ADMINISTRATIVA | D36: PROFESIONAL UNIVERSITARIO | E36: 219 | F36: 18 | G36: DIRECCIÓN DISTRITAL DE INSPECCIÓN, VIGILANCIA Y CONTROL | H36: 100 | I36: 100 | J36: SOBRESALIENTE
B37: PEREZ FORTICH FERNAN ENRIQUE | C37: CARRERA ADMINISTRATIVA | D37: PROFESIONAL UNIVERSITARIO | E37: 219 | F37: 18 | G37: DIRECCIÓN DISTRITAL DE INSPECCIÓN, VIGILANCIA Y CONTROL | H37: 100 | I37: 100 | J37: SOBRESALIENTE
B38: RAMIREZ VALENCIA IVAN DAVID | C38: CARRERA ADMINISTRATIVA | D38: PROFESIONAL UNIVERSITARIO | E38: 219 | F38: 18 | G38: DIRECCIÓN DISTRITAL DE INSPECCIÓN, VIGILANCIA Y CONTROL | H38: 100 | I38: 100 | J38: SOBRESALIENTE
B39: MEDINA MURILLO CAROLINA | C39: CARRERA ADMINISTRATIVA | D39: PROFESIONAL UNIVERSITARIO | E39: 219 | F39: 15 | G39: DIRECCIÓN DISTRITAL DE INSPECCIÓN, VIGILANCIA Y CONTROL | H39: 100 | I39: 100 | J39: SOBRESALIENTE
B40: ARREDONDO VELEZ HECTOR IVAN | C40: CARRERA ADMINISTRATIVA | D40: PROFESIONAL UNIVERSITARIO | E40: 219 | F40: 18 | G40: DIRECCIÓN DISTRITAL DE INSPECCIÓN, VIGILANCIA Y CONTROL | H40: 100 | I40: 100 | J40: SOBRESALIENTE
B41: GOMEZ PEÑA DIANA PAOLA | C41: CARRERA ADMINISTRATIVA | D41: PROFESIONAL ESPECIALIZADO | E41: 222 | F41: 19 | G41: DIRECCIÓN DISTRITAL DE ASUNTOS DISCIPLINARIOS | H41: 100 | I41: 100 | J41: SOBRESALIENTE
B42: DIAZ RINCON ANGELICA | C42: CARRERA ADMINISTRATIVA | D42: PROFESIONAL ESPECIALIZADO | E42: 222 | F42: 19 | G42: DIRECCIÓN DISTRITAL DE DOCTRINA Y ASUNTOS NORMATIVOS | H42: 93.77 | I42: 97 | J42: SOBRESALIENTE
B43: ORGANISTA BUILES SANDRA NICOLASA | C43: CARRERA ADMINISTRATIVA | D43: PROFESIONAL UNIVERSITARIO | E43: 219 | F43: 18 | G43: DIRECCIÓN DISTRITAL DE INSPECCIÓN, VIGILANCIA Y CONTROL | H43: 100 | I43: 100 | J43: SOBRESALIENTE
B44: GONZÁLEZ MOLINA HENRY ALBERTO | C44: CARRERA ADMINISTRATIVA | D44: PROFESIONAL ESPECIALIZADO | E44: 222 | F44: 20 | G44: DIRECCIÓN DISTRITAL DE GESTION JUDICIAL | H44: 96.15 | I44: 100 | J44: SOBRESALIENTE
B45: SALAZAR URRUTIA NELSON JULIAN | C45: CARRERA ADMINISTRATIVA | D45: PROFESIONAL ESPECIALIZADO | E45: 222 | F45: 21 | G45: OFICINA ASESORA DE PLANEACIÓN | H45: 100 | I45: 100 | J45: SOBRESALIENTE
B46: CALA CASTRO ADDILY JOHANNA | C46: CARRERA ADMINISTRATIVA | D46: PROFESIONAL ESPECIALIZADO | E46: 222 | F46: 21 | G46: DIRECCIÓN DE GESTIÓN CORPORATIVA | H46: 99.5 | I46: 96.96 | J46: SOBRESALIENTE
B47: GUTIERREZ HERNANDEZ DORA BELEN | C47: CARRERA ADMINISTRATIVA | D47: PROFESIONAL ESPECIALIZADO | E47: 222 | F47: 21 | G47: DIRECCIÓN DE GESTIÓN CORPORATIVA | H47: 100 | I47: 100 | J47: SOBRESALIENTE
B48: ALARCON ACERO YOMAIRA AMPARO | C48: CARRERA ADMINISTRATIVA | D48: PROFESIONAL ESPECIALIZADO | E48: 222 | F48: 21 | G48: DIRECCIÓN DE GESTIÓN CORPORATIVA | H48: 100 | I48: 100 | J48: SOBRESALIENTE
B49: VARGAS MORALES DAVID HERNANDO | C49: CARRERA ADMINISTRATIVA | D49: PROFESIONAL UNIVERSITARIO | E49: 219 | F49: 18 | G49: DIRECCIÓN DISTRITAL DE INSPECCIÓN, VIGILANCIA Y CONTROL | H49: 100 | I49: 100 | J49: SOBRESALIENTE
B50: CUBIDES AMAYA MARIA XIMENA | C50: CARRERA ADMINISTRATIVA | D50: PROFESIONAL ESPECIALIZADO | E50: 222 | F50: 21 | G50: DIRECCIÓN DISTRITAL DE DOCTRINA Y ASUNTOS NORMATIVOS | H50: 94.45 | I50: 97.15 | J50: SOBRESALIENTE
B51: GUTIERREZ GUITIERREZ JENIFFER | C51: CARRERA ADMINISTRATIVA | D51: PROFESIONAL ESPECIALIZADO | E51: 222 | F51: 22 | G51: DIRECCIÓN DISTRITAL DE POLÍTICA JURÍDICA | H51: 100 | I51: 100 | J51: SOBRESALIENTE
B52: MERCHAN LARA LUZ DARY | C52: CARRERA ADMINISTRATIVA | D52: PROFESIONAL ESPECIALIZADO | E52: 222 | F52: 21 | G52: DIRECCIÓN DISTRITAL DE INSPECCIÓN, VIGILANCIA Y CONTROL | H52: 100 | I52: 100 | J52: SOBRESALIENTE
B53: GAMEZ GOMEZ JOHANA PATRICIA | C53: CARRERA ADMINISTRATIVA | D53: PROFESIONAL ESPECIALIZADO | E53: 222 | F53: 24 | G53: DIRECCIÓN DISTRITAL DE DOCTRINA Y ASUNTOS NORMATIVOS | H53: 100 | I53: 98.94 | J53: SOBRESALIENTE
B54: NIÑO CAMPOS MARIA DEL PILAR | C54: CARRERA ADMINISTRATIVA | D54: PROFESIONAL ESPECIALIZADO | E54: 222 | F54: 24 | G54: OFICINA DE LAS TECNOLOGÍAS DE LA INFORMACIÓN Y LAS COMUNICACIONES | H54: 90.69 | I54: 94.2 | J54: SOBRESALIENTE
B55: OVALLE CUERVO EDGAR ENRIQUE | C55: CARRERA ADMINISTRATIVA | D55: PROFESIONAL ESPECIALIZADO | E55: 222 | F55: 24 | G55: OFICINA DE LAS TECNOLOGÍAS DE LA INFORMACIÓN Y LAS COMUNICACIONES | H55: 95.23 | I55: 95.88 | J55: SOBRESALIENTE
B56: SALCEDO TAMAYO GLORIA ESTHER | C56: CARRERA ADMINISTRATIVA | D56: PROFESIONAL ESPECIALIZADO | E56: 222 | F56: 24 | G56: DIRECCIÓN DE GESTIÓN CORPORATIVA | H56: 90.52 | I56: 98.5 | J56: SOBRESALIENTE
B57: GRANADOS GELVES DANIEL YIDID | C57: CARRERA ADMINISTRATIVA | D57: PROFESIONAL ESPECIALIZADO | E57: 222 | F57: 24 | G57: DIRECCIÓN DISTRITAL DE DOCTRINA Y ASUNTOS NORMATIVOS | H57: 94.62 | I57: 96.26 | J57: SOBRESALIENTE
B58: PACHON PIÑEROS FERNANDO | C58: CARRERA ADMINISTRATIVA | D58: PROFESIONAL ESPECIALIZADO | E58: 222 | F58: 24 | G58: DIRECCIÓN DISTRITAL DE DOCTRINA Y ASUNTOS NORMATIVOS | H58: 97.98 | I58: 97.56 | J58: SOBRESALIENTE
B59: LOZANO ARDILA CAROLINA | C59: CARRERA ADMINISTRATIVA | D59: PROFESIONAL ESPECIALIZADO | E59: 222 | F59: 24 | G59: OFICINA DE CONTROL INTERNO | H59: 97.25 | I59: 100 | J59: SOBRESALIENTE
B60: ALVARADO HERREÑO JOSE ORLANDO | C60: CARRERA ADMINISTRATIVA | D60: PROFESIONAL ESPECIALIZADO | E60: 222 | F60: 27 | G60: DIRECCIÓN DISTRITAL DE GESTION JUDICIAL | H60: 100 | I60: 96.64 | J60: SOBRESALIENTE | K60: INTERPUSO RECURSO-NO PROCEDE POR VENCIMIENTO
B61: RODRIGUEZ RODRIGUEZ CAMILO ANDRES | C61: CARRERA ADMINISTRATIVA | D61: PROFESIONAL ESPECIALIZADO | E61: 222 | F61: 25 | G61: DIRECCIÓN DISTRITAL DE INSPECCIÓN, VIGILANCIA Y CONTROL | H61: 100 | I61: 100 | J61: SOBRESALIENTE
B62: MESA VASQUEZ GLORIA ASTRID | C62: CARRERA ADMINISTRATIVA | D62: PROFESIONAL ESPECIALIZADO | E62: 222 | F62: 26 | G62: DIRECCIÓN DISTRITAL DE GESTION JUDICIAL | H62: 96.94 | I62: 100 | J62: SOBRESALIENTE
B63: MONTOYA MALDONADO JESÚS MARÍA | C63: CARRERA ADMINISTRATIVA | D63: PROFESIONAL ESPECIALIZADO | E63: 222 | F63: 27 | G63: DIRECCIÓN DE GESTIÓN CORPORATIVA | H63: 93.85 | I63: 97.94 | J63: SOBRESALIENTE
B64: GUZMAN CONTRERAS ADRIANA PATRICIA | C64: CARRERA ADMINISTRATIVA | D64: PROFESIONAL ESPECIALIZADO | E64: 222 | F64: 27 | G64: DIRECCIÓN DE GESTIÓN CORPORATIVA | H64: 100 | I64: 100 | J64: SOBRESALIENTE
B65: MORENO GUERRERO DEYSI YANIRA | C65: CARRERA ADMINISTRATIVA | D65: PROFESIONAL ESPECIALIZADO | E65: 222 | F65: 27 | G65: DIRECCIÓN DISTRITAL DE ASUNTOS DISCIPLINARIOS | H65: 99.5 | I65: 100 | J65: SOBRESALIENTE
B66: PULIDO PULIDO GERMAN ALBERTO | C66: CARRERA ADMINISTRATIVA | D66: PROFESIONAL ESPECIALIZADO | E66: 222 | F66: 27 | G66: SUBSECRETARÍA JURÍDICA DISTRITAL | H66: 100 | I66: 100 | J66: SOBRESALIENTE
B67: PINILLA SERRANO ESTHER | C67: CARRERA ADMINISTRATIVA | D67: PROFESIONAL ESPECIALIZADO | E67: 222 | F67: 27 | G67: SUBSECRETARÍA JURÍDICA DISTRITAL | H67: 100 | I67: 100 | J67: =IF(I67>=90,"SOBRESALIENTE",IF(I67>65,"SATISFACTORIO","NO SATISFACTORIO")) -> SOBRESALIENTE
B68: GALLEGO GONZALEZ RUBEN DARIO | C68: CARRERA ADMINISTRATIVA | D68: PROFESIONAL ESPECIALIZADO | E68: 222 | F68: 27 | G68: SUBSECRETARÍA JURÍDICA DISTRITAL | H68: 97.81 | I68: 100 | J68: SOBRESALIENTE
B69: AMAYA SALAZAR MARTHA YOLANDA | C69: CARRERA ADMINISTRATIVA | D69: PROFESIONAL ESPECIALIZADO | E69: 222 | F69: 27 | G69: DIRECCIÓN DISTRITAL DE GESTION JUDICIAL | H69: 96.94 | I69: 100 | J69: SOBRESALIENTE
B70: CASTIBLANCO URQUIJO LUIS ALFONSO | C70: CARRERA ADMINISTRATIVA | D70: PROFESIONAL ESPECIALIZADO | E70: 222 | F70: 21 | G70: DIRECCIÓN DISTRITAL DE GESTION JUDICIAL | H70: 99.47 | I70: 100 | J70: SOBRESALIENTE
B71: DIAGO CASASBUENAS GLORIA MAGDALENA | C71: CARRERA ADMINISTRATIVA | D71: PROFESIONAL ESPECIALIZADO | E71: 222 | F71: 27 | G71: DIRECCIÓN DISTRITAL DE GESTION JUDICIAL | H71: 95.94 | I71: 100 | J71: SOBRESALIENTE
B72: MEJIA SIERRA PEDRO ALFONSO | C72: CARRERA ADMINISTRATIVA | D72: PROFESIONAL ESPECIALIZADO | E72: 222 | F72: 27 | G72: DIRECCIÓN DE GESTIÓN CORPORATIVA | H72: 100 | I72: 100 | J72: SOBRESALIENTE
B73: ARDILA MORA ALVARO | C73: CARRERA ADMINISTRATIVA | D73: PROFESIONAL ESPECIALIZADO | E73: 222 | F73: 27 | G73: DIRECCIÓN DISTRITAL DE GESTION JUDICIAL | H73: 100 | I73: 100 | J73: SOBRESALIENTE
B74: ZABALETA TABOADA DONALDO YAMITH | C74: CARRERA ADMINISTRATIVA | D74: PROFESIONAL ESPECIALIZADO | E74: 222 | F74: 27 | G74: DIRECCIÓN DISTRITAL DE GESTION JUDICIAL | H74: 100 | I74: 100 | J74: SOBRESALIENTE
B75: BERNATE NAVARRO ALVARO CAMILO | C75: CARRERA ADMINISTRATIVA | D75: PROFESIONAL ESPECIALIZADO | E75: 222 | F75: 27 | G75: DIRECCIÓN DISTRITAL DE GESTION JUDICIAL | H75: 100 | I75: 100 | J75: SOBRESALIENTE
B76: ORTIZ LEON MARTHA YANETH | C76: CARRERA ADMINISTRATIVA | D76: PROFESIONAL ESPECIALIZADO | E76: 222 | F76: 27 | G76: DIRECCIÓN DISTRITAL DE GESTION JUDICIAL | H76: 99 | I76: 99.96 | J76: SOBRESALIENTE
B77: GUERRERO BONILLA MAGDA EDITH | C77: CARRERA ADMINISTRATIVA | D77: PROFESIONAL ESPECIALIZADO | E77: 222 | F77: 27 | G77: DIRECCIÓN DISTRITAL DE GESTION JUDICIAL | H77: 100 | I77: 100 | J77: SOBRESALIENTE
B78: HERNANDEZ LIBREROS ELVIRA LILIANA | C78: CARRERA ADMINISTRATIVA | D78: PROFESIONAL ESPECIALIZADO | E78: 222 | F78: 27 | G78: DIRECCIÓN DISTRITAL DE POLÍTICA JURÍDICA | H78: 98.67 | I78: 100 | J78: SOBRESALIENTE
B79: APONTE PENSO SILVIA MODESTA | C79: CARRERA ADMINISTRATIVA | D79: PROFESIONAL ESPECIALIZADO | E79: 222 | F79: 27 | G79: DIRECCIÓN DISTRITAL DE DOCTRINA Y ASUNTOS NORMATIVOS | H79: 95.27 | I79: 96.43 | J79: SOBRESALIENTE
B80: SANDOVAL RODRÍGUEZ DUVÁN | C80: CARRERA ADMINISTRATIVA | D80: PROFESIONAL UNIVERSITARIO | E80: 219 | F80: 18 | G80: DIRECCIÓN DISTRITAL DE DOCTRINA Y ASUNTOS NORMATIVOS | H80: 99 | I80: 100 | J80: SOBRESALIENTE
B81: HERNANDEZ ALBARRACÍN JORGE ELIÉCER | C81: CARRERA ADMINISTRATIVA | D81: PROFESIONAL ESPECIALIZADO | E81: 222 | F81: 27 | G81: DIRECCIÓN DISTRITAL DE INSPECCIÓN, VIGILANCIA Y CONTROL | H81: 97 | I81: 100 | J81: SOBRESALIENTE
B82: CORTES MALAVER DIANA MARCELA | C82: CARRERA ADMINISTRATIVA | D82: PROFESIONAL ESPECIALIZADO | E82: 222 | F82: 27 | G82: DIRECCIÓN DISTRITAL DE INSPECCIÓN, VIGILANCIA Y CONTROL | H82: 100 | I82: 100 | J82: SOBRESALIENTE
B83: CONTRERAS CASTRO DIANA ESTHER | C83: CARRERA ADMINISTRATIVA | D83: PROFESIONAL ESPECIALIZADO | E83: 222 | F83: 21 | G83: DIRECCIÓN DISTRITAL DE INSPECCIÓN, VIGILANCIA Y CONTROL | H83: 97.92 | I83: 99.52 | J83: SOBRESALIENTE
B84: SAMUEL ARTURO HERNÁNDEZ MURCIA | C84: CARRERA ADMINISTRATIVA | D84: PROFESIONAL ESPECIALIZADO | E84: 222 | F84: 21 | G84: DIRECCIÓN DE GESTIÓN CORPORATIVA | I84: 100 | J84: SOBRESALIENTE
B85: QUINTERO LARA OCTAVIO | C85: CARRERA ADMINISTRATIVA | D85: PROFESIONAL ESPECIALIZADO | E85: 222 | F85: 27 | G85: DIRECCIÓN DISTRITAL DE INSPECCIÓN, VIGILANCIA Y CONTROL | H85: 100 | I85: 100 | J85: SOBRESALIENTE
B86: YUDY ZULEYMA RODRÍGUEZ BLANCO | C86: CARRERA ADMINISTRATIVA | D86: PROFESIONAL ESPECIALIZADO | E86: 222 | F86: 27 | G86: DIRECCIÓN DISTRITAL DE INSPECCIÓN, VIGILANCIA Y CONTROL | I86: 100 | J86: SOBRESALIENTE
B87: MONICA JULIANA SANMIGUEL ROJAS | C87: CARRERA ADMINISTRATIVA | D87: PROFESIONAL UNIVERSITARIO | E87: 219 | F87: 15 | G87: DIRECCIÓN DISTRITAL DE INSPECCIÓN, VIGILANCIA Y CONTROL | H87: 100 | I87: 100 | J87: SOBRESALIENTE
B88: LINA MARCELA MELO RODRÍGUEZ | C88: PERÍODO DE PRUEBA | D88: PROFESIONAL ESPECIALIZADO | E88: 222 | F88: 27 | G88: DIRECCIÓN DISTRITAL DE DOCTRINA Y ASUNTOS NORMATIVOS | I88: 86.4 | J88: SATISFACTORIO | K88: PERIODO DE PRUEBA
B89: DANIEL SUESCUN MARIÑO | C89: CARRERA ADMINISTRATIVA | D89: PROFESIONAL UNIVERSITARIO | E89: 219 | F89: 8 | G89: OFICINA DE LAS TECNOLOGÍAS DE LA INFORMACIÓN Y LAS COMUNICACIONES | H89: 92.81 | I89: 88.4 | J89: SATISFACTORIO
B90: MARTINEZ ORTIZ GLORIA INES | C90: CARRERA ADMINISTRATIVA | D90: PROFESIONAL UNIVERSITARIO | E90: 219 | F90: 10 | G90: OFICINA DE CONTROL INTERNO | H90: 100 | I90: 100 | J90: SOBRESALIENTE
B91: LIZCANO ORTIZ LADY CATHERINE | C91: CARRERA ADMINISTRATIVA | D91: PROFESIONAL ESPECIALIZADO | E91: 222 | F91: 24 | G91: DESPACHO SECRETARÍA JURÍDICA | I91: 100 | J91: SOBRESALIENTE | K91: COMISION DE SERVICIOS
B92: ZULMA ROJAS SUÁREZ | C92: CARRERA ADMINISTRATIVA | D92: PROFESIONAL ESPECIALIZADO | E92: 222 | F92: 27 | G92: DIRECCIÓN DISTRITAL DE POLÍTICA JURÍDICA | I92: 100 | J92: SOBRESALIENTE
B93: JUAN PABLO ORTIZ MONTERO | C93: CARRERA ADMINISTRATIVA | D93: PROFESIONAL UNIVERSITARIO | E93: 219 | F93: 15 | G93: DIRECCIÓN DISTRITAL DE ASUNTOS DISCIPLINARIOS | H93: 100 | I93: 100 | J93: SOBRESALIENTE
B94: DIANA MARÍA MORENO VARGAS | C94: CARRERA ADMINISTRATIVA | D94: PROFESIONAL UNIVERSITARIO | E94: 219 | F94: 18 | G94: DIRECCIÓN DISTRITAL DE POLÍTICA JURÍDICA | I94: 100 | J94: SOBRESALIENTE
B95: ALMA ROSA RAMOS MARÍA | C95: CARRERA ADMINISTRATIVA | D95: PROFESIONAL ESPECIALIZADO | E95: 222 | F95: 27 | G95: DIRECCIÓN DISTRITAL DE POLÍTICA JURÍDICA | I95: 100 | J95: SOBRESALIENTE
B96: ANAYA SARMIENTO CAROLINA | C96: CARRERA ADMINISTRATIVA | D96: TÉCNICO OPERATIVO | E96: 314 | F96: 20 | G96: DIRECCIÓN DE GESTIÓN CORPORATIVA | H96: 98 | I96: 98.62 | J96: SOBRESALIENTE
B97: VALENCIA PATIÑO HOOVER HERNAN | C97: CARRERA ADMINISTRATIVA | D97: TÉCNICO OPERATIVO | E97: 314 | F97: 20 | G97: DIRECCIÓN DISTRITAL DE INSPECCIÓN, VIGILANCIA Y CONTROL | H97: 98.65 | I97: 100 | J97: SOBRESALIENTE
B98: CASALLAS MARTINEZ ALEJANDRA NATALY | C98: CARRERA ADMINISTRATIVA | D98: TÉCNICO OPERATIVO | E98: 314 | F98: 15 | G98: DIRECCIÓN DISTRITAL DE GESTION JUDICIAL | H98: 100 | I98: 99.32 | J98: SOBRESALIENTE
B99: SANCHEZ ROJAS MARY DAYANA | C99: CARRERA ADMINISTRATIVA | D99: PROFESIONAL UNIVERSITARIO | E99: 219 | F99: 1 | G99: DIRECCIÓN DISTRITAL DE GESTION JUDICIAL | H99: 99.5 | I99: 100 | J99: SOBRESALIENTE
B100: ARAGON CASTIBLANCO KATHERINE PAOLA | C100: CARRERA ADMINISTRATIVA | D100: TÉCNICO OPERATIVO | E100: 314 | F100: 15 | G100: DIRECCIÓN DISTRITAL DE DOCTRINA Y ASUNTOS NORMATIVOS | H100: 97.66 | I100: 100 | J100: SOBRESALIENTE
B101: FLECHAS ALONSO JOAN SEBASTIAN | C101: CARRERA ADMINISTRATIVA | D101: TÉCNICO OPERATIVO | E101: 314 | F101: 15 | G101: DIRECCIÓN DISTRITAL DE POLÍTICA JURÍDICA | H101: 100 | I101: 100 | J101: SOBRESALIENTE
B102: FONSECA APERADOR WILLIAM | C102: CARRERA ADMINISTRATIVA | D102: TÉCNICO OPERATIVO | E102: 314 | F102: 20 | G102: OFICINA DE LAS TECNOLOGÍAS DE LA INFORMACIÓN Y LAS COMUNICACIONES | H102: 90.9 | I102: 89.27 | J102: SATISFACTORIO
B103: CRUZ PARDO MARTHA RUBIELA | C103: CARRERA ADMINISTRATIVA | D103: PROFESIONAL UNIVERSITARIO | E103: 219 | F103: 1 | G103: DIRECCIÓN DISTRITAL DE INSPECCIÓN, VIGILANCIA Y CONTROL | H103: 100 | I103: 100 | J103: SOBRESALIENTE
B104: ROMERO CELEMIN ALBA YAMILE | C104: CARRERA ADMINISTRATIVA | D104: TÉCNICO OPERATIVO | E104: 314 | F104: 20 | G104: DIRECCIÓN DISTRITAL DE INSPECCIÓN, VIGILANCIA Y CONTROL | H104: 100 | I104: 100 | J104: SOBRESALIENTE
B105: GAONA FARIAS LUIS CARLOS | C105: CARRERA ADMINISTRATIVA | D105: TÉCNICO OPERATIVO | E105: 314 | F105: 20 | G105: DIRECCIÓN DISTRITAL DE INSPECCIÓN, VIGILANCIA Y CONTROL | H105: 100 | I105: 100 | J105: SOBRESALIENTE
B106: TORRES BECERRA MARIA VICTORIA | C106: CARRERA ADMINISTRATIVA | D106: PROFESIONAL UNIVERSITARIO | E106: 219 | F106: 1 | G106: DIRECCIÓN DISTRITAL DE INSPECCIÓN, VIGILANCIA Y CONTROL | H106: 100 | I106: 100 | J106: SOBRESALIENTE
B107: LEON CITA WENDY PAOLA | C107: CARRERA ADMINISTRATIVA | D107: TÉCNICO OPERATIVO | E107: 314 | F107: 20 | G107: DIRECCIÓN DISTRITAL DE INSPECCIÓN, VIGILANCIA Y CONTROL | H107: 100 | I107: 100 | J107: SOBRESALIENTE
B108: MARÍA TERESA VALDERRAMA PEREIRA | C108: CARRERA ADMINISTRATIVA | D108: TÉCNICO OPERATIVO | E108: 314 | F108: 20 | G108: DIRECCIÓN DISTRITAL DE INSPECCIÓN, VIGILANCIA Y CONTROL | I108: 100 | J108: SOBRESALIENTE
B109: JENNIFER LIZBETH GÓMEZ AREVALO | C109: CARRERA ADMINISTRATIVA | D109: TÉCNICO OPERATIVO | E109: 314 | F109: 15 | G109: SUBSECRETARÍA JURÍDICA DISTRITAL | H109: 100 | I109: 100 | J109: SOBRESALIENTE
B110: ROSA ISABEL SIERRA LABORDE | C110: CARRERA ADMINISTRATIVA | D110: TÉCNICO OPERATIVO | E110: 314 | F110: 15 | G110: DIRECCIÓN DISTRITAL DE POLÍTICA JURÍDICA | H110: 96.64 | I110: 100 | J110: SOBRESALIENTE
B111: AZULA URIBE CABALLERO | C111: CARRERA ADMINISTRATIVA | D111: TÉCNICO OPERATIVO | E111: 314 | F111: 20 | G111: DIRECCIÓN DE GESTIÓN CORPORATIVA | H111: 100 | I111: 100 | J111: SOBRESALIENTE
B112: MONTAÑA MORA BETTY ESPERANZA | C112: CARRERA ADMINISTRATIVA | D112: AUXILIAR ADMINISTRATIVO | E112: 407 | F112: 11 | G112: DIRECCIÓN DE GESTIÓN CORPORATIVA | H112: 92.36 | I112: 100 | J112: SOBRESALIENTE
B113: LÓPEZ ACUÑA OSCAR ERNESTO | C113: CARRERA ADMINISTRATIVA | D113: AUXILIAR ADMINISTRATIVO | E113: 407 | F113: 14 | G113: DIRECCIÓN DE GESTIÓN CORPORATIVA | H113: 97 | I113: 98.5 | J113: SOBRESALIENTE
B114: PULIDO SALAMANCA PABLO DANIEL | C114: CARRERA ADMINISTRATIVA | D114: AUXILIAR ADMINISTRATIVO | E114: 407 | F114: 15 | G114: DIRECCIÓN DE GESTIÓN CORPORATIVA | H114: 94.8 | I114: 100 | J114: SOBRESALIENTE
B115: MIGUEL ANGEL VARGAS CORDERO | D115: AUXILIAR ADMINISTRATIVO | E115: 407 | F115: 15 | G115: DIRECCIÓN DISTRITAL DE GESTION JUDICIAL | I115: 100 | J115: SOBRESALIENTE
B116: RAMIREZ BAUTISTA ADRIANA PATRICIA | C116: CARRERA ADMINISTRATIVA | D116: AUXILIAR ADMINISTRATIVO | E116: 407 | F116: 16 | G116: DIRECCIÓN DE GESTIÓN CORPORATIVA | H116: 100 | I116: 95.95 | J116: SOBRESALIENTE
B117: LONDOÑO GARCIA OLGA LILIANA | C117: CARRERA ADMINISTRATIVA | D117: AUXILIAR ADMINISTRATIVO | E117: 407 | F117: 17 | G117: DIRECCIÓN DE GESTIÓN CORPORATIVA | H117: 98.5 | I117: 100 | J117: SOBRESALIENTE
B118: GARCIA GARAVITO EDGAR ANDRES | C118: CARRERA ADMINISTRATIVA | D118: AUXILIAR ADMINISTRATIVO | E118: 407 | F118: 20 | G118: DIRECCIÓN DE GESTIÓN CORPORATIVA | H118: 97 | I118: 100 | J118: SOBRESALIENTE
B119: =VLOOKUP(#REF!,'PLANTA PERNO'!A:D,2,0)&" "&VLOOKUP(#REF!,'PLANTA PERNO'!A:D,3,0)&" "&VLOOKUP(#REF!,'PLANTA PERNO'!A:D,4,0) ->  | C119: CARRERA ADMINISTRATIVA | D119: AUXILIAR ADMINISTRATIVO | E119: 407 | F119: 20 | G119: DESPACHO SECRETARÍA JURÍDICA | H119: 98.89 | I119: 100 | J119: SOBRESALIENTE
B120: CORTES SALGADO ALEX | C120: CARRERA ADMINISTRATIVA | D120: AUXILIAR ADMINISTRATIVO | E120: 407 | F120: 20 | G120: DIRECCIÓN DISTRITAL DE GESTION JUDICIAL | H120: 98.5 | I120: 100 | J120: SOBRESALIENTE
B121: OSPINA ZAPATA WALTER | C121: CARRERA ADMINISTRATIVA | D121: AUXILIAR ADMINISTRATIVO | E121: 407 | F121: 27 | G121: DIRECCIÓN DE GESTIÓN CORPORATIVA | H121: 96.27 | I121: 100 | J121: SOBRESALIENTE
B122: FORERO FORERO CARMEN ALICIA | C122: CARRERA ADMINISTRATIVA | D122: AUXILIAR ADMINISTRATIVO | E122: 407 | F122: 24 | G122: DIRECCIÓN DE GESTIÓN CORPORATIVA | H122: 98.5 | I122: 100 | J122: SOBRESALIENTE
B123: TORRES ROJAS ACENETH | C123: CARRERA ADMINISTRATIVA | D123: SECRETARIO EJECUTIVO | E123: 425 | F123: 21 | G123: DIRECCIÓN DISTRITAL DE INSPECCIÓN, VIGILANCIA Y CONTROL | H123: 96.22 | I123: 100 | J123: SOBRESALIENTE
B124: GIL HERRERA ANA JULIETH | C124: CARRERA ADMINISTRATIVA | D124: SECRETARIO EJECUTIVO | E124: 425 | F124: 24 | G124: OFICINA DE LAS TECNOLOGÍAS DE LA INFORMACIÓN Y LAS COMUNICACIONES | H124: 79.6 | I124: 83.78 | J124: SATISFACTORIO | K124: INTERPUSO RECURSO-SUBE CALIFICACION DE 81,66 A 83,78
B125: RODGERS QUIROGA KATHERYN YOLANDA | C125: CARRERA ADMINISTRATIVA | D125: SECRETARIO EJECUTIVO | E125: 425 | F125: 27 | G125: DIRECCIÓN DISTRITAL DE GESTION JUDICIAL | H125: 95.02 | I125: 98.5 | J125: SOBRESALIENTE
B126: VANEGAS LARGO MARIA CRISTINA | C126: CARRERA ADMINISTRATIVA | D126: SECRETARIO | E126: 440 | F126: 9 | G126: OFICINA DE CONTROL INTERNO | H126: 97.17 | I126: 100 | J126: SOBRESALIENTE
B127: ORTIZ PAEZ OMAR ANDRES | C127: CARRERA ADMINISTRATIVA | D127: SECRETARIO | E127: 407 | F127: 16 | G127: DIRECCIÓN DE GESTIÓN CORPORATIVA | H127: 100 | I127: 100 | J127: SOBRESALIENTE
B128: BUITRAGO DIAZ DANIEL FERNANDO | C128: CARRERA ADMINISTRATIVA | D128: AUXILIAR ADMINISTRATIVO | E128: 407 | F128: 15 | G128: DIRECCIÓN DISTRITAL DE DOCTRINA Y ASUNTOS NORMATIVOS | H128: 97.32 | I128: 98.79 | J128: SOBRESALIENTE
B129: SEPULVEDA ORDOÑEZ LIDA TATIANA | C129: CARRERA ADMINISTRATIVA | D129: SECRETARIO | E129: 440 | F129: 11 | G129: OFICINA ASESORA DE PLANEACIÓN | H129: 100 | I129: 100 | J129: SOBRESALIENTE
B130: SILVA GARCIA DORIS | C130: CARRERA ADMINISTRATIVA | D130: SECRETARIO | E130: 440 | F130: 19 | G130: DIRECCIÓN DISTRITAL DE GESTION JUDICIAL | H130: 100 | I130: 100 | J130: SOBRESALIENTE
B131: REVELO QUINTERO SONIA DEL ROSARIO | C131: CARRERA ADMINISTRATIVA | D131: SERVICIOS GENERALES | E131: 470 | F131: 7 | G131: DIRECCIÓN DE GESTIÓN CORPORATIVA | H131: 97.65 | I131: 100 | J131: =IF(I131>=90,"SOBRESALIENTE",IF(I131>65,"SATISFACTORIO","NO SATISFACTORIO")) -> SOBRESALIENTE
B132: VELASQUEZ CABRERA GABRIELINA | C132: CARRERA ADMINISTRATIVA | D132: SERVICIOS GENERALES | E132: 470 | F132: 7 | G132: DIRECCIÓN DE GESTIÓN CORPORATIVA | H132: 96.15 | I132: 100 | J132: SOBRESALIENTE
B133: MARROQUIN JAUMI MANFRED | C133: CARRERA ADMINISTRATIVA | D133: CONDUCTOR | E133: 480 | F133: 13 | G133: DIRECCIÓN DE GESTIÓN CORPORATIVA | H133: 100 | I133: 100 | J133: SOBRESALIENTE
B134: URREGO BECERRA EDUARDO ALEJANDRO | C134: CARRERA ADMINISTRATIVA | D134: CONDUCTOR | E134: 480 | F134: 13 | G134: DIRECCIÓN DE GESTIÓN CORPORATIVA | H134: 100 | I134: 100 | J134: SOBRESALIENTE
B135: ARDILA VERGARA MILDRED PAOLA | C135: CARRERA ADMINISTRATIVA | D135: AUXILIAR ADMINISTRATIVO | E135: 407 | F135: 26 | G135: DIRECCIÓN DISTRITAL DE ASUNTOS DISCIPLINARIOS | H135: 100 | I135: 100 | J135: SOBRESALIENTE
B136: VILLARRAGA ROJAS LIZETH MAYERLY | D136: AUXILIAR ADMINISTRATIVO | E136: 407 | F136: 9 | G136: DIRECCIÓN DISTRITAL DE INSPECCIÓN, VIGILANCIA Y CONTROL | I136: 100 | J136: SOBRESALIENTE

Sheet PLANTA SJD INCREMENTO (hidden)
B1: PLANTA DE PERSONAL DE LA SECRETARÍA JURÍDICA DISTRITAL | AC1: 828116 | AD1: =AC1*2 -> 1656232
B2: FECHA DE ACTUALIZACIÓN : | D2: =+TODAY() -> 2023-09-04 | X2: 828116 | Y2: =X2*2 -> 1656232
I3: =TODAY() -> 2023-09-04 | K3: ENCARGOS - ESCALERAS
A4: ID | B4: CEDULA | C4: NOMBRE Y APELLIDOS | D4: TIPO DE VINCULACIÓN | E4: TIPO DE VINCULACIÓN SIDEAP | F4: FECHA INGRESO A LA ENTIDAD | G4: FECHA INGRESO AL DISTRITO | H4: SEXO | I4: EDAD | J4: SITUACIÓN ADMINISTRATIVA | K4: TITULAR CARGO | L4: ID-E | M4: N | N4: PV | O4: ESTADO DEL CARGO | P4: NIVEL | Q4: NOMENCLATURA_ADMIN | R4: CÓDIGO | S4: GRADO | T4: U | U4: DEPENDENCIA | V4: ASIGNACIÓN BÁSICA 2017 | W4: ASIGNACIÓN BÁSICA 2018 | X4: ASIGNACIÓN BÁSICA 2019 | Y4: GTOS REP | Z4: PRIMA DE ANTIGÜEDAD | AA4: PRIMA TECNICA | AB4: PRIMA SECRETARIAL | AC4: SUBSIDIO DE TRANSPORTE | AD4: AUXILIO DE ALIMENTACION | AE4: TOTAL DEVENGADOS MENSUAL | AH4: ASIGNACIÓN BÁSICA 2019
A5: 1 | B5: 80767640 | C5: PEÑA CARBONELL CAMILO ANDRES | D5: LIBRE NOMBRAMIENTO Y REMOCIÓN | E5: =VLOOKUP(IF(AND($D5<>"",$J5=""),$D5,IF(AND($D5<>"",$J5<>""),$J5,$C5)),$AM$5:$AN$16,2,0) -> NOMBRAMIENTO ORDINARIO | F5: 2016-11-13 | G5: =IFERROR(VLOOKUP($B5,PLANTA_PERNO,17,0),"") -> 2010-08-23 | H5: =IF(IFERROR((VLOOKUP($B5,PLANTA_PERNO,9,0)),"")="F","MUJER",IF(IFERROR((VLOOKUP($B5,PLANTA_PERNO,9,0)),"")="M","HOMBRE","")) -> HOMBRE | I5: =IFERROR(DATEDIF((VLOOKUP($B5,PLANTA_PERNO,6,0)),$I$3,"Y"),"") -> 39 | J5: =IF(AND(($M5>=1),($M5<>"VT"),(N5="")),"ENCARGO",IF($N5="CM","COMISIÒN","")) ->  | K5: PEÑA CARBONELL CAMILO ANDRES | O5: =IF(OR(C5="VACANTE DEFINITIVA",C5="VACANTE TEMPORAL"),"VACANTE ","OCUPADO") -> OCUPADO | P5: ASESOR | Q5: JEFE DE OFICINA | R5: 115 | S5: 6 | T5: =R5&"-"&S5 -> 115-6 | U5: OFICINA ASESORA DE PLANEACIÓN | V5: 5550932 | W5: 5850127.235 | X5: 6113382 | Y5: 2442546 | Z5: =IFERROR(INT(($X5*(VLOOKUP($B5,BASE_PORCENTAJES,10,0))/100)),0) -> 305669 | AA5: =IFERROR(INT(($X5*(VLOOKUP($B5,BASE_PORCENTAJES,12,0))/100)),0) -> 3056691 | AB5: =IFERROR(INT(($X5*(VLOOKUP($B5,BASE_PORCENTAJES,13,0))/100)),0) -> 0 | AC5: =IF($X5<=1656232,97032,0) -> 0 | AD5: =IF($X5<=1763224,62878,0) -> 0 | AE5: =SUM(X5:AD5) -> 11918288 | AF5: =Y5/X5 -> 0.3995408761 | AH5: 6113382 | AI5: =AH5*AF5 -> 2442546 | AM5: CARRERA ADMINISTRATIVA | AN5: CARRERA ADMINISTRATIVA
A6: 2 | B6: 19498970 | C6: OJEDA MONCAYO DIEGO EMILIO | D6: LIBRE NOMBRAMIENTO Y REMOCIÓN | E6: NOMBRAMIENTO ORDINARIO | F6: 2016-09-09 | K6: OJEDA MONCAYO DIEGO EMILIO | O6: OCUPADO | P6: DIRECTIVO | Q6: JEFE DE OFICINA | R6: 6 | S6: 6 | T6: 6-6 | U6: OFICINA DE LAS TECNOLOGÍAS DE LA INFORMACIÓN Y LAS COMUNICACIONES | V6: 5550932 | W6: 5850127.235 | X6: 6113384 | Y6: 2442546 | Z6: 0 | AA6: 0 | AB6: 0 | AC6: 0 | AD6: =IF($X6<=1763224,62878,0) -> 0 | AE6: 8555930 | AF6: =Y6/X6 -> 0.3995407454 | AH6: 6113384 | AI6: =AH6*AF6 -> 2442546 | AM6: EN PERIODO DE PRUEBA EN ASCENSO | AN6: EN PERIODO DE PRUEBA EN ASCENSO
A7: 3 | B7: 79317479 | C7: CORDOBA DELGADO JOSE IGNACIO | D7: LIBRE NOMBRAMIENTO Y REMOCIÓN | E7: NOMBRAMIENTO ORDINARIO | F7: 2016-09-19 | K7: CORDOBA DELGADO JOSE IGNACIO | O7: OCUPADO | P7: ASESOR | Q7: ASESOR | R7: 105 | S7: 5 | T7: 105-5 | U7: DESPACHO SECRETARÍA JURÍDICA | V7: 4978031 | W7: 5246346.871 | X7: 5482433 | Y7: 1642841 | Z7: 0 | AA7: 0 | AB7: 0 | AC7: 0 | AD7: 0 | AE7: 7125274 | AF7: 0.2996554632 | AH7: 5482433 | AI7: 1642841 | AM7: PERÍODO DE PRUEBA | AN7: EN PERIODO DE PRUEBA
A8: 4 | B8: 80040965 | C8: CUELLAR TRUJILLO PEDRO ANDRÉS | D8: LIBRE NOMBRAMIENTO Y REMOCIÓN | E8: NOMBRAMIENTO ORDINARIO | F8: 2016-08-03 | K8: CUELLAR TRUJILLO PEDRO ANDRÉS | O8: OCUPADO | P8: ASESOR | Q8: ASESOR | R8: 105 | S8: 5 | T8: 105-5 | U8: DESPACHO SECRETARÍA JURÍDICA | V8: 4978031 | W8: 5246346.871 | X8: 5482433 | Y8: 1642841 | Z8: 0 | AA8: 0 | AB8: 0 | AC8: 0 | AD8: 0 | AE8: 7125274 | AF8: 0.2996554632 | AH8: 5482433 | AI8: 1642841 | AM8: CARGO SUPRIMIDO | AN8: CARGO SUPRIMIDO
A9: 5 | B9: 36302955 | C9: CABRA BAUTISTA MONICA MARIA | D9: LIBRE NOMBRAMIENTO Y REMOCIÓN | E9: NOMBRAMIENTO ORDINARIO | F9: 2019-01-08 | K9: CABRA BAUTISTA MONICA MARIA | O9: OCUPADO | P9: ASESOR | Q9: ASESOR | R9: 105 | S9: 5 | T9: 105-5 | U9: DESPACHO SECRETARÍA JURÍDICA | V9: 4978031 | W9: 5246346.871 | X9: 5482433 | Y9: 1642841 | Z9: 0 | AA9: 0 | AB9: 0 | AC9: 0 | AD9: 0 | AE9: 7125274 | AF9: 0.2996554632 | AH9: 5482433 | AI9: 1642841 | AM9: ENCARGO | AN9: EN ENCARGO
A10: 6 | B10: 52233911 | C10: RODRÍGUEZ BARRERA NOHORA PATRICIA | D10: LIBRE NOMBRAMIENTO Y REMOCIÓN | E10: NOMBRAMIENTO ORDINARIO | F10: 2016-08-03 | G10: 1998-04-15 | H10: MUJER | I10: 45 | K10: RODRÍGUEZ BARRERA NOHORA PATRICIA | O10: OCUPADO | P10: ASESOR | Q10: ASESOR | R10: 105 | S10: 5 | T10: 105-5 | U10: DESPACHO SECRETARÍA JURÍDICA | V10: 4978031 | W10: 5246346.871 | X10: 5482433 | Y10: 1642841 | Z10: 383770 | AA10: 2741216 | AB10: 0 | AC10: 0 | AD10: 0 | AE10: 10250260 | AF10: 0.2996554632 | AH10: 5482433 | AI10: 1642841 | AM10: PROVISIONALIDAD | AN10: EN PROVISIONALIDAD
A11: 7 | B11: 52394165 | C11: TOBÓN DÍAZ ALEJANDRA | D11: LIBRE NOMBRAMIENTO Y REMOCIÓN | E11: NOMBRAMIENTO ORDINARIO | F11: 2016-08-03 | K11: TOBÓN DÍAZ ALEJANDRA | O11: OCUPADO | P11: ASESOR | Q11: ASESOR | R11: 105 | S11: 5 | T11: 105-5 | U11: DESPACHO SECRETARÍA JURÍDICA | V11: 4978031 | W11: 5246346.871 | X11: 5482433 | Y11: 1642841 | Z11: 0 | AA11: 0 | AB11: 0 | AC11: 0 | AD11: 0 | AE11: 7125274 | AF11: 0.2996554632 | AH11: 5482433 | AI11: 1642841 | AM11: LIBRE NOMBRAMIENTO Y REMOCIÓN | AN11: NOMBRAMIENTO ORDINARIO
A12: 8 | B12: 19209798 | C12: JIMENEZ RIVERA GUSTAVO ADOLFO | D12: CARRERA ADMINISTRATIVA | E12: CARRERA ADMINISTRATIVA | F12: 2016-08-03 | K12: JIMENEZ RIVERA GUSTAVO ADOLFO | O12: OCUPADO | P12: ASISTENCIAL | Q12: AUXILIAR ADMINISTRATIVO | R12: 407 | S12: 27 | T12: 407-27 | U12: DIRECCIÓN DE GESTIÓN CORPORATIVA | V12: 2306350 | W12: 2430662.265 | X12: 2540043 | Y12: 0 | Z12: 0 | AA12: 0 | AB12: 0 | AC12: 0 | AD12: 0 | AE12: 2540043 | AF12: 0 | AH12: 2540043 | AI12: 0 | AM12: ELECCIÓN POPULAR | AN12: EN PERIODO INSTITUCIONAL
A13: 9 | B13: 52146196 | C13: RODGERS QUIROGA KATHERYN YOLANDA | D13: CARRERA ADMINISTRATIVA | E13: CARRERA ADMINISTRATIVA | F13: 2016-08-03 | G13: 2005-04-01 | H13: MUJER | I13: 50 | K13: RODGERS QUIROGA KATHERYN YOLANDA | O13: OCUPADO | P13: ASISTENCIAL | Q13: SECRETARIO EJECUTIVO | R13: 425 | S13: 27 | T13: 425-27 | U13: DIRECCIÓN DISTRITAL DE DEFENSA JUDICIAL Y PREVENCIÓN DEL DAÑO ANTIJURÍDICO | V13: 2306350 | W13: 2430662.265 | X13: 2540043 | Y13: 0 | Z13: 177803 | AA13: 0 | AB13: 50800 | AC13: 0 | AD13: 0 | AE13: 2768646 | AF13: 0 | AH13: 2540043 | AI13: 0 | AM13: COMISIÒN | AN13: EN COMISIÓN EN EMPLEO DE L.N.R. O DE PERIODO
A14: 10 | B14: 51731780 | C14: RABIA SIERRA AYDA CONSTANZA | D14: CARRERA ADMINISTRATIVA | E14: EN ENCARGO | F14: 2016-08-03 | J14: ENCARGO | K14: VACANTE DEFINITIVA | L14: E19 | M14: 1 | O14: OCUPADO | P14: ASISTENCIAL | Q14: AUXILIAR ADMINISTRATIVO | R14: 407 | S14: 26 | T14: 407-26 | U14: DIRECCIÓN DISTRITAL DE ASUNTOS DISCIPLINARIOS | V14: 2306210 | W14: 2430514.719 | X14: 2539889 | Y14: 0 | Z14: 0 | AA14: 0 | AB14: 0 | AC14: 0 | AD14: 0 | AE14: 2539889 | AF14: 0 | AH14: 2539889 | AI14: 0 | AM14: PLANTA TEMPORAL | AN14: EN CARÁCTER TEMPORAL
A15: 11 | B15: 20737393 | C15: MONTILLA SERRANO FABIOLA | D15: CARRERA ADMINISTRATIVA | E15: EN ENCARGO | F15: 2016-08-03 | J15: ENCARGO | K15: VACANTE DEFINITIVA | L15: E06 | M15: 1 | O15: OCUPADO | P15: ASISTENCIAL | Q15: SECRETARIO EJECUTIVO | R15: 425 | S15: 24 | T15: 425-24 | U15: OFICINA DE LAS TECNOLOGÍAS DE LA INFORMACIÓN Y LAS COMUNICACIONES | V15: 2195956 | W15: 2314318.028 | X15: 2418464 | Y15: 0 | Z15: 0 | AA15: 0 | AB15: 0 | AC15: 0 | AD15: 0 | AE15: 2418464 | AF15: 0 | AH15: 2418464 | AI15: 0 | AM15: VACANTE DEFINITIVA | AN15: VACANTE DEFINITIVA
A16: 12 | B16: 51628413 | C16: SALAMANCA CUEVAS LUZ MAVEL | D16: CARRERA ADMINISTRATIVA | E16: EN ENCARGO | F16: 2016-08-03 | J16: ENCARGO | K16: VACANTE DEFINITIVA | L16: E20 | M16: 1 | O16: OCUPADO | P16: ASISTENCIAL | Q16: AUXILIAR ADMINISTRATIVO | R16: 407 | S16: 24 | T16: 407-24 | U16: DIRECCIÓN DE GESTIÓN CORPORATIVA | V16: 2195956 | W16: 2314318.028 | X16: 2418464 | Y16: 0 | Z16: 169292 | AA16: 0 | AB16: 0 | AC16: 0 | AD16: 0 | AE16: 2587756 | AF16: 0 | AH16: 2418464 | AI16: 0 | AM16: VACANTE TEMPORAL | AN16: VACANTE TEMPORAL
A17: 13 | B17: 51732443 | C17: TORRES ROJAS ACENETH | D17: CARRERA ADMINISTRATIVA | E17: EN ENCARGO | F17: 2016-08-03 | G17: 2011-05-09 | H17: MUJER | I17: 59 | J17: ENCARGO | K17: RABIA SIERRA AYDA CONSTANZA | L17: E19 | M17: 2 | O17: OCUPADO | P17: ASISTENCIAL | Q17: SECRETARIO EJECUTIVO | R17: 425 | S17: 21 | T17: 425-21 | U17: DIRECCIÓN DISTRITAL DE INSPECCIÓN VIGILANCIA Y CONTROL DE PERSONAS JURIDICA SIN ÁNIMO DE LUCRO | V17: 2097226 | W17: 2210266.481 | X17: 2309730 | Y17: 0 | Z17: 115486 | AA17: 0 | AB17: 46194 | AC17: 0 | AD17: 0 | AE17: 2471410 | AF17: 0 | AH17: 2309730 | AI17: 0
A18: 14 | B18: 79468462 | C18: GARCIA GARAVITO EDGAR ANDRES | D18: CARRERA ADMINISTRATIVA | E18: EN ENCARGO | F18: 2016-08-03 | G18: 1997-04-08 | H18: HOMBRE | I18: 54 | J18: ENCARGO | K18: OSPINA ZAPATA WALTER | L18: E05 | M18: 2 | O18: OCUPADO | P18: ASISTENCIAL | Q18: AUXILIAR ADMINISTRATIVO | R18: 407 | S18: 20 | T18: 407-20 | U18: DIRECCIÓN DISTRITAL DE INSPECCIÓN VIGILANCIA Y CONTROL DE PERSONAS JURIDICA SIN ÁNIMO DE LUCRO | V18: 2030050 | W18: 2139469.695 | X18: 2235747 | Y18: 0 | Z18: 156502 | AA18: 0 | AB18: 0 | AC18: 0 | AD18: 0 | AE18: 2392249 | AF18: 0 | AH18: 2235747 | AI18: 0
A19: 15 | B19: 41780136 | C19: URREGO DE GARCIA LUZ STELLA | D19: CARRERA ADMINISTRATIVA | E19: EN ENCARGO | F19: 2016-08-03 | G19: 1995-06-22 | H19: MUJER | I19: 63 | J19: =IF(AND(($M19>=1),($M19<>"VT"),(N19="")),"ENCARGO",IF($N19="CM","COMISIÒN","")) -> ENCARGO | K19: SALAMANCA CUEVAS LUZ MAVEL | L19: E20 | M19: 2 | O19: OCUPADO | P19: ASISTENCIAL | Q19: AUXILIAR ADMINISTRATIVO | R19: 407 | S19: 20 | T19: 407-20 | U19: DESPACHO SECRETARÍA JURÍDICA | V19: 2030050 | W19: 2139469.695 | X19: 2235747 | Y19: 0 | Z19: 156502 | AA19: 0 | AB19: 0 | AC19: 0 | AD19: 0 | AE19: 2392249 | AF19: 0 | AH19: 2235747 | AI19: 0
A20: 16 | B20: 19443235 | C20: GARZON LUIS ENRIQUE | D20: CARRERA ADMINISTRATIVA | E20: EN ENCARGO | F20: 2016-08-03 | J20: =IF(AND(($M20>=1),($M20<>"VT"),(N20="")),"ENCARGO",IF($N20="CM","COMISIÒN","")) -> ENCARGO | K20: CORTES SALGADO ALEX | L20: E25 | M20: 2 | O20: OCUPADO | P20: ASISTENCIAL | Q20: AUXILIAR ADMINISTRATIVO | R20: 407 | S20: 20 | T20: 407-20 | U20: DIRECCIÓN DISTRITAL DE DEFENSA JUDICIAL Y PREVENCIÓN DEL DAÑO ANTIJURÍDICO | V20: 2030050 | W20: 2139469.695 | X20: 2235747 | Y20: 0 | Z20: 0 | AA20: 0 | AB20: 0 | AC20: 0 | AD20: 0 | AE20: 2235747 | AF20: 0 | AH20: 2235747 | AI20: 0
A21: 17 | B21: 51882380 | C21: FORERO FORERO CARMEN ALICIA | D21: CARRERA ADMINISTRATIVA | E21: EN ENCARGO | F21: 2016-08-03 | G21: 1992-03-23 | H21: MUJER | I21: 57 | J21: =IF(AND(($M21>=1),($M21<>"VT"),(N21="")),"ENCARGO",IF($N21="CM","COMISIÒN","")) -> ENCARGO | K21: MONTILLA SERRANO FABIOLA | L21: E06 | M21: 2 | O21: OCUPADO | P21: ASISTENCIAL | Q21: SECRETARIO EJECUTIVO | R21: 425 | S21: 20 | T21: 425-20 | U21: DIRECCIÓN DISTRITAL DE INSPECCIÓN VIGILANCIA Y CONTROL DE PERSONAS JURIDICA SIN ÁNIMO DE LUCRO | V21: 2030050 | W21: 2139469.695 | X21: 2235747 | Y21: 0 | Z21: 156502 | AA21: 0 | AB21: 44714 | AC21: 0 | AD21: 0 | AE21: 2436963 | AF21: 0 | AH21: 2235747 | AI21: 0
A22: 18 | B22: 39773518 | C22: VANEGAS LARGO MARIA CRISTINA | D22: CARRERA ADMINISTRATIVA | E22: EN ENCARGO | F22: 2016-08-03 | G22: 1992-04-09 | H22: MUJER | I22: 57 | J22: =IF(AND(($M22>=1),($M22<>"VT"),(N22="")),"ENCARGO",IF($N22="CM","COMISIÒN","")) -> ENCARGO | K22: SILVA GARCIA DORIS | L22: E16 | M22: 3 | O22: OCUPADO | P22: ASISTENCIAL | Q22: SECRETARIO | R22: 440 | S22: 19 | T22: 440-19 | U22: DIRECCIÓN DISTRITAL DE DEFENSA JUDICIAL Y PREVENCIÓN DEL DAÑO ANTIJURÍDICO | V22: 1970342 | W22: 2076543.434 | X22: 2169989 | Y22: 0 | Z22: 151899 | AA22: 0 | AB22: 43399 | AC22: 0 | AD22: 0 | AE22: 2365287 | AF22: 0 | AH22: 2169989 | AI22: 0
A23: 19 | B23: 52124597 | C23: MONTAÑA MORA BETTY ESPERANZA | D23: CARRERA ADMINISTRATIVA | E23: CARRERA ADMINISTRATIVA | F23: 2016-08-03 | G23: 1996-12-04 | H23: MUJER | I23: 49 | K23: VACANTE DEFINITIVA | L23: E07 | M23: 1 | O23: OCUPADO | P23: ASISTENCIAL | Q23: AUXILIAR ADMINISTRATIVO | R23: 407 | S23: 17 | T23: 407-17 | U23: DIRECCIÓN DE GESTIÓN CORPORATIVA | V23: 1835991 | W23: 1934950.915 | X23: 2022024 | Y23: 0 | Z23: 141541 | AA23: 0 | AB23: 0 | AC23: 0 | AD23: 0 | AE23: 2163565 | AF23: 0 | AH23: 2022024 | AI23: 0
A24: 20 | B24: 80247325 | C24: AVILA GOMEZ NESTOR DANIEL | D24: PROVISIONALIDAD | E24: EN PROVISIONALIDAD | F24: 2016-08-03 | J24: =IF(AND(($M24>=1),($M24<>"VT"),(N24="")),"ENCARGO",IF($N24="CM","COMISIÒN","")) ->  | K24: VACANTE DEFINITIVA | O24: OCUPADO | P24: ASISTENCIAL | Q24: AUXILIAR ADMINISTRATIVO | R24: 407 | S24: 16 | T24: 407-16 | U24: DIRECCIÓN DE GESTIÓN CORPORATIVA | V24: 1783737 | W24: 1879880.424 | X24: 1964476 | Y24: 0 | Z24: 0 | AA24: 0 | AB24: 0 | AC24: 0 | AD24: 0 | AE24: 1964476 | AF24: 0 | AH24: 1964476 | AI24: 0
A25: 21 | B25: 51784842 | C25: MARTINEZ HERNANDEZ MARIA MERY | D25: CARRERA ADMINISTRATIVA | E25: EN ENCARGO | F25: 2016-08-03 | G25: 1992-04-08 | H25: MUJER | I25: 59 | J25: =IF(AND(($M25>=1),($M25<>"VT"),(N25="")),"ENCARGO",IF($N25="CM","COMISIÒN","")) -> ENCARGO | K25: VACANTE DEFINITIVA | L25: E23 | M25: 1 | O25: OCUPADO | P25: ASISTENCIAL | Q25: AUXILIAR ADMINISTRATIVO | R25: 407 | S25: 16 | T25: 407-16 | U25: DIRECCIÓN DE GESTIÓN CORPORATIVA | V25: 1783737 | W25: 1879880.424 | X25: 1964476 | Y25: 0 | Z25: 137513 | AA25: 0 | AB25: 0 | AC25: 0 | AD25: 0 | AE25: 2101989 | AF25: 0 | AH25: 1964476 | AI25: 0
A26: 22 | B26: 52031787 | C26: GARCIA QUINTERO ABANETH | D26: PROVISIONALIDAD | E26: EN PROVISIONALIDAD | F26: 2019-06-26 | J26: =IF(AND(($M26>=1),($M26<>"VT"),(N26="")),"ENCARGO",IF($N26="CM","COMISIÒN","")) ->  | K26: GARZON LUIS ENRIQUE | L26: E25 | O26: OCUPADO | P26: ASISTENCIAL | Q26: AUXILIAR ADMINISTRATIVO | R26: 407 | S26: 15 | T26: 407-15 | U26: DIRECCIÓN DISTRITAL DE DEFENSA JUDICIAL Y PREVENCIÓN DEL DAÑO ANTIJURÍDICO | V26: 1716568 | W26: 1809091.015 | X26: 1890502 | Y26: 0 | Z26: 0 | AA26: 0 | AB26: 0 | AC26: 0 | AD26: 0 | AE26: 1890502 | AF26: 0 | AH26: 1890502 | AI26: 0
A27: 23 | B27: 52489363 | C27: SANDOVAL GONZALEZ SANDRA MILENA | D27: PROVISIONALIDAD | E27: EN PROVISIONALIDAD | F27: 2017-04-17 | K27: VACANTE DEFINITIVA | O27: OCUPADO | P27: ASISTENCIAL | Q27: AUXILIAR ADMINISTRATIVO | R27: 407 | S27: 15 | T27: 407-15 | U27: DIRECCIÓN DISTRITAL DE DOCTRINA JURÍDICA | V27: 1716568 | W27: 1809091.015 | X27: 1890502 | Y27: 0 | Z27: 0 | AA27: 0 | AB27: 0 | AC27: 0 | AD27: 0 | AE27: 1890502 | AF27: 0 | AH27: 1890502 | AI27: 0
A28: 24 | C28: VACANTE TEMPORAL | E28: VACANTE TEMPORAL | J28: =IF(AND(($M28>=1),($M28<>"VT"),(N28="")),"ENCARGO",IF($N28="CM","COMISIÒN","")) ->  | K28: ORTIZ RODRIGUEZ JUDITH | L28: E17 | O28: VACANTE | P28: ASISTENCIAL | Q28: AUXILIAR ADMINISTRATIVO | R28: 407 | S28: 15 | T28: 407-15 | U28: DIRECCIÓN DISTRITAL DE DEFENSA JUDICIAL Y PREVENCIÓN DEL DAÑO ANTIJURÍDICO | V28: 1716568 | W28: 1809091.015 | X28: 1890502 | Y28: 0 | Z28: 0 | AA28: 0 | AB28: 0 | AC28: 0 | AD28: 0 | AE28: 1890502 | AF28: 0 | AH28: 1890502 | AI28: 0
A29: 25 | B29: 1032434263 | C29: SIERRA LENIS LAURA STHEPANY | D29: PROVISIONALIDAD | E29: EN PROVISIONALIDAD | F29: 2016-08-03 | G29: 2015-05-07 | H29: MUJER | I29: 34 | K29: ARDILA VERGARA MILDRED PAOLA | L29: E21 | O29: OCUPADO | P29: ASISTENCIAL | Q29: AUXILIAR ADMINISTRATIVO | R29: 407 | S29: 15 | T29: 407-15 | U29: DIRECCIÓN DISTRITAL DE POLÍTICA E INFORMÁTICA JURÍDICA | V29: 1716568 | W29: 1809091.015 | X29: 1890502 | Y29: 0 | Z29: 56715 | AA29: 0 | AB29: 0 | AC29: 0 | AD29: 0 | AE29: 1947217 | AF29: 0 | AH29: 1890502 | AI29: 0
A30: 26 | B30: 1013651214 | C30: PALACIO SANCHEZ SHAIRA VALENTINA | D30: PROVISIONALIDAD | E30: EN PROVISIONALIDAD | F30: 2019-02-07 | K30: TORRES ROJAS ACENETH | L30: E19 | O30: OCUPADO | P30: ASISTENCIAL | Q30: AUXILIAR ADMINISTRATIVO | R30: 407 | S30: 15 | T30: 407-15 | U30: DIRECCIÓN DE GESTIÓN CORPORATIVA | V30: 1716568 | W30: 1809091.015 | X30: 1890502 | Y30: 0 | Z30: 0 | AA30: 0 | AB30: 0 | AC30: 0 | AD30: 0 | AE30: 1890502 | AF30: 0 | AH30: 1890502 | AI30: 0
A31: 27 | B31: 51904715 | C31: MARQUEZ RODRIGUEZ NANCY STELLA | D31: PROVISIONALIDAD | E31: EN PROVISIONALIDAD | F31: 2017-04-18 | K31: LÓPEZ ACUÑA OSCAR ERNESTO | L31: E18 | O31: OCUPADO | P31: ASISTENCIAL | Q31: AUXILIAR ADMINISTRATIVO | R31: 407 | S31: 14 | T31: 407-14 | U31: DIRECCIÓN DE GESTIÓN CORPORATIVA | V31: 1664316 | W31: 1754022.632 | X31: 1832955 | Y31: 0 | Z31: 0 | AA31: 0 | AB31: 0 | AC31: 0 | AD31: 0 | AE31: 1832955 | AF31: 0 | AH31: 1832955 | AI31: 0
A32: 28 | B32: 52115141 | C32: ALONSO BERNAL OMAIRA | D32: PROVISIONALIDAD | E32: EN PROVISIONALIDAD | F32: 2017-05-08 | G32: 2016-12-26 | H32: MUJER | I32: 50 | K32: FORERO FORERO CARMEN ALICIA | L32: E06 | O32: OCUPADO | P32: ASISTENCIAL | Q32: AUXILIAR ADMINISTRATIVO | R32: 407 | S32: 13 | T32: 407-13 | U32: SUBSECRETARÍA JURÍDICA | V32: 1612069 | W32: 1698959.519 | X32: 1775414 | Y32: 0 | Z32: 53262 | AA32: 0 | AB32: 0 | AC32: 0 | AD32: 0 | AE32: 1828676 | AF32: 0 | AH32: 1775414 | AI32: 0
A33: 29 | B33: 79048737 | C33: PULIDO SALAMANCA PABLO DANIEL | D33: CARRERA ADMINISTRATIVA | E33: CARRERA ADMINISTRATIVA | F33: 2016-08-03 | G33: 1998-05-11 | H33: HOMBRE | I33: 58 | K33: PULIDO SALAMANCA PABLO DANIEL | O33: OCUPADO | P33: ASISTENCIAL | Q33: CONDUCTOR | R33: 480 | S33: 13 | T33: 480-13 | U33: DIRECCIÓN DE GESTIÓN CORPORATIVA | V33: 1612069 | W33: 1698959.519 | X33: 1775414 | Y33: 0 | Z33: 124278 | AA33: 0 | AB33: 0 | AC33: 0 | AD33: 0 | AE33: 1899692 | AF33: 0 | AH33: 1775414 | AI33: 0
A34: 30 | B34: 79271403 | C34: LARROTA SUTA PEDRO LUIS | D34: PROVISIONALIDAD | E34: EN PROVISIONALIDAD | F34: 2016-08-26 | K34: VACANTE DEFINITIVA | O34: OCUPADO | P34: ASISTENCIAL | Q34: CONDUCTOR | R34: 480 | S34: 13 | T34: 480-13 | U34: DIRECCIÓN DE GESTIÓN CORPORATIVA | V34: 1612069 | W34: 1698959.519 | X34: 1775414 | Y34: 0 | Z34: 0 | AA34: 0 | AB34: 0 | AC34: 0 | AD34: 0 | AE34: 1775414 | AF34: 0 | AH34: 1775414 | AI34: 0
A35: 31 | B35: 79316169 | C35: MORALES ROJAS HENRY | D35: PROVISIONALIDAD | E35: EN PROVISIONALIDAD | F35: 2017-11-10 | K35: VACANTE DEFINITIVA | O35: OCUPADO | P35: ASISTENCIAL | Q35: CONDUCTOR | R35: 480 | S35: 13 | T35: 480-13 | U35: DIRECCIÓN DE GESTIÓN CORPORATIVA | V35: 1612069 | W35: 1698959.519 | X35: 1775414 | Y35: 0 | Z35: 0 | AA35: 0 | AB35: 0 | AC35: 0 | AD35: 0 | AE35: 1775414 | AF35: 0 | AH35: 1775414 | AI35: 0
A36: 32 | C36: VACANTE TEMPORAL | E36: VACANTE TEMPORAL | K36: GARCIA GARAVITO EDGAR ANDRES | L36: E05 | O36: VACANTE | P36: ASISTENCIAL | Q36: AUXILIAR ADMINISTRATIVO | R36: 407 | S36: 11 | T36: 407-11 | U36: DIRECCIÓN DE GESTIÓN CORPORATIVA | V36: 1498492 | W36: 1579260.719 | X36: 1650328 | Y36: 0 | Z36: 0 | AA36: 0 | AB36: 0 | AC36: 97032 | AD36: 62878 | AE36: 1810238 | AF36: 0 | AH36: 1650328 | AI36: 0
A37: 33 | B37: 51698185 | C37: ALDANA ACERO NANCY PATRICIA | D37: PROVISIONALIDAD | E37: =VLOOKUP(IF(AND($D37<>"",$J37=""),$D37,IF(AND($D37<>"",$J37<>""),$J37,$C37)),$AM$5:$AN$16,2,0) -> EN PROVISIONALIDAD | F37: 2017-11-10 | K37: URREGO DE GARCIA LUZ STELLA | L37: E20 | O37: OCUPADO | P37: ASISTENCIAL | Q37: AUXILIAR ADMINISTRATIVO | R37: 407 | S37: 11 | T37: 407-11 | U37: DIRECCIÓN DE GESTIÓN CORPORATIVA | V37: 1498492 | W37: 1579260.719 | X37: 1650328 | Y37: 0 | Z37: 0 | AA37: 0 | AB37: 0 | AC37: 97032 | AD37: 62878 | AE37: 1810238 | AF37: 0 | AH37: 1650328 | AI37: 0
A38: 34 | B38: 52033959 | C38: HERNÁNDEZ NAVARRO MARIBEL | D38: PROVISIONALIDAD | E38: EN PROVISIONALIDAD | F38: 2016-08-03 | K38: VACANTE DEFINITIVA | O38: OCUPADO | P38: ASISTENCIAL | Q38: SECRETARIO | R38: 440 | S38: 11 | T38: 440-11 | U38: OFICINA ASESORA DE PLANEACIÓN | V38: 1498492 | W38: 1579260.719 | X38: 1650328 | Y38: 0 | Z38: 0 | AA38: 0 | AB38: 0 | AC38: 97032 | AD38: 62878 | AE38: 1810238 | AF38: 0 | AH38: 1650328 | AI38: 0
A39: 35 | B39: 80249870 | C39: ARIAS PARRA MARIO HERNAN | D39: PROVISIONALIDAD | E39: EN PROVISIONALIDAD | F39: 2018-11-02 | K39: VANEGAS LARGO MARIA CRISTINA | L39: E16 | O39: OCUPADO | P39: ASISTENCIAL | Q39: SECRETARIO | R39: 440 | S39: 9 | T39: 440-9 | U39: OFICINA DE CONTROL INTERNO | V39: 1429520 | W39: 1506571.128 | X39: 1574368 | Y39: 0 | Z39: 0 | AA39: 0 | AB39: 0 | AC39: 97032 | AD39: 62878 | AE39: 1734278 | AF39: 0 | AH39: 1574368 | AI39: 0
A40: 36 | C40: VACANTE DEFINITIVA | E40: VACANTE DEFINITIVA | K40: VACANTE DEFINITIVA | O40: VACANTE | P40: ASISTENCIAL | Q40: SECRETARIO | R40: 440 | S40: 9 | T40: 440-9 | U40: DIRECCIÓN DE GESTIÓN CORPORATIVA | V40: 1429520 | W40: 1506571.128 | X40: 1574368 | Y40: 0 | Z40: 0 | AA40: 0 | AB40: 0 | AC40: 97032 | AD40: 62878 | AE40: 1734278 | AF40: 0 | AH40: 1574368 | AI40: 0
A41: 37 | B41: 52025053 | C41: PRIETO PINTO LIDA DE LOS ANGELES | D41: PROVISIONALIDAD | E41: EN PROVISIONALIDAD | F41: 2017-05-08 | K41: VACANTE DEFINITIVA | O41: OCUPADO | P41: ASISTENCIAL | Q41: SECRETARIO | R41: 440 | S41: 9 | T41: 440-9 | U41: DIRECCIÓN DISTRITAL DE DOCTRINA JURÍDICA | V41: 1429520 | W41: 1506571.128 | X41: 1574368 | Y41: 0 | Z41: 0 | AA41: 0 | AB41: 0 | AC41: 97032 | AD41: 62878 | AE41: 1734278 | AF41: 0 | AH41: 1574368 | AI41: 0
A42: 38 | B42: 1032442475 | C42: PULIDO MARTINEZ JUAN FELIPE | D42: PROVISIONALIDAD | E42: EN PROVISIONALIDAD | F42: 2017-11-10 | K42: VACANTE DEFINITIVA - no reportada | O42: OCUPADO | P42: ASISTENCIAL | Q42: AUXILIAR ADMINISTRATIVO | R42: 407 | S42: 9 | T42: 407-9 | U42: DIRECCIÓN DISTRITAL DE INSPECCIÓN VIGILANCIA Y CONTROL DE PERSONAS JURIDICA SIN ÁNIMO DE LUCRO | V42: 1429520 | W42: 1506571.128 | X42: 1574368 | Y42: 0 | Z42: 47231 | AA42: 0 | AB42: 0 | AC42: 97032 | AD42: 62878 | AE42: 1781509 | AF42: 0 | AH42: 1574368 | AI42: 0
A43: 39 | B43: 80063723 | C43: VASQUEZ MURILLO LUIS ALFREDO | D43: PROVISIONALIDAD | E43: EN PROVISIONALIDAD | F43: 2017-11-10 | K43: MARTINEZ HERNANDEZ MARIA MERY | L43: E23 | O43: OCUPADO | P43: ASISTENCIAL | Q43: SECRETARIO | R43: 440 | S43: 9 | T43: 440-9 | U43: DIRECCIÓN DE GESTIÓN CORPORATIVA | V43: 1429520 | W43: 1506571.128 | X43: 1574368 | Y43: 0 | Z43: 0 | AA43: 0 | AB43: 0 | AC43: 97032 | AD43: 62878 | AE43: 1734278 | AF43: 0 | AH43: 1574368 | AI43: 0
A44: 40 | B44: 39718778 | C44: REVELO QUINTERO SONIA DEL ROSARIO | D44: CARRERA ADMINISTRATIVA | E44: CARRERA ADMINISTRATIVA | F44: 2016-08-03 | G44: 1995-04-21 | H44: MUJER | I44: 57 | K44: REVELO QUINTERO SONIA DEL ROSARIO | O44: OCUPADO | P44: ASISTENCIAL | Q44: SERVICIOS GENERALES | R44: 470 | S44: 7 | T44: 470-7 | U44: DIRECCIÓN DE GESTIÓN CORPORATIVA | V44: 1401540 | W44: 1477083.006 | X44: 1543553 | Y44: 0 | Z44: 108048 | AA44: 0 | AB44: 0 | AC44: 97032 | AD44: 62878 | AE44: 1811511 | AF44: 0 | AH44: 1543553 | AI44: 0
A45: 41 | B45: 41732503 | C45: VELASQUEZ CABRERA GABRIELINA | D45: CARRERA ADMINISTRATIVA | E45: CARRERA ADMINISTRATIVA | F45: 2016-08-03 | G45: 1995-02-01 | H45: MUJER | I45: 64 | K45: VELASQUEZ CABRERA GABRIELINA | O45: OCUPADO | P45: ASISTENCIAL | Q45: SERVICIOS GENERALES | R45: 470 | S45: 7 | T45: 470-7 | U45: DIRECCIÓN DE GESTIÓN CORPORATIVA | V45: 1401540 | W45: 1477083.006 | X45: 1543553 | Y45: 0 | Z45: 108048 | AA45: 0 | AB45: 0 | AC45: 97032 | AD45: 62878 | AE45: 1811511 | AF45: 0 | AH45: 1543553 | AI45: 0
A46: 42 | C46: VACANTE TEMPORAL | E46: VACANTE TEMPORAL | K46: MONTAÑA MORA BETTY ESPERANZA | L46: E07 | O46: VACANTE | P46: ASISTENCIAL | Q46: SERVICIOS GENERALES | R46: 470 | S46: 3 | T46: 470-3 | U46: DIRECCIÓN DE GESTIÓN CORPORATIVA | V46: 1169157 | W46: 1232174.562 | X46: 1287623 | Y46: 0 | Z46: 0 | AA46: 0 | AB46: 0 | AC46: 97032 | AD46: 62878 | AE46: 1447533 | AF46: 0 | AH46: 1287623 | AI46: 0
A47: 43 | B47: 51740995 | C47: HERNANDEZ CORZO DALILA ASTRID | D47: LIBRE NOMBRAMIENTO Y REMOCIÓN | E47: NOMBRAMIENTO ORDINARIO | F47: 2016-08-03 | K47: HERNANDEZ CORZO DALILA ASTRID | O47: OCUPADO | P47: DIRECTIVO | Q47: SECRETARIA JURIDICA | R47: 20 | S47: 9 | T47: 20-9 | U47: DESPACHO SECRETARÍA JURÍDICA | V47: 7641209 | W47: 8053070.165 | X47: 8415460 | Y47: 8405796 | Z47: 0 | AA47: 0 | AB47: 0 | AC47: 0 | AD47: 0 | AE47: 16821256 | AF47: 0.9988516373 | AH47: 8415460 | AI47: 8405796
A48: 44 | B48: ETHEL | C48: MARTÍNEZ SIERRA GLORIA EDITH | D48: LIBRE NOMBRAMIENTO Y REMOCIÓN | E48: NOMBRAMIENTO ORDINARIO | F48: 2016-08-03 | K48: MARTÍNEZ SIERRA GLORIA EDITH | O48: OCUPADO | P48: DIRECTIVO | Q48: SUBSECRETARIO | R48: 45 | S48: 8 | T48: 45-8 | U48: SUBSECRETARÍA JURÍDICA | V48: 7181519.105 | W48: 7181519.105 | X48: 7504689 | Y48: 2998428 | Z48: 0 | AA48: 0 | AB48: 0 | AC48: 0 | AD48: 0 | AE48: 10503117 | AF48: 0.3995406072 | AH48: 7504689 | AI48: 2998428
A49: 45 | B49: 39546837 | C49: VÁSQUEZ ROJAS ETHEL | D49: LIBRE NOMBRAMIENTO Y REMOCIÓN | E49: NOMBRAMIENTO ORDINARIO | F49: 2016-09-09 | K49: VÁSQUEZ ROJAS ETHEL | O49: OCUPADO | P49: DIRECTIVO | Q49: DIRECTOR TÉCNICO | R49: 9 | S49: 7 | T49: 9-7 | U49: DIRECCIÓN DE GESTIÓN CORPORATIVA | V49: 6082914 | W49: 6410783.065 | X49: 6699270 | Y49: 2676631 | Z49: 0 | AA49: 0 | AB49: 0 | AC49: 0 | AD49: 0 | AE49: 9375901 | AF49: 0.3995406962 | AH49: 6699270 | AI49: 2676631
A50: 46 | B50: 79569027 | C50: LEON ALVARADO JUAN CARLOS | D50: LIBRE NOMBRAMIENTO Y REMOCIÓN | E50: NOMBRAMIENTO ORDINARIO | F50: 2016-10-24 | K50: LEON ALVARADO JUAN CARLOS | O50: OCUPADO | P50: DIRECTIVO | Q50: DIRECTOR TÉCNICO | R50: 9 | S50: 7 | T50: 9-7 | U50: DIRECCIÓN DISTRITAL DE ASUNTOS DISCIPLINARIOS | V50: 6082914 | W50: 6410783.065 | X50: 6699270 | Y50: 2676631 | Z50: 0 | AA50: 0 | AB50: 0 | AC50: 0 | AD50: 0 | AE50: 9375901 | AF50: 0.3995406962 | AH50: 6699270 | AI50: 2676631
A51: 47 | B51: 28915546 | C51: RODRIGUEZ QUIMBAYO LUZ ELENA | D51: LIBRE NOMBRAMIENTO Y REMOCIÓN | E51: NOMBRAMIENTO ORDINARIO | F51: 2016-08-03 | G51: 2016-05-03 | H51: MUJER | I51: 53 | K51: RODRIGUEZ QUIMBAYO LUZ ELENA | O51: OCUPADO | P51: DIRECTIVO | Q51: DIRECTOR TÉCNICO | R51: 9 | S51: 7 | T51: 9-7 | U51: DIRECCIÓN DISTRITAL DE DEFENSA JUDICIAL Y PREVENCIÓN DEL DAÑO ANTIJURÍDICO | V51: 6082914 | W51: 6410783.065 | X51: 6699270 | Y51: 2676631 | Z51: 200978 | AA51: 3349635 | AB51: 0 | AC51: 0 | AD51: 0 | AE51: 12926514 | AF51: 0.3995406962 | AH51: 6699270 | AI51: 2676631
A52: 48 | B52: 51743499 | C52: CASTRO CASTRO ANA LUCY | D52: LIBRE NOMBRAMIENTO Y REMOCIÓN | E52: NOMBRAMIENTO ORDINARIO | F52: 2016-08-25 | K52: CASTRO CASTRO ANA LUCY | O52: OCUPADO | P52: DIRECTIVO | Q52: DIRECTOR TÉCNICO | R52: 9 | S52: 7 | T52: 9-7 | U52: DIRECCIÓN DISTRITAL DE DOCTRINA JURÍDICA | V52: 6082914 | W52: 6410783.065 | X52: 6699270 | Y52: 2676631 | Z52: 0 | AA52: 0 | AB52: 0 | AC52: 0 | AD52: 0 | AE52: 9375901 | AF52: 0.3995406962 | AH52: 6699270 | AI52: 2676631
A53: 49 | B53: 51715438 | C53: NAVARRO ERAZO MELIDA ALEXANDRA | D53: LIBRE NOMBRAMIENTO Y REMOCIÓN | E53: NOMBRAMIENTO ORDINARIO | F53: 2018-11-09 | K53: NAVARRO ERAZO MELIDA ALEXANDRA | O53: OCUPADO | P53: DIRECTIVO | Q53: DIRECTOR TÉCNICO | R53: 9 | S53: 7 | T53: 9-7 | U53: DIRECCIÓN DISTRITAL DE POLÍTICA E INFORMÁTICA JURÍDICA | V53: 6082914 | W53: 6410783.065 | X53: 6699270 | Y53: 2676631 | Z53: 0 | AA53: 0 | AB53: 0 | AC53: 0 | AD53: 0 | AE53: 9375901 | AF53: 0.3995406962 | AH53: 6699270 | AI53: 2676631
A54: 50 | B54: 39742375 | C54: ROBAYO ALFONSO ANDREA | D54: LIBRE NOMBRAMIENTO Y REMOCIÓN | E54: NOMBRAMIENTO ORDINARIO | F54: 2016-08-03 | K54: ROBAYO ALFONSO ANDREA | O54: OCUPADO | P54: DIRECTIVO | Q54: DIRECTOR TÉCNICO | R54: 9 | S54: 7 | T54: 9-7 | U54: DIRECCIÓN DISTRITAL DE INSPECCIÓN VIGILANCIA Y CONTROL DE PERSONAS JURIDICA SIN ÁNIMO DE LUCRO | V54: 6082914 | W54: 6410783.065 | X54: 6699270 | Y54: 2676631 | Z54: 0 | AA54: 0 | AB54: 0 | AC54: 0 | AD54: 0 | AE54: 9375901 | AF54: 0.3995406962 | AH54: 6699270 | AI54: 2676631
A55: 51 | B55: 17326101 | C55: MARTINEZ VELASQUEZ DIK | D55: LIBRE NOMBRAMIENTO Y REMOCIÓN | E55: NOMBRAMIENTO ORDINARIO | F55: 2018-01-03 | K55: MARTINEZ VELASQUEZ DIK | O55: OCUPADO | P55: DIRECTIVO | Q55: JEFE DE OFICINA | R55: 6 | S55: 6 | T55: 6-6 | U55: OFICINA DE CONTROL INTERNO | V55: 5550932 | W55: 5850127.235 | X55: 6113384 | Y55: 2442546 | Z55: 0 | AA55: 0 | AB55: 0 | AC55: 0 | AD55: 0 | AE55: 8555930 | AF55: 0.3995407454 | AH55: 6113384 | AI55: 2442546
A56: 52 | B56: 79299847 | C56: MONTOYA MALDONADO JESÚS MARÍA | D56: CARRERA ADMINISTRATIVA | E56: CARRERA ADMINISTRATIVA | F56: 2016-08-03 | G56: 1992-04-30 | H56: HOMBRE | I56: 62 | K56: MONTOYA MALDONADO JESÚS MARÍA | O56: OCUPADO | P56: PROFESIONAL | Q56: PROFESIONAL ESPECIALIZADO | R56: 222 | S56: 27 | T56: 222-27 | U56: DIRECCIÓN DE GESTIÓN CORPORATIVA | V56: 3931646 | W56: 4143561.719 | X56: 4330023 | Y56: 0 | Z56: 303101 | AA56: 1732009 | AB56: 0 | AC56: 0 | AD56: 0 | AE56: 6365133 | AF56: 0 | AH56: 4330023 | AI56: 0
A57: 53 | B57: 51937185 | C57: BARRERA DIAZ MARTHA LILIANA | D57: CARRERA ADMINISTRATIVA | E57: EN ENCARGO | F57: 2016-08-03 | G57: 1997-03-10 | H57: MUJER | I57: 54 | J57: ENCARGO | K57: VACANTE DEFINITIVA | L57: E01 | M57: 1 | O57: OCUPADO | P57: PROFESIONAL | Q57: PROFESIONAL ESPECIALIZADO | R57: 222 | S57: 27 | T57: 222-27 | U57: DIRECCIÓN DE GESTIÓN CORPORATIVA | V57: 3931646 | W57: 4143561.719 | X57: 4330023 | Y57: 0 | Z57: 303101 | AA57: 1732009 | AB57: 0 | AC57: 0 | AD57: 0 | AE57: 6365133 | AF57: 0 | AH57: 4330023 | AI57: 0
A58: 54 | B58: 52236487 | C58: MORENO GUERRERO DEYSI YANIRA | D58: CARRERA ADMINISTRATIVA | E58: CARRERA ADMINISTRATIVA | F58: 2016-08-03 | G58: 2004-04-16 | H58: MUJER | I58: 45 | K58: MORENO GUERRERO DEYSI YANIRA | O58: OCUPADO | P58: PROFESIONAL | Q58: PROFESIONAL ESPECIALIZADO | R58: 222 | S58: 27 | T58: 222-27 | U58: DIRECCIÓN DISTRITAL DE ASUNTOS DISCIPLINARIOS | V58: 3931646 | W58: 4143561.719 | X58: 4330023 | Y58: 0 | Z58: 303101 | AA58: 1732009 | AB58: 0 | AC58: 0 | AD58: 0 | AE58: 6365133 | AF58: 0 | AH58: 4330023 | AI58: 0
A59: 55 | B59: 79569642 | C59: SALAZAR URRUTIA NELSON JULIAN | D59: CARRERA ADMINISTRATIVA | E59: EN ENCARGO | F59: 2016-08-03 | G59: 1999-04-21 | H59: HOMBRE | I59: 51 | J59: ENCARGO | K59: VACANTE DEFINITIVA | L59: E03 | M59: 1 | O59: OCUPADO | P59: PROFESIONAL | Q59: PROFESIONAL ESPECIALIZADO | R59: 222 | S59: 27 | T59: 222-27 | U59: SUBSECRETARÍA JURÍDICA | V59: 3931646 | W59: 4143561.719 | X59: 4330023 | Y59: 0 | Z59: 303101 | AA59: 1732009 | AB59: 0 | AC59: 0 | AD59: 0 | AE59: 6365133 | AF59: 0 | AH59: 4330023 | AI59: 0
A60: 56 | B60: 42497241 | C60: APONTE PENSO SILVIA MODESTA | D60: CARRERA ADMINISTRATIVA | E60: EN ENCARGO | F60: 2016-08-03 | G60: 1994-12-19 | H60: MUJER | I60: 64 | J60: ENCARGO | K60: VACANTE DEFINITIVA | L60: E04 | M60: 1 | O60: OCUPADO | P60: PROFESIONAL | Q60: PROFESIONAL ESPECIALIZADO | R60: 222 | S60: 27 | T60: 222-27 | U60: SUBSECRETARÍA JURÍDICA | V60: 3931646 | W60: 4143561.719 | X60: 4330023 | Y60: 0 | Z60: 303101 | AA60: 1732009 | AB60: 0 | AC60: 0 | AD60: 0 | AE60: 6365133 | AF60: 0 | AH60: 4330023 | AI60: 0
A61: 57 | B61: 80850931 | C61: GALLEGO GONZALEZ RUBEN DARIO | D61: PROVISIONALIDAD | E61: EN PROVISIONALIDAD | F61: 2017-11-10 | G61: 2017-11-10 | H61: HOMBRE | I61: 38 | K61: VACANTE DEFINITIVA | O61: OCUPADO | P61: PROFESIONAL | Q61: PROFESIONAL ESPECIALIZADO | R61: 222 | S61: 27 | T61: 222-27 | U61: SUBSECRETARÍA JURÍDICA | V61: 3931646 | W61: 4143561.719 | X61: 4330023 | Y61: 0 | Z61: 129900 | AA61: 1732009 | AB61: 0 | AC61: 0 | AD61: 0 | AE61: 6191932 | AF61: 0 | AH61: 4330023 | AI61: 0
A62: 58 | B62: 51798311 | C62: AMAYA SALAZAR MARTHA YOLANDA | D62: CARRERA ADMINISTRATIVA | E62: CARRERA ADMINISTRATIVA | F62: 2016-08-03 | G62: 1994-05-18 | H62: MUJER | I62: 58 | K62: AMAYA SALAZAR MARTHA YOLANDA | O62: OCUPADO | P62: PROFESIONAL | Q62: PROFESIONAL ESPECIALIZADO | R62: 222 | S62: 27 | T62: 222-27 | U62: DIRECCIÓN DISTRITAL DE DEFENSA JUDICIAL Y PREVENCIÓN DEL DAÑO ANTIJURÍDICO | V62: 3931646 | W62: 4143561.719 | X62: 4330023 | Y62: 0 | Z62: 303101 | AA62: 1732009 | AB62: 0 | AC62: 0 | AD62: 0 | AE62: 6365133 | AF62: 0 | AH62: 4330023 | AI62: 0
A63: 59 | B63: 79153811 | C63: CADENA ROJAS ERNESTO | D63: CARRERA ADMINISTRATIVA | E63: CARRERA ADMINISTRATIVA | F63: 2016-08-03 | K63: CADENA ROJAS ERNESTO | O63: OCUPADO | P63: PROFESIONAL | Q63: PROFESIONAL ESPECIALIZADO | R63: 222 | S63: 27 | T63: 222-27 | U63: DIRECCIÓN DISTRITAL DE DEFENSA JUDICIAL Y PREVENCIÓN DEL DAÑO ANTIJURÍDICO | V63: 3931646 | W63: 4143561.719 | X63: 4330023 | Y63: 0 | Z63: 0 | AA63: 0 | AB63: 0 | AC63: 0 | AD63: 0 | AE63: 4330023 | AF63: 0 | AH63: 4330023 | AI63: 0
A64: 60 | B64: 51569861 | C64: DIAGO CASASBUENAS GLORIA MAGDALENA | D64: CARRERA ADMINISTRATIVA | E64: CARRERA ADMINISTRATIVA | F64: 2016-08-03 | G64: 1994-12-16 | H64: MUJER | I64: 64 | K64: DIAGO CASASBUENAS GLORIA MAGDALENA | O64: OCUPADO | P64: PROFESIONAL | Q64: PROFESIONAL ESPECIALIZADO | R64: 222 | S64: 27 | T64: 222-27 | U64: DIRECCIÓN DISTRITAL DE DEFENSA JUDICIAL Y PREVENCIÓN DEL DAÑO ANTIJURÍDICO | V64: 3931646 | W64: 4143561.719 | X64: 4330023 | Y64: 0 | Z64: 303101 | AA64: 1732009 | AB64: 0 | AC64: 0 | AD64: 0 | AE64: 6365133 | AF64: 0 | AH64: 4330023 | AI64: 0
A65: 61 | B65: 51649014 | C65: GUTIERREZ HERNANDEZ DORA BELEN | D65: CARRERA ADMINISTRATIVA | E65: EN ENCARGO | F65: 2016-08-03 | G65: 1995-06-20 | H65: MUJER | I65: 61 | J65: ENCARGO | K65: VACANTE DEFINITIVA | L65: E02 | M65: 1 | O65: OCUPADO | P65: PROFESIONAL | Q65: PROFESIONAL ESPECIALIZADO | R65: 222 | S65: 27 | T65: 222-27 | U65: DIRECCIÓN DE GESTIÓN CORPORATIVA | V65: 3931646 | W65: 4143561.719 | X65: 4330023 | Y65: 0 | Z65: 303101 | AA65: 1732009 | AB65: 0 | AC65: 0 | AD65: 0 | AE65: 6365133 | AF65: 0 | AH65: 4330023 | AI65: 0
A66: 62 | B66: 38263037 | C66: GOMEZ CARMONA WALDINA | D66: CARRERA ADMINISTRATIVA | E66: EN ENCARGO | F66: 2016-08-03 | G66: 1996-09-19 | H66: MUJER | I66: 59 | J66: ENCARGO | K66: VACANTE DEFINITIVA | L66: E16 | M66: 1 | O66: OCUPADO | P66: PROFESIONAL | Q66: PROFESIONAL ESPECIALIZADO | R66: 222 | S66: 27 | T66: 222-27 | U66: DIRECCIÓN DISTRITAL DE DEFENSA JUDICIAL Y PREVENCIÓN DEL DAÑO ANTIJURÍDICO | V66: 3931646 | W66: 4143561.719 | X66: 4330023 | Y66: 0 | Z66: 303101 | AA66: 1732009 | AB66: 0 | AC66: 0 | AD66: 0 | AE66: 6365133 | AF66: 0 | AH66: 4330023 | AI66: 0
A67: 63 | B67: 51688294 | C67: ARBELAEZ MOLINA MARIA CAROLINA | D67: PROVISIONALIDAD | E67: EN PROVISIONALIDAD | F67: 2017-03-09 | K67: VACANTE DEFINITIVA | O67: OCUPADO | P67: PROFESIONAL | Q67: PROFESIONAL ESPECIALIZADO | R67: 222 | S67: 27 | T67: 222-27 | U67: DIRECCIÓN DISTRITAL DE DEFENSA JUDICIAL Y PREVENCIÓN DEL DAÑO ANTIJURÍDICO | V67: 3931646 | W67: 4143561.719 | X67: 4330023 | Y67: 0 | Z67: 0 | AA67: 0 | AB67: 0 | AC67: 0 | AD67: 0 | AE67: 4330023 | AF67: 0 | AH67: 4330023 | AI67: 0
A68: 64 | B68: 79802044 | C68: BERNATE NAVARRO ALVARO CAMILO | D68: CARRERA ADMINISTRATIVA | E68: EN ENCARGO | F68: 2016-08-03 | G68: 2004-11-03 | H68: HOMBRE | I68: 47 | J68: =IF(AND(($M68>=1),($M68<>"VT"),(N68="")),"ENCARGO",IF($N68="CM","COMISIÒN","")) -> ENCARGO | K68: VACANTE DEFINITIVA | L68: E08 | M68: 1 | O68: OCUPADO | P68: PROFESIONAL | Q68: PROFESIONAL ESPECIALIZADO | R68: 222 | S68: 27 | T68: 222-27 | U68: DIRECCIÓN DISTRITAL DE DEFENSA JUDICIAL Y PREVENCIÓN DEL DAÑO ANTIJURÍDICO | V68: 3931646 | W68: 4143561.719 | X68: 4330023 | Y68: 0 | Z68: 303101 | AA68: 1732009 | AB68: 0 | AC68: 0 | AD68: 0 | AE68: 6365133 | AF68: 0 | AH68: 4330023 | AI68: 0
A69: 65 | B69: 3085860 | C69: CASTIBLANCO URQUIJO LUIS ALFONSO | D69: CARRERA ADMINISTRATIVA | E69: =VLOOKUP(IF(AND($D69<>"",$J69=""),$D69,IF(AND($D69<>"",$J69<>""),$J69,$C69)),$AM$5:$AN$16,2,0) -> EN ENCARGO | F69: 2016-08-03 | G69: =IFERROR(VLOOKUP($B69,PLANTA_PERNO,17,0),"") -> 2005-04-01 | H69: =IF(IFERROR((VLOOKUP($B69,PLANTA_PERNO,9,0)),"")="F","MUJER",IF(IFERROR((VLOOKUP($B69,PLANTA_PERNO,9,0)),"")="M","HOMBRE","")) -> HOMBRE | I69: =IFERROR(DATEDIF((VLOOKUP($B69,PLANTA_PERNO,6,0)),$I$3,"Y"),"") -> 55 | J69: ENCARGO | K69: VACANTE DEFINITIVA | L69: E09 | M69: 1 | O69: =IF(OR(C69="VACANTE DEFINITIVA",C69="VACANTE TEMPORAL"),"VACANTE ","OCUPADO") -> OCUPADO | P69: PROFESIONAL | Q69: PROFESIONAL ESPECIALIZADO | R69: 222 | S69: 27 | T69: =R69&"-"&S69 -> 222-27 | U69: DIRECCIÓN DISTRITAL DE DEFENSA JUDICIAL Y PREVENCIÓN DEL DAÑO ANTIJURÍDICO | V69: 3931646 | W69: 4143561.719 | X69: 4330023 | Y69: 0 | Z69: =IFERROR(INT(($X69*(VLOOKUP($B69,BASE_PORCENTAJES,10,0))/100)),0) -> 303101 | AA69: =IFERROR(INT(($X69*(VLOOKUP($B69,BASE_PORCENTAJES,12,0))/100)),0) -> 1732009 | AB69: =IFERROR(INT(($X69*(VLOOKUP($B69,BASE_PORCENTAJES,13,0))/100)),0) -> 0 | AC69: =IF($X69<=1656232,97032,0) -> 0 | AD69: 0 | AE69: =SUM(X69:AD69) -> 6365133 | AF69: 0 | AH69: 4330023 | AI69: 0
A70: 66 | B70: 7630834 | C70: RUIZ VEGA HÉCTOR RAFAEL | D70: PROVISIONALIDAD | E70: EN PROVISIONALIDAD | F70: 2017-06-12 | K70: VACANTE DEFINITIVA | O70: OCUPADO | P70: PROFESIONAL | Q70: PROFESIONAL ESPECIALIZADO | R70: 222 | S70: 27 | T70: 222-27 | U70: DIRECCIÓN DISTRITAL DE DEFENSA JUDICIAL Y PREVENCIÓN DEL DAÑO ANTIJURÍDICO | V70: 3931646 | W70: 4143561.719 | X70: 4330023 | Y70: 0 | Z70: 0 | AA70: 0 | AB70: 0 | AC70: 0 | AD70: =IF($X70<=1763224,62878,0) -> 0 | AE70: 4330023 | AF70: =Y70/X70 -> 0 | AH70: 4330023 | AI70: =AH70*AF70 -> 0
A71: 67 | B71: 52363895 | C71: HERNANDEZ LIBREROS ELVIRA LILIANA | D71: CARRERA ADMINISTRATIVA | E71: CARRERA ADMINISTRATIVA | F71: 2016-08-03 | G71: 2004-01-08 | H71: MUJER | I71: 47 | K71: HERNANDEZ LIBREROS ELVIRA LILIANA | O71: OCUPADO | P71: PROFESIONAL | Q71: PROFESIONAL ESPECIALIZADO | R71: 222 | S71: 27 | T71: 222-27 | U71: DIRECCIÓN DISTRITAL DE DOCTRINA JURÍDICA | V71: 3931646 | W71: 4143561.719 | X71: 4330023 | Y71: 0 | Z71: 303101 | AA71: 1732009 | AB71: 0 | AC71: 0 | AD71: 0 | AE71: 6365133 | AF71: 0 | AH71: 4330023 | AI71: 0
A72: 68 | B72: 12198272 | C72: MURCIA OLAYA TOMAS ANDRES | D72: PROVISIONALIDAD | E72: EN COMISIÓN EN EMPLEO DE L.N.R. O DE PERIODO | F72: 2017-05-24 | J72: COMISIÒN | K72: TIBAMOSCA VILLAMARÍN SANDRA YANETH | L72: E22 | N72: CM | O72: OCUPADO | P72: PROFESIONAL | Q72: PROFESIONAL ESPECIALIZADO | R72: 222 | S72: 27 | T72: 222-27 | U72: DIRECCIÓN DISTRITAL DE INSPECCIÓN VIGILANCIA Y CONTROL DE PERSONAS JURIDICA SIN ÁNIMO DE LUCRO | V72: 3931646 | W72: 4143561.719 | X72: 4330023 | Y72: 0 | Z72: 0 | AA72: 0 | AB72: 0 | AC72: 0 | AD72: 0 | AE72: 4330023 | AF72: 0 | AH72: 4330023 | AI72: 0
A73: 69 | B73: 93371977 | C73: SANDOVAL RODRÍGUEZ DUVÁN | D73: CARRERA ADMINISTRATIVA | E73: EN ENCARGO | F73: 2016-08-03 | G73: 2010-03-30 | H73: HOMBRE | I73: 55 | J73: ENCARGO | K73: VACANTE DEFINITIVA | L73: E10 | M73: 1 | O73: OCUPADO | P73: PROFESIONAL | Q73: PROFESIONAL ESPECIALIZADO | R73: 222 | S73: 27 | T73: 222-27 | U73: DIRECCIÓN DISTRITAL DE DOCTRINA JURÍDICA | V73: 3931646 | W73: 4143561.719 | X73: 4330023 | Y73: 0 | Z73: 216501 | AA73: 1732009 | AB73: 0 | AC73: 0 | AD73: 0 | AE73: 6278533 | AF73: 0 | AH73: 4330023 | AI73: 0
A74: 70 | B74: 24179106 | C74: ROJAS SUÁREZ ZULMA | D74: CARRERA ADMINISTRATIVA | E74: CARRERA ADMINISTRATIVA | F74: 2016-08-03 | G74: 2004-12-22 | H74: MUJER | I74: 47 | K74: ROJAS SUÁREZ ZULMA | O74: OCUPADO | P74: PROFESIONAL | Q74: PROFESIONAL ESPECIALIZADO | R74: 222 | S74: 27 | T74: 222-27 | U74: DIRECCIÓN DISTRITAL DE POLÍTICA E INFORMÁTICA JURÍDICA | V74: 3931646 | W74: 4143561.719 | X74: 4330023 | Y74: 0 | Z74: 303101 | AA74: 2165011 | AB74: 0 | AC74: 0 | AD74: 0 | AE74: 6798135 | AF74: 0 | AH74: 4330023 | AI74: 0
A75: 71 | B75: 28963444 | C75: SALCEDO TAMAYO GLORIA ESTHER | D75: CARRERA ADMINISTRATIVA | E75: EN ENCARGO | F75: 2016-08-03 | G75: 1993-10-15 | H75: MUJER | I75: 59 | J75: ENCARGO | K75: VACANTE DEFINITIVA | L75: E11 | M75: 1 | O75: OCUPADO | P75: PROFESIONAL | Q75: PROFESIONAL ESPECIALIZADO | R75: 222 | S75: 27 | T75: 222-27 | U75: DIRECCIÓN DISTRITAL DE POLÍTICA E INFORMÁTICA JURÍDICA | V75: 3931646 | W75: 4143561.719 | X75: 4330023 | Y75: 0 | Z75: 303101 | AA75: 1732009 | AB75: 0 | AC75: 0 | AD75: 0 | AE75: 6365133 | AF75: 0 | AH75: 4330023 | AI75: 0
A76: 72 | B76: 19347862 | C76: HERNANDEZ ALBARRACÍN JORGE ELIÉCER | D76: CARRERA ADMINISTRATIVA | E76: CARRERA ADMINISTRATIVA | F76: 2016-08-03 | G76: 1994-12-28 | H76: HOMBRE | I76: 66 | K76: HERNANDEZ ALBARRACÍN JORGE ELIÉCER | O76: OCUPADO | P76: PROFESIONAL | Q76: PROFESIONAL ESPECIALIZADO | R76: 222 | S76: 27 | T76: 222-27 | U76: DIRECCIÓN DISTRITAL DE INSPECCIÓN VIGILANCIA Y CONTROL DE PERSONAS JURIDICA SIN ÁNIMO DE LUCRO | V76: 3931646 | W76: 4143561.719 | X76: 4330023 | Y76: 0 | Z76: 303101 | AA76: 1732009 | AB76: 0 | AC76: 0 | AD76: 0 | AE76: 6365133 | AF76: 0 | AH76: 4330023 | AI76: 0
A77: 73 | B77: 6758776 | C77: MUÑOZ CUERVO HERNAN BENJAMIN | D77: CARRERA ADMINISTRATIVA | E77: EN ENCARGO | F77: 2016-08-03 | G77: 1987-06-16 | H77: HOMBRE | I77: 70 | J77: ENCARGO | K77: VACANTE DEFINITIVA | L77: E12 | M77: 1 | O77: OCUPADO | P77: PROFESIONAL | Q77: PROFESIONAL ESPECIALIZADO | R77: 222 | S77: 27 | T77: 222-27 | U77: DIRECCIÓN DISTRITAL DE INSPECCIÓN VIGILANCIA Y CONTROL DE PERSONAS JURIDICA SIN ÁNIMO DE LUCRO | V77: 3931646 | W77: 4143561.719 | X77: 4330023 | Y77: 0 | Z77: 303101 | AA77: 1732009 | AB77: 0 | AC77: 0 | AD77: 0 | AE77: 6365133 | AF77: 0 | AH77: 4330023 | AI77: 0
A78: 74 | B78: 79954654 | C78: RODRIGUEZ RODRIGUEZ CAMILO ANDRES | D78: PROVISIONALIDAD | E78: EN PROVISIONALIDAD | F78: 2017-03-23 | G78: 2017-03-23 | H78: HOMBRE | I78: 43 | K78: VACANTE DEFINITIVA | O78: OCUPADO | P78: PROFESIONAL | Q78: PROFESIONAL ESPECIALIZADO | R78: 222 | S78: 27 | T78: 222-27 | U78: DIRECCIÓN DISTRITAL DE INSPECCIÓN VIGILANCIA Y CONTROL DE PERSONAS JURIDICA SIN ÁNIMO DE LUCRO | V78: 3931646 | W78: 4143561.719 | X78: 4330023 | Y78: 0 | Z78: 129900 | AA78: 1732009 | AB78: 0 | AC78: 0 | AD78: 0 | AE78: 6191932 | AF78: 0 | AH78: 4330023 | AI78: 0
A79: 75 | B79: 51772038 | C79: CONTRERAS CASTRO DIANA ESTHER | D79: CARRERA ADMINISTRATIVA | E79: EN ENCARGO | F79: 2016-08-03 | G79: 1994-08-09 | H79: MUJER | I79: 58 | J79: =IF(AND(($M79>=1),($M79<>"VT"),(N79="")),"ENCARGO",IF($N79="CM","COMISIÒN","")) -> ENCARGO | K79: VACANTE DEFINITIVA | L79: E14 | M79: 1 | O79: OCUPADO | P79: PROFESIONAL | Q79: PROFESIONAL ESPECIALIZADO | R79: 222 | S79: 27 | T79: 222-27 | U79: DIRECCIÓN DISTRITAL DE INSPECCIÓN VIGILANCIA Y CONTROL DE PERSONAS JURIDICA SIN ÁNIMO DE LUCRO | V79: 3931646 | W79: 4143561.719 | X79: 4330023 | Y79: 0 | Z79: 303101 | AA79: 1732009 | AB79: 0 | AC79: 0 | AD79: 0 | AE79: 6365133 | AF79: 0 | AH79: 4330023 | AI79: 0
A80: 76 | B80: 28891891 | C80: MESA VASQUEZ GLORIA ASTRID | D80: CARRERA ADMINISTRATIVA | E80: CARRERA ADMINISTRATIVA | F80: 2016-08-03 | G80: 1990-10-25 | H80: MUJER | I80: 65 | K80: MESA VASQUEZ GLORIA ASTRID | O80: OCUPADO | P80: PROFESIONAL | Q80: PROFESIONAL ESPECIALIZADO | R80: 222 | S80: 26 | T80: 222-26 | U80: DIRECCIÓN DISTRITAL DE DEFENSA JUDICIAL Y PREVENCIÓN DEL DAÑO ANTIJURÍDICO | V80: 3898609 | W80: 4108744.025 | X80: 4293639 | Y80: 857742 | Z80: 300554 | AA80: 2146819 | AB80: 0 | AC80: 0 | AD80: 0 | AE80: 7598754 | AF80: 0.1997704045 | AH80: 4293639 | AI80: 857742
A81: 77 | B81: 6761621 | C81: PARRA LEGUIZAMON JORGE ERNESTO | D81: CARRERA ADMINISTRATIVA | E81: CARRERA ADMINISTRATIVA | F81: 2016-08-03 | G81: 1992-05-06 | H81: HOMBRE | I81: 64 | K81: PARRA LEGUIZAMON JORGE ERNESTO | O81: OCUPADO | P81: PROFESIONAL | Q81: PROFESIONAL ESPECIALIZADO | R81: 222 | S81: 26 | T81: 222-26 | U81: DIRECCIÓN DE GESTIÓN CORPORATIVA | V81: 3898609 | W81: 4108744.025 | X81: 4293639 | Y81: 857742 | Z81: 300554 | AA81: 2146819 | AB81: 0 | AC81: 0 | AD81: 0 | AE81: 7598754 | AF81: 0.1997704045 | AH81: 4293639 | AI81: 857742
A82: 78 | B82: 1010161193 | C82: TRUJILLO JARAMILLO DANITZA LORENA | D82: PROVISIONALIDAD | E82: EN PROVISIONALIDAD | F82: 2017-03-22 | K82: VACANTE DEFINITIVA | O82: OCUPADO | P82: PROFESIONAL | Q82: PROFESIONAL ESPECIALIZADO | R82: 222 | S82: 25 | T82: 222-25 | U82: DIRECCIÓN DISTRITAL DE INSPECCIÓN VIGILANCIA Y CONTROL DE PERSONAS JURIDICA SIN ÁNIMO DE LUCRO | V82: 3730422 | W82: 3931491.746 | X82: 4108410 | Y82: 0 | Z82: 0 | AA82: 0 | AB82: 0 | AC82: 0 | AD82: 0 | AE82: 4108410 | AF82: 0 | AH82: 4108410 | AI82: 0
A83: 79 | B83: 52440980 | C83: AREVALO BONILLA SONIA YANETH | D83: PROVISIONALIDAD | E83: EN PROVISIONALIDAD | F83: 2017-08-01 | K83: VACANTE DEFINITIVA | O83: OCUPADO | P83: PROFESIONAL | Q83: PROFESIONAL ESPECIALIZADO | R83: 222 | S83: 24 | T83: 222-24 | U83: OFICINA DE LAS TECNOLOGÍAS DE LA INFORMACIÓN Y LAS COMUNICACIONES | V83: 3638457 | W83: 3834569.832 | X83: 4007126 | Y83: 0 | Z83: 0 | AA83: 0 | AB83: 0 | AC83: 0 | AD83: 0 | AE83: 4007126 | AF83: 0 | AH83: 4007126 | AI83: 0
A84: 80 | B84: 79349710 | C84: OVALLE CUERVO EDGAR ENRIQUE | D84: CARRERA ADMINISTRATIVA | E84: CARRERA ADMINISTRATIVA | F84: 2016-08-03 | G84: 1997-12-22 | H84: HOMBRE | I84: 58 | K84: OVALLE CUERVO EDGAR ENRIQUE | O84: OCUPADO | P84: PROFESIONAL | Q84: PROFESIONAL ESPECIALIZADO | R84: 222 | S84: 24 | T84: 222-24 | U84: OFICINA DE LAS TECNOLOGÍAS DE LA INFORMACIÓN Y LAS COMUNICACIONES | V84: 3638457 | W84: 3834569.832 | X84: 4007126 | Y84: 0 | Z84: 280498 | AA84: 1602850 | AB84: 0 | AC84: 0 | AD84: 0 | AE84: 5890474 | AF84: 0 | AH84: 4007126 | AI84: 0
A85: 81 | B85: 1010172736 | C85: CORREA AGATON DIANA ALEJANDRA | D85: PROVISIONALIDAD | E85: EN PROVISIONALIDAD | F85: 2018-10-02 | K85: SALCEDO TAMAYO GLORIA ESTHER | L85: E11 | O85: OCUPADO | P85: PROFESIONAL | Q85: PROFESIONAL ESPECIALIZADO | R85: 222 | S85: 24 | T85: 222-24 | U85: DIRECCIÓN DE GESTIÓN CORPORATIVA | V85: 3638457 | W85: 3834569.832 | X85: 4007126 | Y85: 0 | Z85: 0 | AA85: 0 | AB85: 0 | AC85: 0 | AD85: 0 | AE85: 4007126 | AF85: 0 | AH85: 4007126 | AI85: 0
A86: 82 | B86: 52432686 | C86: MARQUEZ BERNAL JEHIMY ESPERANZA | D86: PROVISIONALIDAD | E86: EN PROVISIONALIDAD | F86: 2017-06-13 | K86: APONTE PENSO SILVIA MODESTA | L86: E04 | O86: OCUPADO | P86: PROFESIONAL | Q86: PROFESIONAL ESPECIALIZADO | R86: 222 | S86: 24 | T86: 222-24 | U86: DIRECCIÓN DISTRITAL DE DOCTRINA JURÍDICA | V86: 3638457 | W86: 3834569.832 | X86: 4007126 | Y86: 0 | Z86: 0 | AA86: 0 | AB86: 0 | AC86: 0 | AD86: 0 | AE86: 4007126 | AF86: 0 | AH86: 4007126 | AI86: 0
A87: 83 | B87: 52761888 | C87: QUINTERO PRECIADO DIANA HERLINDA | D87: PROVISIONALIDAD | E87: EN PROVISIONALIDAD | F87: 2017-04-27 | K87: VACANTE DEFINITIVA | O87: OCUPADO | P87: PROFESIONAL | Q87: PROFESIONAL ESPECIALIZADO | R87: 222 | S87: 24 | T87: 222-24 | U87: DIRECCIÓN DISTRITAL DE DOCTRINA JURÍDICA | V87: 3638457 | W87: 3834569.832 | X87: 4007126 | Y87: 0 | Z87: 0 | AA87: 0 | AB87: 0 | AC87: 0 | AD87: 0 | AE87: 4007126 | AF87: 0 | AH87: 4007126 | AI87: 0
A88: 84 | B88: 1102833656 | C88: GUZMAN LAZARO RAISA STELLA | D88: PROVISIONALIDAD | E88: EN PROVISIONALIDAD | F88: 2019-01-25 | K88: VACANTE DEFINITIVA | O88: OCUPADO | P88: PROFESIONAL | Q88: PROFESIONAL ESPECIALIZADO | R88: 222 | S88: 24 | T88: 222-24 | U88: DIRECCIÓN DISTRITAL DE DOCTRINA JURÍDICA | V88: 3638457 | W88: 3834569.832 | X88: 4007126 | Y88: 0 | Z88: 0 | AA88: 0 | AB88: 0 | AC88: 0 | AD88: 0 | AE88: 4007126 | AF88: 0 | AH88: 4007126 | AI88: 0
A89: 85 | B89: 79567977 | C89: PACHÓN PIÑEROS FERNANDO | D89: CARRERA ADMINISTRATIVA | E89: EN ENCARGO | F89: 2016-08-03 | G89: 2010-03-30 | H89: HOMBRE | I89: 50 | J89: ENCARGO | K89: VACANTE DEFINITIVA | L89: E24 | M89: 1 | O89: OCUPADO | P89: PROFESIONAL | Q89: PROFESIONAL ESPECIALIZADO | R89: 222 | S89: 24 | T89: 222-24 | U89: DIRECCIÓN DISTRITAL DE DOCTRINA JURÍDICA | V89: 3638457 | W89: 3834569.832 | X89: 4007126 | Y89: 0 | Z89: 200356 | AA89: 0 | AB89: 0 | AC89: 0 | AD89: 0 | AE89: 4207482 | AF89: 0 | AH89: 4007126 | AI89: 0
A90: 86 | B90: 51657823 | C90: MENDOZA HILDA CONSUELO | D90: CARRERA ADMINISTRATIVA | E90: EN ENCARGO | F90: 2016-08-03 | J90: ENCARGO | K90: VACANTE DEFINITIVA | L90: E15 | M90: 1 | O90: OCUPADO | P90: PROFESIONAL | Q90: PROFESIONAL ESPECIALIZADO | R90: 222 | S90: 24 | T90: 222-24 | U90: OFICINA DE CONTROL INTERNO | V90: 3638457 | W90: 3834569.832 | X90: 4007126 | Y90: 0 | Z90: 0 | AA90: 0 | AB90: 0 | AC90: 0 | AD90: 0 | AE90: 4007126 | AF90: 0 | AH90: 4007126 | AI90: 0
A91: 87 | B91: 79426417 | C91: VERA BOJACA CARLOS ARIEL | D91: PROVISIONALIDAD | E91: EN PROVISIONALIDAD | F91: 2017-11-10 | K91: VACANTE DEFINITIVA | O91: OCUPADO | P91: PROFESIONAL | Q91: PROFESIONAL ESPECIALIZADO | R91: 222 | S91: 24 | T91: 222-24 | U91: DIRECCIÓN DISTRITAL DE INSPECCIÓN VIGILANCIA Y CONTROL DE PERSONAS JURIDICA SIN ÁNIMO DE LUCRO | V91: 3638457 | W91: 3834569.832 | X91: 4007126 | Y91: 0 | Z91: 0 | AA91: 0 | AB91: 0 | AC91: 0 | AD91: 0 | AE91: 4007126 | AF91: 0 | AH91: 4007126 | AI91: 0
A92: 88 | B92: 53015269 | C92: GAMEZ GOMEZ JOHANA PATRICIA | D92: PROVISIONALIDAD | E92: EN PROVISIONALIDAD | F92: 2017-11-10 | G92: 2017-11-10 | H92: MUJER | I92: 38 | K92: VACANTE DEFINITIVA | O92: OCUPADO | P92: PROFESIONAL | Q92: PROFESIONAL ESPECIALIZADO | R92: 222 | S92: 22 | T92: 222-22 | U92: DIRECCIÓN DISTRITAL DE POLÍTICA E INFORMÁTICA JURÍDICA | V92: 3607832 | W92: 3802294.145 | X92: 3973399 | Y92: 0 | Z92: 119201 | AA92: 1589359 | AB92: 0 | AC92: 0 | AD92: 0 | AE92: 5681959 | AF92: 0 | AH92: 3973399 | AI92: 0
A93: 89 | B93: 79361343 | C93: MURILLO HURTADO VICTOR HERNANDO | D93: CARRERA ADMINISTRATIVA | E93: EN ENCARGO | F93: 2016-08-03 | G93: 1995-03-27 | H93: HOMBRE | I93: 57 | J93: ENCARGO | K93: SALAZAR URRUTIA NELSON JULIAN | L93: E03 | M93: 2 | O93: OCUPADO | P93: PROFESIONAL | Q93: PROFESIONAL ESPECIALIZADO | R93: 222 | S93: 21 | T93: 222-21 | U93: OFICINA ASESORA DE PLANEACIÓN | V93: 3508371 | W93: 3697472.197 | X93: 3863860 | Y93: 0 | Z93: 270470 | AA93: 1545544 | AB93: 0 | AC93: 0 | AD93: 0 | AE93: 5679874 | AF93: 0 | AH93: 3863860 | AI93: 0
A94: 90 | B94: 51748267 | C94: CASTELLANOS RODRÍGUEZ MARTHA LIGIA | D94: PROVISIONALIDAD | E94: EN PROVISIONALIDAD | F94: 2016-08-03 | K94: VACANTE DEFINITIVA | O94: OCUPADO | P94: PROFESIONAL | Q94: PROFESIONAL ESPECIALIZADO | R94: 222 | S94: 21 | T94: 222-21 | U94: DIRECCIÓN DE GESTIÓN CORPORATIVA | V94: 3508371 | W94: 3697472.197 | X94: 3863860 | Y94: 0 | Z94: 0 | AA94: 0 | AB94: 0 | AC94: 0 | AD94: 0 | AE94: 3863860 | AF94: 0 | AH94: 3863860 | AI94: 0
A95: 91 | B95: 19492469 | C95: GRANADOS CALIXTO GUILLERMO ALFONSO | D95: PROVISIONALIDAD | E95: EN PROVISIONALIDAD | F95: 2017-11-10 | K95: GUTIERREZ HERNANDEZ DORA BELEN | L95: E02 | O95: OCUPADO | P95: PROFESIONAL | Q95: PROFESIONAL ESPECIALIZADO | R95: 222 | S95: 21 | T95: 222-21 | U95: DIRECCIÓN DE GESTIÓN CORPORATIVA | V95: 3508371 | W95: 3697472.197 | X95: 3863860 | Y95: 0 | Z95: 0 | AA95: 0 | AB95: 0 | AC95: 0 | AD95: 0 | AE95: 3863860 | AF95: 0 | AH95: 3863860 | AI95: 0
A96: 92 | B96: 52352995 | C96: SALAS SANCHEZ VANESSA | D96: PROVISIONALIDAD | E96: EN PROVISIONALIDAD | F96: 2016-08-03 | K96: VACANTE DEFINITIVA | O96: OCUPADO | P96: PROFESIONAL | Q96: PROFESIONAL ESPECIALIZADO | R96: 222 | S96: 21 | T96: 222-21 | U96: DIRECCIÓN DE GESTIÓN CORPORATIVA | V96: 3508371 | W96: 3697472.197 | X96: 3863860 | Y96: 0 | Z96: 115915 | AA96: 1545544 | AB96: 0 | AC96: 0 | AD96: 0 | AE96: 5525319 | AF96: 0 | AH96: 3863860 | AI96: 0
A97: 93 | B97: 80031312 | C97: JIMENEZ GONZALEZ JUAN GABRIEL | D97: PROVISIONALIDAD | E97: EN PROVISIONALIDAD | F97: 2017-03-07 | K97: VACANTE DEFINITIVA | O97: OCUPADO | P97: PROFESIONAL | Q97: PROFESIONAL ESPECIALIZADO | R97: 222 | S97: 21 | T97: 222-21 | U97: DIRECCIÓN DE GESTIÓN CORPORATIVA | V97: 3508371 | W97: 3697472.197 | X97: 3863860 | Y97: 0 | Z97: 0 | AA97: 0 | AB97: 0 | AC97: 0 | AD97: 0 | AE97: 3863860 | AF97: 0 | AH97: 3863860 | AI97: 0
A98: 94 | B98: 35535070 | C98: CAÑON SUAREZ DEISY VIVIANA | D98: PROVISIONALIDAD | E98: EN PROVISIONALIDAD | F98: 2017-05-02 | K98: CASTIBLANCO URQUIJO LUIS ALFONSO | L98: E09 | O98: OCUPADO | P98: PROFESIONAL | Q98: PROFESIONAL ESPECIALIZADO | R98: 222 | S98: 21 | T98: 222-21 | U98: DIRECCIÓN DISTRITAL DE DEFENSA JUDICIAL Y PREVENCIÓN DEL DAÑO ANTIJURÍDICO | V98: 3508371 | W98: 3697472.197 | X98: 3863860 | Y98: 0 | Z98: 0 | AA98: 0 | AB98: 0 | AC98: 0 | AD98: 0 | AE98: 3863860 | AF98: 0 | AH98: 3863860 | AI98: 0
A99: 95 | B99: 1013590021 | C99: BALLESTEROS SANCHEZ MARTHA ADRIANA CATALINA | D99: PROVISIONALIDAD | E99: EN PROVISIONALIDAD | F99: 2017-06-21 | K99: VACANTE DEFINITIVA | O99: OCUPADO | P99: PROFESIONAL | Q99: PROFESIONAL ESPECIALIZADO | R99: 222 | S99: 21 | T99: 222-21 | U99: DIRECCIÓN DISTRITAL DE DOCTRINA JURÍDICA | V99: 3508371 | W99: 3697472.197 | X99: 3863860 | Y99: 0 | Z99: 0 | AA99: 0 | AB99: 0 | AC99: 0 | AD99: 0 | AE99: 3863860 | AF99: 0 | AH99: 3863860 | AI99: 0
A100: 96 | B100: 51641343 | C100: GARZON RONCANCIO LUZ MARY | D100: PROVISIONALIDAD | E100: EN PROVISIONALIDAD | F100: 2016-08-03 | K100: VACANTE DEFINITIVA | O100: OCUPADO | P100: PROFESIONAL | Q100: PROFESIONAL ESPECIALIZADO | R100: 222 | S100: 21 | T100: 222-21 | U100: DIRECCIÓN DISTRITAL DE INSPECCIÓN VIGILANCIA Y CONTROL DE PERSONAS JURIDICA SIN ÁNIMO DE LUCRO | V100: 3508371 | W100: 3697472.197 | X100: 3863860 | Y100: 0 | Z100: 0 | AA100: 0 | AB100: 0 | AC100: 0 | AD100: 0 | AE100: 3863860 | AF100: 0 | AH100: 3863860 | AI100: 0
A101: 97 | B101: 41774744 | C101: ORTIZ RODRIGUEZ JUDITH | D101: CARRERA ADMINISTRATIVA | E101: =VLOOKUP(IF(AND($D101<>"",$J101=""),$D101,IF(AND($D101<>"",$J101<>""),$J101,$C101)),$AM$5:$AN$16,2,0) -> EN ENCARGO | F101: 2016-08-03 | J101: ENCARGO | K101: VACANTE DEFINITIVA | L101: E17 | M101: 1 | O101: OCUPADO | P101: PROFESIONAL | Q101: PROFESIONAL ESPECIALIZADO | R101: 222 | S101: 21 | T101: 222-21 | U101: DIRECCIÓN DISTRITAL DE INSPECCIÓN VIGILANCIA Y CONTROL DE PERSONAS JURIDICA SIN ÁNIMO DE LUCRO | V101: 3508371 | W101: 3697472.197 | X101: 3863860 | Y101: 0 | Z101: 0 | AA101: 0 | AB101: 0 | AC101: 0 | AD101: 0 | AE101: 3863860 | AF101: 0 | AH101: 3863860 | AI101: 0
A102: 98 | B102: 52534865 | C102: LIZARAZO SALGADO OLGA LUCILA | D102: PROVISIONALIDAD | E102: EN COMISIÓN EN EMPLEO DE L.N.R. O DE PERIODO | F102: 2019-04-29 | G102: 2019-04-29 | J102: COMISIÒN | K102: GONZÁLEZ MOLINA HENRY ALBERTO | L102: E13 | N102: CM | O102: OCUPADO | P102: PROFESIONAL | Q102: PROFESIONAL ESPECIALIZADO | R102: 222 | S102: 20 | T102: 222-20 | U102: DIRECCIÓN DISTRITAL DE DEFENSA JUDICIAL Y PREVENCIÓN DEL DAÑO ANTIJURÍDICO | V102: 3422620 | W102: 3607099.218 | X102: 3769420 | Y102: 0 | Z102: 0 | AA102: 0 | AB102: 0 | AC102: 0 | AD102: 0 | AE102: 3769420 | AF102: 0 | AH102: 3769420 | AI102: 0
A103: 99 | B103: 39755703 | C103: ESCOBAR REMICIO MARIA PILAR | D103: PROVISIONALIDAD | E103: EN PROVISIONALIDAD | F103: 2017-03-09 | G103: =IFERROR(VLOOKUP($B103,PLANTA_PERNO,17,0),"") -> 2021-04-19 | H103: MUJER | I103: 52 | K103: VACANTE DEFINITIVA | O103: OCUPADO | P103: PROFESIONAL | Q103: PROFESIONAL ESPECIALIZADO | R103: 222 | S103: 20 | T103: 222-20 | U103: DIRECCIÓN DISTRITAL DE DEFENSA JUDICIAL Y PREVENCIÓN DEL DAÑO ANTIJURÍDICO | V103: 3422620 | W103: 3607099.218 | X103: 3769420 | Y103: 0 | Z103: 0 | AA103: 1507768 | AB103: 0 | AC103: 0 | AD103: 0 | AE103: 5277188 | AF103: 0 | AH103: 3769420 | AI103: 0
A104: 100 | B104: 52087195 | C104: LOZANO GONZALEZ SOFIA | D104: PROVISIONALIDAD | E104: EN PROVISIONALIDAD | F104: 2017-03-21 | K104: VACANTE DEFINITIVA | O104: OCUPADO | P104: PROFESIONAL | Q104: PROFESIONAL ESPECIALIZADO | R104: 222 | S104: 19 | T104: 222-19 | U104: DIRECCIÓN DISTRITAL DE ASUNTOS DISCIPLINARIOS | V104: 3344068 | W104: 3524313.265 | X104: 3682909 | Y104: 0 | Z104: 0 | AA104: 0 | AB104: 0 | AC104: 0 | AD104: 0 | AE104: 3682909 | AF104: 0 | AH104: 3682909 | AI104: 0
A105: 101 | B105: 91437535 | C105: PEREZ VESGA WILMAR DARIO | D105: PROVISIONALIDAD | E105: EN PROVISIONALIDAD | F105: 2017-04-18 | K105: VACANTE DEFINITIVA | O105: OCUPADO | P105: PROFESIONAL | Q105: PROFESIONAL ESPECIALIZADO | R105: 222 | S105: 19 | T105: 222-19 | U105: DIRECCIÓN DISTRITAL DE ASUNTOS DISCIPLINARIOS | V105: 3344068 | W105: 3524313.265 | X105: 3682909 | Y105: 0 | Z105: 0 | AA105: 0 | AB105: 0 | AC105: 0 | AD105: 0 | AE105: 3682909 | AF105: 0 | AH105: 3682909 | AI105: 0
A106: 102 | B106: 91201798 | C106: BERMUDEZ CASTAÑEDA JORGE | D106: PROVISIONALIDAD | E106: EN PROVISIONALIDAD | F106: 2019-06-26 | K106: VACANTE DEFINITIVA | O106: OCUPADO | P106: PROFESIONAL | Q106: PROFESIONAL ESPECIALIZADO | R106: 222 | S106: 19 | T106: 222-19 | U106: DIRECCIÓN DISTRITAL DE ASUNTOS DISCIPLINARIOS | V106: 3344068 | W106: 3524313.265 | X106: 3682909 | Y106: 0 | Z106: 0 | AA106: 0 | AB106: 0 | AC106: 0 | AD106: 0 | AE106: 3682909 | AF106: 0 | AH106: 3682909 | AI106: 0
A107: 103 | B107: 53101988 | C107: URIBE MEJIA DIANA MARCELA | D107: PROVISIONALIDAD | E107: EN PROVISIONALIDAD | F107: 2017-08-04 | K107: CONTRERAS CASTRO DIANA ESTHER | L107: E14 | O107: OCUPADO | P107: PROFESIONAL | Q107: PROFESIONAL ESPECIALIZADO | R107: 222 | S107: 19 | T107: 222-19 | U107: DIRECCIÓN DISTRITAL DE INSPECCIÓN VIGILANCIA Y CONTROL DE PERSONAS JURIDICA SIN ÁNIMO DE LUCRO | V107: 3344068 | W107: 3524313.265 | X107: 3682909 | Y107: 0 | Z107: 0 | AA107: 0 | AB107: 0 | AC107: 0 | AD107: 0 | AE107: 3682909 | AF107: 0 | AH107: 3682909 | AI107: 0
A108: 104 | B108: 1020736320 | C108: GOMEZ ZERDA DORIS VANESA | D108: PROVISIONALIDAD | E108: EN PROVISIONALIDAD | F108: 2017-03-09 | K108: VACANTE DEFINITIVA | O108: OCUPADO | P108: PROFESIONAL | Q108: PROFESIONAL UNIVERSITARIO | R108: 219 | S108: 18 | T108: 219-18 | U108: DESPACHO SECRETARÍA JURÍDICA | V108: 3179685 | W108: 3351070.021 | X108: 3501870 | Y108: 0 | Z108: 0 | AA108: 0 | AB108: 0 | AC108: 0 | AD108: 0 | AE108: 3501870 | AF108: 0 | AH108: 3501870 | AI108: 0 | AM108: =#REF!*0.4 -> 
A109: 105 | B109: 52830395 | C109: ORTEGA SANABRIA MARITZA | D109: PROVISIONALIDAD | E109: EN PROVISIONALIDAD | F109: 2017-03-30 | K109: VACANTE DEFINITIVA | O109: OCUPADO | P109: PROFESIONAL | Q109: PROFESIONAL UNIVERSITARIO | R109: 219 | S109: 18 | T109: 219-18 | U109: OFICINA ASESORA DE PLANEACIÓN | V109: 3179685 | W109: 3351070.021 | X109: 3501870 | Y109: 0 | Z109: 0 | AA109: 0 | AB109: 0 | AC109: 0 | AD109: 0 | AE109: 3501870 | AF109: 0 | AH109: 3501870 | AI109: 0 | AM109: =#REF!*0.4 -> 
A110: 106 | B110: 80022321 | C110: HERNÁNDEZ MURCIA SAMUEL ARTURO | D110: PROVISIONALIDAD | E110: EN PROVISIONALIDAD | F110: 2016-08-03 | K110: VACANTE DEFINITIVA | O110: OCUPADO | P110: PROFESIONAL | Q110: PROFESIONAL UNIVERSITARIO | R110: 219 | S110: 18 | T110: 219-18 | U110: DIRECCIÓN DE GESTIÓN CORPORATIVA | V110: 3179685 | W110: 3351070.021 | X110: 3501870 | Y110: 0 | Z110: 0 | AA110: 0 | AB110: 0 | AC110: 0 | AD110: 0 | AE110: 3501870 | AF110: 0 | AH110: 3501870 | AI110: 0 | AM110: =#REF!*0.4 -> 
A111: 107 | B111: 52768137 | C111: GARCIA CARDONA LUZ ESPERANZA | D111: PROVISIONALIDAD | E111: EN PROVISIONALIDAD | F111: 2017-04-18 | G111: 2017-04-18 | H111: MUJER | I111: 43 | K111: MENDOZA HILDA CONSUELO | L111: E15 | O111: OCUPADO | P111: PROFESIONAL | Q111: PROFESIONAL UNIVERSITARIO | R111: 219 | S111: 18 | T111: 219-18 | U111: DIRECCIÓN DE GESTIÓN CORPORATIVA | V111: 3179685 | W111: 3351070.021 | X111: 3501870 | Y111: 0 | Z111: 105056 | AA111: 1120598 | AB111: 0 | AC111: 0 | AD111: 0 | AE111: 4727524 | AF111: 0 | AH111: 3501870 | AI111: 0 | AM111: =#REF!*0.4 -> 
A112: 108 | B112: 52030615 | C112: RINCON MEDRANO GLORIA PATRICIA | D112: PROVISIONALIDAD | E112: EN PROVISIONALIDAD | F112: 2017-04-03 | K112: VACANTE DEFINITIVA | O112: OCUPADO | P112: PROFESIONAL | Q112: PROFESIONAL UNIVERSITARIO | R112: 219 | S112: 18 | T112: 219-18 | U112: DIRECCIÓN DE GESTIÓN CORPORATIVA | V112: 3179685 | W112: 3351070.021 | X112: 3501870 | Y112: 0 | Z112: 0 | AA112: 0 | AB112: 0 | AC112: 0 | AD112: 0 | AE112: 3501870 | AF112: 0 | AH112: 3501870 | AI112: 0 | AM112: =#REF!*0.4 -> 
A113: 109 | B113: 52410381 | C113: CURIEL AGUANCHA LAURA GABRIELA | D113: PROVISIONALIDAD | E113: EN PROVISIONALIDAD | F113: 2017-07-14 | K113: VACANTE DEFINITIVA | O113: OCUPADO | P113: PROFESIONAL | Q113: PROFESIONAL UNIVERSITARIO | R113: 219 | S113: 18 | T113: 219-18 | U113: DIRECCIÓN DE GESTIÓN CORPORATIVA | V113: 3179685 | W113: 3351070.021 | X113: 3501870 | Y113: 0 | Z113: 0 | AA113: 0 | AB113: 0 | AC113: 0 | AD113: 0 | AE113: 3501870 | AF113: 0 | AH113: 3501870 | AI113: 0 | AM113: =#REF!*0.4 -> 
A114: 110 | B114: 1122401417 | C114: MOLINA DAZA MARIA SUSANA | D114: PROVISIONALIDAD | E114: EN PROVISIONALIDAD | F114: 2017-11-10 | K114: VACANTE DEFINITIVA | O114: OCUPADO | P114: PROFESIONAL | Q114: PROFESIONAL UNIVERSITARIO | R114: 219 | S114: 18 | T114: 219-18 | U114: DIRECCIÓN DE GESTIÓN CORPORATIVA | V114: 3179685 | W114: 3351070.021 | X114: 3501870 | Y114: 0 | Z114: 0 | AA114: 0 | AB114: 0 | AC114: 0 | AD114: 0 | AE114: 3501870 | AF114: 0 | AH114: 3501870 | AI114: 0 | AM114: =#REF!*0.4 -> 
A115: 111 | B115: 52557124 | C115: SILVA GARCIA DORIS | D115: CARRERA ADMINISTRATIVA | E115: EN ENCARGO | F115: 2016-08-03 | G115: 1999-05-27 | H115: MUJER | I115: 52 | J115: ENCARGO | K115: GOMEZ CARMONA WALDINA | L115: E16 | M115: 2 | O115: OCUPADO | P115: PROFESIONAL | Q115: PROFESIONAL UNIVERSITARIO | R115: 219 | S115: 18 | T115: 219-18 | U115: DIRECCIÓN DISTRITAL DE DEFENSA JUDICIAL Y PREVENCIÓN DEL DAÑO ANTIJURÍDICO | V115: 3179685 | W115: 3351070.021 | X115: 3501870 | Y115: 0 | Z115: 245130 | AA115: 0 | AB115: 70037 | AC115: 0 | AD115: 0 | AE115: 3817037 | AF115: 0 | AH115: 3501870 | AI115: 0 | AM115: =#REF!*0.4 -> 
A116: 112 | B116: 80854795 | C116: GOMEZ LEAL JOSE OSWALDO | D116: PROVISIONALIDAD | E116: EN PROVISIONALIDAD | F116: 2017-07-04 | G116: 2021-04-13 | H116: HOMBRE | I116: 37 | K116: VACANTE DEFINITIVA | O116: OCUPADO | P116: PROFESIONAL | Q116: PROFESIONAL UNIVERSITARIO | R116: 219 | S116: 18 | T116: 219-18 | U116: DIRECCIÓN DISTRITAL DE DEFENSA JUDICIAL Y PREVENCIÓN DEL DAÑO ANTIJURÍDICO | V116: 3179685 | W116: 3351070.021 | X116: 3501870 | Y116: 0 | Z116: 0 | AA116: 1400748 | AB116: 0 | AC116: 0 | AD116: 0 | AE116: 4902618 | AF116: 0 | AH116: 3501870 | AI116: 0 | AM116: =#REF!*0.4 -> 
A117: 113 | B117: 1030541933 | C117: GUZMAN BENAVIDES DIANA MARCELA | D117: PROVISIONALIDAD | E117: EN PROVISIONALIDAD | F117: 2017-04-03 | K117: VACANTE DEFINITIVA | O117: OCUPADO | P117: PROFESIONAL | Q117: PROFESIONAL UNIVERSITARIO | R117: 219 | S117: 18 | T117: 219-18 | U117: DIRECCIÓN DISTRITAL DE DEFENSA JUDICIAL Y PREVENCIÓN DEL DAÑO ANTIJURÍDICO | V117: 3179685 | W117: 3351070.021 | X117: 3501870 | Y117: 0 | Z117: 0 | AA117: 0 | AB117: 0 | AC117: 0 | AD117: 0 | AE117: 3501870 | AF117: 0 | AH117: 3501870 | AI117: 0 | AM117: =#REF!*0.4 -> 
A118: 114 | B118: 1018435583 | C118: ROA SILVA SONIA TERESA | D118: PROVISIONALIDAD | E118: EN PROVISIONALIDAD | F118: 2017-04-18 | G118: 2020-12-30 | H118: MUJER | I118: 33 | K118: VACANTE DEFINITIVA | O118: OCUPADO | P118: PROFESIONAL | Q118: PROFESIONAL UNIVERSITARIO | R118: 219 | S118: 18 | T118: 219-18 | U118: DIRECCIÓN DISTRITAL DE DEFENSA JUDICIAL Y PREVENCIÓN DEL DAÑO ANTIJURÍDICO | V118: 3179685 | W118: 3351070.021 | X118: 3501870 | Y118: 0 | Z118: 0 | AA118: 1400748 | AB118: 0 | AC118: 0 | AD118: 0 | AE118: 4902618 | AF118: 0 | AH118: 3501870 | AI118: 0 | AM118: =#REF!*0.4 -> 
A119: 115 | B119: 52422659 | C119: GAMBOA PINEDA CLAUDIA YOHANA | D119: PROVISIONALIDAD | E119: EN PROVISIONALIDAD | F119: 2017-06-06 | K119: VACANTE DEFINITIVA | O119: OCUPADO | P119: PROFESIONAL | Q119: PROFESIONAL UNIVERSITARIO | R119: 219 | S119: 18 | T119: 219-18 | U119: DIRECCIÓN DISTRITAL DE DEFENSA JUDICIAL Y PREVENCIÓN DEL DAÑO ANTIJURÍDICO | V119: 3179685 | W119: 3351070.021 | X119: 3501870 | Y119: 0 | Z119: 0 | AA119: 0 | AB119: 0 | AC119: 0 | AD119: 0 | AE119: 3501870 | AF119: 0 | AH119: 3501870 | AI119: 0 | AM119: =#REF!*0.4 -> 
A120: 116 | B120: 1026251827 | C120: TELLEZ RUBIO LEIDY MILENA | D120: PROVISIONALIDAD | E120: EN PROVISIONALIDAD | F120: 2017-08-18 | K120: VACANTE DEFINITIVA | O120: OCUPADO | P120: PROFESIONAL | Q120: PROFESIONAL UNIVERSITARIO | R120: 219 | S120: 18 | T120: 219-18 | U120: DIRECCIÓN DISTRITAL DE DEFENSA JUDICIAL Y PREVENCIÓN DEL DAÑO ANTIJURÍDICO | V120: 3179685 | W120: 3351070.021 | X120: 3501870 | Y120: 0 | Z120: 0 | AA120: 0 | AB120: 0 | AC120: 0 | AD120: 0 | AE120: 3501870 | AF120: 0 | AH120: 3501870 | AI120: 0 | AM120: =#REF!*0.4 -> 
A121: 117 | B121: 16359534 | C121: LIBREROS CASTAÑEDA SENECA | D121: PROVISIONALIDAD | E121: EN PROVISIONALIDAD | F121: 2019-06-26 | G121: 2019-06-26 | H121: HOMBRE | I121: 59 | K121: PACHÓN PIÑEROS FERNANDO | L121: E24 | O121: OCUPADO | P121: PROFESIONAL | Q121: PROFESIONAL UNIVERSITARIO | R121: 219 | S121: 18 | T121: 219-18 | U121: DIRECCIÓN DISTRITAL DE DOCTRINA JURÍDICA | V121: 3179685 | W121: 3351070.021 | X121: 3501870 | Y121: 0 | Z121: 0 | AA121: 1400748 | AB121: 0 | AC121: 0 | AD121: 0 | AE121: 4902618 | AF121: 0 | AH121: 3501870 | AI121: 0 | AM121: =#REF!*0.4 -> 
A122: 118 | B122: 1010162887 | C122: CASTIBLANCO PALOMINO NATALIA KATHERINE | D122: PROVISIONALIDAD | E122: EN PROVISIONALIDAD | F122: 2017-06-12 | K122: VACANTE DEFINITIVA | O122: OCUPADO | P122: PROFESIONAL | Q122: PROFESIONAL UNIVERSITARIO | R122: 219 | S122: 18 | T122: 219-18 | U122: DIRECCIÓN DISTRITAL DE DOCTRINA JURÍDICA | V122: 3179685 | W122: 3351070.021 | X122: 3501870 | Y122: 0 | Z122: 0 | AA122: 0 | AB122: 0 | AC122: 0 | AD122: 0 | AE122: 3501870 | AF122: 0 | AH122: 3501870 | AI122: 0 | AM122: =#REF!*0.4 -> 
A123: 119 | B123: 1018410117 | C123: OSPINA FLOREZ ALEJANDRA PATRICIA | D123: PROVISIONALIDAD | E123: EN PROVISIONALIDAD | F123: 2017-11-10 | K123: SANDOVAL RODRÍGUEZ DUVÁN | L123: E10 | O123: OCUPADO | P123: PROFESIONAL | Q123: PROFESIONAL UNIVERSITARIO | R123: 219 | S123: 18 | T123: 219-18 | U123: DIRECCIÓN DISTRITAL DE DOCTRINA JURÍDICA | V123: 3179685 | W123: 3351070.021 | X123: 3501870 | Y123: 0 | Z123: 0 | AA123: 0 | AB123: 0 | AC123: 0 | AD123: 0 | AE123: 3501870 | AF123: 0 | AH123: 3501870 | AI123: 0 | AM123: =#REF!*0.4 -> 
A124: 120 | B124: 79354489 | C124: OSPINA MAYORGA ROBERTO JAVIER | D124: PROVISIONALIDAD | E124: EN PROVISIONALIDAD | F124: 2017-06-01 | K124: BERNATE NAVARRO ALVARO CAMILO | L124: E08 | O124: OCUPADO | P124: PROFESIONAL | Q124: PROFESIONAL UNIVERSITARIO | R124: 219 | S124: 18 | T124: 219-18 | U124: DIRECCIÓN DISTRITAL DE POLÍTICA E INFORMÁTICA JURÍDICA | V124: 3179685 | W124: 3351070.021 | X124: 3501870 | Y124: 0 | Z124: 105056 | AA124: 1400748 | AB124: 0 | AC124: 0 | AD124: 0 | AE124: 5007674 | AF124: 0 | AH124: 3501870 | AI124: 0 | AM124: =#REF!*0.4 -> 
A125: 121 | B125: 53001416 | C125: MORENO VARGAS DIANA MARIA | D125: PROVISIONALIDAD | E125: EN PROVISIONALIDAD | F125: 2017-04-18 | K125: VACANTE DEFINITIVA | O125: OCUPADO | P125: PROFESIONAL | Q125: PROFESIONAL UNIVERSITARIO | R125: 219 | S125: 18 | T125: 219-18 | U125: DIRECCIÓN DISTRITAL DE POLÍTICA E INFORMÁTICA JURÍDICA | V125: 3179685 | W125: 3351070.021 | X125: 3501870 | Y125: 0 | Z125: 0 | AA125: 0 | AB125: 0 | AC125: 0 | AD125: 0 | AE125: 3501870 | AF125: 0 | AH125: 3501870 | AI125: 0 | AM125: =#REF!*0.4 -> 
A126: 122 | B126: 52422898 | C126: ROJAS CUERVO LEIDY PAOLA | D126: PROVISIONALIDAD | E126: EN PROVISIONALIDAD | F126: 2017-11-10 | K126: MUÑOZ CUERVO HERNAN BENJAMIN | L126: E12 | O126: OCUPADO | P126: PROFESIONAL | Q126: PROFESIONAL UNIVERSITARIO | R126: 219 | S126: 18 | T126: 219-18 | U126: DIRECCIÓN DISTRITAL DE INSPECCIÓN VIGILANCIA Y CONTROL DE PERSONAS JURIDICA SIN ÁNIMO DE LUCRO | V126: 3179685 | W126: 3351070.021 | X126: 3501870 | Y126: 0 | Z126: 0 | AA126: 0 | AB126: 0 | AC126: 0 | AD126: 0 | AE126: 3501870 | AF126: 0 | AH126: 3501870 | AI126: 0 | AM126: =#REF!*0.4 -> 
A127: 123 | B127: 52103754 | C127: ORTIZ NUBIA STELLA | D127: PROVISIONALIDAD | E127: EN PROVISIONALIDAD | F127: 2016-08-03 | K127: VACANTE DEFINITIVA | O127: OCUPADO | P127: PROFESIONAL | Q127: PROFESIONAL UNIVERSITARIO | R127: 219 | S127: 18 | T127: 219-18 | U127: DIRECCIÓN DISTRITAL DE INSPECCIÓN VIGILANCIA Y CONTROL DE PERSONAS JURIDICA SIN ÁNIMO DE LUCRO | V127: 3179685 | W127: 3351070.021 | X127: 3501870 | Y127: 0 | Z127: 0 | AA127: 0 | AB127: 0 | AC127: 0 | AD127: 0 | AE127: 3501870 | AF127: 0 | AH127: 3501870 | AI127: 0 | AM127: =#REF!*0.4 -> 
A128: 124 | B128: 79651151 | C128: MIRANDA NADER ALFONSO GABRIEL | D128: PROVISIONALIDAD | E128: EN PROVISIONALIDAD | F128: 2017-08-01 | K128: VACANTE DEFINITIVA | O128: OCUPADO | P128: PROFESIONAL | Q128: PROFESIONAL UNIVERSITARIO | R128: 219 | S128: 18 | T128: 219-18 | U128: DIRECCIÓN DISTRITAL DE INSPECCIÓN VIGILANCIA Y CONTROL DE PERSONAS JURIDICA SIN ÁNIMO DE LUCRO | V128: 3179685 | W128: 3351070.021 | X128: 3501870 | Y128: 0 | Z128: 0 | AA128: 0 | AB128: 0 | AC128: 0 | AD128: 0 | AE128: 3501870 | AF128: 0 | AH128: 3501870 | AI128: 0 | AM128: =#REF!*0.4 -> 
A129: 125 | B129: 36283216 | C129: SANABRIA CHARRY JOVITA IDALBA | D129: PROVISIONALIDAD | E129: EN PROVISIONALIDAD | F129: 2019-06-26 | J129: =IF(AND(($M129>=1),($M129<>"VT"),(N129="")),"ENCARGO",IF($N129="CM","COMISIÒN","")) ->  | K129: VACANTE DEFINITIVA | O129: OCUPADO | P129: PROFESIONAL | Q129: PROFESIONAL UNIVERSITARIO | R129: 219 | S129: 18 | T129: =R129&"-"&S129 -> 219-18 | U129: DIRECCIÓN DISTRITAL DE INSPECCIÓN VIGILANCIA Y CONTROL DE PERSONAS JURIDICA SIN ÁNIMO DE LUCRO | V129: 3179685 | W129: 3351070.021 | X129: 3501870 | Y129: 0 | Z129: 0 | AA129: 0 | AB129: 0 | AC129: 0 | AD129: 0 | AE129: 3501870 | AF129: 0 | AH129: 3501870 | AI129: 0 | AM129: =#REF!*0.4 -> 
A130: 126 | B130: 1020725639 | C130: RODRÍGUEZ NOPE MARÍA MARGARITA | D130: PROVISIONALIDAD | E130: EN PROVISIONALIDAD | F130: 2016-08-03 | K130: VACANTE DEFINITIVA | O130: OCUPADO | P130: PROFESIONAL | Q130: PROFESIONAL UNIVERSITARIO | R130: 219 | S130: 18 | T130: 219-18 | U130: DIRECCIÓN DISTRITAL DE INSPECCIÓN VIGILANCIA Y CONTROL DE PERSONAS JURIDICA SIN ÁNIMO DE LUCRO | V130: 3179685 | W130: 3351070.021 | X130: 3501870 | Y130: 0 | Z130: 0 | AA130: 0 | AB130: 0 | AC130: 0 | AD130: 0 | AE130: 3501870 | AF130: 0 | AH130: 3501870 | AI130: 0 | AM130: =#REF!*0.4 -> 
A131: 127 | B131: 79296576 | C131: PINTO CASTAÑEDA JOSE JAVIER | D131: PROVISIONALIDAD | E131: EN PROVISIONALIDAD | F131: 2017-04-17 | K131: VACANTE DEFINITIVA | O131: OCUPADO | P131: PROFESIONAL | Q131: PROFESIONAL UNIVERSITARIO | R131: 219 | S131: 18 | T131: 219-18 | U131: DIRECCIÓN DISTRITAL DE INSPECCIÓN VIGILANCIA Y CONTROL DE PERSONAS JURIDICA SIN ÁNIMO DE LUCRO | V131: 3179685 | W131: 3351070.021 | X131: 3501870 | Y131: 0 | Z131: 0 | AA131: 0 | AB131: 0 | AC131: 0 | AD131: 0 | AE131: 3501870 | AF131: 0 | AH131: 3501870 | AI131: 0 | AM131: =#REF!*0.4 -> 
A132: 128 | B132: 11807282 | C132: RENGIFO MONTAÑO ELKIN | D132: PROVISIONALIDAD | E132: EN PROVISIONALIDAD | F132: 2017-11-10 | K132: VACANTE DEFINITIVA | O132: OCUPADO | P132: PROFESIONAL | Q132: PROFESIONAL UNIVERSITARIO | R132: 219 | S132: 18 | T132: 219-18 | U132: DIRECCIÓN DISTRITAL DE INSPECCIÓN VIGILANCIA Y CONTROL DE PERSONAS JURIDICA SIN ÁNIMO DE LUCRO | V132: 3179685 | W132: 3351070.021 | X132: 3501870 | Y132: 0 | Z132: 0 | AA132: 0 | AB132: 0 | AC132: 0 | AD132: 0 | AE132: 3501870 | AF132: 0 | AH132: 3501870 | AI132: 0 | AM132: =#REF!*0.4 -> 
A133: 129 | B133: 1032414375 | C133: SUSPES CAMARGO ANGELICA | D133: PROVISIONALIDAD | E133: =VLOOKUP(IF(AND($D133<>"",$J133=""),$D133,IF(AND($D133<>"",$J133<>""),$J133,$C133)),$AM$5:$AN$16,2,0) -> EN PROVISIONALIDAD | F133: 2017-05-04 | H133: =IF(IFERROR((VLOOKUP($B133,PLANTA_PERNO,9,0)),"")="F","MUJER",IF(IFERROR((VLOOKUP($B133,PLANTA_PERNO,9,0)),"")="M","HOMBRE","")) ->  | I133: =IFERROR(DATEDIF((VLOOKUP($B133,PLANTA_PERNO,6,0)),$I$3,"Y"),"") ->  | K133: VACANTE DEFINITIVA | O133: =IF(OR(C133="VACANTE DEFINITIVA",C133="VACANTE TEMPORAL"),"VACANTE ","OCUPADO") -> OCUPADO | P133: PROFESIONAL | Q133: PROFESIONAL UNIVERSITARIO | R133: 219 | S133: 15 | T133: 219-15 | U133: DIRECCIÓN DISTRITAL DE ASUNTOS DISCIPLINARIOS | V133: 3083641 | W133: 3249849.25 | X133: 3396094 | Y133: 0 | Z133: =IFERROR(INT(($X133*(VLOOKUP($B133,BASE_PORCENTAJES,10,0))/100)),0) -> 0 | AA133: =IFERROR(INT(($X133*(VLOOKUP($B133,BASE_PORCENTAJES,12,0))/100)),0) -> 0 | AB133: =IFERROR(INT(($X133*(VLOOKUP($B133,BASE_PORCENTAJES,13,0))/100)),0) -> 0 | AC133: =IF($X133<=1656232,97032,0) -> 0 | AD133: 0 | AE133: =SUM(X133:AD133) -> 3396094 | AF133: 0 | AH133: 3396094 | AI133: 0
A134: 130 | B134: 1016059342 | C134: MORALES RODRIGUEZ ANA MARIA | D134: PROVISIONALIDAD | E134: EN PROVISIONALIDAD | F134: 2017-03-09 | K134: VACANTE DEFINITIVA | O134: OCUPADO | P134: PROFESIONAL | Q134: PROFESIONAL UNIVERSITARIO | R134: 219 | S134: 15 | T134: 219-15 | U134: DIRECCIÓN DISTRITAL DE INSPECCIÓN VIGILANCIA Y CONTROL DE PERSONAS JURIDICA SIN ÁNIMO DE LUCRO | V134: 3083641 | W134: 3249849.25 | X134: 3396094 | Y134: 0 | Z134: 0 | AA134: 0 | AB134: 0 | AC134: 0 | AD134: =IF($X134<=1763224,62878,0) -> 0 | AE134: 3396094 | AF134: =Y134/X134 -> 0 | AH134: 3396094 | AI134: =AH134*AF134 -> 0
A135: 131 | B135: 80165110 | C135: GOMEZ SILVA JUAN CARLOS | D135: PROVISIONALIDAD | E135: EN PROVISIONALIDAD | F135: 2017-03-09 | K135: VACANTE DEFINITIVA | O135: OCUPADO | P135: PROFESIONAL | Q135: PROFESIONAL UNIVERSITARIO | R135: 219 | S135: 15 | T135: 219-15 | U135: DIRECCIÓN DISTRITAL DE INSPECCIÓN VIGILANCIA Y CONTROL DE PERSONAS JURIDICA SIN ÁNIMO DE LUCRO | V135: 3083641 | W135: 3249849.25 | X135: 3396094 | Y135: 0 | Z135: 0 | AA135: 0 | AB135: 0 | AC135: 0 | AD135: 0 | AE135: 3396094 | AF135: 0 | AH135: 3396094 | AI135: 0
A136: 132 | B136: 52519358 | C136: PUENTES PARDO MAGDA PATRICIA | D136: PROVISIONALIDAD | E136: EN PROVISIONALIDAD | F136: 2017-11-10 | K136: VACANTE DEFINITIVA | O136: OCUPADO | P136: PROFESIONAL | Q136: PROFESIONAL UNIVERSITARIO | R136: 219 | S136: 15 | T136: 219-15 | U136: DIRECCIÓN DISTRITAL DE INSPECCIÓN VIGILANCIA Y CONTROL DE PERSONAS JURIDICA SIN ÁNIMO DE LUCRO | V136: 3083641 | W136: 3249849.25 | X136: 3396094 | Y136: 0 | Z136: 0 | AA136: 0 | AB136: 0 | AC136: 0 | AD136: 0 | AE136: 3396094 | AF136: 0 | AH136: 3396094 | AI136: 0
A137: 133 | B137: 1098653678 | C137: OVALLE GALEANO NAYDA JULYHT | D137: PROVISIONALIDAD | E137: EN PROVISIONALIDAD | F137: 2017-11-10 | K137: VACANTE DEFINITIVA | O137: OCUPADO | P137: PROFESIONAL | Q137: PROFESIONAL UNIVERSITARIO | R137: 219 | S137: 15 | T137: 219-15 | U137: DIRECCIÓN DISTRITAL DE INSPECCIÓN VIGILANCIA Y CONTROL DE PERSONAS JURIDICA SIN ÁNIMO DE LUCRO | V137: 3083641 | W137: 3249849.25 | X137: 3396094 | Y137: 0 | Z137: 0 | AA137: 0 | AB137: 0 | AC137: 0 | AD137: 0 | AE137: 3396094 | AF137: 0 | AH137: 3396094 | AI137: 0
A138: 134 | B138: 79262614 | C138: LÓPEZ ACUÑA OSCAR ERNESTO | D138: CARRERA ADMINISTRATIVA | E138: EN ENCARGO | F138: 2016-08-03 | G138: 1998-04-21 | H138: HOMBRE | I138: 60 | J138: ENCARGO | K138: VACANTE DEFINITIVA | L138: E18 | M138: 1 | O138: OCUPADO | P138: PROFESIONAL | Q138: PROFESIONAL UNIVERSITARIO | R138: 219 | S138: 13 | T138: 219-13 | U138: OFICINA DE CONTROL INTERNO | V138: 2923148 | W138: 3080705.677 | X138: 3219338 | Y138: 0 | Z138: 225353 | AA138: 0 | AB138: 0 | AC138: 0 | AD138: 0 | AE138: 3444691 | AF138: 0 | AH138: 3219338 | AI138: 0
A139: 135 | B139: 1032416357 | C139: MEDINA MATEUS DICKSON HERNANDO | D139: PROVISIONALIDAD | E139: EN PROVISIONALIDAD | F139: 2017-03-09 | K139: VACANTE DEFINITIVA | O139: OCUPADO | P139: PROFESIONAL | Q139: PROFESIONAL UNIVERSITARIO | R139: 219 | S139: 13 | T139: 219-13 | U139: DIRECCIÓN DISTRITAL DE POLÍTICA E INFORMÁTICA JURÍDICA | V139: 2923148 | W139: 3080705.677 | X139: 3219338 | Y139: 0 | Z139: 0 | AA139: 0 | AB139: 0 | AC139: 0 | AD139: 0 | AE139: 3219338 | AF139: 0 | AH139: 3219338 | AI139: 0
A140: 136 | B140: 37324133 | C140: PORTILLO LINARES OLGA CECILIA | D140: PROVISIONALIDAD | E140: EN PROVISIONALIDAD | F140: 2017-07-24 | K140: VACANTE DEFINITIVA | O140: OCUPADO | P140: PROFESIONAL | Q140: PROFESIONAL UNIVERSITARIO | R140: 219 | S140: 13 | T140: 219-13 | U140: DIRECCIÓN DISTRITAL DE POLÍTICA E INFORMÁTICA JURÍDICA | V140: 2923148 | W140: 3080705.677 | X140: 3219338 | Y140: 0 | Z140: 0 | AA140: 0 | AB140: 0 | AC140: 0 | AD140: 0 | AE140: 3219338 | AF140: 0 | AH140: 3219338 | AI140: 0
A141: 137 | B141: 1010201219 | C141: GONZALEZ LOPEZ ESTEBAN AUGUSTO | D141: PROVISIONALIDAD | E141: EN PROVISIONALIDAD | F141: 2017-04-18 | K141: VACANTE DEFINITIVA | O141: OCUPADO | P141: PROFESIONAL | Q141: PROFESIONAL UNIVERSITARIO | R141: 219 | S141: 10 | T141: 219-10 | U141: OFICINA DE CONTROL INTERNO | V141: 2638819 | W141: 2781051.344 | X141: 2906200 | Y141: 0 | Z141: 0 | AA141: 0 | AB141: 0 | AC141: 0 | AD141: 0 | AE141: 2906200 | AF141: 0 | AH141: 2906200 | AI141: 0
A142: 138 | B142: 51560501 | C142: PORRAS SILVA EDITH MARLENE | D142: PROVISIONALIDAD | E142: EN PROVISIONALIDAD | F142: 2016-08-03 | K142: VACANTE DEFINITIVA | O142: OCUPADO | P142: PROFESIONAL | Q142: PROFESIONAL UNIVERSITARIO | R142: 219 | S142: 10 | T142: 219-10 | U142: DIRECCIÓN DE GESTIÓN CORPORATIVA | V142: 2638819 | W142: 2781051.344 | X142: 2906200 | Y142: 0 | Z142: 0 | AA142: 0 | AB142: 0 | AC142: 0 | AD142: 0 | AE142: 2906200 | AF142: 0 | AH142: 2906200 | AI142: 0
A143: 139 | B143: 80775238 | C143: TORRES GRANADOS LUIS GABRIEL | D143: PROVISIONALIDAD | E143: EN PROVISIONALIDAD | F143: 2016-08-03 | K143: VACANTE DEFINITIVA | N143: 1 | O143: OCUPADO | P143: PROFESIONAL | Q143: PROFESIONAL UNIVERSITARIO | R143: 219 | S143: 10 | T143: 219-10 | U143: DIRECCIÓN DE GESTIÓN CORPORATIVA | V143: 2638819 | W143: 2781051.344 | X143: 2906200 | Y143: 0 | Z143: 0 | AA143: 0 | AB143: 0 | AC143: 0 | AD143: 0 | AE143: 2906200 | AF143: 0 | AH143: 2906200 | AI143: 0
A144: 140 | B144: 1018407635 | C144: ROMERO BARREIRO MARIA DEL PILAR | D144: PROVISIONALIDAD | E144: EN PROVISIONALIDAD | F144: 2019-01-08 | K144: MURILLO HURTADO VICTOR HERNANDO | L144: E03 | O144: OCUPADO | P144: PROFESIONAL | Q144: PROFESIONAL UNIVERSITARIO | R144: 219 | S144: 9 | T144: 219-9 | U144: OFICINA ASESORA DE PLANEACIÓN | V144: 2616641 | W144: 2757677.95 | X144: 2881774 | Y144: 0 | Z144: 0 | AA144: 0 | AB144: 0 | AC144: 0 | AD144: 0 | AE144: 2881774 | AF144: 0 | AH144: 2881774 | AI144: 0
A145: 141 | B145: 79957111 | C145: MENDEZ PULECIO JAIME ALEXANDER | D145: PROVISIONALIDAD | E145: EN PROVISIONALIDAD | F145: 2017-03-15 | K145: VACANTE DEFINITIVA | O145: OCUPADO | P145: PROFESIONAL | Q145: PROFESIONAL UNIVERSITARIO | R145: 219 | S145: 8 | T145: 219-8 | U145: OFICINA DE LAS TECNOLOGÍAS DE LA INFORMACIÓN Y LAS COMUNICACIONES | V145: 2565917 | W145: 2704219.926 | X145: 2825910 | Y145: 0 | Z145: 0 | AA145: 0 | AB145: 0 | AC145: 0 | AD145: 0 | AE145: 2825910 | AF145: 0 | AH145: 2825910 | AI145: 0
A146: 142 | C146: VACANTE TEMPORAL | E146: VACANTE TEMPORAL | K146: BARRERA DIAZ MARTHA LILIANA | L146: E01 | O146: VACANTE | P146: PROFESIONAL | Q146: PROFESIONAL UNIVERSITARIO | R146: 219 | S146: 8 | T146: 219-8 | U146: DIRECCIÓN DE GESTIÓN CORPORATIVA | V146: 2565917 | W146: 2704219.926 | X146: 2825910 | Y146: 0 | Z146: 0 | AA146: 0 | AB146: 0 | AC146: 0 | AD146: 0 | AE146: 2825910 | AF146: 0 | AH146: 2825910 | AI146: 0
A147: 143 | B147: 1069746875 | C147: PARDO QUIROGA JHON ESTIBEN | D147: PROVISIONALIDAD | E147: EN PROVISIONALIDAD | F147: 2019-06-26 | K147: VACANTE DEFINITIVA | O147: OCUPADO | P147: PROFESIONAL | Q147: PROFESIONAL UNIVERSITARIO | R147: 219 | S147: 3 | T147: 219-3 | U147: DIRECCIÓN DISTRITAL DE POLÍTICA E INFORMÁTICA JURÍDICA | V147: 2267773 | W147: 2390005.965 | X147: 2497557 | Y147: 0 | Z147: 0 | AA147: 0 | AB147: 0 | AC147: 0 | AD147: 0 | AE147: 2497557 | AF147: 0 | AH147: 2497557 | AI147: 0
A148: 144 | B148: 79728884 | C148: ESPINOSA ROMERO JOHN WILLIAM | D148: PROVISIONALIDAD | E148: EN PROVISIONALIDAD | F148: 2019-06-26 | K148: VACANTE DEFINITIVA | O148: OCUPADO | P148: PROFESIONAL | Q148: PROFESIONAL UNIVERSITARIO | R148: 219 | S148: 1 | T148: 219-1 | U148: DIRECCIÓN DISTRITAL DE DEFENSA JUDICIAL Y PREVENCIÓN DEL DAÑO ANTIJURÍDICO | V148: 2131560 | W148: 2246451.084 | X148: 2347543 | Y148: 0 | Z148: 0 | AA148: 0 | AB148: 0 | AC148: 0 | AD148: 0 | AE148: 2347543 | AF148: 0 | AH148: 2347543 | AI148: 0
A149: 145 | B149: 52428783 | C149: GUANTIVA SANCHEZ DIANA PAOLA | D149: PROVISIONALIDAD | E149: EN PROVISIONALIDAD | F149: 2018-11-13 | K149: VACANTE DEFINITIVA | O149: OCUPADO | P149: PROFESIONAL | Q149: PROFESIONAL UNIVERSITARIO | R149: 219 | S149: 1 | T149: 219-1 | U149: DIRECCIÓN DISTRITAL DE POLÍTICA E INFORMÁTICA JURÍDICA | V149: 2131560 | W149: 2246451.084 | X149: 2347543 | Y149: 0 | Z149: 0 | AA149: 0 | AB149: 0 | AC149: 0 | AD149: 0 | AE149: 2347543 | AF149: 0 | AH149: 2347543 | AI149: 0
A150: 146 | B150: 1022360914 | C150: TELLEZ CRUZ ALVARO JAVIER | D150: PROVISIONALIDAD | E150: EN PROVISIONALIDAD | F150: 2017-06-06 | G150: 2017-06-06 | H150: HOMBRE | I150: 33 | K150: VACANTE DEFINITIVA | O150: OCUPADO | P150: PROFESIONAL | Q150: PROFESIONAL UNIVERSITARIO | R150: 219 | S150: 1 | T150: 219-1 | U150: DIRECCIÓN DISTRITAL DE POLÍTICA E INFORMÁTICA JURÍDICA | V150: 2131560 | W150: 2246451.084 | X150: 2347543 | Y150: 0 | Z150: 70426 | AA150: 939017 | AB150: 0 | AC150: 0 | AD150: 0 | AE150: 3356986 | AF150: 0 | AH150: 2347543 | AI150: 0
A151: 147 | B151: 79431243 | C151: OSPINA ZAPATA WALTER | D151: CARRERA ADMINISTRATIVA | E151: EN ENCARGO | F151: 2016-08-03 | G151: 2005-04-01 | H151: HOMBRE | I151: 56 | J151: ENCARGO | K151: VACANTE DEFINITIVA | L151: E05 | M151: 1 | O151: OCUPADO | P151: PROFESIONAL | Q151: PROFESIONAL UNIVERSITARIO | R151: 219 | S151: 1 | T151: 219-1 | U151: DIRECCIÓN DISTRITAL DE INSPECCIÓN VIGILANCIA Y CONTROL DE PERSONAS JURIDICA SIN ÁNIMO DE LUCRO | V151: 2131560 | W151: 2246451.084 | X151: 2347543 | Y151: 0 | Z151: 164328 | AA151: 0 | AB151: 0 | AC151: 0 | AD151: 0 | AE151: 2511871 | AF151: 0 | AH151: 2347543 | AI151: 0
A152: 148 | C152: VACANTE DEFINITIVA | E152: VACANTE DEFINITIVA | K152: VACANTE DEFINITIVA | O152: VACANTE | P152: PROFESIONAL | Q152: PROFESIONAL UNIVERSITARIO | R152: 219 | S152: 1 | T152: 219-1 | U152: DIRECCIÓN DISTRITAL DE INSPECCIÓN VIGILANCIA Y CONTROL DE PERSONAS JURIDICA SIN ÁNIMO DE LUCRO | V152: 2131560 | W152: 2246451.084 | X152: 2347543 | Y152: 0 | Z152: 0 | AA152: 0 | AB152: 0 | AC152: 0 | AD152: 0 | AE152: 2347543 | AF152: 0 | AH152: 2347543 | AI152: 0
A153: 149 | B153: 1024536625 | C153: RODRIGUEZ FONSECA KEVIN ANDRES | D153: PROVISIONALIDAD | E153: EN PROVISIONALIDAD | F153: 2017-05-15 | K153: VACANTE DEFINITIVA | O153: OCUPADO | P153: PROFESIONAL | Q153: PROFESIONAL UNIVERSITARIO | R153: 219 | S153: 1 | T153: 219-1 | U153: DIRECCIÓN DISTRITAL DE INSPECCIÓN VIGILANCIA Y CONTROL DE PERSONAS JURIDICA SIN ÁNIMO DE LUCRO | V153: 2131560 | W153: 2246451.084 | X153: 2347543 | Y153: 0 | Z153: 0 | AA153: 0 | AB153: 0 | AC153: 0 | AD153: 0 | AE153: 2347543 | AF153: 0 | AH153: 2347543 | AI153: 0
A154: 150 | B154: 1015438900 | C154: VICTORIA GARCIA YURY PAOLA | D154: PROVISIONALIDAD | E154: EN PROVISIONALIDAD | F154: 2017-05-17 | K154: VACANTE DEFINITIVA | O154: OCUPADO | P154: PROFESIONAL | Q154: PROFESIONAL UNIVERSITARIO | R154: 219 | S154: 1 | T154: 219-1 | U154: DIRECCIÓN DISTRITAL DE INSPECCIÓN VIGILANCIA Y CONTROL DE PERSONAS JURIDICA SIN ÁNIMO DE LUCRO | V154: 2131560 | W154: 2246451.084 | X154: 2347543 | Y154: 0 | Z154: 0 | AA154: 0 | AB154: 0 | AC154: 0 | AD154: 0 | AE154: 2347543 | AF154: 0 | AH154: 2347543 | AI154: 0
A155: 151 | B155: 79138328 | C155: CORTES SALGADO ALEX | D155: CARRERA ADMINISTRATIVA | E155: EN ENCARGO | F155: 2016-08-03 | G155: 1995-01-12 | H155: HOMBRE | I155: 51 | J155: ENCARGO | K155: VACANTE DEFINITIVA | L155: E25 | M155: 1 | O155: OCUPADO | P155: TÉCNICO OPERATIVO | Q155: TÉCNICO OPERATIVO | R155: 314 | S155: 21 | T155: 314-21 | U155: DESPACHO SECRETARÍA JURÍDICA | V155: 2590507 | W155: 2730135.327 | X155: 2844986 | Y155: 0 | Z155: 199149 | AA155: 0 | AB155: 0 | AC155: 0 | AD155: 0 | AE155: 3044135 | AF155: 0 | AH155: 2844986 | AI155: 0
A156: 152 | B156: 19768492 | C156: BARRAZA TERRAZA LUIS CARLOS | D156: PROVISIONALIDAD | E156: EN PROVISIONALIDAD | F156: 2017-05-15 | K156: VACANTE DEFINITIVA | O156: OCUPADO | P156: TÉCNICO OPERATIVO | Q156: TÉCNICO OPERATIVO | R156: 314 | S156: 20 | T156: 314-20 | U156: OFICINA DE LAS TECNOLOGÍAS DE LA INFORMACIÓN Y LAS COMUNICACIONES | V156: 2590507 | W156: 2722374 | X156: 2844881 | Y156: 0 | Z156: 0 | AA156: 0 | AB156: 0 | AC156: 0 | AD156: 0 | AE156: 2844881 | AF156: 0 | AH156: 2844881 | AI156: 0
A157: 153 | B157: 1030602070 | C157: PEREZ GUTIERREZ FAVER | D157: PROVISIONALIDAD | E157: EN PROVISIONALIDAD | F157: 2019-01-15 | K157: VACANTE DEFINITIVA | O157: OCUPADO | P157: TÉCNICO OPERATIVO | Q157: TÉCNICO OPERATIVO | R157: 314 | S157: 20 | T157: 314-20 | U157: OFICINA DE LAS TECNOLOGÍAS DE LA INFORMACIÓN Y LAS COMUNICACIONES | V157: 2590507 | W157: 2722374 | X157: 2844881 | Y157: 0 | Z157: 0 | AA157: 0 | AB157: 0 | AC157: 0 | AD157: 0 | AE157: 2844881 | AF157: 0 | AH157: 2844881 | AI157: 0
A158: 154 | C158: VACANTE DEFINITIVA | E158: VACANTE DEFINITIVA | K158: VACANTE DEFINITIVA | O158: VACANTE | P158: TÉCNICO OPERATIVO | Q158: TÉCNICO OPERATIVO | R158: 314 | S158: 20 | T158: 314-20 | U158: DIRECCIÓN DE GESTIÓN CORPORATIVA | V158: 2590507 | W158: 2722374 | X158: 2844881 | Y158: 0 | Z158: 0 | AA158: 0 | AB158: 0 | AC158: 0 | AD158: 0 | AE158: 2844881 | AF158: 0 | AH158: 2844881 | AI158: 0
A159: 155 | B159: 52020762 | C159: CASTRO MUÑOZ ADRIANA | D159: PROVISIONALIDAD | E159: EN PROVISIONALIDAD | F159: 2017-05-05 | K159: VACANTE DEFINITIVA | O159: OCUPADO | P159: TÉCNICO OPERATIVO | Q159: TÉCNICO OPERATIVO | R159: 314 | S159: 20 | T159: 314-20 | U159: DIRECCIÓN DE GESTIÓN CORPORATIVA | V159: 2590507 | W159: 2722374 | X159: 2844881 | Y159: 0 | Z159: 0 | AA159: 0 | AB159: 0 | AC159: 0 | AD159: 0 | AE159: 2844881 | AF159: 0 | AH159: 2844881 | AI159: 0
A160: 156 | B160: 8740572 | C160: MONTES ESCOBAR EDUARDO JOSE | D160: PROVISIONALIDAD | E160: EN PROVISIONALIDAD | F160: 2017-03-09 | K160: VACANTE DEFINITIVA | O160: OCUPADO | P160: TÉCNICO OPERATIVO | Q160: TÉCNICO OPERATIVO | R160: 314 | S160: 20 | T160: 314-20 | U160: DIRECCIÓN DISTRITAL DE INSPECCIÓN VIGILANCIA Y CONTROL DE PERSONAS JURIDICA SIN ÁNIMO DE LUCRO | V160: 2590507 | W160: 2722374 | X160: 2844881 | Y160: 0 | Z160: 0 | AA160: 0 | AB160: 0 | AC160: 0 | AD160: 0 | AE160: 2844881 | AF160: 0 | AH160: 2844881 | AI160: 0
A161: 157 | B161: 79890393 | C161: VILLALOBOS BALLESTEROS WILLIAM ALEXIS | D161: PROVISIONALIDAD | E161: EN PROVISIONALIDAD | F161: 2017-03-09 | K161: VACANTE DEFINITIVA | O161: OCUPADO | P161: TÉCNICO OPERATIVO | Q161: TÉCNICO OPERATIVO | R161: 314 | S161: 20 | T161: 314-20 | U161: DIRECCIÓN DISTRITAL DE INSPECCIÓN VIGILANCIA Y CONTROL DE PERSONAS JURIDICA SIN ÁNIMO DE LUCRO | V161: 2590507 | W161: 2722374 | X161: 2844881 | Y161: 0 | Z161: 0 | AA161: 0 | AB161: 0 | AC161: 0 | AD161: 0 | AE161: 2844881 | AF161: 0 | AH161: 2844881 | AI161: 0
A162: 158 | B162: 1120368687 | C162: CASTRO FERNANDEZ JIMMY ARISTIDES | D162: PROVISIONALIDAD | E162: EN PROVISIONALIDAD | F162: 2017-05-15 | K162: VACANTE DEFINITIVA | O162: OCUPADO | P162: TÉCNICO OPERATIVO | Q162: TÉCNICO OPERATIVO | R162: 314 | S162: 20 | T162: 314-20 | U162: DIRECCIÓN DISTRITAL DE INSPECCIÓN VIGILANCIA Y CONTROL DE PERSONAS JURIDICA SIN ÁNIMO DE LUCRO | V162: 2590507 | W162: 2722374 | X162: 2844881 | Y162: 0 | Z162: 0 | AA162: 0 | AB162: 0 | AC162: 0 | AD162: 0 | AE162: 2844881 | AF162: 0 | AH162: 2844881 | AI162: 0
A163: 159 | B163: 1026255045 | C163: SANCHEZ BELTRAN MARTHA ALEJANDRA | D163: PROVISIONALIDAD | E163: EN PROVISIONALIDAD | F163: 2019-06-26 | K163: VACANTE DEFINITIVA | O163: OCUPADO | P163: TÉCNICO OPERATIVO | Q163: TÉCNICO OPERATIVO | R163: 314 | S163: 20 | T163: 314-20 | U163: DIRECCIÓN DISTRITAL DE INSPECCIÓN VIGILANCIA Y CONTROL DE PERSONAS JURIDICA SIN ÁNIMO DE LUCRO | V163: 2590507 | W163: 2722374 | X163: 2844881 | Y163: 0 | Z163: 0 | AA163: 0 | AB163: 0 | AC163: 0 | AD163: 0 | AE163: 2844881 | AF163: 0 | AH163: 2844881 | AI163: 0
A164: 160 | B164: 52235989 | C164: ARDILA VERGARA MILDRED PAOLA | D164: CARRERA ADMINISTRATIVA | E164: EN ENCARGO | F164: 2016-08-03 | G164: 2005-04-04 | H164: MUJER | I164: 44 | J164: ENCARGO | K164: VACANTE DEFINITIVA | L164: E21 | M164: 1 | O164: OCUPADO | P164: TÉCNICO OPERATIVO | Q164: TÉCNICO OPERATIVO | R164: 314 | S164: 20 | T164: 314-20 | U164: DIRECCIÓN DISTRITAL DE INSPECCIÓN VIGILANCIA Y CONTROL DE PERSONAS JURIDICA SIN ÁNIMO DE LUCRO | V164: 2590507 | W164: 2722374 | X164: 2844881 | Y164: 0 | Z164: 199141 | AA164: 0 | AB164: 0 | AC164: 0 | AD164: 0 | AE164: 3044022 | AF164: 0 | AH164: 2844881 | AI164: 0
A165: 161 | B165: 1013587782 | C165: PIÑEROS SANCHEZ ROGER EDUARDO | D165: PROVISIONALIDAD | E165: =VLOOKUP(IF(AND($D165<>"",$J165=""),$D165,IF(AND($D165<>"",$J165<>""),$J165,$C165)),$AM$5:$AN$16,2,0) -> EN PROVISIONALIDAD | F165: 2017-06-01 | K165: VACANTE DEFINITIVA | O165: OCUPADO | P165: TÉCNICO OPERATIVO | Q165: TÉCNICO OPERATIVO | R165: 314 | S165: 15 | T165: 314-15 | U165: SUBSECRETARÍA JURÍDICA | V165: 2258253 | W165: 2379972.837 | X165: 2487072 | Y165: 0 | Z165: 0 | AA165: 0 | AB165: 0 | AC165: 0 | AD165: 0 | AE165: 2487072 | AF165: 0 | AH165: 2487072 | AI165: 0
A166: 162 | B166: 39550798 | C166: ROMERO CABALLERO BERENICE | D166: PROVISIONALIDAD | E166: EN PROVISIONALIDAD | F166: 2017-03-21 | K166: VACANTE DEFINITIVA | O166: OCUPADO | P166: TÉCNICO OPERATIVO | Q166: TÉCNICO OPERATIVO | R166: 314 | S166: 15 | T166: 314-15 | U166: DIRECCIÓN DISTRITAL DE DEFENSA JUDICIAL Y PREVENCIÓN DEL DAÑO ANTIJURÍDICO | V166: 2258253 | W166: 2379972.837 | X166: 2487072 | Y166: 0 | Z166: 0 | AA166: 0 | AB166: 0 | AC166: 0 | AD166: 0 | AE166: 2487072 | AF166: 0 | AH166: 2487072 | AI166: 0
A167: 163 | B167: 1015419295 | C167: MORA MONTOYA HELVER MANUEL | D167: PROVISIONALIDAD | E167: EN PROVISIONALIDAD | F167: 2017-04-03 | G167: =IFERROR(VLOOKUP($B167,PLANTA_PERNO,17,0),"") -> 2017-04-03 | H167: HOMBRE | I167: 32 | K167: VACANTE DEFINITIVA | O167: OCUPADO | P167: TÉCNICO OPERATIVO | Q167: TÉCNICO OPERATIVO | R167: 314 | S167: 15 | T167: 314-15 | U167: DIRECCIÓN DISTRITAL DE DEFENSA JUDICIAL Y PREVENCIÓN DEL DAÑO ANTIJURÍDICO | V167: 2258253 | W167: 2379972.837 | X167: 2487072 | Y167: 0 | Z167: 74612 | AA167: 596897 | AB167: 0 | AC167: 0 | AD167: 0 | AE167: 3158581 | AF167: 0 | AH167: 2487072 | AI167: 0
A168: 164 | B168: 51643791 | C168: PINZON HERNANDEZ JEANNETT | D168: PROVISIONALIDAD | E168: EN PROVISIONALIDAD | F168: 2018-11-02 | K168: VACANTE DEFINITIVA | O168: OCUPADO | P168: TÉCNICO OPERATIVO | Q168: TÉCNICO OPERATIVO | R168: 314 | S168: 15 | T168: 314-15 | U168: DIRECCIÓN DISTRITAL DE DEFENSA JUDICIAL Y PREVENCIÓN DEL DAÑO ANTIJURÍDICO | V168: 2258253 | W168: 2379972.837 | X168: 2487072 | Y168: 0 | Z168: 0 | AA168: 0 | AB168: 0 | AC168: 0 | AD168: 0 | AE168: 2487072 | AF168: 0 | AH168: 2487072 | AI168: 0
A169: 165 | B169: 80229481 | C169: AMAYA BRICEÑO FERNANDO ENRIQUE | D169: PROVISIONALIDAD | E169: EN PROVISIONALIDAD | F169: 2019-06-26 | K169: VACANTE DEFINITIVA | O169: OCUPADO | P169: TÉCNICO OPERATIVO | Q169: TÉCNICO OPERATIVO | R169: 314 | S169: 15 | T169: 314-15 | U169: DIRECCIÓN DISTRITAL DE DEFENSA JUDICIAL Y PREVENCIÓN DEL DAÑO ANTIJURÍDICO | V169: 2258253 | W169: 2379972.837 | X169: 2487072 | Y169: 0 | Z169: 0 | AA169: 0 | AB169: 0 | AC169: 0 | AD169: 0 | AE169: 2487072 | AF169: 0 | AH169: 2487072 | AI169: 0
A170: 166 | C170: VACANTE DEFINITIVA | E170: VACANTE DEFINITIVA | K170: VACANTE DEFINITIVA | O170: VACANTE | P170: TÉCNICO OPERATIVO | Q170: TÉCNICO OPERATIVO | R170: 314 | S170: 15 | T170: 314-15 | U170: DIRECCIÓN DISTRITAL DE DOCTRINA JURÍDICA | V170: 2258253 | W170: 2379972.837 | X170: 2487072 | Y170: 0 | Z170: 0 | AA170: 0 | AB170: 0 | AC170: 0 | AD170: 0 | AE170: 2487072 | AF170: 0 | AH170: 2487072 | AI170: 0
A171: 167 | B171: 1013593388 | C171: PAEZ UBAQUE LEVIS STEVEEN | D171: PROVISIONALIDAD | E171: EN PROVISIONALIDAD | F171: 2019-06-26 | K171: VACANTE DEFINITIVA | O171: OCUPADO | P171: TÉCNICO OPERATIVO | Q171: TÉCNICO OPERATIVO | R171: 314 | S171: 15 | T171: 314-15 | U171: DIRECCIÓN DISTRITAL DE POLÍTICA E INFORMÁTICA JURÍDICA | V171: 2258253 | W171: 2379972.837 | X171: 2487072 | Y171: 0 | Z171: 0 | AA171: 0 | AB171: 0 | AC171: 0 | AD171: 0 | AE171: 2487072 | AF171: 0 | AH171: 2487072 | AI171: 0
A172: 168 | C172: VACANTE DEFINITIVA | E172: VACANTE DEFINITIVA | K172: VACANTE DEFINITIVA | O172: VACANTE | P172: TÉCNICO OPERATIVO | Q172: TÉCNICO OPERATIVO | R172: 314 | S172: 15 | T172: 314-15 | U172: DIRECCIÓN DISTRITAL DE POLÍTICA E INFORMÁTICA JURÍDICA | V172: 2258253 | W172: 2379972.837 | X172: 2487072 | Y172: 0 | Z172: 0 | AA172: 0 | AB172: 0 | AC172: 0 | AD172: 0 | AE172: 2487072 | AF172: 0 | AH172: 2487072 | AI172: 0
A173: 169 | B173: 1032450217 | C173: VERGARA TRIANA LINA MARCELA | D173: PROVISIONALIDAD | E173: EN PROVISIONALIDAD | F173: 2017-06-01 | K173: VACANTE DEFINITIVA | O173: OCUPADO | P173: TÉCNICO OPERATIVO | Q173: TÉCNICO OPERATIVO | R173: 314 | S173: 9 | T173: 314-9 | U173: DIRECCIÓN DISTRITAL DE DEFENSA JUDICIAL Y PREVENCIÓN DEL DAÑO ANTIJURÍDICO | V173: 1970342 | W173: 2076543.434 | X173: 2169989 | Y173: 0 | Z173: 0 | AA173: 0 | AB173: 0 | AC173: 0 | AD173: 0 | AE173: 2169989 | AF173: 0 | AH173: 2169989 | AI173: 0
A174: 170 | B174: 35871163 | C174: AGUALIMPIA MORENO OCTAVIA | D174: PROVISIONALIDAD | E174: EN PROVISIONALIDAD | F174: 2018-11-02 | K174: VACANTE DEFINITIVA | O174: OCUPADO | P174: TÉCNICO OPERATIVO | Q174: TÉCNICO OPERATIVO | R174: 314 | S174: 9 | T174: 314-9 | U174: DIRECCIÓN DISTRITAL DE DOCTRINA JURÍDICA | V174: 1970342 | W174: 2076543.434 | X174: 2169989 | Y174: 0 | Z174: 0 | AA174: 0 | AB174: 0 | AC174: 0 | AD174: 0 | AE174: 2169989 | AF174: 0 | AH174: 2169989 | AI174: 0
A175: 1 | B175: 1 | C175: 1 | D175: 1 | E175: 1 | F175: 1 | G175: 1 | H175: 1 | I175: 1 | J175: 1 | K175: 1 | L175: 1 | M175: 1 | O175: 1 | P175: 1 | Q175: 1 | R175: 1 | S175: 1 | T175: 1 | U175: 1 | V175: 1 | Y175: 1 | Z175: 1 | AA175: 1 | AB175: 1 | AC175: 1 | AD175: 1 | AE175: =SUM(AE5:AE174) -> 708691866
AH178: =AH110-X110 -> 0 | AI178: =AH178*8 -> 0
AH179: =AH178*0.4 -> 0 | AI179: =AH179*8 -> 0
AH180: =AH178*0.03 -> 0 | AI180: =AH180*8 -> 0
AI181: =(AH178+AH180)*0.35 -> 0
AH182: =AH178+AH179+AH180 -> 0
AH183: =AH182/30*37 -> 0

Sheet Hoja4 (hidden)
A3: NIVEL | B3: NOMENCLATURA_ADMIN | C3: CÓDIGO | D3: GRADO | E3: Máx. de AÑO A | F3: Máx. de PES
A4: ASESOR | B4: ASESOR | C4: 105 | D4: 5 | E4: 5476137 | F4: 5482433
A5: ASESOR | B5: JEFE DE OFICINA | C5: 115 | D5: 6 | E5: 6106364 | F5: 6113382 | G5: 2442546
A6: ASISTENCIAL | B6: AUXILIAR ADMINISTRATIVO | C6: 407 | D6: 9 | E6: 1572560 | F6: 1574368
A7: ASISTENCIAL | B7: AUXILIAR ADMINISTRATIVO | C7: 407 | D7: 11 | E7: 1648433 | F7: 1650328
A8: ASISTENCIAL | B8: AUXILIAR ADMINISTRATIVO | C8: 407 | D8: 13 | E8: 1773375 | F8: 1775414
A9: ASISTENCIAL | B9: AUXILIAR ADMINISTRATIVO | C9: 407 | D9: 14 | E9: 1830850 | F9: 1832955
A10: ASISTENCIAL | B10: AUXILIAR ADMINISTRATIVO | C10: 407 | D10: 15 | E10: 1888331 | F10: 1890502
A11: ASISTENCIAL | B11: AUXILIAR ADMINISTRATIVO | C11: 407 | D11: 16 | E11: 1962220 | F11: 1964476
A12: ASISTENCIAL | B12: AUXILIAR ADMINISTRATIVO | C12: 407 | D12: 17 | E12: 2019702 | F12: 2022024
A13: ASISTENCIAL | B13: AUXILIAR ADMINISTRATIVO | C13: 407 | D13: 20 | E13: 2233179 | F13: 2235747
A14: ASISTENCIAL | B14: AUXILIAR ADMINISTRATIVO | C14: 407 | D14: 24 | E14: 2415687 | F14: 2418464
A15: ASISTENCIAL | B15: AUXILIAR ADMINISTRATIVO | C15: 407 | D15: 26 | E15: 2536972 | F15: 2539889
A16: ASISTENCIAL | B16: AUXILIAR ADMINISTRATIVO | C16: 407 | D16: 27 | E16: 2537127 | F16: 2540043
A17: ASISTENCIAL | B17: CONDUCTOR | C17: 480 | D17: 13 | E17: 1773375 | F17: 1775414
A18: ASISTENCIAL | B18: SECRETARIO | C18: 440 | D18: 9 | E18: 1572560 | F18: 1574368
A19: ASISTENCIAL | B19: SECRETARIO | C19: 440 | D19: 11 | E19: 1648433 | F19: 1650328
A20: ASISTENCIAL | B20: SECRETARIO | C20: 440 | D20: 19 | E20: 2167497 | F20: 2169989
A21: ASISTENCIAL | B21: SECRETARIO EJECUTIVO | C21: 425 | D21: 20 | E21: 2233179 | F21: 2235747
A22: ASISTENCIAL | B22: SECRETARIO EJECUTIVO | C22: 425 | D22: 21 | E22: 2307077 | F22: 2309730
A23: ASISTENCIAL | B23: SECRETARIO EJECUTIVO | C23: 425 | D23: 24 | E23: 2415687 | F23: 2418464
A24: ASISTENCIAL | B24: SECRETARIO EJECUTIVO | C24: 425 | D24: 27 | E24: 2537127 | F24: 2540043
A25: ASISTENCIAL | B25: SERVICIOS GENERALES | C25: 470 | D25: 3 | E25: 1286145 | F25: 1287623
A26: ASISTENCIAL | B26: SERVICIOS GENERALES | C26: 470 | D26: 7 | E26: 1541781 | F26: 1543553
A27: DIRECTIVO | B27: DIRECTOR TÉCNICO | C27: 9 | D27: 7 | E27: 6691577 | F27: 6699270
A28: DIRECTIVO | B28: JEFE DE OFICINA | C28: 6 | D28: 6 | E28: 6106364 | F28: 6113384
A29: DIRECTIVO | B29: SECRETARIA JURIDICA | C29: 20 | D29: 9 | E29: 8405796 | F29: 8415460
A30: DIRECTIVO | B30: SUBSECRETARIO | C30: 45 | D30: 8 | E30: 7496071 | F30: 7504689
A31: PROFESIONAL | B31: PROFESIONAL ESPECIALIZADO | C31: 222 | D31: 19 | E31: 3678679 | F31: 3682909
A32: PROFESIONAL | B32: PROFESIONAL ESPECIALIZADO | C32: 222 | D32: 20 | E32: 3765091 | F32: 3769420
A33: PROFESIONAL | B33: PROFESIONAL ESPECIALIZADO | C33: 222 | D33: 21 | E33: 3859423 | F33: 3863860
A34: PROFESIONAL | B34: PROFESIONAL ESPECIALIZADO | C34: 222 | D34: 22 | E34: 3968836 | F34: 3973399
A35: PROFESIONAL | B35: PROFESIONAL ESPECIALIZADO | C35: 222 | D35: 24 | E35: 4002525 | F35: 4007126
A36: PROFESIONAL | B36: PROFESIONAL ESPECIALIZADO | C36: 222 | D36: 25 | E36: 4103692 | F36: 4108410
A37: PROFESIONAL | B37: PROFESIONAL ESPECIALIZADO | C37: 222 | D37: 26 | E37: 4288709 | F37: 4293639
A38: PROFESIONAL | B38: PROFESIONAL ESPECIALIZADO | C38: 222 | D38: 27 | E38: 4325051 | F38: 4330023
A39: PROFESIONAL | B39: PROFESIONAL UNIVERSITARIO | C39: 219 | D39: 1 | E39: 2344847 | F39: 2347543
A40: PROFESIONAL | B40: PROFESIONAL UNIVERSITARIO | C40: 219 | D40: 3 | E40: 2494689 | F40: 2497557
A41: PROFESIONAL | B41: PROFESIONAL UNIVERSITARIO | C41: 219 | D41: 8 | E41: 2822665 | F41: 2825910
A42: PROFESIONAL | B42: PROFESIONAL UNIVERSITARIO | C42: 219 | D42: 9 | E42: 2878465 | F42: 2881774
A43: PROFESIONAL | B43: PROFESIONAL UNIVERSITARIO | C43: 219 | D43: 10 | E43: 2902863 | F43: 2906200
A44: PROFESIONAL | B44: PROFESIONAL UNIVERSITARIO | C44: 219 | D44: 13 | E44: 3215641 | F44: 3219338
A45: PROFESIONAL | B45: PROFESIONAL UNIVERSITARIO | C45: 219 | D45: 15 | E45: 3392194 | F45: 3396094
A46: PROFESIONAL | B46: PROFESIONAL UNIVERSITARIO | C46: 219 | D46: 18 | E46: 3497848 | F46: 3501870
A47: TÉCNICO OPERATIVO | B47: TÉCNICO OPERATIVO | C47: 314 | D47: 9 | E47: 2167497 | F47: 2169989
A48: TÉCNICO OPERATIVO | B48: TÉCNICO OPERATIVO | C48: 314 | D48: 15 | E48: 2484216 | F48: 2487072
A49: TÉCNICO OPERATIVO | B49: TÉCNICO OPERATIVO | C49: 314 | D49: 20 | E49: 2841614 | F49: 2844881
A50: TÉCNICO OPERATIVO | B50: TÉCNICO OPERATIVO | C50: 314 | D50: 21 | E50: 2841718 | F50: 2844986
A51: Total general | E51: 8405796 | F51: 8415460

Sheet Hoja6 (hidden)
A1: NIVEL | B1: NOMENCLATURA_ADMIN | C1: CÓDIGO | D1: GRADO | E1: Máx. de AÑO A | F1: Máx. de PES
A2: ASESOR | B2: ASESOR | C2: 105 | D2: 5 | E2: 5476137 | F2: 5482433
A3: ASESOR | B3: JEFE DE OFICINA | C3: 115 | D3: 6 | E3: 6106364 | F3: 6113382
A4: ASISTENCIAL | B4: AUXILIAR ADMINISTRATIVO | C4: 407 | D4: 9 | E4: 1572560 | F4: 1574368
A5: ASISTENCIAL | B5: AUXILIAR ADMINISTRATIVO | C5: 407 | D5: 11 | E5: 1648433 | F5: 1650328
A6: ASISTENCIAL | B6: AUXILIAR ADMINISTRATIVO | C6: 407 | D6: 13 | E6: 1773375 | F6: 1775414
A7: ASISTENCIAL | B7: AUXILIAR ADMINISTRATIVO | C7: 407 | D7: 14 | E7: 1830850 | F7: 1832955
A8: ASISTENCIAL | B8: AUXILIAR ADMINISTRATIVO | C8: 407 | D8: 15 | E8: 1888331 | F8: 1890502
A9: ASISTENCIAL | B9: AUXILIAR ADMINISTRATIVO | C9: 407 | D9: 16 | E9: 1962220 | F9: 1964476
A10: ASISTENCIAL | B10: AUXILIAR ADMINISTRATIVO | C10: 407 | D10: 17 | E10: 2019702 | F10: 2022024
A11: ASISTENCIAL | B11: AUXILIAR ADMINISTRATIVO | C11: 407 | D11: 20 | E11: 2233179 | F11: 2235747
A12: ASISTENCIAL | B12: AUXILIAR ADMINISTRATIVO | C12: 407 | D12: 24 | E12: 2415687 | F12: 2418464
A13: ASISTENCIAL | B13: AUXILIAR ADMINISTRATIVO | C13: 407 | D13: 26 | E13: 2536972 | F13: 2539889
A14: ASISTENCIAL | B14: AUXILIAR ADMINISTRATIVO | C14: 407 | D14: 27 | E14: 2537127 | F14: 2540043
A15: ASISTENCIAL | B15: CONDUCTOR | C15: 480 | D15: 13 | E15: 1773375 | F15: 1775414
A16: ASISTENCIAL | B16: SECRETARIO | C16: 440 | D16: 9 | E16: 1572560 | F16: 1574368
A17: ASISTENCIAL | B17: SECRETARIO | C17: 440 | D17: 11 | E17: 1648433 | F17: 1650328
A18: ASISTENCIAL | B18: SECRETARIO | C18: 440 | D18: 19 | E18: 2167497 | F18: 2169989
A19: ASISTENCIAL | B19: SECRETARIO EJECUTIVO | C19: 425 | D19: 20 | E19: 2233179 | F19: 2235747
A20: ASISTENCIAL | B20: SECRETARIO EJECUTIVO | C20: 425 | D20: 21 | E20: 2307077 | F20: 2309730
A21: ASISTENCIAL | B21: SECRETARIO EJECUTIVO | C21: 425 | D21: 24 | E21: 2415687 | F21: 2418464
A22: ASISTENCIAL | B22: SECRETARIO EJECUTIVO | C22: 425 | D22: 27 | E22: 2537127 | F22: 2540043
A23: ASISTENCIAL | B23: SERVICIOS GENERALES | C23: 470 | D23: 3 | E23: 1286145 | F23: 1287623
A24: ASISTENCIAL | B24: SERVICIOS GENERALES | C24: 470 | D24: 7 | E24: 1541781 | F24: 1543553
A25: DIRECTIVO | B25: DIRECTOR TÉCNICO | C25: 9 | D25: 7 | E25: 6691577 | F25: 6699270
A26: DIRECTIVO | B26: JEFE DE OFICINA | C26: 6 | D26: 6 | E26: 6106364 | F26: 6113384
A27: DIRECTIVO | B27: SECRETARIA JURIDICA | C27: 20 | D27: 9 | E27: 8405796 | F27: 8415460
A28: DIRECTIVO | B28: SUBSECRETARIO | C28: 45 | D28: 8 | E28: 7496071 | F28: 7504689
A29: PROFESIONAL | B29: PROFESIONAL ESPECIALIZADO | C29: 222 | D29: 19 | E29: 3678679 | F29: 3682909
A30: PROFESIONAL | B30: PROFESIONAL ESPECIALIZADO | C30: 222 | D30: 20 | E30: 3765091 | F30: 3769420
A31: PROFESIONAL | B31: PROFESIONAL ESPECIALIZADO | C31: 222 | D31: 21 | E31: 3859423 | F31: 3863860
A32: PROFESIONAL | B32: PROFESIONAL ESPECIALIZADO | C32: 222 | D32: 22 | E32: 3968836 | F32: 3973399
A33: PROFESIONAL | B33: PROFESIONAL ESPECIALIZADO | C33: 222 | D33: 24 | E33: 4002525 | F33: 4007126
A34: PROFESIONAL | B34: PROFESIONAL ESPECIALIZADO | C34: 222 | D34: 25 | E34: 4103692 | F34: 4108410
A35: PROFESIONAL | B35: PROFESIONAL ESPECIALIZADO | C35: 222 | D35: 26 | E35: 4288709 | F35: 4293639
A36: PROFESIONAL | B36: PROFESIONAL ESPECIALIZADO | C36: 222 | D36: 27 | E36: 4325051 | F36: 4330023
A37: PROFESIONAL | B37: PROFESIONAL UNIVERSITARIO | C37: 219 | D37: 1 | E37: 2344847 | F37: 2347543
A38: PROFESIONAL | B38: PROFESIONAL UNIVERSITARIO | C38: 219 | D38: 3 | E38: 2494689 | F38: 2497557
A39: PROFESIONAL | B39: PROFESIONAL UNIVERSITARIO | C39: 219 | D39: 8 | E39: 2822665 | F39: 2825910
A40: PROFESIONAL | B40: PROFESIONAL UNIVERSITARIO | C40: 219 | D40: 9 | E40: 2878465 | F40: 2881774
A41: PROFESIONAL | B41: PROFESIONAL UNIVERSITARIO | C41: 219 | D41: 10 | E41: 2902863 | F41: 2906200
A42: PROFESIONAL | B42: PROFESIONAL UNIVERSITARIO | C42: 219 | D42: 13 | E42: 3215641 | F42: 3219338
A43: PROFESIONAL | B43: PROFESIONAL UNIVERSITARIO | C43: 219 | D43: 15 | E43: 3392194 | F43: 3396094
A44: PROFESIONAL | B44: PROFESIONAL UNIVERSITARIO | C44: 219 | D44: 18 | E44: 3497848 | F44: 3501870
A45: TÉCNICO OPERATIVO | B45: TÉCNICO OPERATIVO | C45: 314 | D45: 9 | E45: 2167497 | F45: 2169989
A46: TÉCNICO OPERATIVO | B46: TÉCNICO OPERATIVO | C46: 314 | D46: 15 | E46: 2484216 | F46: 2487072
A47: TÉCNICO OPERATIVO | B47: TÉCNICO OPERATIVO | C47: 314 | D47: 20 | E47: 2841614 | F47: 2844881
A48: TÉCNICO OPERATIVO | B48: TÉCNICO OPERATIVO | C48: 314 | D48: 21 | E48: 2841718 | F48: 2844986

Sheet Hoja5 (hidden)
B1: NIVEL | C1: NOMENCLATURA_ADMIN | D1: CÓDIGO | E1: GRADO | F1: INCREMENTO 1 | G1: INCREMENTO 2 | H1: DIFERENCIA
B2: ASESOR | C2: ASESOR | D2: 105 | E2: 5 | F2: 5476137 | G2: 5482433 | H2: =G2-F2 -> 6296
B3: ASESOR | C3: JEFE DE OFICINA | D3: 115 | E3: 6 | F3: 6106364 | G3: 6113382 | H3: 7018
B4: DIRECTIVO | C4: DIRECTOR TÉCNICO | D4: 9 | E4: 7 | F4: 6691577 | G4: 6699270 | H4: 7693
B5: DIRECTIVO | C5: JEFE DE OFICINA | D5: 6 | E5: 6 | F5: 6106364 | G5: 6113384 | H5: 7020
B6: DIRECTIVO | C6: SECRETARIA JURIDICA | D6: 20 | E6: 9 | F6: 8405796 | G6: 8415460 | H6: 9664
B7: DIRECTIVO | C7: SUBSECRETARIO | D7: 45 | E7: 8 | F7: 7496071 | G7: 7504689 | H7: 8618

Sheet Hoja3 (hidden)
A1: NIVEL | B1: NOMENCLATURA_ADMIN | C1: CÓDIGO | D1: GRADO | E1: AÑO A | F1: PES
A2: ASESOR | B2: JEFE DE OFICINA | C2: 115 | D2: 6 | E2: 6106364 | F2: 6113382
A3: DIRECTIVO | B3: JEFE DE OFICINA | C3: 6 | D3: 6 | E3: 6106364 | F3: 6113384
A4: ASESOR | B4: ASESOR | C4: 105 | D4: 5 | E4: 5476137 | F4: 5482433
A5: ASESOR | B5: ASESOR | C5: 105 | D5: 5 | E5: 5476137 | F5: 5482433
A6: ASESOR | B6: ASESOR | C6: 105 | D6: 5 | E6: 5476137 | F6: 5482433
A7: ASESOR | B7: ASESOR | C7: 105 | D7: 5 | E7: 5476137 | F7: 5482433
A8: ASESOR | B8: ASESOR | C8: 105 | D8: 5 | E8: 5476137 | F8: 5482433
A9: ASISTENCIAL | B9: AUXILIAR ADMINISTRATIVO | C9: 407 | D9: 27 | E9: 2537127 | F9: 2540043
A10: ASISTENCIAL | B10: SECRETARIO EJECUTIVO | C10: 425 | D10: 27 | E10: 2537127 | F10: 2540043
A11: ASISTENCIAL | B11: AUXILIAR ADMINISTRATIVO | C11: 407 | D11: 26 | E11: 2536972 | F11: 2539889
A12: ASISTENCIAL | B12: SECRETARIO EJECUTIVO | C12: 425 | D12: 24 | E12: 2415687 | F12: 2418464
A13: ASISTENCIAL | B13: AUXILIAR ADMINISTRATIVO | C13: 407 | D13: 24 | E13: 2415687 | F13: 2418464
A14: ASISTENCIAL | B14: SECRETARIO EJECUTIVO | C14: 425 | D14: 21 | E14: 2307077 | F14: 2309730
A15: ASISTENCIAL | B15: AUXILIAR ADMINISTRATIVO | C15: 407 | D15: 20 | E15: 2233179 | F15: 2235747
A16: ASISTENCIAL | B16: AUXILIAR ADMINISTRATIVO | C16: 407 | D16: 20 | E16: 2233179 | F16: 2235747
A17: ASISTENCIAL | B17: AUXILIAR ADMINISTRATIVO | C17: 407 | D17: 20 | E17: 2233179 | F17: 2235747
A18: ASISTENCIAL | B18: SECRETARIO EJECUTIVO | C18: 425 | D18: 20 | E18: 2233179 | F18: 2235747
A19: ASISTENCIAL | B19: SECRETARIO | C19: 440 | D19: 19 | E19: 2167497 | F19: 2169989
A20: ASISTENCIAL | B20: AUXILIAR ADMINISTRATIVO | C20: 407 | D20: 17 | E20: 2019702 | F20: 2022024
A21: ASISTENCIAL | B21: AUXILIAR ADMINISTRATIVO | C21: 407 | D21: 16 | E21: 1962220 | F21: 1964476
A22: ASISTENCIAL | B22: AUXILIAR ADMINISTRATIVO | C22: 407 | D22: 16 | E22: 1962220 | F22: 1964476
A23: ASISTENCIAL | B23: AUXILIAR ADMINISTRATIVO | C23: 407 | D23: 15 | E23: 1888331 | F23: 1890502
A24: ASISTENCIAL | B24: AUXILIAR ADMINISTRATIVO | C24: 407 | D24: 15 | E24: 1888331 | F24: 1890502
A25: ASISTENCIAL | B25: AUXILIAR ADMINISTRATIVO | C25: 407 | D25: 15 | E25: 1888331 | F25: 1890502
A26: ASISTENCIAL | B26: AUXILIAR ADMINISTRATIVO | C26: 407 | D26: 15 | E26: 1888331 | F26: 1890502
A27: ASISTENCIAL | B27: AUXILIAR ADMINISTRATIVO | C27: 407 | D27: 15 | E27: 1888331 | F27: 1890502
A28: ASISTENCIAL | B28: AUXILIAR ADMINISTRATIVO | C28: 407 | D28: 14 | E28: 1830850 | F28: 1832955
A29: ASISTENCIAL | B29: AUXILIAR ADMINISTRATIVO | C29: 407 | D29: 13 | E29: 1773375 | F29: 1775414
A30: ASISTENCIAL | B30: CONDUCTOR | C30: 480 | D30: 13 | E30: 1773375 | F30: 1775414
A31: ASISTENCIAL | B31: CONDUCTOR | C31: 480 | D31: 13 | E31: 1773375 | F31: 1775414
A32: ASISTENCIAL | B32: CONDUCTOR | C32: 480 | D32: 13 | E32: 1773375 | F32: 1775414
A33: ASISTENCIAL | B33: AUXILIAR ADMINISTRATIVO | C33: 407 | D33: 11 | E33: 1648433 | F33: 1650328
A34: ASISTENCIAL | B34: AUXILIAR ADMINISTRATIVO | C34: 407 | D34: 11 | E34: 1648433 | F34: 1650328
A35: ASISTENCIAL | B35: SECRETARIO | C35: 440 | D35: 11 | E35: 1648433 | F35: 1650328
A36: ASISTENCIAL | B36: SECRETARIO | C36: 440 | D36: 9 | E36: 1572560 | F36: 1574368
A37: ASISTENCIAL | B37: SECRETARIO | C37: 440 | D37: 9 | E37: 1572560 | F37: 1574368
A38: ASISTENCIAL | B38: SECRETARIO | C38: 440 | D38: 9 | E38: 1572560 | F38: 1574368
A39: ASISTENCIAL | B39: AUXILIAR ADMINISTRATIVO | C39: 407 | D39: 9 | E39: 1572560 | F39: 1574368
A40: ASISTENCIAL | B40: SECRETARIO | C40: 440 | D40: 9 | E40: 1572560 | F40: 1574368
A41: ASISTENCIAL | B41: SERVICIOS GENERALES | C41: 470 | D41: 7 | E41: 1541781 | F41: 1543553
A42: ASISTENCIAL | B42: SERVICIOS GENERALES | C42: 470 | D42: 7 | E42: 1541781 | F42: 1543553
A43: ASISTENCIAL | B43: SERVICIOS GENERALES | C43: 470 | D43: 3 | E43: 1286145 | F43: 1287623
A44: DIRECTIVO | B44: SECRETARIA JURIDICA | C44: 20 | D44: 9 | E44: 8405796 | F44: 8415460
A45: DIRECTIVO | B45: SUBSECRETARIO | C45: 45 | D45: 8 | E45: 7496071 | F45: 7504689
A46: DIRECTIVO | B46: DIRECTOR TÉCNICO | C46: 9 | D46: 7 | E46: 6691577 | F46: 6699270
A47: DIRECTIVO | B47: DIRECTOR TÉCNICO | C47: 9 | D47: 7 | E47: 6691577 | F47: 6699270
A48: DIRECTIVO | B48: DIRECTOR TÉCNICO | C48: 9 | D48: 7 | E48: 6691577 | F48: 6699270
A49: DIRECTIVO | B49: DIRECTOR TÉCNICO | C49: 9 | D49: 7 | E49: 6691577 | F49: 6699270
A50: DIRECTIVO | B50: DIRECTOR TÉCNICO | C50: 9 | D50: 7 | E50: 6691577 | F50: 6699270
A51: DIRECTIVO | B51: DIRECTOR TÉCNICO | C51: 9 | D51: 7 | E51: 6691577 | F51: 6699270
A52: DIRECTIVO | B52: JEFE DE OFICINA | C52: 6 | D52: 6 | E52: 6106364 | F52: 6113384
A53: PROFESIONAL | B53: PROFESIONAL ESPECIALIZADO | C53: 222 | D53: 27 | E53: 4325051 | F53: 4330023
A54: PROFESIONAL | B54: PROFESIONAL ESPECIALIZADO | C54: 222 | D54: 27 | E54: 4325051 | F54: 4330023
A55: PROFESIONAL | B55: PROFESIONAL ESPECIALIZADO | C55: 222 | D55: 27 | E55: 4325051 | F55: 4330023
A56: PROFESIONAL | B56: PROFESIONAL ESPECIALIZADO | C56: 222 | D56: 27 | E56: 4325051 | F56: 4330023
A57: PROFESIONAL | B57: PROFESIONAL ESPECIALIZADO | C57: 222 | D57: 27 | E57: 4325051 | F57: 4330023
A58: PROFESIONAL | B58: PROFESIONAL ESPECIALIZADO | C58: 222 | D58: 27 | E58: 4325051 | F58: 4330023
A59: PROFESIONAL | B59: PROFESIONAL ESPECIALIZADO | C59: 222 | D59: 27 | E59: 4325051 | F59: 4330023
A60: PROFESIONAL | B60: PROFESIONAL ESPECIALIZADO | C60: 222 | D60: 27 | E60: 4325051 | F60: 4330023
A61: PROFESIONAL | B61: PROFESIONAL ESPECIALIZADO | C61: 222 | D61: 27 | E61: 4325051 | F61: 4330023
A62: PROFESIONAL | B62: PROFESIONAL ESPECIALIZADO | C62: 222 | D62: 27 | E62: 4325051 | F62: 4330023
A63: PROFESIONAL | B63: PROFESIONAL ESPECIALIZADO | C63: 222 | D63: 27 | E63: 4325051 | F63: 4330023
A64: PROFESIONAL | B64: PROFESIONAL ESPECIALIZADO | C64: 222 | D64: 27 | E64: 4325051 | F64: 4330023
A65: PROFESIONAL | B65: PROFESIONAL ESPECIALIZADO | C65: 222 | D65: 27 | E65: 4325051 | F65: 4330023
A66: PROFESIONAL | B66: PROFESIONAL ESPECIALIZADO | C66: 222 | D66: 27 | E66: 4325051 | F66: 4330023
A67: PROFESIONAL | B67: PROFESIONAL ESPECIALIZADO | C67: 222 | D67: 27 | E67: 4325051 | F67: 4330023
A68: PROFESIONAL | B68: PROFESIONAL ESPECIALIZADO | C68: 222 | D68: 27 | E68: 4325051 | F68: 4330023
A69: PROFESIONAL | B69: PROFESIONAL ESPECIALIZADO | C69: 222 | D69: 27 | E69: 4325051 | F69: 4330023
A70: PROFESIONAL | B70: PROFESIONAL ESPECIALIZADO | C70: 222 | D70: 27 | E70: 4325051 | F70: 4330023
A71: PROFESIONAL | B71: PROFESIONAL ESPECIALIZADO | C71: 222 | D71: 27 | E71: 4325051 | F71: 4330023
A72: PROFESIONAL | B72: PROFESIONAL ESPECIALIZADO | C72: 222 | D72: 27 | E72: 4325051 | F72: 4330023
A73: PROFESIONAL | B73: PROFESIONAL ESPECIALIZADO | C73: 222 | D73: 27 | E73: 4325051 | F73: 4330023
A74: PROFESIONAL | B74: PROFESIONAL ESPECIALIZADO | C74: 222 | D74: 27 | E74: 4325051 | F74: 4330023
A75: PROFESIONAL | B75: PROFESIONAL ESPECIALIZADO | C75: 222 | D75: 27 | E75: 4325051 | F75: 4330023
A76: PROFESIONAL | B76: PROFESIONAL ESPECIALIZADO | C76: 222 | D76: 27 | E76: 4325051 | F76: 4330023
A77: PROFESIONAL | B77: PROFESIONAL ESPECIALIZADO | C77: 222 | D77: 26 | E77: 4288709 | F77: 4293639
A78: PROFESIONAL | B78: PROFESIONAL ESPECIALIZADO | C78: 222 | D78: 26 | E78: 4288709 | F78: 4293639
A79: PROFESIONAL | B79: PROFESIONAL ESPECIALIZADO | C79: 222 | D79: 25 | E79: 4103692 | F79: 4108410
A80: PROFESIONAL | B80: PROFESIONAL ESPECIALIZADO | C80: 222 | D80: 24 | E80: 4002525 | F80: 4007126
A81: PROFESIONAL | B81: PROFESIONAL ESPECIALIZADO | C81: 222 | D81: 24 | E81: 4002525 | F81: 4007126
A82: PROFESIONAL | B82: PROFESIONAL ESPECIALIZADO | C82: 222 | D82: 24 | E82: 4002525 | F82: 4007126
A83: PROFESIONAL | B83: PROFESIONAL ESPECIALIZADO | C83: 222 | D83: 24 | E83: 4002525 | F83: 4007126
A84: PROFESIONAL | B84: PROFESIONAL ESPECIALIZADO | C84: 222 | D84: 24 | E84: 4002525 | F84: 4007126
A85: PROFESIONAL | B85: PROFESIONAL ESPECIALIZADO | C85: 222 | D85: 24 | E85: 4002525 | F85: 4007126
A86: PROFESIONAL | B86: PROFESIONAL ESPECIALIZADO | C86: 222 | D86: 24 | E86: 4002525 | F86: 4007126
A87: PROFESIONAL | B87: PROFESIONAL ESPECIALIZADO | C87: 222 | D87: 24 | E87: 4002525 | F87: 4007126
A88: PROFESIONAL | B88: PROFESIONAL ESPECIALIZADO | C88: 222 | D88: 24 | E88: 4002525 | F88: 4007126
A89: PROFESIONAL | B89: PROFESIONAL ESPECIALIZADO | C89: 222 | D89: 22 | E89: 3968836 | F89: 3973399
A90: PROFESIONAL | B90: PROFESIONAL ESPECIALIZADO | C90: 222 | D90: 21 | E90: 3859423 | F90: 3863860
A91: PROFESIONAL | B91: PROFESIONAL ESPECIALIZADO | C91: 222 | D91: 21 | E91: 3859423 | F91: 3863860
A92: PROFESIONAL | B92: PROFESIONAL ESPECIALIZADO | C92: 222 | D92: 21 | E92: 3859423 | F92: 3863860
A93: PROFESIONAL | B93: PROFESIONAL ESPECIALIZADO | C93: 222 | D93: 21 | E93: 3859423 | F93: 3863860
A94: PROFESIONAL | B94: PROFESIONAL ESPECIALIZADO | C94: 222 | D94: 21 | E94: 3859423 | F94: 3863860
A95: PROFESIONAL | B95: PROFESIONAL ESPECIALIZADO | C95: 222 | D95: 21 | E95: 3859423 | F95: 3863860
A96: PROFESIONAL | B96: PROFESIONAL ESPECIALIZADO | C96: 222 | D96: 21 | E96: 3859423 | F96: 3863860
A97: PROFESIONAL | B97: PROFESIONAL ESPECIALIZADO | C97: 222 | D97: 21 | E97: 3859423 | F97: 3863860
A98: PROFESIONAL | B98: PROFESIONAL ESPECIALIZADO | C98: 222 | D98: 21 | E98: 3859423 | F98: 3863860
A99: PROFESIONAL | B99: PROFESIONAL ESPECIALIZADO | C99: 222 | D99: 20 | E99: 3765091 | F99: 3769420
A100: PROFESIONAL | B100: PROFESIONAL ESPECIALIZADO | C100: 222 | D100: 20 | E100: 3765091 | F100: 3769420
A101: PROFESIONAL | B101: PROFESIONAL ESPECIALIZADO | C101: 222 | D101: 19 | E101: 3678679 | F101: 3682909
A102: PROFESIONAL | B102: PROFESIONAL ESPECIALIZADO | C102: 222 | D102: 19 | E102: 3678679 | F102: 3682909
A103: PROFESIONAL | B103: PROFESIONAL ESPECIALIZADO | C103: 222 | D103: 19 | E103: 3678679 | F103: 3682909
A104: PROFESIONAL | B104: PROFESIONAL ESPECIALIZADO | C104: 222 | D104: 19 | E104: 3678679 | F104: 3682909
A105: PROFESIONAL | B105: PROFESIONAL UNIVERSITARIO | C105: 219 | D105: 18 | E105: 3497848 | F105: 3501870
A106: PROFESIONAL | B106: PROFESIONAL UNIVERSITARIO | C106: 219 | D106: 18 | E106: 3497848 | F106: 3501870
A107: PROFESIONAL | B107: PROFESIONAL UNIVERSITARIO | C107: 219 | D107: 18 | E107: 3497848 | F107: 3501870
A108: PROFESIONAL | B108: PROFESIONAL UNIVERSITARIO | C108: 219 | D108: 18 | E108: 3497848 | F108: 3501870
A109: PROFESIONAL | B109: PROFESIONAL UNIVERSITARIO | C109: 219 | D109: 18 | E109: 3497848 | F109: 3501870
A110: PROFESIONAL | B110: PROFESIONAL UNIVERSITARIO | C110: 219 | D110: 18 | E110: 3497848 | F110: 3501870
A111: PROFESIONAL | B111: PROFESIONAL UNIVERSITARIO | C111: 219 | D111: 18 | E111: 3497848 | F111: 3501870
A112: PROFESIONAL | B112: PROFESIONAL UNIVERSITARIO | C112: 219 | D112: 18 | E112: 3497848 | F112: 3501870
A113: PROFESIONAL | B113: PROFESIONAL UNIVERSITARIO | C113: 219 | D113: 18 | E113: 3497848 | F113: 3501870
A114: PROFESIONAL | B114: PROFESIONAL UNIVERSITARIO | C114: 219 | D114: 18 | E114: 3497848 | F114: 3501870
A115: PROFESIONAL | B115: PROFESIONAL UNIVERSITARIO | C115: 219 | D115: 18 | E115: 3497848 | F115: 3501870
A116: PROFESIONAL | B116: PROFESIONAL UNIVERSITARIO | C116: 219 | D116: 18 | E116: 3497848 | F116: 3501870
A117: PROFESIONAL | B117: PROFESIONAL UNIVERSITARIO | C117: 219 | D117: 18 | E117: 3497848 | F117: 3501870
A118: PROFESIONAL | B118: PROFESIONAL UNIVERSITARIO | C118: 219 | D118: 18 | E118: 3497848 | F118: 3501870
A119: PROFESIONAL | B119: PROFESIONAL UNIVERSITARIO | C119: 219 | D119: 18 | E119: 3497848 | F119: 3501870
A120: PROFESIONAL | B120: PROFESIONAL UNIVERSITARIO | C120: 219 | D120: 18 | E120: 3497848 | F120: 3501870
A121: PROFESIONAL | B121: PROFESIONAL UNIVERSITARIO | C121: 219 | D121: 18 | E121: 3497848 | F121: 3501870
A122: PROFESIONAL | B122: PROFESIONAL UNIVERSITARIO | C122: 219 | D122: 18 | E122: 3497848 | F122: 3501870
A123: PROFESIONAL | B123: PROFESIONAL UNIVERSITARIO | C123: 219 | D123: 18 | E123: 3497848 | F123: 3501870
A124: PROFESIONAL | B124: PROFESIONAL UNIVERSITARIO | C124: 219 | D124: 18 | E124: 3497848 | F124: 3501870
A125: PROFESIONAL | B125: PROFESIONAL UNIVERSITARIO | C125: 219 | D125: 18 | E125: 3497848 | F125: 3501870
A126: PROFESIONAL | B126: PROFESIONAL UNIVERSITARIO | C126: 219 | D126: 18 | E126: 3497848 | F126: 3501870
A127: PROFESIONAL | B127: PROFESIONAL UNIVERSITARIO | C127: 219 | D127: 18 | E127: 3497848 | F127: 3501870
A128: PROFESIONAL | B128: PROFESIONAL UNIVERSITARIO | C128: 219 | D128: 18 | E128: 3497848 | F128: 3501870
A129: PROFESIONAL | B129: PROFESIONAL UNIVERSITARIO | C129: 219 | D129: 18 | E129: 3497848 | F129: 3501870
A130: PROFESIONAL | B130: PROFESIONAL UNIVERSITARIO | C130: 219 | D130: 15 | E130: 3392194 | F130: 3396094
A131: PROFESIONAL | B131: PROFESIONAL UNIVERSITARIO | C131: 219 | D131: 15 | E131: 3392194 | F131: 3396094
A132: PROFESIONAL | B132: PROFESIONAL UNIVERSITARIO | C132: 219 | D132: 15 | E132: 3392194 | F132: 3396094
A133: PROFESIONAL | B133: PROFESIONAL UNIVERSITARIO | C133: 219 | D133: 15 | E133: 3392194 | F133: 3396094
A134: PROFESIONAL | B134: PROFESIONAL UNIVERSITARIO | C134: 219 | D134: 15 | E134: 3392194 | F134: 3396094
A135: PROFESIONAL | B135: PROFESIONAL UNIVERSITARIO | C135: 219 | D135: 13 | E135: 3215641 | F135: 3219338
A136: PROFESIONAL | B136: PROFESIONAL UNIVERSITARIO | C136: 219 | D136: 13 | E136: 3215641 | F136: 3219338
A137: PROFESIONAL | B137: PROFESIONAL UNIVERSITARIO | C137: 219 | D137: 13 | E137: 3215641 | F137: 3219338
A138: PROFESIONAL | B138: PROFESIONAL UNIVERSITARIO | C138: 219 | D138: 10 | E138: 2902863 | F138: 2906200
A139: PROFESIONAL | B139: PROFESIONAL UNIVERSITARIO | C139: 219 | D139: 10 | E139: 2902863 | F139: 2906200
A140: PROFESIONAL | B140: PROFESIONAL UNIVERSITARIO | C140: 219 | D140: 10 | E140: 2902863 | F140: 2906200
A141: PROFESIONAL | B141: PROFESIONAL UNIVERSITARIO | C141: 219 | D141: 9 | E141: 2878465 | F141: 2881774
A142: PROFESIONAL | B142: PROFESIONAL UNIVERSITARIO | C142: 219 | D142: 8 | E142: 2822665 | F142: 2825910
A143: PROFESIONAL | B143: PROFESIONAL UNIVERSITARIO | C143: 219 | D143: 8 | E143: 2822665 | F143: 2825910
A144: PROFESIONAL | B144: PROFESIONAL UNIVERSITARIO | C144: 219 | D144: 3 | E144: 2494689 | F144: 2497557
A145: PROFESIONAL | B145: PROFESIONAL UNIVERSITARIO | C145: 219 | D145: 1 | E145: 2344847 | F145: 2347543
A146: PROFESIONAL | B146: PROFESIONAL UNIVERSITARIO | C146: 219 | D146: 1 | E146: 2344847 | F146: 2347543
A147: PROFESIONAL | B147: PROFESIONAL UNIVERSITARIO | C147: 219 | D147: 1 | E147: 2344847 | F147: 2347543
A148: PROFESIONAL | B148: PROFESIONAL UNIVERSITARIO | C148: 219 | D148: 1 | E148: 2344847 | F148: 2347543
A149: PROFESIONAL | B149: PROFESIONAL UNIVERSITARIO | C149: 219 | D149: 1 | E149: 2344847 | F149: 2347543
A150: PROFESIONAL | B150: PROFESIONAL UNIVERSITARIO | C150: 219 | D150: 1 | E150: 2344847 | F150: 2347543
A151: PROFESIONAL | B151: PROFESIONAL UNIVERSITARIO | C151: 219 | D151: 1 | E151: 2344847 | F151: 2347543
A152: TÉCNICO OPERATIVO | B152: TÉCNICO OPERATIVO | C152: 314 | D152: 21 | E152: 2841718 | F152: 2844986
A153: TÉCNICO OPERATIVO | B153: TÉCNICO OPERATIVO | C153: 314 | D153: 20 | E153: 2841614 | F153: 2844881
A154: TÉCNICO OPERATIVO | B154: TÉCNICO OPERATIVO | C154: 314 | D154: 20 | E154: 2841614 | F154: 2844881
A155: TÉCNICO OPERATIVO | B155: TÉCNICO OPERATIVO | C155: 314 | D155: 20 | E155: 2841614 | F155: 2844881
A156: TÉCNICO OPERATIVO | B156: TÉCNICO OPERATIVO | C156: 314 | D156: 20 | E156: 2841614 | F156: 2844881
A157: TÉCNICO OPERATIVO | B157: TÉCNICO OPERATIVO | C157: 314 | D157: 20 | E157: 2841614 | F157: 2844881
A158: TÉCNICO OPERATIVO | B158: TÉCNICO OPERATIVO | C158: 314 | D158: 20 | E158: 2841614 | F158: 2844881
A159: TÉCNICO OPERATIVO | B159: TÉCNICO OPERATIVO | C159: 314 | D159: 20 | E159: 2841614 | F159: 2844881
A160: TÉCNICO OPERATIVO | B160: TÉCNICO OPERATIVO | C160: 314 | D160: 20 | E160: 2841614 | F160: 2844881
A161: TÉCNICO OPERATIVO | B161: TÉCNICO OPERATIVO | C161: 314 | D161: 20 | E161: 2841614 | F161: 2844881
A162: TÉCNICO OPERATIVO | B162: TÉCNICO OPERATIVO | C162: 314 | D162: 15 | E162: 2484216 | F162: 2487072
A163: TÉCNICO OPERATIVO | B163: TÉCNICO OPERATIVO | C163: 314 | D163: 15 | E163: 2484216 | F163: 2487072
A164: TÉCNICO OPERATIVO | B164: TÉCNICO OPERATIVO | C164: 314 | D164: 15 | E164: 2484216 | F164: 2487072
A165: TÉCNICO OPERATIVO | B165: TÉCNICO OPERATIVO | C165: 314 | D165: 15 | E165: 2484216 | F165: 2487072
A166: TÉCNICO OPERATIVO | B166: TÉCNICO OPERATIVO | C166: 314 | D166: 15 | E166: 2484216 | F166: 2487072
A167: TÉCNICO OPERATIVO | B167: TÉCNICO OPERATIVO | C167: 314 | D167: 15 | E167: 2484216 | F167: 2487072
A168: TÉCNICO OPERATIVO | B168: TÉCNICO OPERATIVO | C168: 314 | D168: 15 | E168: 2484216 | F168: 2487072
A169: TÉCNICO OPERATIVO | B169: TÉCNICO OPERATIVO | C169: 314 | D169: 15 | E169: 2484216 | F169: 2487072
A170: TÉCNICO OPERATIVO | B170: TÉCNICO OPERATIVO | C170: 314 | D170: 9 | E170: 2167497 | F170: 2169989
A171: TÉCNICO OPERATIVO | B171: TÉCNICO OPERATIVO | C171: 314 | D171: 9 | E171: 2167497 | F171: 2169989

Sheet PORCENTAJES FACTORES (hidden)
A1: interno_persona | B1: numero_identificacion | C1: primer_apellido | D1: segundo_apellido | E1: nombres | F1: cargo | G1: grado | H1: desccargo | I1: centro_costo dependencia | J1: descdep | K1: PORCANT | L1: PORRIESG | M1: PORCTECN | N1: PORSECRET
A2: 2448 | B2: 1022360914 | C2: TELLEZ | D2: CRUZ | E2: ALVARO JAVIER | F2: 219 | G2: 1 | H2: PROFESIONAL UNIVERSITARIO | I2: 2310440 | J2: Dirección Distrital de Política e Informática Jurídica | K2: 3 | L2: 0 | M2: 40 | N2: 0
A3: 109 | B3: 28891891 | C3: MESA | D3: VASQUEZ | E3: GLORIA ASTRID | F3: 222 | G3: 26 | H3: PROFESIONAL ESPECIALIZADO | I3: 2310450 | J3: Dirección Distrital de Defensa Judicial y Prevención del Daño Antijurídico | K3: 7 | L3: 0 | M3: 50 | N3: 0
A4: 111 | B4: 28963444 | C4: SALCEDO | D4: TAMAYO | E4: GLORIA ESTHER | F4: 222 | G4: 24 | H4: PROFESIONAL ESPECIALIZADO | I4: 2311600 | J4: Contratación | K4: 7 | L4: 0 | M4: 40 | N4: 0
A5: 125 | B5: 38263037 | C5: GOMEZ | D5: CARMONA | E5: WALDINA | F5: 222 | G5: 27 | H5: PROFESIONAL ESPECIALIZADO | I5: 2310440 | J5: Dirección Distrital de Política e Informática Jurídica | K5: 7 | L5: 0 | M5: 40 | N5: 0
A6: 131 | B6: 39718778 | C6: REVELO | D6: QUINTERO | E6: SONIA DEL ROSARIO | F6: 470 | G6: 7 | H6: AUXILIAR SERVICIOS GENERALES | I6: 2311000 | J6: Dirección de Gestión Corporativa | K6: 7 | L6: 0 | M6: 0 | N6: 0
A7: 506 | B7: 79569642 | C7: SALAZAR | D7: URRUTIA | E7: NELSON JULIAN | F7: 222 | G7: 21 | H7: PROFESIONAL ESPECIALIZADO | I7: 2310100 | J7: Oficina Asesora de Planeación | K7: 7 | L7: 0 | M7: 40 | N7: 0
A8: 401 | B8: 79048737 | C8: PULIDO | D8: SALAMANCA | E8: PABLO DANIEL | F8: 407 | G8: 15 | H8: AUXILIAR ADMINISTRATIVO | I8: 2311000 | J8: Dirección de Gestión Corporativa | K8: 7 | L8: 0 | M8: 0 | N8: 0
A9: 192 | B9: 42497241 | C9: APONTE | D9: PENSO | E9: SILVIA MODESTA | F9: 222 | G9: 27 | H9: PROFESIONAL ESPECIALIZADO | I9: 2310460 | J9: Dirección Distrital de Doctrina y Asuntos Normativos | K9: 7 | L9: 0 | M9: 40 | N9: 0
A10: 200 | B10: 51569861 | C10: DIAGO | D10: CASASBUENAS | E10: GLORIA MAGDALENA | F10: 222 | G10: 27 | H10: PROFESIONAL ESPECIALIZADO | I10: 2310450 | J10: Dirección Distrital de Defensa Judicial y Prevención del Daño Antijurídico | K10: 7 | L10: 0 | M10: 40 | N10: 0
A11: 214 | B11: 51628413 | C11: SALAMANCA | D11: CUEVAS | E11: LUZ MAVEL | F11: 407 | G11: 20 | H11: AUXILIAR ADMINISTRATIVO | I11: 2300100 | J11: Despacho Secretaría Jurídica | K11: 7 | L11: 0 | M11: 0 | N11: 0
A12: 19 | B12: 6761621 | C12: PARRA | D12: LEGUIZAMON | E12: JORGE ERNESTO | F12: 222 | G12: 26 | H12: PROFESIONAL ESPECIALIZADO | I12: 2310470 | J12: Dirección Distrital de Inspección, Vigilancia y Control de Personas Jurídicas Sin Ánimo de Lucro | K12: 7 | L12: 0 | M12: 50 | N12: 0
A13: 576 | B13: 52233911 | C13: RODRIGUEZ | D13: BARRERA | E13: NOHORA PATRICIA | F13: 105 | G13: 5 | H13: ASESOR | I13: 2300100 | J13: Despacho Secretaría Jurídica | K13: 7 | L13: 0 | M13: 50 | N13: 0
A14: 274 | B14: 79299847 | C14: MONTOYA | D14: MALDONADO | E14: JESUS MARIA | F14: 222 | G14: 27 | H14: PROFESIONAL ESPECIALIZADO | I14: 2311400 | J14: Financiera | K14: 7 | L14: 0 | M14: 40 | N14: 0
A15: 278 | B15: 79361343 | C15: MURILLO | D15: HURTADO | E15: VICTOR HERNANDO | F15: 219 | G15: 9 | H15: PROFESIONAL UNIVERSITARIO | I15: 2310100 | J15: Oficina Asesora de Planeación | K15: 7 | L15: 0 | M15: 40 | N15: 0
A16: 380 | B16: 79349710 | C16: OVALLE | D16: CUERVO | E16: EDGAR ENRIQUE | F16: 222 | G16: 24 | H16: PROFESIONAL ESPECIALIZADO | I16: 2310200 | J16: Oficina de Tecnologías de la Información y las Comunicaciones | K16: 7 | L16: 0 | M16: 40 | N16: 0
A17: 624 | B17: 52363895 | C17: HERNANDEZ | D17: LIBREROS | E17: ELVIRA LILIANA | F17: 222 | G17: 27 | H17: PROFESIONAL ESPECIALIZADO | I17: 2310440 | J17: Dirección Distrital de Política e Informática Jurídica | K17: 7 | L17: 0 | M17: 40 | N17: 0
A18: 233 | B18: 51784842 | C18: MARTINEZ | D18: HERNANDEZ | E18: MARIA MERY | F18: 407 | G18: 16 | H18: AUXILIAR ADMINISTRATIVO | I18: 2311000 | J18: Dirección de Gestión Corporativa | K18: 7 | L18: 0 | M18: 0 | N18: 0
A19: 237 | B19: 51798311 | C19: AMAYA | D19: SALAZAR | E19: MARTHA YOLANDA | F19: 222 | G19: 27 | H19: PROFESIONAL ESPECIALIZADO | I19: 2310450 | J19: Dirección Distrital de Defensa Judicial y Prevención del Daño Antijurídico | K19: 7 | L19: 0 | M19: 40 | N19: 0
A20: 247 | B20: 51937185 | C20: BARRERA | D20: DIAZ | E20: MARTHA LILIANA | F20: 219 | G20: 8 | H20: PROFESIONAL UNIVERSITARIO | I20: 2311000 | J20: Dirección de Gestión Corporativa | K20: 7 | L20: 0 | M20: 40 | N20: 0
A21: 257 | B21: 52124597 | C21: MONTAÑA | D21: MORA | E21: BETTY ESPERANZA | F21: 407 | G21: 11 | H21: AUXILIAR ADMINISTRATIVO | I21: 2311000 | J21: Dirección de Gestión Corporativa | K21: 7 | L21: 0 | M21: 0 | N21: 0
A22: 71 | B22: 19347862 | C22: HERNANDEZ | D22: ALBARRACIN | E22: JORGE ELIECER | F22: 222 | G22: 27 | H22: PROFESIONAL ESPECIALIZADO | I22: 2310470 | J22: Dirección Distrital de Inspección, Vigilancia y Control de Personas Jurídicas Sin Ánimo de Lucro | K22: 7 | L22: 0 | M22: 40 | N22: 0
A23: 1039 | B23: 79450267 | C23: GONZALEZ | D23: MOLINA | E23: HENRY ALBERTO | F23: 222 | G23: 20 | H23: PROFESIONAL ESPECIALIZADO | I23: 2310450 | J23: Dirección Distrital de Defensa Judicial y Prevención del Daño Antijurídico | K23: 7 | L23: 0 | M23: 40 | N23: 0
A24: 232 | B24: 51772038 | C24: CONTRERAS | D24: CASTRO | E24: DIANA ESTHER | F24: 222 | G24: 27 | H24: PROFESIONAL ESPECIALIZADO | I24: 2310470 | J24: Dirección Distrital de Inspección, Vigilancia y Control de Personas Jurídicas Sin Ánimo de Lucro | K24: 7 | L24: 0 | M24: 40 | N24: 0
A25: 701 | B25: 52235989 | C25: ARDILA | D25: VERGARA | E25: MILDRED PAOLA | F25: 314 | G25: 20 | H25: TECNICO OPERATIVO | I25: 2310470 | J25: Dirección Distrital de Inspección, Vigilancia y Control de Personas Jurídicas Sin Ánimo de Lucro | K25: 7 | L25: 0 | M25: 0 | N25: 0
A26: 314 | B26: 79468462 | C26: GARCIA | D26: GARAVITO | E26: EDGAR ANDRES | F26: 407 | G26: 20 | H26: AUXILIAR ADMINISTRATIVO | I26: 2311000 | J26: Dirección de Gestión Corporativa | K26: 7 | L26: 0 | M26: 0 | N26: 0
A27: 719 | B27: 79802044 | C27: BERNATE | D27: NAVARRO | E27: ALVARO CAMILO | F27: 222 | G27: 27 | H27: PROFESIONAL ESPECIALIZADO | I27: 2310450 | J27: Dirección Distrital de Defensa Judicial y Prevención del Daño Antijurídico | K27: 7 | L27: 0 | M27: 40 | N27: 0
A28: 403 | B28: 79262614 | C28: LOPEZ | D28: ACUÑA | E28: OSCAR ERNESTO | F28: 407 | G28: 14 | H28: AUXILIAR ADMINISTRATIVO | I28: 2311000 | J28: Dirección de Gestión Corporativa | K28: 7 | L28: 0 | M28: 0 | N28: 0
A29: 244 | B29: 51882380 | C29: FORERO | D29: FORERO | E29: CARMEN ALICIA | F29: 407 | G29: 13 | H29: AUXILIAR ADMINISTRATIVO | I29: 2310470 | J29: Dirección Distrital de Inspección, Vigilancia y Control de Personas Jurídicas Sin Ánimo de Lucro | K29: 7 | L29: 0 | M29: 0 | N29: 2
A30: 269 | B30: 79138328 | C30: CORTES | D30: SALGADO | E30: ALEX | F30: 407 | G30: 20 | H30: AUXILIAR ADMINISTRATIVO | I30: 2310450 | J30: Dirección Distrital de Defensa Judicial y Prevención del Daño Antijurídico | K30: 7 | L30: 0 | M30: 0 | N30: 0
A31: 359 | B31: 52557124 | C31: SILVA | D31: GARCIA | E31: DORIS | F31: 440 | G31: 19 | H31: SECRETARIO | I31: 2310450 | J31: Dirección Distrital de Defensa Judicial y Prevención del Daño Antijurídico | K31: 7 | L31: 0 | M31: 0 | N31: 2
A32: 669 | B32: 3085860 | C32: CASTIBLANCO | D32: URQUIJO | E32: LUIS ALFONSO | F32: 222 | G32: 27 | H32: PROFESIONAL ESPECIALIZADO | I32: 2310450 | J32: Dirección Distrital de Defensa Judicial y Prevención del Daño Antijurídico | K32: 7 | L32: 0 | M32: 40 | N32: 0
A33: 698 | B33: 52146196 | C33: RODGERS | D33: QUIROGA | E33: KATHERYN YOLANDA | F33: 425 | G33: 27 | H33: SECRETARIO EJECUTIVO | I33: 2310450 | J33: Dirección Distrital de Defensa Judicial y Prevención del Daño Antijurídico | K33: 7 | L33: 0 | M33: 0 | N33: 2
A34: 715 | B34: 79431243 | C34: OSPINA | D34: ZAPATA | E34: WALTER | F34: 407 | G34: 27 | H34: AUXILIAR ADMINISTRATIVO | I34: 2311000 | J34: Dirección de Gestión Corporativa | K34: 7 | L34: 0 | M34: 0 | N34: 0
A35: 1225 | B35: 79567977 | C35: PACHON | D35: PIÑEROS | E35: FERNANDO | F35: 222 | G35: 24 | H35: PROFESIONAL ESPECIALIZADO | I35: 2310460 | J35: Dirección Distrital de Doctrina y Asuntos Normativos | K35: 5 | L35: 0 | M35: 29.5 | N35: 0
A36: 733 | B36: 24179106 | C36: ROJAS | D36: SUAREZ | E36: ZULMA | F36: 9 | G36: 7 | H36: DIRECTOR TECNICO | I36: 2310440 | J36: Dirección Distrital de Política e Informática Jurídica | K36: 7 | L36: 0 | M36: 50 | N36: 0
A37: 133 | B37: 39773518 | C37: VANEGAS | D37: LARGO | E37: MARIA CRISTINA | F37: 440 | G37: 9 | H37: SECRETARIO | I37: 2310300 | J37: Oficina de Control Interno | K37: 7 | L37: 0 | M37: 0 | N37: 2
A38: 182 | B38: 41732503 | C38: VELASQUEZ | D38: CABRERA | E38: GABRIELINA | F38: 470 | G38: 7 | H38: AUXILIAR SERVICIOS GENERALES | I38: 2311000 | J38: Dirección de Gestión Corporativa | K38: 7 | L38: 0 | M38: 0 | N38: 0
A39: 188 | B39: 41780136 | C39: URREGO | D39: DE GARCIA | E39: LUZ STELLA | F39: 407 | G39: 11 | H39: AUXILIAR ADMINISTRATIVO | I39: 2311000 | J39: Dirección de Gestión Corporativa | K39: 7 | L39: 0 | M39: 0 | N39: 0
A40: 216 | B40: 51649014 | C40: GUTIERREZ | D40: HERNANDEZ | E40: DORA BELEN | F40: 222 | G40: 21 | H40: PROFESIONAL ESPECIALIZADO | I40: 2311510 | J40: Inventarios | K40: 7 | L40: 0 | M40: 40 | N40: 0
A41: 1226 | B41: 93371977 | C41: SANDOVAL | D41: RODRIGUEZ | E41: DUVAN | F41: 222 | G41: 27 | H41: PROFESIONAL ESPECIALIZADO | I41: 2310460 | J41: Dirección Distrital de Doctrina y Asuntos Normativos | K41: 5 | L41: 0 | M41: 40 | N41: 0
A42: 1519 | B42: 51732443 | C42: TORRES | D42: ROJAS | E42: ACENETH | F42: 425 | G42: 21 | H42: SECRETARIO EJECUTIVO | I42: 2310430 | J42: Dirección Distrital de Asuntos Disciplinarios | K42: 5 | L42: 0 | M42: 0 | N42: 2
A43: 1762 | B43: 52236487 | C43: MORENO | D43: GUERRERO | E43: DEYSI YANIRA | F43: 222 | G43: 27 | H43: PROFESIONAL ESPECIALIZADO | I43: 2310430 | J43: Dirección Distrital de Asuntos Disciplinarios | K43: 7 | L43: 0 | M43: 40 | N43: 0
A44: 2260 | B44: 52352995 | C44: SALAS | D44: SANCHEZ | E44: VANESSA | F44: 222 | G44: 21 | H44: PROFESIONAL ESPECIALIZADO | I44: 2311300 | J44: Talento Humano | K44: 3 | L44: 0 | M44: 40 | N44: 0
A45: 2267 | B45: 1032434263 | C45: SIERRA | D45: LENIS | E45: LAURA STHEPANY | F45: 407 | G45: 15 | H45: AUXILIAR ADMINISTRATIVO | I45: 2311000 | J45: Dirección de Gestión Corporativa | K45: 3 | L45: 0 | M45: 0 | N45: 0
A46: 2391 | B46: 28915546 | C46: RODRIGUEZ | D46: QUIMBAYO | E46: LUZ ELENA | F46: 9 | G46: 7 | H46: DIRECTOR TECNICO | I46: 2310450 | J46: Dirección Distrital de Defensa Judicial y Prevención del Daño Antijurídico | K46: 3 | L46: 0 | M46: 50 | N46: 0
A47: 2414 | B47: 79954654 | C47: RODRIGUEZ | D47: RODRIGUEZ | E47: CAMILO ANDRES | F47: 222 | G47: 25 | H47: PROFESIONAL ESPECIALIZADO | I47: 2310470 | J47: Dirección Distrital de Inspección, Vigilancia y Control de Personas Jurídicas Sin Ánimo de Lucro | K47: 3 | L47: 0 | M47: 40 | N47: 0
A48: 2424 | B48: 1018435583 | C48: ROA | D48: SILVA | E48: SONIA TERESA | F48: 219 | G48: 18 | H48: PROFESIONAL UNIVERSITARIO | I48: 2310450 | J48: Dirección Distrital de Defensa Judicial y Prevención del Daño Antijurídico | K48: 0 | L48: 0 | M48: 40 | N48: 0
A49: 2427 | B49: 52768137 | C49: GARCIA | D49: CARDONA | E49: LUZ ESPERANZA | F49: 219 | G49: 18 | H49: PROFESIONAL UNIVERSITARIO | I49: 2311000 | J49: Dirección de Gestión Corporativa | K49: 3 | L49: 0 | M49: 32 | N49: 0
A50: 2453 | B50: 80854795 | C50: GOMEZ | D50: LEAL | E50: JOSE OSWALDO | F50: 219 | G50: 18 | H50: PROFESIONAL UNIVERSITARIO | I50: 2310450 | J50: Dirección Distrital de Defensa Judicial y Prevención del Daño Antijurídico | K50: 0 | L50: 0 | M50: 40 | N50: 0
A51: 2477 | B51: 1032442475 | C51: PULIDO | D51: MARTINEZ | E51: JUAN FELIPE | F51: 407 | G51: 9 | H51: AUXILIAR ADMINISTRATIVO | I51: 2311000 | J51: Dirección de Gestión Corporativa | K51: 3 | L51: 0 | M51: 0 | N51: 0
A52: 2396 | B52: 80767640 | C52: PEÑA | D52: CARBONELL | E52: CAMILO ANDRES | F52: 115 | G52: 6 | H52: JEFE OFICINA ASESORA | I52: 2310100 | J52: Oficina Asesora de Planeación | K52: 5 | L52: 0 | M52: 50 | N52: 0
A53: 2407 | B53: 39755703 | C53: ESCOBAR | D53: REMICIO | E53: MARIA PILAR | F53: 219 | G53: 18 | H53: PROFESIONAL UNIVERSITARIO | I53: 2310450 | J53: Dirección Distrital de Defensa Judicial y Prevención del Daño Antijurídico | K53: 0 | L53: 0 | M53: 40 | N53: 0
A54: 2468 | B54: 53015269 | C54: GAMEZ | D54: GOMEZ | E54: JOHANA PATRICIA | F54: 222 | G54: 22 | H54: PROFESIONAL ESPECIALIZADO | I54: 2310440 | J54: Dirección Distrital de Política e Informática Jurídica | K54: 3 | L54: 0 | M54: 40 | N54: 0
A55: 2472 | B55: 80850931 | C55: GALLEGO | D55: GONZALEZ | E55: RUBEN DARIO | F55: 222 | G55: 27 | H55: PROFESIONAL ESPECIALIZADO | I55: 2310400 | J55: Subsecretaría Jurídica | K55: 3 | L55: 0 | M55: 40 | N55: 0
A56: 2435 | B56: 52115141 | C56: ALONSO | D56: BERNAL | E56: OMAIRA | F56: 407 | G56: 13 | H56: AUXILIAR ADMINISTRATIVO | I56: 2311000 | J56: Dirección de Gestión Corporativa | K56: 3 | L56: 0 | M56: 0 | N56: 0
A57: 18 | B57: 6758776 | C57: MUÑOZ | D57: CUERVO | E57: HERNAN BENJAMIN | F57: 219 | G57: 18 | H57: PROFESIONAL UNIVERSITARIO | I57: 2212500 | J57: Sin identificar | K57: 7 | L57: 0 | M57: 40 | N57: 0
A58: 2418 | B58: 1015419295 | C58: MORA | D58: MONTOYA | E58: HELVER MANUEL | F58: 219 | G58: 1 | H58: PROFESIONAL UNIVERSITARIO | I58: 2310450 | J58: Dirección Distrital de Defensa Judicial y Prevención del Daño Antijurídico | K58: 3 | L58: 0 | M58: 24 | N58: 0
A59: 2446 | B59: 79354489 | C59: OSPINA | D59: MAYORGA | E59: ROBERTO JAVIER | F59: 219 | G59: 18 | H59: PROFESIONAL UNIVERSITARIO | I59: 2310440 | J59: Dirección Distrital de Política e Informática Jurídica | K59: 3 | L59: 0 | M59: 40 | N59: 0
A60: 2504 | B60: 79468174 | C60: PULIDO | D60: FAJARDO | E60: FRANCISCO JAVIER | F60: 6 | G60: 6 | H60: JEFE DE OFICINA | I60: 2310200 | J60: Oficina de Tecnologías de la Información y las Comunicaciones | K60: 0 | L60: 0 | M60: 50 | N60: 0
A61: 2513 | B61: 52966718 | C61: RUIZ | D61: QUINTANA | E61: PAULA JOHANNA | F61: 9 | G61: 7 | H61: DIRECTOR TECNICO | I61: 2310460 | J61: Dirección Distrital de Doctrina y Asuntos Normativos | K61: 0 | L61: 0 | M61: 50 | N61: 0
A62: 2523 | B62: 65554501 | C62: AREVALO | D62: ROJAS | E62: MAGDA MERCEDES | F62: 9 | G62: 7 | H62: DIRECTOR TECNICO | I62: 2311000 | J62: Dirección de Gestión Corporativa | K62: 0 | L62: 0 | M62: 50 | N62: 0
A63: 2538 | B63: 52646082 | C63: ORGANISTA | D63: BUILES | E63: SANDRA NICOLASA | F63: 222 | G63: 19 | H63: PROFESIONAL ESPECIALIZADO | I63: 2310470 | J63: Dirección Distrital de Inspección, Vigilancia y Control de Personas Jurídicas Sin Ánimo de Lucro | K63: 0 | L63: 0 | M63: 40 | N63: 0
A64: 2540 | B64: 80100027 | C64: URREGO | D64: BECERRA | E64: EDUARDO ALEJANDRO | F64: 480 | G64: 13 | H64: CONDUCTOR | I64: 2311000 | J64: Dirección de Gestión Corporativa | K64: 0 | L64: 0 | M64: 0 | N64: 0
A65: 2541 | B65: 1022362951 | C65: GAONA | D65: FARIAS | E65: LUIS CARLOS | F65: 314 | G65: 20 | H65: TECNICO OPERATIVO | I65: 2310470 | J65: Dirección Distrital de Inspección, Vigilancia y Control de Personas Jurídicas Sin Ánimo de Lucro | K65: 0 | L65: 0 | M65: 0 | N65: 0
A66: 2542 | B66: 80154878 | C66: RUIZ | D66: ZAMUDIO | E66: JUAN CAMILO | F66: 219 | G66: 18 | H66: PROFESIONAL UNIVERSITARIO | I66: 2310470 | J66: Dirección Distrital de Inspección, Vigilancia y Control de Personas Jurídicas Sin Ánimo de Lucro | K66: 0 | L66: 0 | M66: 40 | N66: 0
A67: 2547 | B67: 52282454 | C67: GUZMAN | D67: CONTRERAS | E67: ADRIANA PATRICIA | F67: 222 | G67: 27 | H67: PROFESIONAL ESPECIALIZADO | I67: 2311000 | J67: Dirección de Gestión Corporativa | K67: 7 | L67: 0 | M67: 40 | N67: 0
A68: 2548 | B68: 52542976 | C68: RAMIREZ | D68: BAUTISTA | E68: ADRIANA PATRICIA | F68: 407 | G68: 16 | H68: AUXILIAR ADMINISTRATIVO | I68: 2311000 | J68: Dirección de Gestión Corporativa | K68: 0 | L68: 0 | M68: 0 | N68: 0
A69: 2549 | B69: 1072493406 | C69: BUITRAGO | D69: DIAZ | E69: DANIEL FERNANDO | F69: 440 | G69: 9 | H69: SECRETARIO | I69: 2310460 | J69: Dirección Distrital de Doctrina y Asuntos Normativos | K69: 0 | L69: 0 | M69: 0 | N69: 2
A70: 2550 | B70: 1073159399 | C70: LEON | D70: CITA | E70: WENDY PAOLA | F70: 314 | G70: 20 | H70: TECNICO OPERATIVO | I70: 2310470 | J70: Dirección Distrital de Inspección, Vigilancia y Control de Personas Jurídicas Sin Ánimo de Lucro | K70: 0 | L70: 0 | M70: 0 | N70: 0
A71: 2551 | B71: 52463485 | C71: MARTINEZ | D71: PALACIOS | E71: OLGA LUCIA | F71: 219 | G71: 15 | H71: PROFESIONAL UNIVERSITARIO | I71: 2310470 | J71: Dirección Distrital de Inspección, Vigilancia y Control de Personas Jurídicas Sin Ánimo de Lucro | K71: 0 | L71: 0 | M71: 40 | N71: 0
A72: 2552 | B72: 60342078 | C72: ROMERO | D72: CELEMIN | E72: ALBA YAMILE | F72: 314 | G72: 20 | H72: TECNICO OPERATIVO | I72: 2310470 | J72: Dirección Distrital de Inspección, Vigilancia y Control de Personas Jurídicas Sin Ánimo de Lucro | K72: 0 | L72: 0 | M72: 0 | N72: 0
A73: 2553 | B73: 80188856 | C73: ORTIZ | D73: PAEZ | E73: OMAR ANDRES | F73: 440 | G73: 9 | H73: SECRETARIO | I73: 2311000 | J73: Dirección de Gestión Corporativa | K73: 0 | L73: 0 | M73: 0 | N73: 2
A74: 2568 | B74: 80221328 | C74: MURCIA | D74: ANGEL | E74: OMAR LEONARDO | F74: 219 | G74: 10 | H74: PROFESIONAL UNIVERSITARIO | I74: 2310300 | J74: Oficina de Control Interno | K74: 0 | L74: 0 | M74: 40 | N74: 0
A75: 2569 | B75: 79769334 | C75: MARROQUIN | E75: JAUMI MANFRED | F75: 480 | G75: 13 | H75: CONDUCTOR | I75: 2311000 | J75: Dirección de Gestión Corporativa | K75: 0 | L75: 0 | M75: 0 | N75: 0
A76: 2571 | B76: 16077540 | C76: RAMIREZ | D76: VALENCIA | E76: IVAN DAVID | F76: 219 | G76: 18 | H76: PROFESIONAL UNIVERSITARIO | I76: 2310470 | J76: Dirección Distrital de Inspección, Vigilancia y Control de Personas Jurídicas Sin Ánimo de Lucro | K76: 0 | L76: 0 | M76: 40 | N76: 0
A77: 2576 | B77: 1070950393 | C77: MONTAÑEZ | D77: REY | E77: MAICOL ANDRÉS | F77: 407 | G77: 15 | H77: AUXILIAR ADMINISTRATIVO | I77: 2310460 | J77: Dirección Distrital de Doctrina y Asuntos Normativos | K77: 0 | L77: 0 | M77: 0 | N77: 0
A78: 2613 | B78: 1030577699 | C78: ARAGON | D78: CASTIBLANCO | E78: KATHERINE PAOLA | F78: 314 | G78: 15 | H78: TECNICO OPERATIVO | I78: 2310460 | J78: Dirección Distrital de Doctrina y Asuntos Normativos | K78: 0 | L78: 0 | M78: 0 | N78: 0
A79: 2622 | B79: 39660517 | C79: NADER | D79: SANCHEZ | E79: JIMENA | F79: 222 | G79: 20 | H79: PROFESIONAL ESPECIALIZADO | I79: 2310450 | J79: Dirección Distrital de Defensa Judicial y Prevención del Daño Antijurídico | K79: 0 | L79: 0 | M79: 40 | N79: 0
A80: 2624 | B80: 51961579 | C80: URIBE | D80: CABALLERO | E80: AZULA | F80: 407 | G80: 24 | H80: AUXILIAR ADMINISTRATIVO | I80: 2311000 | J80: Dirección de Gestión Corporativa | K80: 0 | L80: 0 | M80: 0 | N80: 0
A81: 2629 | B81: 1057463050 | C81: BOHORQUEZ | D81: MORENO | E81: YANNY AEXANDRA | F81: 314 | G81: 20 | H81: TECNICO OPERATIVO | I81: 2311000 | J81: Dirección de Gestión Corporativa | K81: 0 | L81: 0 | M81: 0 | N81: 0
A82: 2543 | B82: 1015393324 | C82: ROJAS | D82: PEÑA | E82: JORGE ANDRES | F82: 219 | G82: 15 | H82: PROFESIONAL UNIVERSITARIO | I82: 2310470 | J82: Dirección Distrital de Inspección, Vigilancia y Control de Personas Jurídicas Sin Ánimo de Lucro | K82: 0 | L82: 0 | M82: 27.2 | N82: 0
A83: 2544 | B83: 37625914 | C83: SANCHEZ | D83: ROJAS | E83: MARY DAYANA | F83: 314 | G83: 15 | H83: TECNICO OPERATIVO | I83: 2310450 | J83: Dirección Distrital de Defensa Judicial y Prevención del Daño Antijurídico | K83: 0 | L83: 0 | M83: 0 | N83: 0
A84: 2545 | B84: 1015425376 | C84: CASALLAS | D84: MARTINEZ | E84: ALEJANDRA NATALY | F84: 314 | G84: 15 | H84: TECNICO OPERATIVO | I84: 2310450 | J84: Dirección Distrital de Defensa Judicial y Prevención del Daño Antijurídico | K84: 0 | L84: 0 | M84: 0 | N84: 0
A85: 2546 | B85: 52421857 | C85: SEPULVEDA | D85: ORDOÑEZ | E85: LIDA TATIANA | F85: 440 | G85: 11 | H85: SECRETARIO | I85: 2310100 | J85: Oficina Asesora de Planeación | K85: 0 | L85: 0 | M85: 0 | N85: 2
A86: 2560 | B86: 79709902 | C86: ARDILA | D86: MORA | E86: ALVARO | F86: 222 | G86: 27 | H86: PROFESIONAL ESPECIALIZADO | I86: 2310450 | J86: Dirección Distrital de Defensa Judicial y Prevención del Daño Antijurídico | K86: 0 | L86: 0 | M86: 40 | N86: 0
A87: 2561 | B87: 46677766 | C87: ORTIZ | D87: LEON | E87: MARTHA YANETH | F87: 222 | G87: 27 | H87: PROFESIONAL ESPECIALIZADO | I87: 2310450 | J87: Dirección Distrital de Defensa Judicial y Prevención del Daño Antijurídico | K87: 0 | L87: 0 | M87: 40 | N87: 0
A88: 2562 | B88: 86058268 | C88: OJEDA | D88: CARDENAS | E88: IAM ALEXANDER | F88: 219 | G88: 13 | H88: PROFESIONAL UNIVERSITARIO | I88: 2310440 | J88: Dirección Distrital de Política e Informática Jurídica | K88: 0 | L88: 0 | M88: 40 | N88: 0
A89: 2563 | B89: 53166058 | C89: CALA | D89: CASTRO | E89: ADDILY JOHANNA | F89: 222 | G89: 21 | H89: PROFESIONAL ESPECIALIZADO | I89: 2311000 | J89: Dirección de Gestión Corporativa | K89: 0 | L89: 0 | M89: 40 | N89: 0
A90: 2564 | B90: 1032479676 | C90: MORA | D90: BERMUDEZ | E90: DAVID ALEJANDRO | F90: 219 | G90: 1 | H90: PROFESIONAL UNIVERSITARIO | I90: 2310470 | J90: Dirección Distrital de Inspección, Vigilancia y Control de Personas Jurídicas Sin Ánimo de Lucro | K90: 0 | L90: 0 | M90: 17.9 | N90: 0
A91: 2565 | B91: 80809603 | C91: TORRES | D91: HERNANDEZ | E91: JOSE MISAEL | F91: 314 | G91: 20 | H91: TECNICO OPERATIVO | I91: 2310200 | J91: Oficina de Tecnologías de la Información y las Comunicaciones | K91: 0 | L91: 0 | M91: 0 | N91: 0
A92: 2566 | B92: 1018482333 | C92: RODRIGUEZ | D92: NARVAEZ | E92: DANIELA | F92: 219 | G92: 10 | H92: PROFESIONAL UNIVERSITARIO | I92: 2311000 | J92: Dirección de Gestión Corporativa | K92: 0 | L92: 0 | M92: 33.6 | N92: 0
A93: 2577 | B93: 52277284 | C93: CRUZ | D93: PARDO | E93: MARTHA RUBIELA | F93: 314 | G93: 20 | H93: TECNICO OPERATIVO | I93: 2311000 | J93: Dirección de Gestión Corporativa | K93: 0 | L93: 0 | M93: 0 | N93: 0
A94: 2578 | B94: 1032366723 | C94: CORZO | D94: ESTEPA | E94: OLGA MILENA | F94: 6 | G94: 6 | H94: JEFE DE OFICINA | I94: 2310100 | J94: Oficina Asesora de Planeación | K94: 0 | L94: 0 | M94: 50 | N94: 0
A95: 2579 | B95: 83169105 | C95: VARGAS | D95: MORALES | E95: DAVID HERNANDO | F95: 222 | G95: 21 | H95: PROFESIONAL ESPECIALIZADO | I95: 2310470 | J95: Dirección Distrital de Inspección, Vigilancia y Control de Personas Jurídicas Sin Ánimo de Lucro | K95: 0 | L95: 0 | M95: 40 | N95: 0
A96: 2580 | B96: 52391785 | C96: ALARCON | D96: ACERO | E96: YOMAIRA AMPARO | F96: 222 | G96: 21 | H96: PROFESIONAL ESPECIALIZADO | I96: 2311000 | J96: Dirección de Gestión Corporativa | K96: 0 | L96: 0 | M96: 36.8 | N96: 0
A97: 2581 | B97: 1049619617 | C97: NOVOA | D97: DUEÑAS | E97: SANDRA LISETTE | F97: 219 | G97: 18 | H97: PROFESIONAL UNIVERSITARIO | I97: 2310450 | J97: Dirección Distrital de Defensa Judicial y Prevención del Daño Antijurídico | K97: 0 | L97: 0 | M97: 40 | N97: 0
A98: 2582 | B98: 52871047 | C98: POLANIA | D98: SALAZAR | E98: LUZ DARY | F98: 219 | G98: 13 | H98: PROFESIONAL UNIVERSITARIO | I98: 2310300 | J98: Oficina de Control Interno | K98: 0 | L98: 0 | M98: 40 | N98: 0
A99: 2612 | B99: 53100696 | C99: TORRES | D99: BECERRA | E99: MARIA VICTORIA | F99: 314 | G99: 20 | H99: TECNICO OPERATIVO | I99: 2310470 | J99: Dirección Distrital de Inspección, Vigilancia y Control de Personas Jurídicas Sin Ánimo de Lucro | K99: 0 | L99: 0 | M99: 0 | N99: 0
A100: 2618 | B100: 80267904 | C100: RAMIREZ | D100: MUÑOZ | E100: CARLOS JULIO | F100: 219 | G100: 18 | H100: PROFESIONAL UNIVERSITARIO | I100: 2310460 | J100: Dirección Distrital de Doctrina y Asuntos Normativos | K100: 0 | L100: 0 | M100: 40 | N100: 0
A101: 2620 | B101: 1018407982 | C101: ORTIZ | D101: MONTERO | E101: JUAN PABLO | F101: 219 | G101: 15 | H101: PROFESIONAL UNIVERSITARIO | I101: 2310430 | J101: Dirección Distrital de Asuntos Disciplinarios | K101: 0 | L101: 0 | M101: 40 | N101: 0
A102: 2627 | B102: 1018403375 | C102: LEON | D102: BELTRAN | E102: JULIES KATHERINE | F102: 9 | G102: 7 | H102: DIRECTOR TECNICO | I102: 2310470 | J102: Dirección Distrital de Inspección, Vigilancia y Control de Personas Jurídicas Sin Ánimo de Lucro | K102: 0 | L102: 0 | M102: 50 | N102: 0
A103: 2507 | B103: 7690438 | C103: HURTADO | D103: TORRES | E103: WILSON RAMON | F103: 480 | G103: 13 | H103: CONDUCTOR | I103: 2311000 | J103: Dirección de Gestión Corporativa | K103: 0 | L103: 0 | M103: 0 | N103: 0
A104: 2554 | B104: 1032448684 | C104: MARTINEZ | D104: BERNAL | E104: JUAN CARLOS | F104: 219 | G104: 10 | H104: PROFESIONAL UNIVERSITARIO | I104: 2311000 | J104: Dirección de Gestión Corporativa | K104: 0 | L104: 0 | M104: 40 | N104: 0
A105: 2555 | B105: 1012339868 | C105: LONDOÑO | D105: GARCIA | E105: OLGA LILIANA | F105: 407 | G105: 17 | H105: AUXILIAR ADMINISTRATIVO | I105: 2311000 | J105: Dirección de Gestión Corporativa | K105: 0 | L105: 0 | M105: 0 | N105: 0
A106: 2556 | B106: 1033706367 | C106: BARBOSA | E106: JASON | F106: 314 | G106: 15 | H106: TECNICO OPERATIVO | I106: 2310450 | J106: Dirección Distrital de Defensa Judicial y Prevención del Daño Antijurídico | K106: 0 | L106: 0 | M106: 0 | N106: 0
A107: 2599 | B107: 23582747 | C107: GUERRERO | D107: BONILLA | E107: MAGDA EDITH | F107: 222 | G107: 27 | H107: PROFESIONAL ESPECIALIZADO | I107: 2310450 | J107: Dirección Distrital de Defensa Judicial y Prevención del Daño Antijurídico | K107: 0 | L107: 0 | M107: 40 | N107: 0
A108: 2616 | B108: 52171949 | C108: MARTINEZ | D108: ORTIZ | E108: GLORIA INES | F108: 314 | G108: 21 | H108: TECNICO OPERATIVO | I108: 2300100 | J108: Despacho Secretaría Jurídica | K108: 0 | L108: 0 | M108: 0 | N108: 0
A109: 2623 | B109: 1116247853 | C109: YARCE | D109: BARRAGAN | E109: CRISTHIAN FELIPE | F109: 105 | G109: 5 | H109: ASESOR | I109: 2300100 | J109: Despacho Secretaría Jurídica | K109: 0 | L109: 0 | M109: 50 | N109: 0
A110: 2628 | B110: 1023894175 | C110: ROMERO | D110: TORRES | E110: HEIDY LORENA | F110: 407 | G110: 15 | H110: AUXILIAR ADMINISTRATIVO | I110: 2310450 | J110: Dirección Distrital de Defensa Judicial y Prevención del Daño Antijurídico | K110: 0 | L110: 0 | M110: 0 | N110: 0
A111: 2517 | B111: 80204155 | C111: RINCON | D111: GARAY | E111: PAULO ANDRES | F111: 105 | G111: 5 | H111: ASESOR | I111: 2300100 | J111: Despacho Secretaría Jurídica | K111: 0 | L111: 0 | M111: 50 | N111: 0
A112: 2522 | B112: 1082925493 | C112: APONTE | D112: MARTIN | E112: DIANA CAMILA | F112: 222 | G112: 24 | H112: PROFESIONAL ESPECIALIZADO | I112: 2310460 | J112: Dirección Distrital de Doctrina y Asuntos Normativos | K112: 0 | L112: 0 | M112: 36.8 | N112: 0
A113: 2525 | B113: 73155098 | C113: PEREZ | D113: FORTICH | E113: FERNAN ENRIQUE | F113: 219 | G113: 18 | H113: PROFESIONAL UNIVERSITARIO | I113: 2310470 | J113: Dirección Distrital de Inspección, Vigilancia y Control de Personas Jurídicas Sin Ánimo de Lucro | K113: 0 | L113: 0 | M113: 40 | N113: 0
A114: 2526 | B114: 75065817 | C114: ARREDONDO | D114: VELEZ | E114: HECTOR IVAN | F114: 219 | G114: 18 | H114: PROFESIONAL UNIVERSITARIO | I114: 2310470 | J114: Dirección Distrital de Inspección, Vigilancia y Control de Personas Jurídicas Sin Ánimo de Lucro | K114: 0 | L114: 0 | M114: 40 | N114: 0
A115: 2527 | B115: 28488940 | C115: ANAYA | D115: SARMIENTO | E115: CAROLINA | F115: 314 | G115: 9 | H115: TECNICO OPERATIVO | I115: 2310460 | J115: Dirección Distrital de Doctrina y Asuntos Normativos | K115: 0 | L115: 0 | M115: 0 | N115: 0
A116: 2528 | B116: 52151785 | C116: VILLANUEVA | D116: SANCHEZ | E116: DALIDA | F116: 219 | G116: 1 | H116: PROFESIONAL UNIVERSITARIO | I116: 2310470 | J116: Dirección Distrital de Inspección, Vigilancia y Control de Personas Jurídicas Sin Ánimo de Lucro | K116: 0 | L116: 0 | M116: 30.4 | N116: 0
A117: 2592 | B117: 52868519 | C117: MORENO | D117: PEREZ | E117: LUZ STELLA | F117: 219 | G117: 18 | H117: PROFESIONAL UNIVERSITARIO | I117: 2300100 | J117: Despacho Secretaría Jurídica | K117: 3 | L117: 0 | M117: 40 | N117: 0
A118: 2593 | B118: 1113658247 | C118: VALENCIA | D118: PATIÑO | E118: HOOVER HERNAN | F118: 314 | G118: 15 | H118: TECNICO OPERATIVO | I118: 2310450 | J118: Dirección Distrital de Defensa Judicial y Prevención del Daño Antijurídico | K118: 0 | L118: 0 | M118: 0 | N118: 0
A119: 2595 | B119: 6765913 | C119: NIÑO | D119: SOCHA | E119: CARLOS ANDRES | F119: 219 | G119: 18 | H119: PROFESIONAL UNIVERSITARIO | I119: 2310450 | J119: Dirección Distrital de Defensa Judicial y Prevención del Daño Antijurídico | K119: 0 | L119: 0 | M119: 40 | N119: 0
A120: 2602 | B120: 52258032 | C120: DIAZ | D120: RINCON | E120: ANGELICA | F120: 222 | G120: 19 | H120: PROFESIONAL ESPECIALIZADO | I120: 2310460 | J120: Dirección Distrital de Doctrina y Asuntos Normativos | K120: 0 | L120: 0 | M120: 40 | N120: 0
A121: 2603 | B121: 1110573560 | C121: JIMENEZ | D121: VASQUEZ | E121: CRISTHIAM DAVID | F121: 219 | G121: 1 | H121: PROFESIONAL UNIVERSITARIO | I121: 2310470 | J121: Dirección Distrital de Inspección, Vigilancia y Control de Personas Jurídicas Sin Ánimo de Lucro | K121: 0 | L121: 0 | M121: 30.4 | N121: 0
A122: 2605 | B122: 52818411 | C122: CUBIDES | D122: AMAYA | E122: MARIA XIMENA | F122: 222 | G122: 21 | H122: PROFESIONAL ESPECIALIZADO | I122: 2310460 | J122: Dirección Distrital de Doctrina y Asuntos Normativos | K122: 0 | L122: 0 | M122: 40 | N122: 0
A123: 2607 | B123: 1057586009 | C123: MEJIA | D123: PARRA | E123: MONICA ROCIO | F123: 219 | G123: 18 | H123: PROFESIONAL UNIVERSITARIO | I123: 2310440 | J123: Dirección Distrital de Política e Informática Jurídica | K123: 0 | L123: 0 | M123: 40 | N123: 0
A124: 2614 | B124: 79575101 | C124: MEJIA | D124: SIERRA | E124: PEDRO ALFONSO | F124: 222 | G124: 27 | H124: PROFESIONAL ESPECIALIZADO | I124: 2311000 | J124: Dirección de Gestión Corporativa | K124: 7 | L124: 0 | M124: 40 | N124: 0
A125: 2626 | B125: 1075256570 | C125: SOTELO | D125: HOYOS | E125: DURLEY | F125: 470 | G125: 3 | H125: AUXILIAR SERVICIOS GENERALES | I125: 2311000 | J125: Dirección de Gestión Corporativa | K125: 0 | L125: 0 | M125: 0 | N125: 0
A126: 2632 | B126: 1015409873 | C126: VILLARRAGA | D126: ROJAS | E126: LIZETH MAYERLY | F126: 407 | G126: 9 | H126: AUXILIAR ADMINISTRATIVO | I126: 2310470 | J126: Dirección Distrital de Inspección, Vigilancia y Control de Personas Jurídicas Sin Ánimo de Lucro | K126: 0 | L126: 0 | M126: 0 | N126: 0
A127: 2500 | B127: 16359534 | C127: LIBREROS | D127: CASTAÑEDA | E127: SENECA | F127: 219 | G127: 18 | H127: PROFESIONAL UNIVERSITARIO | I127: 2310460 | J127: Dirección Distrital de Doctrina y Asuntos Normativos | K127: 0 | L127: 0 | M127: 40 | N127: 0
A128: 2511 | B128: 1019032759 | C128: TORRES | D128: MARULANDA | E128: MARIA PAULA | F128: 9 | G128: 7 | H128: DIRECTOR TECNICO | I128: 2300100 | J128: Despacho Secretaría Jurídica | K128: 0 | L128: 0 | M128: 46 | N128: 0
A129: 2533 | B129: 1019026800 | C129: CHACON | D129: TRIVIÑO | E129: VIKY MILENA | F129: 219 | G129: 18 | H129: PROFESIONAL UNIVERSITARIO | I129: 2311000 | J129: Dirección de Gestión Corporativa | K129: 0 | L129: 0 | M129: 40 | N129: 0
A130: 2534 | B130: 1018409494 | C130: MEDINA | D130: MURILLO | E130: CAROLINA | F130: 219 | G130: 18 | H130: PROFESIONAL UNIVERSITARIO | I130: 2310470 | J130: Dirección Distrital de Inspección, Vigilancia y Control de Personas Jurídicas Sin Ánimo de Lucro | K130: 3 | L130: 0 | M130: 40 | N130: 0
A131: 2557 | B131: 30082628 | C131: GOMEZ | D131: PEÑA | E131: DIANA PAOLA | F131: 222 | G131: 19 | H131: PROFESIONAL ESPECIALIZADO | I131: 2310430 | J131: Dirección Distrital de Asuntos Disciplinarios | K131: 0 | L131: 0 | M131: 40 | N131: 0
A132: 2586 | B132: 52337438 | C132: ALVARADO | D132: ROJAS | E132: CHEILA ALEXANDRA | F132: 219 | G132: 18 | H132: PROFESIONAL UNIVERSITARIO | I132: 2311000 | J132: Dirección de Gestión Corporativa | K132: 0 | L132: 0 | M132: 40 | N132: 0
A133: 2587 | B133: 40011063 | C133: TORRES | D133: MARTINEZ | E133: NELCY | F133: 219 | G133: 18 | H133: PROFESIONAL UNIVERSITARIO | I133: 2310450 | J133: Dirección Distrital de Defensa Judicial y Prevención del Daño Antijurídico | K133: 0 | L133: 0 | M133: 40 | N133: 0
A134: 2609 | B134: 80093870 | C134: DE LOS RIOS | D134: SALAZAR | E134: ANDRES FELIPE | F134: 222 | G134: 19 | H134: PROFESIONAL ESPECIALIZADO | I134: 2310430 | J134: Dirección Distrital de Asuntos Disciplinarios | K134: 0 | L134: 0 | M134: 40 | N134: 0
A135: 2615 | B135: 1088280963 | C135: PEDRAZA | D135: BUITRAGO | E135: LUISA FERNANDA | F135: 105 | G135: 5 | H135: ASESOR | I135: 2300100 | J135: Despacho Secretaría Jurídica | K135: 0 | L135: 0 | M135: 50 | N135: 0
A136: 2617 | B136: 19444915 | C136: QUINTERO | D136: LARA | E136: OCTAVIO | F136: 222 | G136: 27 | H136: PROFESIONAL ESPECIALIZADO | I136: 2310470 | J136: Dirección Distrital de Inspección, Vigilancia y Control de Personas Jurídicas Sin Ánimo de Lucro | K136: 0 | L136: 0 | M136: 40 | N136: 0
A137: 2619 | B137: 30333406 | C137: AVILA | D137: MARIN | E137: ALEXANDRA | F137: 219 | G137: 1 | H137: PROFESIONAL UNIVERSITARIO | I137: 2310440 | J137: Dirección Distrital de Política e Informática Jurídica | K137: 0 | L137: 0 | M137: 24 | N137: 0
A138: 2503 | B138: 1018435319 | C138: MARQUEZ | D138: CASTELBLANCO | E138: IVAN DAVID | F138: 45 | G138: 8 | H138: SUBSECRETARIO DE DESPACHO | I138: 2310400 | J138: Subsecretaría Jurídica | K138: 0 | L138: 0 | M138: 50 | N138: 0
A139: 2529 | B139: 52281297 | C139: GIL | D139: HERRERA | E139: ANA JULIETH | F139: 425 | G139: 24 | H139: SECRETARIO EJECUTIVO | I139: 2310200 | J139: Oficina de Tecnologías de la Información y las Comunicaciones | K139: 0 | L139: 0 | M139: 0 | N139: 2
A140: 2530 | B140: 79584810 | C140: PINTO | D140: SEGURA | E140: MIGUEL | F140: 219 | G140: 18 | H140: PROFESIONAL UNIVERSITARIO | I140: 2310470 | J140: Dirección Distrital de Inspección, Vigilancia y Control de Personas Jurídicas Sin Ánimo de Lucro | K140: 0 | L140: 0 | M140: 40 | N140: 0
A141: 2531 | B141: 52486713 | C141: CAMARGO | D141: CASTRO | E141: CLAUDIA MARCELA | F141: 219 | G141: 13 | H141: PROFESIONAL UNIVERSITARIO | I141: 2310440 | J141: Dirección Distrital de Política e Informática Jurídica | K141: 0 | L141: 0 | M141: 40 | N141: 0
A142: 2532 | B142: 7178362 | C142: TIRANO | D142: MILLAN | E142: FERNANDO | F142: 222 | G142: 24 | H142: PROFESIONAL ESPECIALIZADO | I142: 2310460 | J142: Dirección Distrital de Doctrina y Asuntos Normativos | K142: 0 | L142: 0 | M142: 40 | N142: 0
A143: 2567 | B143: 79316619 | C143: ALVARADO | D143: HERREÑO | E143: JOSE ORLANDO | F143: 222 | G143: 24 | H143: PROFESIONAL ESPECIALIZADO | I143: 2310470 | J143: Dirección Distrital de Inspección, Vigilancia y Control de Personas Jurídicas Sin Ánimo de Lucro | K143: 0 | L143: 0 | M143: 40 | N143: 0
A144: 2596 | B144: 52252063 | C144: CUELLO | D144: HERMIDA | E144: ADRIANA ESPERANZA | F144: 105 | G144: 5 | H144: ASESOR | I144: 2300100 | J144: Despacho Secretaría Jurídica | K144: 0 | L144: 0 | M144: 37.5 | N144: 0
A145: 2535 | B145: 1032489040 | C145: ALONSO | D145: GUTIERREZ | E145: LEIDY JOHANNA | F145: 219 | G145: 1 | H145: PROFESIONAL UNIVERSITARIO | I145: 2310450 | J145: Dirección Distrital de Defensa Judicial y Prevención del Daño Antijurídico | K145: 0 | L145: 0 | M145: 30.4 | N145: 0
A146: 2536 | B146: 52176512 | C146: MERCHAN | D146: LARA | E146: LUZ DARY | F146: 222 | G146: 21 | H146: PROFESIONAL ESPECIALIZADO | I146: 2310470 | J146: Dirección Distrital de Inspección, Vigilancia y Control de Personas Jurídicas Sin Ánimo de Lucro | K146: 0 | L146: 0 | M146: 40 | N146: 0
A147: 2537 | B147: 1010176886 | C147: FLECHAS | D147: ALONSO | E147: JOAN SEBASTIAN | F147: 314 | G147: 15 | H147: TECNICO OPERATIVO | I147: 2310440 | J147: Dirección Distrital de Política e Informática Jurídica | K147: 0 | L147: 0 | M147: 0 | N147: 0
A148: 2572 | B148: 60348229 | C148: ALVARADO | D148: ROJAS | E148: BRICEIDA | F148: 219 | G148: 18 | H148: PROFESIONAL UNIVERSITARIO | I148: 2311000 | J148: Dirección de Gestión Corporativa | K148: 0 | L148: 0 | M148: 40 | N148: 0
A149: 2573 | B149: 52454621 | C149: LOZANO | D149: ARDILA | E149: CAROLINA | F149: 222 | G149: 24 | H149: PROFESIONAL ESPECIALIZADO | I149: 2310300 | J149: Oficina de Control Interno | K149: 0 | L149: 0 | M149: 40 | N149: 0
A150: 2585 | B150: 75093516 | C150: AGUIRRE | D150: CORRALES | E150: HUGO HERNANDO | F150: 219 | G150: 18 | H150: PROFESIONAL UNIVERSITARIO | I150: 2311000 | J150: Dirección de Gestión Corporativa | K150: 0 | L150: 0 | M150: 40 | N150: 0
A151: 2621 | B151: 1013608357 | C151: SANMIGUEL | D151: ROJAS | E151: MONICA JULIANA | F151: 219 | G151: 3 | H151: PROFESIONAL UNIVERSITARIO | I151: 2310440 | J151: Dirección Distrital de Política e Informática Jurídica | K151: 0 | L151: 0 | M151: 30.4 | N151: 0
A152: 2631 | B152: 1010173382 | C152: SUESCUN | D152: MARIÑO | E152: DANIEL | F152: 219 | G152: 8 | H152: PROFESIONAL UNIVERSITARIO | I152: 2310200 | J152: Oficina de Tecnologías de la Información y las Comunicaciones | K152: 3 | L152: 0 | M152: 40 | N152: 0
A153: 2502 | B153: 79964172 | C153: MENDIETA | D153: MONTEALEGRE | E153: WILLIAM LIBARDO | F153: 20 | G153: 9 | H153: SECRETARIO DE DESPACHO | I153: 2300100 | J153: Despacho Secretaría Jurídica | K153: 0 | L153: 0 | M153: 50 | N153: 0
A154: 2574 | B154: 52503443 | C154: NIÑO | D154: CAMPOS | E154: MARIA DEL PILAR | F154: 222 | G154: 24 | H154: PROFESIONAL ESPECIALIZADO | I154: 2310200 | J154: Oficina de Tecnologías de la Información y las Comunicaciones | K154: 3 | L154: 0 | M154: 40 | N154: 0
A155: 2584 | B155: 53066719 | C155: GUTIERREZ | D155: GUTIERREZ | E155: JENIFFER | F155: 222 | G155: 21 | H155: PROFESIONAL ESPECIALIZADO | I155: 2310470 | J155: Dirección Distrital de Inspección, Vigilancia y Control de Personas Jurídicas Sin Ánimo de Lucro | K155: 0 | L155: 0 | M155: 40 | N155: 0
A156: 2588 | B156: 91526810 | C156: GRANADOS | D156: GELVES | E156: DANIEL YIDID | F156: 222 | G156: 24 | H156: PROFESIONAL ESPECIALIZADO | I156: 2310460 | J156: Dirección Distrital de Doctrina y Asuntos Normativos | K156: 0 | L156: 0 | M156: 40 | N156: 0
A157: 2589 | B157: 75074516 | C157: FRANCO | D157: GALLEGO | E157: LUIS HERNANDO | F157: 219 | G157: 15 | H157: PROFESIONAL UNIVERSITARIO | I157: 2310470 | J157: Dirección Distrital de Inspección, Vigilancia y Control de Personas Jurídicas Sin Ánimo de Lucro | K157: 0 | L157: 0 | M157: 27.5 | N157: 0
A158: 2590 | B158: 79538698 | C158: FONSECA | D158: APERADOR | E158: WILLIAM | F158: 314 | G158: 20 | H158: TECNICO OPERATIVO | I158: 2310200 | J158: Oficina de Tecnologías de la Información y las Comunicaciones | K158: 3 | L158: 0 | M158: 0 | N158: 0
A159: 2591 | B159: 28496885 | C159: PINILLA | D159: SERRANO | E159: ESTHER | F159: 222 | G159: 27 | H159: PROFESIONAL ESPECIALIZADO | I159: 2310400 | J159: Subsecretaría Jurídica | K159: 0 | L159: 0 | M159: 40 | N159: 0
A160: 2601 | B160: 80222608 | C160: PULIDO | D160: PULIDO | E160: GERMAN ALBERTO | F160: 222 | G160: 27 | H160: PROFESIONAL ESPECIALIZADO | I160: 2310400 | J160: Subsecretaría Jurídica | K160: 5 | L160: 0 | M160: 40 | N160: 0
A161: 2604 | B161: 79943899 | C161: NIETO | E161: FABIAN | F161: 219 | G161: 15 | H161: PROFESIONAL UNIVERSITARIO | I161: 2310450 | J161: Dirección Distrital de Defensa Judicial y Prevención del Daño Antijurídico | K161: 0 | L161: 0 | M161: 40 | N161: 0
A162: 2610 | B162: 52501377 | C162: CORTES | D162: MALAVER | E162: DIANA MARCELA | F162: 222 | G162: 27 | H162: PROFESIONAL ESPECIALIZADO | I162: 2310470 | J162: Dirección Distrital de Inspección, Vigilancia y Control de Personas Jurídicas Sin Ánimo de Lucro | K162: 3 | L162: 0 | M162: 40 | N162: 0
A163: 2611 | B163: 1064976255 | C163: ZABALETA | D163: TABOADA | E163: DONALDO YAMITH | F163: 222 | G163: 27 | H163: PROFESIONAL ESPECIALIZADO | I163: 2310450 | J163: Dirección Distrital de Defensa Judicial y Prevención del Daño Antijurídico | K163: 0 | L163: 0 | M163: 40 | N163: 0
A164: 2625 | B164: 1030618681 | C164: GOMEZ | D164: AREVALO | E164: JENNIFER LIZBETH | F164: 314 | G164: 15 | H164: TECNICO OPERATIVO | I164: 2310400 | J164: Subsecretaría Jurídica | K164: 0 | L164: 0 | M164: 0 | N164: 0
A165: 2630 | B165: 22446641 | C165: SIERRA | D165: LABORDE | E165: ROSA ISABEL | F165: 314 | G165: 15 | H165: TECNICO OPERATIVO | I165: 2310440 | J165: Dirección Distrital de Política e Informática Jurídica | K165: 0 | L165: 0 | M165: 0 | N165: 0
A166: 2610 | B166: 52501377 | C166: CORTES | D166: MALAVER | E166: DIANA MARCELA | F166: 222 | G166: 27 | H166: PROFESIONAL ESPECIALIZADO | I166: 2310470 | J166: Dirección Distrital de Inspección, Vigilancia y Control de Personas Jurídicas Sin Ánimo de Lucro | K166: 3 | L166: 0 | M166: 40 | N166: 0
A167: 2611 | B167: 1064976255 | C167: ZABALETA | D167: TABOADA | E167: DONALDO YAMITH | F167: 222 | G167: 27 | H167: PROFESIONAL ESPECIALIZADO | I167: 2310450 | J167: Dirección Distrital de Defensa Judicial y Prevención del Daño Antijurídico | K167: 0 | L167: 0 | M167: 40 | N167: 0
A168: 2611 | B168: 1064976255 | C168: ZABALETA | D168: TABOADA | E168: DONALDO YAMITH | F168: 222 | G168: 27 | H168: PROFESIONAL ESPECIALIZADO | I168: 2310450 | J168: Dirección Distrital de Defensa Judicial y Prevención del Daño Antijurídico | K168: 0 | L168: 0 | M168: 40 | N168: 0
A169: 2585 | B169: 75093516 | C169: AGUIRRE | D169: CORRALES | E169: HUGO HERNANDO | F169: 219 | G169: 18 | H169: PROFESIONAL UNIVERSITARIO | I169: 2311000 | J169: Dirección de Gestión Corporativa | K169: 0 | L169: 0 | M169: 40 | N169: 0
A170: 2600 | B170: 52697802 | C170: VANEGAS | D170: SOLANO | E170: GINA CATHERINE | F170: 222 | G170: 24 | H170: PROFESIONAL ESPECIALIZADO | I170: 2311000 | J170: Dirección de Gestión Corporativa | K170: 0 | L170: 0 | M170: 40 | N170: 0
A171: 2502 | B171: 79964172 | C171: MENDIETA | D171: MONTEALEGRE | E171: WILLIAM LIBARDO | F171: 20 | G171: 9 | H171: SECRETARIO DE DESPACHO | I171: 2300100 | J171: Despacho Secretaría Jurídica | K171: 0 | L171: 0 | M171: 50 | N171: 0
A172: 2510 | B172: 36311056 | C172: LLANOS | D172: CASTRO | E172: INES LORENA | F172: 219 | G172: 18 | H172: PROFESIONAL UNIVERSITARIO | I172: 2310450 | J172: Dirección Distrital de Defensa Judicial y Prevención del Daño Antijurídico | K172: 0 | L172: 0 | M172: 0 | N172: 0
A173: 2521 | B173: 52863214 | C173: ALARCON | D173: PEREZ | E173: YENNY PATRICIA | F173: 219 | G173: 18 | H173: PROFESIONAL UNIVERSITARIO | I173: 2300100 | J173: Despacho Secretaría Jurídica | K173: 0 | L173: 0 | M173: 0 | N173: 0
A174: 2559 | B174: 1075664334 | C174: POVEDA | D174: RODRIGUEZ | E174: JESSICA ALEJANDRA | F174: 222 | G174: 20 | H174: PROFESIONAL ESPECIALIZADO | I174: 2310450 | J174: Dirección Distrital de Defensa Judicial y Prevención del Daño Antijurídico | K174: 0 | L174: 0 | M174: 40 | N174: 0
A175: 2574 | B175: 52503443 | C175: NIÑO | D175: CAMPOS | E175: MARIA DEL PILAR | F175: 222 | G175: 24 | H175: PROFESIONAL ESPECIALIZADO | I175: 2310200 | J175: Oficina de Tecnologías de la Información y las Comunicaciones | K175: 0 | L175: 0 | M175: 40 | N175: 0
A176: 2584 | B176: 53066719 | C176: GUTIERREZ | D176: GUTIERREZ | E176: JENIFFER | F176: 222 | G176: 21 | H176: PROFESIONAL ESPECIALIZADO | I176: 2310470 | J176: Dirección Distrital de Inspección, Vigilancia y Control de Personas Jurídicas Sin Ánimo de Lucro | K176: 0 | L176: 0 | M176: 40 | N176: 0
A177: 2588 | B177: 91526810 | C177: GRANADOS | D177: GELVES | E177: DANIEL YIDID | F177: 222 | G177: 24 | H177: PROFESIONAL ESPECIALIZADO | I177: 2310460 | J177: Dirección Distrital de Doctrina y Asuntos Normativos | K177: 0 | L177: 0 | M177: 40 | N177: 0
A178: 2589 | B178: 75074516 | C178: FRANCO | D178: GALLEGO | E178: LUIS HERNANDO | F178: 219 | G178: 15 | H178: PROFESIONAL UNIVERSITARIO | I178: 2310470 | J178: Dirección Distrital de Inspección, Vigilancia y Control de Personas Jurídicas Sin Ánimo de Lucro | K178: 0 | L178: 0 | M178: 27.5 | N178: 0
A179: 2590 | B179: 79538698 | C179: FONSECA | D179: APERADOR | E179: WILLIAM | F179: 314 | G179: 20 | H179: TECNICO OPERATIVO | I179: 2310200 | J179: Oficina de Tecnologías de la Información y las Comunicaciones | K179: 0 | L179: 0 | M179: 0 | N179: 0
A180: 2591 | B180: 28496885 | C180: PINILLA | D180: SERRANO | E180: ESTHER | F180: 222 | G180: 27 | H180: PROFESIONAL ESPECIALIZADO | I180: 2310400 | J180: Subsecretaría Jurídica | K180: 0 | L180: 0 | M180: 40 | N180: 0
A181: 2601 | B181: 80222608 | C181: PULIDO | D181: PULIDO | E181: GERMAN ALBERTO | F181: 222 | G181: 27 | H181: PROFESIONAL ESPECIALIZADO | I181: 2310400 | J181: Subsecretaría Jurídica | K181: 5 | L181: 0 | M181: 40 | N181: 0
A182: 2604 | B182: 79943899 | C182: NIETO | E182: FABIAN | F182: 222 | G182: 20 | H182: PROFESIONAL ESPECIALIZADO | I182: 2310450 | J182: Dirección Distrital de Defensa Judicial y Prevención del Daño Antijurídico | K182: 0 | L182: 0 | M182: 40 | N182: 0
B188: 1 | C188: 2

Sheet PLANTA PERNO (hidden)
A1: =SUM(A5:A162) -> 47107620836 | B1: SUMA CC PERNO
A2: =SUM('PLANTA SJD'!#REF!) ->  | B2: SUMA CC PLANTA
A3: =+A1-A2 ->  | B3: DIF
A4: NUMERO_IDENTIFICACION | B4: PRIMER_APELLIDO | C4: SEGUNDO_APELLIDO | D4: NOMBRE | E4: ESTADO_FUNCIONARIO | F4: FECHA_NACIMIENTO | G4: DIRECCION | H4: TELEFONO | I4: SEXO | J4: LIBRETA_MILITAR | K4: CLASE_LIBRETA | L4: DISTRITO_MILITAR | M4: TIPO_SANGRE | N4: RH | O4: TIPO_FUNCIONARIO | P4: FECHA_INGRESO_ENTIDAD | Q4: FECHA_INGRESO_DISTRITO | R4: FECHA_INGRESO_NACION | S4: CODIGO_EPS | T4: FONDO_SALUD | U4: CODIGO_FONDO_PENSIONES | V4: FONDO_PENSION | W4: CODIGO_FONDO_CESANTIAS | X4: FONDO_CESANTIAS | Y4: DEPENDENCIA | Z4: DESC_DEPENDENCIA | AA4: CARGO | AB4: GRADO | AC4: ASIGNACION | AD4: DESCRIPCION | AE4: POSICION_PLANTA | AF4: CODSEDE | AG4: SEDE | AH4: TIPO_NOMB | AI4: ACTO_NOMB | AJ4: FECHA_EFECTIVA_NOMB | AK4: NUMERO_ACTO_NOMB | AL4: FECHA_ACTO_NOMB | AM4: FECHA_EFECTIVA_ENC | AN4: NUMERO_ACTO_ENC | AO4: FECHA_ACTO_ENC | AP4: FECHA_RETIRO
A5: 1010173382 | B5: SUESCUN | C5: MARIÑO | D5: DANIEL | E5: A | F5: 1987-10-03 | G5: CALLE 10 SUR N° 39-05 | H5: 3184152356 | I5: M | M5: O | N5: P | O5: EMPLEADO DE PLANTA | P5: 2021-12-07 | Q5: 2017-02-24 | S5: 5 | T5: SANITAS S.A. E.P.S | U5: 19 | V5: PORVENIR S.A. | W5: 19 | X5: PORVENIR | Y5: 2310200 | Z5: Oficina de Tecnologías de la Información y las Comunicaciones | AA5: 219 | AB5: 8 | AC5: 3071598 | AD5: PROFESIONAL UNIVERSITARIO | AE5: 107 | AF5: Sede | AG5: Sin Definir | AH5: PERIODO PRUEBA | AI5: Nombramiento | AJ5: 2021-12-07 | AK5: 135 | AL5: 2021-07-19 | AR5: =VLOOKUP(A5,'PLANTA SJD'!B:G,18,0) ->  | AS5: =+AA5-AR5 ->  | AT5: =VLOOKUP(A5,'PLANTA SJD'!B:G,19,0) ->  | AU5: =+AB5-AT5 -> 
A6: 1010176886 | B6: FLECHAS | C6: ALONSO | D6: JOAN SEBASTIAN | E6: A | F6: 1988-05-31 | G6: CALLE 25 SUR Nº 69 46 APTO. 607 | H6: 6348695 | I6: M | J6: 1010176886 | K6: 2 | L6: 51 | M6: A | N6: P | O6: EMPLEADO DE PLANTA | P6: 2020-11-09 | Q6: 2020-11-09 | S6: 18 | T6: FAMISANAR E.P.S. | U6: 19 | V6: PORVENIR S.A. | W6: 3 | X6: FONDO NACIONAL DEL AHORRO | Y6: 2310440 | Z6: Dirección Distrital de Política e Informática Jurídica | AA6: 314 | AB6: 15 | AC6: 2703301 | AD6: TECNICO OPERATIVO | AE6: 134 | AF6: Sede | AG6: Sin Definir | AH6: CARRERA ADMINISTRATIVA | AI6: Nombramiento | AJ6: 2020-11-09 | AK6: 201 | AL6: 2020-10-20 | AR6: =VLOOKUP(A6,'PLANTA SJD'!B:G,18,0) ->  | AS6: =+AA6-AR6 ->  | AT6: =VLOOKUP(A6,'PLANTA SJD'!B:G,19,0) ->  | AU6: =+AB6-AT6 -> 
A7: 1012339868 | B7: LONDOÑO | C7: GARCIA | D7: OLGA LILIANA | E7: A | F7: 1988-01-23 | G7: CARRERA 78 A Nº 71C 23 SUR | H7: 7755797 | I7: F | M7: A | N7: P | O7: EMPLEADO DE PLANTA | P7: 2020-11-12 | Q7: 2020-11-12 | S7: 8 | T7: COMPENSAR E.P.S. | U7: 18 | V7: PROTECCION S.A. | W7: 3 | X7: FONDO NACIONAL DEL AHORRO | Y7: 2311000 | Z7: Dirección de Gestión Corporativa | AA7: 407 | AB7: 17 | AC7: 2197821 | AD7: AUXILIAR ADMINISTRATIVO | AE7: 143 | AF7: Sede | AG7: Sin Definir | AH7: CARRERA ADMINISTRATIVA | AI7: Nombramiento | AJ7: 2020-11-12 | AK7: 193 | AL7: 2020-10-20 | AR7: =VLOOKUP(A7,'PLANTA SJD'!B:G,18,0) ->  | AT7: =VLOOKUP(A7,'PLANTA SJD'!B:G,19,0) -> 
A8: 1013608357 | B8: SANMIGUEL | C8: ROJAS | D8: MONICA JULIANA | E8: A | F8: 1989-10-23 | G8: CALLE 168 9 11 INT. 11 CASA 32 | H8: 6453198 | I8: F | M8: B | N8: P | O8: EMPLEADO DE PLANTA | P8: 2021-09-24 | Q8: 2021-09-24 | S8: 5 | T8: SANITAS S.A. E.P.S | U8: 19 | V8: PORVENIR S.A. | W8: 3 | X8: FONDO NACIONAL DEL AHORRO | Y8: 2310440 | Z8: Dirección Distrital de Política e Informática Jurídica | AA8: 219 | AB8: 3 | AC8: 2714697 | AD8: PROFESIONAL UNIVERSITARIO | AE8: 109 | AF8: Sede | AG8: Sin Definir | AH8: PERIODO PRUEBA | AI8: Nombramiento | AJ8: 2021-09-24 | AK8: 157 | AL8: 2021-08-24 | AR8: =VLOOKUP(A8,'PLANTA SJD'!B:G,18,0) ->  | AT8: =VLOOKUP(A8,'PLANTA SJD'!B:G,19,0) -> 
A9: 1015393324 | B9: ROJAS | C9: PEÑA | D9: JORGE ANDRES | E9: A | F9: 1985-11-30 | G9: CARRERA 75BIS Nº 66B 05 | H9: 7469896 | I9: M | J9: 851130-37844 | K9: 2 | L9: 1 | M9: A | N9: P | O9: EMPLEADO DE PLANTA | P9: 2020-11-12 | Q9: 2020-11-12 | S9: 18 | T9: FAMISANAR E.P.S. | U9: 18 | V9: PROTECCION S.A. | W9: 18 | X9: PROTECCION | Y9: 2310470 | Z9: Dirección Distrital de Inspección, Vigilancia y Control de Personas Jurídicas Sin Ánimo de Lucro | AA9: 219 | AB9: 15 | AC9: 3691355 | AD9: PROFESIONAL UNIVERSITARIO | AE9: 96 | AF9: Sede | AG9: Sin Definir | AH9: CARRERA ADMINISTRATIVA | AI9: Nombramiento | AJ9: 2020-11-12 | AK9: 121 | AL9: 2020-10-14 | AM9: 2021-09-21 | AN9: 177 | AO9: 2021-09-17 | AR9: =VLOOKUP(A9,'PLANTA SJD'!B:G,18,0) ->  | AT9: =VLOOKUP(A9,'PLANTA SJD'!B:G,19,0) -> 
A10: 1015409873 | B10: VILLARRAGA | C10: ROJAS | D10: LIZETH MAYERLY | E10: A | F10: 1989-01-26 | G10: CALLE 43 SUR N° 72 N - 59 | H10: 4561852 | I10: F | M10: O | N10: P | O10: EMPLEADO DE PLANTA | P10: 2022-01-05 | Q10: 2022-01-05 | S10: 18 | T10: FAMISANAR E.P.S. | U10: 18 | V10: PROTECCION S.A. | W10: 3 | X10: FONDO NACIONAL DEL AHORRO | Y10: 2310470 | Z10: Dirección Distrital de Inspección, Vigilancia y Control de Personas Jurídicas Sin Ánimo de Lucro | AA10: 407 | AB10: 9 | AC10: 1711246 | AD10: AUXILIAR ADMINISTRATIVO | AE10: 155 | AF10: Sede | AG10: Sin Definir | AH10: PERIODO PRUEBA | AI10: Nombramiento | AJ10: 2022-01-05 | AK10: 240 | AL10: 2021-12-13 | AR10: =VLOOKUP(A10,'PLANTA SJD'!B:G,18,0) ->  | AT10: =VLOOKUP(A10,'PLANTA SJD'!B:G,19,0) -> 
A11: 1015419295 | B11: MORA | C11: MONTOYA | D11: HELVER MANUEL | E11: A | F11: 1990-09-13 | G11: CR 69 64 D 19 AP 202 | H11: 6307808 | I11: M | J11: 1015419295 | K11: 2 | M11: A | N11: P | O11: EMPLEADO DE PLANTA | P11: 2017-04-03 | Q11: 2017-04-03 | S11: 8 | T11: COMPENSAR E.P.S. | U11: 18 | V11: PROTECCION S.A. | W11: 3 | X11: FONDO NACIONAL DEL AHORRO | Y11: 2310470 | Z11: Dirección Distrital de Inspección, Vigilancia y Control de Personas Jurídicas Sin Ánimo de Lucro | AA11: 219 | AB11: 1 | AC11: 2551642 | AD11: PROFESIONAL UNIVERSITARIO | AE11: 116 | AF11: Sede | AG11: Sin Definir | AH11: CARRERA ADMINISTRATIVA | AI11: Nombramiento | AJ11: 2020-11-06 | AK11: 119 | AL11: 2020-10-14 | AM11: 2021-10-01 | AN11: 185 | AO11: 2021-09-29 | AR11: =VLOOKUP(A11,'PLANTA SJD'!B:G,18,0) ->  | AT11: =VLOOKUP(A11,'PLANTA SJD'!B:G,19,0) -> 
A12: 1015425376 | B12: CASALLAS | C12: MARTINEZ | D12: ALEJANDRA NATALY | E12: A | F12: 1991-08-29 | G12: CALLE 15 Nº 119A 37 TORRE 8 APTO. 603 | H12: 4214656 | I12: F | M12: O | N12: P | O12: EMPLEADO DE PLANTA | P12: 2020-11-12 | Q12: 2020-11-12 | S12: 8 | T12: COMPENSAR E.P.S. | U12: 19 | V12: PORVENIR S.A. | W12: 19 | X12: PORVENIR | Y12: 2310450 | Z12: Dirección Distrital de Defensa Judicial y Prevención del Daño Antijurídico | AA12: 314 | AB12: 15 | AC12: 2703301 | AD12: TECNICO OPERATIVO | AE12: 129 | AF12: Sede | AG12: Sin Definir | AH12: CARRERA ADMINISTRATIVA | AI12: Nombramiento | AJ12: 2020-11-12 | AK12: 167 | AL12: 2020-10-20 | AR12: =VLOOKUP(A12,'PLANTA SJD'!B:G,18,0) ->  | AT12: =VLOOKUP(A12,'PLANTA SJD'!B:G,19,0) -> 
A13: 1018403375 | B13: LEON | C13: BELTRAN | D13: JULIES KATHERINE | E13: A | F13: 1984-08-30 | G13: CALLE 79 N° 119-95 TORRE 4 APTO 402 | H13: 3102038403 | I13: F | M13: B | N13: P | O13: EMPLEADO DE PLANTA | P13: 2021-11-12 | Q13: 2021-11-12 | S13: 8 | T13: COMPENSAR E.P.S. | U13: 11 | V13: COLPENSIONES | W13: 19 | X13: PORVENIR | Y13: 2310470 | Z13: Dirección Distrital de Inspección, Vigilancia y Control de Personas Jurídicas Sin Ánimo de Lucro | AA13: 9 | AB13: 7 | AC13: 7190161 | AD13: DIRECTOR TECNICO | AE13: 4 | AF13: Sede | AG13: Sin Definir | AH13: LIBRE NOMBRAMIENTO Y REMOCION | AI13: Nombramiento | AJ13: 2021-11-12 | AK13: 214 | AL13: 2021-11-12 | AR13: =VLOOKUP(A13,'PLANTA SJD'!B:G,18,0) ->  | AT13: =VLOOKUP(A13,'PLANTA SJD'!B:G,19,0) -> 
A14: 1018407982 | B14: ORTIZ | C14: MONTERO | D14: JUAN PABLO | E14: A | F14: 1987-01-13 | G14: DIAGONAL 81I 72B 58 | H14: 6553041 | I14: M | M14: O | N14: P | O14: EMPLEADO DE PLANTA | P14: 2021-09-01 | Q14: 2021-09-01 | S14: 2 | T14: SALUD TOTAL S.A. E.P.S. | U14: 11 | V14: COLPENSIONES | W14: 3 | X14: FONDO NACIONAL DEL AHORRO | Y14: 2310430 | Z14: Dirección Distrital de Asuntos Disciplinarios | AA14: 219 | AB14: 15 | AC14: 3691355 | AD14: PROFESIONAL UNIVERSITARIO | AE14: 95 | AF14: Sede | AG14: Sin Definir | AH14: PERIODO PRUEBA | AI14: Nombramiento | AJ14: 2021-09-01 | AK14: 99 | AL14: 2021-05-27 | AR14: =VLOOKUP(A14,'PLANTA SJD'!B:G,18,0) ->  | AT14: =VLOOKUP(A14,'PLANTA SJD'!B:G,19,0) -> 
A15: 1018409494 | B15: MEDINA | C15: MURILLO | D15: CAROLINA | E15: A | F15: 1987-02-25 | G15: CALLE 71 Nº 108A-40 | H15: 3187393758 | I15: F | M15: O | N15: P | O15: EMPLEADO DE PLANTA | P15: 2020-11-06 | Q15: 2017-02-13 | R15: 2015-06-02 | S15: 8 | T15: COMPENSAR E.P.S. | U15: 11 | V15: COLPENSIONES | W15: 3 | X15: FONDO NACIONAL DEL AHORRO | Y15: 2310470 | Z15: Dirección Distrital de Inspección, Vigilancia y Control de Personas Jurídicas Sin Ánimo de Lucro | AA15: 219 | AB15: 18 | AC15: 3806326 | AD15: PROFESIONAL UNIVERSITARIO | AE15: 93 | AF15: Sede | AG15: Sin Definir | AH15: CARRERA ADMINISTRATIVA | AI15: Nombramiento | AJ15: 2020-11-06 | AK15: 110 | AL15: 2020-10-14 | AM15: 2021-08-23 | AN15: 154 | AO15: 2021-08-20 | AR15: =VLOOKUP(A15,'PLANTA SJD'!B:G,18,0) ->  | AT15: =VLOOKUP(A15,'PLANTA SJD'!B:G,19,0) -> 
A16: 1018435319 | B16: MARQUEZ | C16: CASTELBLANCO | D16: IVAN DAVID | E16: A | F16: 1990-05-22 | G16: CALLE 61 N° 2-56 APTO. 307 | H16: 3230118 | I16: M | J16: 1018435319 | K16: 2 | L16: 51 | M16: O | N16: P | O16: EMPLEADO DE PLANTA | P16: 2020-01-13 | Q16: 2020-01-13 | R16: 2014-08-12 | S16: 5 | T16: SANITAS S.A. E.P.S | U16: 11 | V16: COLPENSIONES | W16: 3 | X16: FONDO NACIONAL DEL AHORRO | Y16: 2310400 | Z16: Subsecretaría Jurídica | AA16: 45 | AB16: 8 | AC16: 8054598 | AD16: SUBSECRETARIO DE DESPACHO | AE16: 2 | AF16: Sede | AG16: Sin Definir | AH16: LIBRE NOMBRAMIENTO Y REMOCION | AI16: Nombramiento | AJ16: 2020-01-13 | AK16: 4 | AL16: 2020-01-13 | AR16: =VLOOKUP(A16,'PLANTA SJD'!B:G,18,0) ->  | AT16: =VLOOKUP(A16,'PLANTA SJD'!B:G,19,0) -> 
A17: 1018435583 | B17: ROA | C17: SILVA | D17: SONIA TERESA | E17: A | F17: 1990-02-22 | G17: CALLE 12 A 1B ESTE - 85 MANZANA 13 INT. 12 CASA 1 | H17: 3043779150 | I17: F | M17: O | N17: P | O17: EMPLEADO DE PLANTA | P17: 2020-12-30 | Q17: 2020-12-30 | S17: 8 | T17: COMPENSAR E.P.S. | U17: 11 | V17: COLPENSIONES | W17: 19 | X17: PORVENIR | Y17: 2310450 | Z17: Dirección Distrital de Defensa Judicial y Prevención del Daño Antijurídico | AA17: 219 | AB17: 18 | AC17: 3806326 | AD17: PROFESIONAL UNIVERSITARIO | AE17: 78 | AF17: Sede | AG17: Sin Definir | AH17: CARRERA ADMINISTRATIVA | AI17: Nombramiento | AJ17: 2020-12-30 | AK17: 134 | AL17: 2020-10-14 | AR17: =VLOOKUP(A17,'PLANTA SJD'!B:G,18,0) ->  | AT17: =VLOOKUP(A17,'PLANTA SJD'!B:G,19,0) -> 
A18: 1018482333 | B18: RODRIGUEZ | C18: NARVAEZ | D18: DANIELA | E18: A | F18: 1996-01-21 | G18: CARRERA 92 Nº 150A 86 TORRE 1 APTO. 602 | H18: 7358350 | I18: F | M18: O | N18: P | O18: EMPLEADO DE PLANTA | P18: 2020-11-19 | Q18: 2020-11-19 | S18: 8 | T18: COMPENSAR E.P.S. | U18: 11 | V18: COLPENSIONES | W18: 3 | X18: FONDO NACIONAL DEL AHORRO | Y18: 2311000 | Z18: Dirección de Gestión Corporativa | AA18: 219 | AB18: 10 | AC18: 3158868 | AD18: PROFESIONAL UNIVERSITARIO | AE18: 105 | AF18: Sede | AG18: Sin Definir | AH18: CARRERA ADMINISTRATIVA | AI18: Nombramiento | AJ18: 2020-11-19 | AK18: 192 | AL18: 2020-10-20 | AR18: =VLOOKUP(A18,'PLANTA SJD'!B:G,18,0) ->  | AT18: =VLOOKUP(A18,'PLANTA SJD'!B:G,19,0) -> 
A19: 1019026800 | B19: CHACON | C19: TRIVIÑO | D19: VIKY MILENA | E19: A | F19: 1988-09-19 | G19: CALLE 129C Nº 98A-03 | H19: 3102621774 | I19: F | M19: O | N19: N | O19: EMPLEADO DE PLANTA | P19: 2020-11-06 | Q19: 2020-11-06 | S19: 26 | T19: EPS SURA | U19: 19 | V19: PORVENIR S.A. | W19: 3 | X19: FONDO NACIONAL DEL AHORRO | Y19: 2311000 | Z19: Dirección de Gestión Corporativa | AA19: 219 | AB19: 18 | AC19: 3806326 | AD19: PROFESIONAL UNIVERSITARIO | AE19: 24 | AF19: Sede | AG19: Sin Definir | AH19: CARRERA ADMINISTRATIVA | AI19: Nombramiento | AJ19: 2020-11-06 | AK19: 171 | AL19: 2020-10-20 | AR19: =VLOOKUP(A19,'PLANTA SJD'!B:G,18,0) ->  | AT19: =VLOOKUP(A19,'PLANTA SJD'!B:G,19,0) -> 
A20: 1019032759 | B20: TORRES | C20: MARULANDA | D20: MARIA PAULA | E20: A | F20: 1989-03-13 | G20: CARRERA 7B N° 146-50 APTO 304 | H20: 3015391952 | I20: F | M20: O | N20: P | O20: EMPLEADO DE PLANTA | P20: 2020-02-13 | Q20: 2020-02-13 | R20: 2013-08-01 | S20: 8 | T20: COMPENSAR E.P.S. | U20: 19 | V20: PORVENIR S.A. | W20: 19 | X20: PORVENIR | Y20: 2310430 | Z20: Dirección Distrital de Asuntos Disciplinarios | AA20: 9 | AB20: 7 | AC20: 7190161 | AD20: DIRECTOR TECNICO | AE20: 5 | AF20: Sede | AG20: Sin Definir | AH20: LIBRE NOMBRAMIENTO Y REMOCION | AI20: Nombramiento | AJ20: 2021-10-01 | AK20: 189 | AL20: 2021-09-30 | AM20: 2021-02-01 | AN20: 8 | AO20: 2021-01-29 | AR20: =VLOOKUP(A20,'PLANTA SJD'!B:G,18,0) ->  | AT20: =VLOOKUP(A20,'PLANTA SJD'!B:G,19,0) -> 
A21: 1022360914 | B21: TELLEZ | C21: CRUZ | D21: ALVARO JAVIER | E21: A | F21: 1990-01-27 | G21: CARRERA 68 B Nº 22 A 62 | H21: 2633295 | I21: M | J21: 1022360914 | K21: 2 | M21: O | N21: P | O21: EMPLEADO DE PLANTA | P21: 2017-06-06 | Q21: 2017-06-06 | S21: 5 | T21: SANITAS S.A. E.P.S | U21: 11 | V21: COLPENSIONES | W21: 3 | X21: FONDO NACIONAL DEL AHORRO | Y21: 2310440 | Z21: Dirección Distrital de Política e Informática Jurídica | AA21: 219 | AB21: 1 | AC21: 2551642 | AD21: PROFESIONAL UNIVERSITARIO | AE21: 112 | AF21: Sede | AG21: Sin Definir | AH21: PROVISIONAL | AI21: Nombramiento | AJ21: 2017-06-06 | AK21: 77 | AL21: 2017-05-16 | AR21: =VLOOKUP(A21,'PLANTA SJD'!B:G,18,0) ->  | AT21: =VLOOKUP(A21,'PLANTA SJD'!B:G,19,0) -> 
A22: 1022362951 | B22: GAONA | C22: FARIAS | D22: LUIS CARLOS | E22: A | F22: 1990-06-28 | G22: CALLE 3A Nº 69F 25 | H22: 2697802 | I22: M | J22: 1022362951 | K22: 1 | L22: 1 | M22: O | N22: N | O22: EMPLEADO DE PLANTA | P22: 2020-11-10 | Q22: 2020-11-10 | S22: 5 | T22: SANITAS S.A. E.P.S | U22: 11 | V22: COLPENSIONES | W22: 3 | X22: FONDO NACIONAL DEL AHORRO | Y22: 2310470 | Z22: Dirección Distrital de Inspección, Vigilancia y Control de Personas Jurídicas Sin Ánimo de Lucro | AA22: 314 | AB22: 20 | AC22: 3068618 | AD22: TECNICO OPERATIVO | AE22: 126 | AF22: Sede | AG22: Sin Definir | AH22: CARRERA ADMINISTRATIVA | AI22: Nombramiento | AJ22: 2020-11-10 | AK22: 169 | AL22: 2020-10-20 | AR22: =VLOOKUP(A22,'PLANTA SJD'!B:G,18,0) ->  | AT22: =VLOOKUP(A22,'PLANTA SJD'!B:G,19,0) -> 
A23: 1023894175 | B23: ROMERO | C23: TORRES | D23: HEIDY LORENA | E23: A | F23: 1990-03-11 | G23: CALLE 28B N° 12F-33 | H23: 3144812645 | I23: F | M23: O | N23: P | O23: EMPLEADO DE PLANTA | P23: 2021-11-16 | Q23: 2021-11-16 | S23: 5 | T23: SANITAS S.A. E.P.S | U23: 23 | V23: COLFONDOS S.A. | W23: 19 | X23: PORVENIR | Y23: 2310450 | Z23: Dirección Distrital de Defensa Judicial y Prevención del Daño Antijurídico | AA23: 407 | AB23: 15 | AC23: 2054865 | AD23: AUXILIAR ADMINISTRATIVO | AE23: 146 | AF23: Sede | AG23: Sin Definir | AH23: PROVISIONAL | AI23: Nombramiento | AJ23: 2021-11-16 | AK23: 215 | AL23: 2021-11-12 | AR23: =VLOOKUP(A23,'PLANTA SJD'!B:G,18,0) ->  | AT23: =VLOOKUP(A23,'PLANTA SJD'!B:G,19,0) -> 
A24: 1030577699 | B24: ARAGON | C24: CASTIBLANCO | D24: KATHERINE PAOLA | E24: A | F24: 1990-08-11 | G24: CARRERA 78 F 0 33 BLOQUE 1 INTERIROR 4 APTO 302 | H24: 9069069 | I24: F | M24: O | N24: P | O24: EMPLEADO DE PLANTA | P24: 2021-07-06 | Q24: 2021-07-06 | S24: 5 | T24: SANITAS S.A. E.P.S | U24: 11 | V24: COLPENSIONES | W24: 23 | X24: COLFONDOS | Y24: 2310460 | Z24: Dirección Distrital de Doctrina y Asuntos Normativos | AA24: 314 | AB24: 15 | AC24: 2703301 | AD24: TECNICO OPERATIVO | AE24: 132 | AF24: Sede | AG24: Sin Definir | AH24: PERIODO PRUEBA | AI24: Nombramiento | AJ24: 2021-07-06 | AK24: 111 | AL24: 2021-06-18 | AR24: =VLOOKUP(A24,'PLANTA SJD'!B:G,18,0) ->  | AT24: =VLOOKUP(A24,'PLANTA SJD'!B:G,19,0) -> 
A25: 1030618681 | B25: GOMEZ | C25: AREVALO | D25: JENNIFER LIZBETH | E25: A | F25: 1992-12-06 | G25: CALLE 4 SUR N° 19B-106 TORRE 12 APTO 402 SOACHA | H25: 1234567 | I25: F | M25: O | N25: P | O25: EMPLEADO DE PLANTA | P25: 2021-10-20 | Q25: 2021-10-20 | S25: 2 | T25: SALUD TOTAL S.A. E.P.S. | U25: 23 | V25: COLFONDOS S.A. | W25: 3 | X25: FONDO NACIONAL DEL AHORRO | Y25: 2310400 | Z25: Subsecretaría Jurídica | AA25: 314 | AB25: 15 | AC25: 2703301 | AD25: TECNICO OPERATIVO | AE25: 127 | AF25: Sede | AG25: Sin Definir | AH25: PERIODO PRUEBA | AI25: Nombramiento | AJ25: 2021-10-20 | AK25: 92 | AL25: 2021-05-19 | AR25: =VLOOKUP(A25,'PLANTA SJD'!B:G,18,0) ->  | AT25: =VLOOKUP(A25,'PLANTA SJD'!B:G,19,0) -> 
A26: 1032366723 | B26: CORZO | C26: ESTEPA | D26: OLGA MILENA | E26: A | F26: 1986-07-20 | G26: CALLE 147 Nº 11-10 APTO. 1306 | H26: 3869794 | I26: F | M26: O | N26: P | O26: EMPLEADO DE PLANTA | P26: 2020-12-28 | Q26: 2020-12-28 | S26: 5 | T26: SANITAS S.A. E.P.S | U26: 18 | V26: PROTECCION S.A. | W26: 3 | X26: FONDO NACIONAL DEL AHORRO | Y26: 2310300 | Z26: Oficina de Control Interno | AA26: 6 | AB26: 6 | AC26: 6561345 | AD26: JEFE DE OFICINA | AE26: 10 | AF26: Sede | AG26: Sin Definir | AH26: LIBRE NOMBRAMIENTO Y REMOCION | AI26: Nombramiento | AJ26: 2020-12-28 | AK26: 118 | AL26: 2020-10-14 | AM26: 2022-01-01 | AN26: 554 | AO26: 2021-12-29 | AR26: =VLOOKUP(A26,'PLANTA SJD'!B:G,18,0) ->  | AT26: =VLOOKUP(A26,'PLANTA SJD'!B:G,19,0) -> 
A27: 1032434263 | B27: SIERRA | C27: LENIS | D27: LAURA STHEPANY | E27: A | F27: 1989-06-26 | G27: CL 87 SUR 21 49 ESTE | H27: 3653315 | I27: F | M27: O | N27: P | O27: EMPLEADO DE PLANTA | P27: 2016-08-03 | Q27: 2015-05-07 | S27: 5 | T27: SANITAS S.A. E.P.S | U27: 11 | V27: COLPENSIONES | W27: 3 | X27: FONDO NACIONAL DEL AHORRO | Y27: 2311000 | Z27: Dirección de Gestión Corporativa | AA27: 407 | AB27: 15 | AC27: 2054865 | AD27: AUXILIAR ADMINISTRATIVO | AE27: 149 | AF27: Sede | AG27: Sin Definir | AH27: PROVISIONAL | AI27: Nombramiento | AJ27: 2019-06-26 | AK27: 90 | AL27: 2019-06-26 | AR27: =VLOOKUP(A27,'PLANTA SJD'!B:G,18,0) ->  | AT27: =VLOOKUP(A27,'PLANTA SJD'!B:G,19,0) -> 
A28: 1032448684 | B28: MARTINEZ | C28: BERNAL | D28: JUAN CARLOS | E28: A | F28: 1992-03-05 | G28: CALLE 63C Nº 73A 20 | H28: 7513015 | I28: M | J28: 1032448684 | K28: 2 | L28: 51 | M28: A | N28: P | O28: EMPLEADO DE PLANTA | P28: 2020-11-12 | Q28: 2020-11-12 | R28: 2018-08-13 | S28: 5 | T28: SANITAS S.A. E.P.S | U28: 23 | V28: COLFONDOS S.A. | W28: 3 | X28: FONDO NACIONAL DEL AHORRO | Y28: 2311000 | Z28: Dirección de Gestión Corporativa | AA28: 219 | AB28: 10 | AC28: 3158868 | AD28: PROFESIONAL UNIVERSITARIO | AE28: 104 | AF28: Sede | AG28: Sin Definir | AH28: CARRERA ADMINISTRATIVA | AI28: Nombramiento | AJ28: 2020-11-12 | AK28: 187 | AL28: 2020-10-20 | AR28: =VLOOKUP(A28,'PLANTA SJD'!B:G,18,0) ->  | AT28: =VLOOKUP(A28,'PLANTA SJD'!B:G,19,0) -> 
A29: 1032479676 | B29: MORA | C29: BERMUDEZ | D29: DAVID ALEJANDRO | E29: A | F29: 1996-03-18 | G29: CALLE 53B SUR Nº 5C 33 ESTE | H29: 4792166 | I29: M | J29: 1032479676 | K29: 2 | L29: 2 | M29: O | N29: N | O29: EMPLEADO DE PLANTA | P29: 2020-11-18 | Q29: 2020-11-18 | S29: 26 | T29: EPS SURA | U29: 18 | V29: PROTECCION S.A. | W29: 18 | X29: PROTECCION | Y29: 2310470 | Z29: Dirección Distrital de Inspección, Vigilancia y Control de Personas Jurídicas Sin Ánimo de Lucro | AA29: 219 | AB29: 1 | AC29: 2551642 | AD29: PROFESIONAL UNIVERSITARIO | AE29: 113 | AF29: Sede | AG29: Sin Definir | AH29: CARRERA ADMINISTRATIVA | AI29: Nombramiento | AJ29: 2020-11-18 | AK29: 202 | AL29: 2020-10-20 | AR29: =VLOOKUP(A29,'PLANTA SJD'!B:G,18,0) ->  | AT29: =VLOOKUP(A29,'PLANTA SJD'!B:G,19,0) -> 
A30: 1032489040 | B30: ALONSO | C30: GUTIERREZ | D30: LEIDY JOHANNA | E30: A | F30: 1997-02-14 | G30: CARRERA 9 Nº 52A 11 APTO.301 | H30: 6360955 | I30: F | M30: A | N30: P | O30: EMPLEADO DE PLANTA | P30: 2020-11-09 | Q30: 2020-11-09 | S30: 18 | T30: FAMISANAR E.P.S. | U30: 11 | V30: COLPENSIONES | W30: 19 | X30: PORVENIR | Y30: 2310450 | Z30: Dirección Distrital de Defensa Judicial y Prevención del Daño Antijurídico | AA30: 219 | AB30: 1 | AC30: 2551642 | AD30: PROFESIONAL UNIVERSITARIO | AE30: 110 | AF30: Sede | AG30: Sin Definir | AH30: CARRERA ADMINISTRATIVA | AI30: Nombramiento | AJ30: 2020-11-09 | AK30: 114 | AL30: 2020-10-14 | AR30: =VLOOKUP(A30,'PLANTA SJD'!B:G,18,0) ->  | AT30: =VLOOKUP(A30,'PLANTA SJD'!B:G,19,0) -> 
A31: 1033706367 | B31: BARBOSA | D31: JASON | E31: A | F31: 1988-11-20 | G31: CALLE 31 SUR Nº 52C 82 | H31: 3123131380 | I31: M | J31: 88120061945 | K31: 2 | L31: 1 | M31: O | N31: P | O31: EMPLEADO DE PLANTA | P31: 2020-11-12 | Q31: 2020-11-12 | S31: 26 | T31: EPS SURA | U31: 11 | V31: COLPENSIONES | W31: 23 | X31: COLFONDOS | Y31: 2310450 | Z31: Dirección Distrital de Defensa Judicial y Prevención del Daño Antijurídico | AA31: 314 | AB31: 15 | AC31: 2703301 | AD31: TECNICO OPERATIVO | AE31: 131 | AF31: Sede | AG31: Sin Definir | AH31: CARRERA ADMINISTRATIVA | AI31: Nombramiento | AJ31: 2020-11-12 | AK31: 198 | AL31: 2020-10-20 | AR31: =VLOOKUP(A31,'PLANTA SJD'!B:G,18,0) ->  | AT31: =VLOOKUP(A31,'PLANTA SJD'!B:G,19,0) -> 
A32: 1049619617 | B32: NOVOA | C32: DUEÑAS | D32: SANDRA LISETTE | E32: A | F32: 1990-02-02 | G32: CARRERA 30 Nº 48-30 APTO. 317 | H32: 3143706938 | I32: F | M32: O | N32: P | O32: EMPLEADO DE PLANTA | P32: 2020-12-28 | Q32: 2019-10-01 | S32: 5 | T32: SANITAS S.A. E.P.S | U32: 11 | V32: COLPENSIONES | W32: 3 | X32: FONDO NACIONAL DEL AHORRO | Y32: 2310450 | Z32: Dirección Distrital de Defensa Judicial y Prevención del Daño Antijurídico | AA32: 219 | AB32: 18 | AC32: 3806326 | AD32: PROFESIONAL UNIVERSITARIO | AE32: 79 | AF32: Sede | AG32: Sin Definir | AH32: CARRERA ADMINISTRATIVA | AI32: Nombramiento | AJ32: 2020-12-28 | AK32: 120 | AL32: 2020-10-14 | AR32: =VLOOKUP(A32,'PLANTA SJD'!B:G,18,0) ->  | AT32: =VLOOKUP(A32,'PLANTA SJD'!B:G,19,0) -> 
A33: 1057463050 | B33: BOHORQUEZ | C33: MORENO | D33: YANNY AEXANDRA | E33: A | F33: 1988-05-01 | G33: CALLE 16A N° 4-60 APTO 505 TUNJA | H33: 3204004044 | I33: F | M33: B | N33: P | O33: EMPLEADO DE PLANTA | P33: 2021-11-22 | Q33: 2021-11-22 | S33: 5 | T33: SANITAS S.A. E.P.S | U33: 19 | V33: PORVENIR S.A. | W33: 19 | X33: PORVENIR | Y33: 2311000 | Z33: Dirección de Gestión Corporativa | AA33: 314 | AB33: 20 | AC33: 3068618 | AD33: TECNICO OPERATIVO | AE33: 120 | AF33: Sede | AG33: Sin Definir | AH33: PERIODO PRUEBA | AI33: Nombramiento | AJ33: 2021-11-22 | AK33: 203 | AL33: 2021-10-20 | AR33: =VLOOKUP(A33,'PLANTA SJD'!B:G,18,0) ->  | AT33: =VLOOKUP(A33,'PLANTA SJD'!B:G,19,0) -> 
A34: 1057586009 | B34: MEJIA | C34: PARRA | D34: MONICA ROCIO | E34: A | F34: 1990-12-15 | G34: CARRERA 54 Nº 64A 45 | H34: 3123872899 | I34: F | M34: O | N34: N | O34: EMPLEADO DE PLANTA | P34: 2021-05-19 | Q34: 2021-05-19 | R34: 2019-02-05 | S34: 5 | T34: SANITAS S.A. E.P.S | U34: 11 | V34: COLPENSIONES | W34: 3 | X34: FONDO NACIONAL DEL AHORRO | Y34: 2310440 | Z34: Dirección Distrital de Política e Informática Jurídica | AA34: 219 | AB34: 18 | AC34: 3806326 | AD34: PROFESIONAL UNIVERSITARIO | AE34: 87 | AF34: Sede | AG34: Sin Definir | AH34: CARRERA ADMINISTRATIVA | AI34: Nombramiento | AJ34: 2021-05-19 | AK34: 37 | AL34: 2021-03-19 | AR34: =VLOOKUP(A34,'PLANTA SJD'!B:G,18,0) ->  | AT34: =VLOOKUP(A34,'PLANTA SJD'!B:G,19,0) -> 
A35: 1064976255 | B35: ZABALETA | C35: TABOADA | D35: DONALDO YAMITH | E35: A | F35: 1985-08-09 | G35: CARRERA 9A Nº 68 70 APTO. 315 MONTERIA | H35: 3234670556 | I35: M | J35: 1064976255 | K35: 2 | M35: O | N35: P | O35: EMPLEADO DE PLANTA | P35: 2021-06-23 | Q35: 2021-06-23 | R35: 2019-06-01 | S35: 2 | T35: SALUD TOTAL S.A. E.P.S. | U35: 19 | V35: PORVENIR S.A. | W35: 19 | X35: PORVENIR | Y35: 2310450 | Z35: Dirección Distrital de Defensa Judicial y Prevención del Daño Antijurídico | AA35: 222 | AB35: 27 | AC35: 4706480 | AD35: PROFESIONAL ESPECIALIZADO | AE35: 40 | AF35: Sede | AG35: Sin Definir | AH35: PERIODO PRUEBA | AI35: Nombramiento | AJ35: 2021-06-23 | AK35: 93 | AL35: 2021-05-19 | AR35: =VLOOKUP(A35,'PLANTA SJD'!B:G,18,0) ->  | AT35: =VLOOKUP(A35,'PLANTA SJD'!B:G,19,0) -> 
A36: 1070950393 | B36: MONTAÑEZ | C36: REY | D36: MAICOL ANDRÉS | E36: A | F36: 1988-02-10 | G36: CALLE 43 SUR Nº 6 16 ESTE | H36: 2573507 | I36: M | J36: 1070950393 | K36: 1 | M36: O | N36: P | O36: EMPLEADO DE PLANTA | P36: 2020-12-17 | Q36: 2020-12-17 | S36: 8 | T36: COMPENSAR E.P.S. | U36: 19 | V36: PORVENIR S.A. | W36: 3 | X36: FONDO NACIONAL DEL AHORRO | Y36: 2310460 | Z36: Dirección Distrital de Doctrina y Asuntos Normativos | AA36: 407 | AB36: 15 | AC36: 2054865 | AD36: AUXILIAR ADMINISTRATIVO | AE36: 147 | AF36: Sede | AG36: Sin Definir | AH36: CARRERA ADMINISTRATIVA | AI36: Nombramiento | AJ36: 2020-12-17 | AK36: 155 | AL36: 2020-10-14 | AR36: =VLOOKUP(A36,'PLANTA SJD'!B:G,18,0) ->  | AT36: =VLOOKUP(A36,'PLANTA SJD'!B:G,19,0) -> 
A37: 1072493406 | B37: BUITRAGO | C37: DIAZ | D37: DANIEL FERNANDO | E37: A | F37: 1988-10-16 | G37: VEREDA AZAFRANAL EL RETIRO (SILVANIA) | H37: 3105899920 | I37: M | J37: 1072493496 | K37: 2 | L37: 55 | M37: A | N37: P | O37: EMPLEADO DE PLANTA | P37: 2020-11-11 | Q37: 2020-11-11 | S37: 18 | T37: FAMISANAR E.P.S. | U37: 11 | V37: COLPENSIONES | W37: 3 | X37: FONDO NACIONAL DEL AHORRO | Y37: 2310460 | Z37: Dirección Distrital de Doctrina y Asuntos Normativos | AA37: 440 | AB37: 9 | AC37: 1711246 | AD37: SECRETARIO | AE37: 163 | AF37: Sede | AG37: Sin Definir | AH37: CARRERA ADMINISTRATIVA | AI37: Nombramiento | AJ37: 2020-11-11 | AK37: 156 | AL37: 2020-10-14 | AR37: =VLOOKUP(A37,'PLANTA SJD'!B:G,18,0) ->  | AT37: =VLOOKUP(A37,'PLANTA SJD'!B:G,19,0) -> 
A38: 1073159399 | B38: LEON | C38: CITA | D38: WENDY PAOLA | E38: A | F38: 1990-09-12 | G38: CALLE 2 Nº 20A 12 (MADRID) | H38: 3202183692 | I38: F | M38: A | N38: P | O38: EMPLEADO DE PLANTA | P38: 2020-11-10 | Q38: 2020-11-10 | S38: 18 | T38: FAMISANAR E.P.S. | U38: 19 | V38: PORVENIR S.A. | W38: 18 | X38: PROTECCION | Y38: 2310470 | Z38: Dirección Distrital de Inspección, Vigilancia y Control de Personas Jurídicas Sin Ánimo de Lucro | AA38: 314 | AB38: 20 | AC38: 3068618 | AD38: TECNICO OPERATIVO | AE38: 125 | AF38: Sede | AG38: Sin Definir | AH38: CARRERA ADMINISTRATIVA | AI38: Nombramiento | AJ38: 2020-11-10 | AK38: 213 | AL38: 2020-10-20 | AR38: =VLOOKUP(A38,'PLANTA SJD'!B:G,18,0) ->  | AT38: =VLOOKUP(A38,'PLANTA SJD'!B:G,19,0) -> 
A39: 1075256570 | B39: SOTELO | C39: HOYOS | D39: DURLEY | E39: A | F39: 1989-10-03 | G39: CARRERA 27 B N° 5 A- 43 | H39: 3118779337 | I39: F | M39: O | N39: P | O39: EMPLEADO DE PLANTA | P39: 2021-11-03 | Q39: 2021-11-03 | S39: 6 | T39: NUEVA EPS | U39: 19 | V39: PORVENIR S.A. | W39: 19 | X39: PORVENIR | Y39: 2311000 | Z39: Dirección de Gestión Corporativa | AA39: 470 | AB39: 3 | AC39: 1399571 | AD39: AUXILIAR SERVICIOS GENERALES | AE39: 170 | AF39: Sede | AG39: Sin Definir | AH39: PROVISIONAL | AI39: Nombramiento | AJ39: 2021-11-03 | AK39: 195 | AL39: 2021-10-07 | AR39: =VLOOKUP(A39,'PLANTA SJD'!B:G,18,0) ->  | AT39: =VLOOKUP(A39,'PLANTA SJD'!B:G,19,0) -> 
A40: 1082925493 | B40: APONTE | C40: MARTIN | D40: DIANA CAMILA | E40: A | F40: 1990-12-12 | G40: CARRERA 17 Nº 137-28 APTO. 102 | H40: 3002045474 | I40: F | M40: O | N40: P | O40: EMPLEADO DE PLANTA | P40: 2020-08-14 | Q40: 2020-08-14 | S40: 5 | T40: SANITAS S.A. E.P.S | U40: 19 | V40: PORVENIR S.A. | W40: 19 | X40: PORVENIR | Y40: 2310460 | Z40: Dirección Distrital de Doctrina y Asuntos Normativos | AA40: 222 | AB40: 24 | AC40: 4355509 | AD40: PROFESIONAL ESPECIALIZADO | AE40: 55 | AF40: Sede | AG40: Sin Definir | AH40: PROVISIONAL | AI40: Nombramiento | AJ40: 2021-05-11 | AK40: 90 | AL40: 2021-05-10 | AR40: =VLOOKUP(A40,'PLANTA SJD'!B:G,18,0) ->  | AT40: =VLOOKUP(A40,'PLANTA SJD'!B:G,19,0) -> 
A41: 1110573560 | B41: JIMENEZ | C41: VASQUEZ | D41: CRISTHIAM DAVID | E41: A | F41: 1996-08-08 | G41: CARRERA 14 Nº 39 18 APTO. 217 | H41: 3212049336 | I41: M | J41: 1110573560 | K41: 2 | L41: 3 | M41: A | N41: P | O41: EMPLEADO DE PLANTA | P41: 2021-04-13 | Q41: 2021-04-13 | S41: 5 | T41: SANITAS S.A. E.P.S | U41: 19 | V41: PORVENIR S.A. | W41: 19 | X41: PORVENIR | Y41: 2310470 | Z41: Dirección Distrital de Inspección, Vigilancia y Control de Personas Jurídicas Sin Ánimo de Lucro | AA41: 219 | AB41: 1 | AC41: 2551642 | AD41: PROFESIONAL UNIVERSITARIO | AE41: 114 | AF41: Sede | AG41: Sin Definir | AH41: CARRERA ADMINISTRATIVA | AI41: Nombramiento | AJ41: 2021-04-13 | AK41: 42 | AL41: 2021-03-24 | AR41: =VLOOKUP(A41,'PLANTA SJD'!B:G,18,0) ->  | AT41: =VLOOKUP(A41,'PLANTA SJD'!B:G,19,0) -> 
A42: 1113658247 | B42: VALENCIA | C42: PATIÑO | D42: HOOVER HERNAN | E42: A | F42: 1992-05-27 | G42: CARRERA 5 Nº 45-25 | H42: 3218412793 | I42: M | J42: 1113658247 | K42: 1 | L42: 18 | M42: A | N42: P | O42: EMPLEADO DE PLANTA | P42: 2021-02-16 | Q42: 2021-02-16 | R42: 2018-10-04 | S42: 16 | T42: COOMEVA E.P.S. | U42: 19 | V42: PORVENIR S.A. | W42: 3 | X42: FONDO NACIONAL DEL AHORRO | Y42: 2310450 | Z42: Dirección Distrital de Defensa Judicial y Prevención del Daño Antijurídico | AA42: 314 | AB42: 15 | AC42: 2703301 | AD42: TECNICO OPERATIVO | AE42: 128 | AF42: Sede | AG42: Sin Definir | AH42: CARRERA ADMINISTRATIVA | AI42: Nombramiento | AJ42: 2021-02-16 | AK42: 112 | AL42: 2020-10-14 | AM42: 2021-12-07 | AN42: 234 | AO42: 2021-12-06 | AR42: =VLOOKUP(A42,'PLANTA SJD'!B:G,18,0) ->  | AT42: =VLOOKUP(A42,'PLANTA SJD'!B:G,19,0) -> 
A43: 1116247853 | B43: YARCE | C43: BARRAGAN | D43: CRISTHIAN FELIPE | E43: A | F43: 1990-07-16 | G43: CARRERA 28 46 73 AP 402 | H43: 3164509916 | I43: M | M43: A | N43: P | O43: EMPLEADO DE PLANTA | P43: 2021-10-04 | Q43: 2021-10-04 | S43: 16 | T43: COOMEVA E.P.S. | U43: 19 | V43: PORVENIR S.A. | W43: 3 | X43: FONDO NACIONAL DEL AHORRO | Y43: 2300100 | Z43: Despacho Secretaría Jurídica | AA43: 105 | AB43: 5 | AC43: 5884160 | AD43: ASESOR | AE43: 16 | AF43: Sede | AG43: Sin Definir | AH43: LIBRE NOMBRAMIENTO Y REMOCION | AI43: Nombramiento | AJ43: 2021-10-04 | AK43: 192 | AL43: 2021-10-01 | AR43: =VLOOKUP(A43,'PLANTA SJD'!B:G,18,0) ->  | AT43: =VLOOKUP(A43,'PLANTA SJD'!B:G,19,0) -> 
A44: 16077540 | B44: RAMIREZ | C44: VALENCIA | D44: IVAN DAVID | E44: A | F44: 1983-11-06 | G44: CALLE 59 Nº 14A 82 APTO. 202 | H44: 6360599 | I44: M | J44: 16077540 | K44: 2 | L44: 31 | M44: O | N44: P | O44: EMPLEADO DE PLANTA | P44: 2020-12-01 | Q44: 2020-12-01 | R44: 2010-10-01 | S44: 8 | T44: COMPENSAR E.P.S. | U44: 11 | V44: COLPENSIONES | W44: 3 | X44: FONDO NACIONAL DEL AHORRO | Y44: 2310470 | Z44: Dirección Distrital de Inspección, Vigilancia y Control de Personas Jurídicas Sin Ánimo de Lucro | AA44: 219 | AB44: 18 | AC44: 3806326 | AD44: PROFESIONAL UNIVERSITARIO | AE44: 92 | AF44: Sede | AG44: Sin Definir | AH44: CARRERA ADMINISTRATIVA | AI44: Nombramiento | AJ44: 2020-12-01 | AK44: 209 | AL44: 2020-10-20 | AR44: =VLOOKUP(A44,'PLANTA SJD'!B:G,18,0) ->  | AT44: =VLOOKUP(A44,'PLANTA SJD'!B:G,19,0) -> 
A45: 16359534 | B45: LIBREROS | C45: CASTAÑEDA | D45: SENECA | E45: A | F45: 1964-01-20 | G45: CALLE 22 N° 2-80 APTO. 302 | H45: 3024601102 | I45: M | J45: 70255 | K45: 2 | L45: 19 | M45: O | N45: P | O45: EMPLEADO DE PLANTA | P45: 2019-06-26 | Q45: 2019-06-26 | S45: 5 | T45: SANITAS S.A. E.P.S | U45: 11 | V45: COLPENSIONES | W45: 23 | X45: COLFONDOS | Y45: 2310460 | Z45: Dirección Distrital de Doctrina y Asuntos Normativos | AA45: 219 | AB45: 18 | AC45: 3806326 | AD45: PROFESIONAL UNIVERSITARIO | AE45: 83 | AF45: Sede | AG45: Sin Definir | AH45: PROVISIONAL | AI45: Nombramiento | AJ45: 2019-06-26 | AK45: 93 | AL45: 2019-06-26 | AR45: =VLOOKUP(A45,'PLANTA SJD'!B:G,18,0) ->  | AT45: =VLOOKUP(A45,'PLANTA SJD'!B:G,19,0) -> 
A46: 19347862 | B46: HERNANDEZ | C46: ALBARRACIN | D46: JORGE ELIECER | E46: A | F46: 1957-04-30 | G46: DIAG. 145 N°32-38 APTO. 503 | H46: 6143835 | I46: M | J46: 19347862 | K46: 2 | L46: 55 | O46: EMPLEADO DE PLANTA | P46: 2016-08-03 | Q46: 1994-12-28 | S46: 8 | T46: COMPENSAR E.P.S. | U46: 23 | V46: COLFONDOS S.A. | W46: 3 | X46: FONDO NACIONAL DEL AHORRO | Y46: 2310470 | Z46: Dirección Distrital de Inspección, Vigilancia y Control de Personas Jurídicas Sin Ánimo de Lucro | AA46: 222 | AB46: 27 | AC46: 4706480 | AD46: PROFESIONAL ESPECIALIZADO | AE46: 46 | AF46: Sede | AG46: Sin Definir | AH46: CARRERA ADMINISTRATIVA | AI46: Nombramiento | AJ46: 2016-08-03 | AK46: 2 | AL46: 2016-08-03 | AR46: =VLOOKUP(A46,'PLANTA SJD'!B:G,18,0) ->  | AT46: =VLOOKUP(A46,'PLANTA SJD'!B:G,19,0) -> 
A47: 19444915 | B47: QUINTERO | C47: LARA | D47: OCTAVIO | E47: A | F47: 1961-08-31 | G47: CALLE 145 A17 82 APTO 406 | H47: 9060938 | I47: M | M47: O | N47: P | O47: EMPLEADO DE PLANTA | P47: 2021-07-23 | Q47: 2021-07-23 | R47: 2019-01-23 | S47: 8 | T47: COMPENSAR E.P.S. | U47: 11 | V47: COLPENSIONES | W47: 3 | X47: FONDO NACIONAL DEL AHORRO | Y47: 2310470 | Z47: Dirección Distrital de Inspección, Vigilancia y Control de Personas Jurídicas Sin Ánimo de Lucro | AA47: 222 | AB47: 27 | AC47: 4706480 | AD47: PROFESIONAL ESPECIALIZADO | AE47: 48 | AF47: Sede | AG47: Sin Definir | AH47: PERIODO PRUEBA | AI47: Nombramiento | AJ47: 2021-07-23 | AK47: 119 | AL47: 2021-06-24 | AR47: =VLOOKUP(A47,'PLANTA SJD'!B:G,18,0) ->  | AT47: =VLOOKUP(A47,'PLANTA SJD'!B:G,19,0) -> 
A48: 22446641 | B48: SIERRA | C48: LABORDE | D48: ROSA ISABEL | E48: A | F48: 1968-07-27 | G48: CALLE 155 A N° 7 G-10 BLOQUE 9 APTO 101 | H48: 3003158312 | I48: F | M48: A | N48: P | O48: EMPLEADO DE PLANTA | P48: 2021-11-25 | Q48: 2021-11-25 | R48: 2013-04-29 | S48: 26 | T48: EPS SURA | U48: 23 | V48: COLFONDOS S.A. | W48: 3 | X48: FONDO NACIONAL DEL AHORRO | Y48: 2310440 | Z48: Dirección Distrital de Política e Informática Jurídica | AA48: 314 | AB48: 15 | AC48: 2703301 | AD48: TECNICO OPERATIVO | AE48: 133 | AF48: Sede | AG48: Sin Definir | AH48: PERIODO PRUEBA | AI48: Nombramiento | AJ48: 2021-11-25 | AK48: 118 | AL48: 2021-06-24 | AR48: =VLOOKUP(A48,'PLANTA SJD'!B:G,18,0) ->  | AT48: =VLOOKUP(A48,'PLANTA SJD'!B:G,19,0) -> 
A49: 23582747 | B49: GUERRERO | C49: BONILLA | D49: MAGDA EDITH | E49: A | F49: 1977-05-20 | G49: CARRERA 79 Nº 19 88 TORRE 1 APTO. 1102 | H49: 3102007739 | I49: F | M49: O | N49: P | O49: EMPLEADO DE PLANTA | P49: 2021-03-12 | Q49: 2021-03-12 | S49: 24 | T49: FOSYGA EPS | U49: 11 | V49: COLPENSIONES | W49: 3 | X49: FONDO NACIONAL DEL AHORRO | Y49: 2310450 | Z49: Dirección Distrital de Defensa Judicial y Prevención del Daño Antijurídico | AA49: 222 | AB49: 27 | AC49: 4706480 | AD49: PROFESIONAL ESPECIALIZADO | AE49: 36 | AF49: Sede | AG49: Sin Definir | AH49: CARRERA ADMINISTRATIVA | AI49: Nombramiento | AJ49: 2021-03-12 | AK49: 159 | AL49: 2020-10-14 | AR49: =VLOOKUP(A49,'PLANTA SJD'!B:G,18,0) ->  | AT49: =VLOOKUP(A49,'PLANTA SJD'!B:G,19,0) -> 
A50: 24179106 | B50: ROJAS | C50: SUAREZ | D50: ZULMA | E50: A | F50: 1976-09-01 | G50: AV 30 No. 3 - 55 VERAGUAS | H50: 2039277 | I50: F | O50: EMPLEADO DE PLANTA | P50: 2016-08-03 | Q50: 2004-12-22 | S50: 26 | T50: EPS SURA | U50: 18 | V50: PROTECCION S.A. | W50: 18 | X50: PROTECCION | Y50: 2310440 | Z50: Dirección Distrital de Política e Informática Jurídica | AA50: 9 | AB50: 7 | AC50: 7190161 | AD50: DIRECTOR TECNICO | AE50: 3 | AF50: Sede | AG50: Sin Definir | AH50: LIBRE NOMBRAMIENTO Y REMOCION | AI50: Nombramiento | AJ50: 2016-08-03 | AK50: 2 | AL50: 2016-08-03 | AM50: 2022-01-12 | AN50: 6 | AO50: 2022-01-07 | AR50: =VLOOKUP(A50,'PLANTA SJD'!B:G,18,0) ->  | AT50: =VLOOKUP(A50,'PLANTA SJD'!B:G,19,0) -> 
A51: 28488940 | B51: ANAYA | C51: SARMIENTO | D51: CAROLINA | E51: A | F51: 1982-05-22 | G51: CARRERA 6 Nº 48A - 27 APTO. 102 | H51: 6995285 | I51: F | M51: A | N51: P | O51: EMPLEADO DE PLANTA | P51: 2020-11-03 | Q51: 2020-11-03 | S51: 6 | T51: NUEVA EPS | U51: 11 | V51: COLPENSIONES | W51: 3 | X51: FONDO NACIONAL DEL AHORRO | Y51: 2310460 | Z51: Dirección Distrital de Doctrina y Asuntos Normativos | AA51: 314 | AB51: 9 | AC51: 2358651 | AD51: TECNICO OPERATIVO | AE51: 136 | AF51: Sede | AG51: Sin Definir | AH51: CARRERA ADMINISTRATIVA | AI51: Nombramiento | AJ51: 2020-11-03 | AK51: 138 | AL51: 2020-10-14 | AR51: =VLOOKUP(A51,'PLANTA SJD'!B:G,18,0) ->  | AT51: =VLOOKUP(A51,'PLANTA SJD'!B:G,19,0) -> 
A52: 28496885 | B52: PINILLA | C52: SERRANO | D52: ESTHER | E52: A | F52: 1972-04-23 | G52: CARRERA 46 Nº 187 30 INTERIOR 8 APTO. 103 | H52: 3015042 | I52: F | M52: A | N52: N | O52: EMPLEADO DE PLANTA | P52: 2021-02-02 | Q52: 2021-02-02 | S52: 8 | T52: COMPENSAR E.P.S. | U52: 11 | V52: COLPENSIONES | W52: 3 | X52: FONDO NACIONAL DEL AHORRO | Y52: 2310400 | Z52: Subsecretaría Jurídica | AA52: 222 | AB52: 27 | AC52: 4706480 | AD52: PROFESIONAL ESPECIALIZADO | AE52: 30 | AF52: Sede | AG52: Sin Definir | AH52: CARRERA ADMINISTRATIVA | AI52: Nombramiento | AJ52: 2021-02-02 | AK52: 211 | AL52: 2020-10-20 | AR52: =VLOOKUP(A52,'PLANTA SJD'!B:G,18,0) ->  | AT52: =VLOOKUP(A52,'PLANTA SJD'!B:G,19,0) -> 
A53: 28915546 | B53: RODRIGUEZ | C53: QUIMBAYO | D53: LUZ ELENA | E53: A | F53: 1970-06-20 | G53: CRA. 63 NO. 22 - 45 INT 2 AP 201 | H53: 7037628 | I53: F | M53: O | N53: P | O53: EMPLEADO DE PLANTA | P53: 2016-08-03 | Q53: 2016-05-03 | S53: 8 | T53: COMPENSAR E.P.S. | U53: 11 | V53: COLPENSIONES | W53: 3 | X53: FONDO NACIONAL DEL AHORRO | Y53: 2310450 | Z53: Dirección Distrital de Defensa Judicial y Prevención del Daño Antijurídico | AA53: 9 | AB53: 7 | AC53: 7190161 | AD53: DIRECTOR TECNICO | AE53: 7 | AF53: Sede | AG53: Sin Definir | AH53: LIBRE NOMBRAMIENTO Y REMOCION | AI53: Nombramiento | AJ53: 2016-08-03 | AK53: 5 | AL53: 2016-08-03 | AR53: =VLOOKUP(A53,'PLANTA SJD'!B:G,18,0) ->  | AT53: =VLOOKUP(A53,'PLANTA SJD'!B:G,19,0) -> 
A54: 28963444 | B54: SALCEDO | C54: TAMAYO | D54: GLORIA ESTHER | E54: A | F54: 1964-05-17 | G54: CALLE 141 No 9-92 APTO 603 | H54: 2167981 | I54: F | O54: EMPLEADO DE PLANTA | P54: 2016-08-03 | Q54: 1993-10-15 | S54: 5 | T54: SANITAS S.A. E.P.S | U54: 11 | V54: COLPENSIONES | W54: 1 | X54: FONCEP ANTIGUO REGIMEN | Y54: 2311600 | Z54: Contratación | AA54: 222 | AB54: 24 | AC54: 4355509 | AD54: PROFESIONAL ESPECIALIZADO | AE54: 21 | AF54: Sede | AG54: Sin Definir | AH54: CARRERA ADMINISTRATIVA | AI54: Nombramiento | AJ54: 2016-08-03 | AK54: 2 | AL54: 2016-08-03 | AM54: 2021-11-04 | AN54: 209 | AO54: 2021-11-02 | AR54: =VLOOKUP(A54,'PLANTA SJD'!B:G,18,0) ->  | AT54: =VLOOKUP(A54,'PLANTA SJD'!B:G,19,0) -> 
A55: 30082628 | B55: GOMEZ | C55: PEÑA | D55: DIANA PAOLA | E55: A | F55: 1979-06-08 | G55: CALLE 3A Nº 39A 15 INT. 2 APTO.402 | H55: 6638728 | I55: F | M55: O | N55: P | O55: EMPLEADO DE PLANTA | P55: 2020-11-13 | Q55: 2020-06-23 | S55: 8 | T55: COMPENSAR E.P.S. | U55: 11 | V55: COLPENSIONES | W55: 3 | X55: FONDO NACIONAL DEL AHORRO | Y55: 2310430 | Z55: Dirección Distrital de Asuntos Disciplinarios | AA55: 222 | AB55: 19 | AC55: 4003105 | AD55: PROFESIONAL ESPECIALIZADO | AE55: 69 | AF55: Sede | AG55: Sin Definir | AH55: CARRERA ADMINISTRATIVA | AI55: Nombramiento | AJ55: 2020-11-13 | AK55: 111 | AL55: 2020-10-14 | AR55: =VLOOKUP(A55,'PLANTA SJD'!B:G,18,0) ->  | AT55: =VLOOKUP(A55,'PLANTA SJD'!B:G,19,0) -> 
A56: 30333406 | B56: AVILA | C56: MARIN | D56: ALEXANDRA | E56: A | F56: 1974-12-25 | G56: CALLE 152 A 91 76 | H56: 5365866 | I56: F | M56: O | N56: P | O56: EMPLEADO DE PLANTA | P56: 2021-07-19 | Q56: 2021-07-19 | S56: 2 | T56: SALUD TOTAL S.A. E.P.S. | U56: 11 | V56: COLPENSIONES | W56: 3 | X56: FONDO NACIONAL DEL AHORRO | Y56: 2310440 | Z56: Dirección Distrital de Política e Informática Jurídica | AA56: 219 | AB56: 1 | AC56: 2551642 | AD56: PROFESIONAL UNIVERSITARIO | AE56: 111 | AF56: Sede | AG56: Sin Definir | AH56: PERIODO PRUEBA | AI56: Nombramiento | AJ56: 2021-07-19 | AK56: 120 | AL56: 2021-06-24 | AR56: =VLOOKUP(A56,'PLANTA SJD'!B:G,18,0) ->  | AT56: =VLOOKUP(A56,'PLANTA SJD'!B:G,19,0) -> 
A57: 3085860 | B57: CASTIBLANCO | C57: URQUIJO | D57: LUIS ALFONSO | E57: A | F57: 1967-11-01 | G57: Diagonal 33 No 15-63 apto 101 | H57: 5996161 | I57: M | O57: EMPLEADO DE PLANTA | P57: 2016-08-03 | Q57: 2005-04-01 | R57: 1999-06-21 | S57: 8 | T57: COMPENSAR E.P.S. | U57: 11 | V57: COLPENSIONES | W57: 3 | X57: FONDO NACIONAL DEL AHORRO | Y57: 2310450 | Z57: Dirección Distrital de Defensa Judicial y Prevención del Daño Antijurídico | AA57: 222 | AB57: 27 | AC57: 4706480 | AD57: PROFESIONAL ESPECIALIZADO | AE57: 33 | AF57: Sede | AG57: Sin Definir | AH57: CARRERA ADMINISTRATIVA | AI57: Nombramiento | AJ57: 2016-08-03 | AK57: 2 | AL57: 2016-08-03 | AM57: 2021-08-05 | AN57: 141 | AO57: 2021-08-05 | AR57: =VLOOKUP(A57,'PLANTA SJD'!B:G,18,0) ->  | AT57: =VLOOKUP(A57,'PLANTA SJD'!B:G,19,0) -> 
A58: 37625914 | B58: SANCHEZ | C58: ROJAS | D58: MARY DAYANA | E58: A | F58: 1976-01-02 | G58: CARRERA 48 Nº 180A 22 | H58: 4161015 | I58: F | M58: A | N58: P | O58: EMPLEADO DE PLANTA | P58: 2020-11-12 | Q58: 2020-11-12 | S58: 8 | T58: COMPENSAR E.P.S. | U58: 11 | V58: COLPENSIONES | W58: 18 | X58: PROTECCION | Y58: 2310450 | Z58: Dirección Distrital de Defensa Judicial y Prevención del Daño Antijurídico | AA58: 314 | AB58: 15 | AC58: 2703301 | AD58: TECNICO OPERATIVO | AE58: 130 | AF58: Sede | AG58: Sin Definir | AH58: CARRERA ADMINISTRATIVA | AI58: Nombramiento | AJ58: 2020-11-12 | AK58: 128 | AL58: 2020-10-14 | AR58: =VLOOKUP(A58,'PLANTA SJD'!B:G,18,0) ->  | AT58: =VLOOKUP(A58,'PLANTA SJD'!B:G,19,0) -> 
A59: 38263037 | B59: GOMEZ | C59: CARMONA | D59: WALDINA | E59: A | F59: 1964-08-02 | G59: CR 18 No. 46 - 58 apartamento 504 | H59: 2852594 | I59: F | O59: EMPLEADO DE PLANTA | P59: 2016-08-03 | Q59: 1996-09-19 | S59: 8 | T59: COMPENSAR E.P.S. | U59: 11 | V59: COLPENSIONES | W59: 3 | X59: FONDO NACIONAL DEL AHORRO | Y59: 2310440 | Z59: Dirección Distrital de Política e Informática Jurídica | AA59: 222 | AB59: 27 | AC59: 4706480 | AD59: PROFESIONAL ESPECIALIZADO | AE59: 45 | AF59: Sede | AG59: Sin Definir | AH59: CARRERA ADMINISTRATIVA | AI59: Nombramiento | AJ59: 2016-08-03 | AK59: 2 | AL59: 2016-08-03 | AM59: 2021-04-05 | AN59: 60 | AO59: 2021-04-05 | AR59: =VLOOKUP(A59,'PLANTA SJD'!B:G,18,0) ->  | AT59: =VLOOKUP(A59,'PLANTA SJD'!B:G,19,0) -> 
